Workbook

Sheet Explicación
B3: Organización del Archivo
D4: Hoja | E4: Detalle
B5: Inputs del modelo | C5: Información de mercado: | D5: Energia | E5: Energía medida y facturada de los clientes
D6: Clientes | E6: Cantidad de clientes y conexiones
D7: Potencia | E7: Demanda facturada de los clientes
C8: Costos | D8: Costos | E8: IMP, costos de abastecimiento
D9: Costo_medidores | E9: Costo de los medidores
C10: Parámetros | D10: Factores | E10: Parámetros tarifarios y factores de pérdidas
D11: Params | E11: Parámetros básicos del modelo
D12: Factor_Monomico | E12: Factor de ajuste del costo monómico para el cálculo del IMP de pérdidas
B13: Cálculo de cargos técnicos | C13: Balance Tarifario | D13: Balance | E13: Elaboración del balance de potencia con fines tarifarios
C14: Componentes tarifarios | D14: Resumen_cargos | E14: Compilación de los cargos técnicos
D15: cargos_conexión | E15: Cálculo de los cargos de conexión
D16: cargos_distribución | E16: Cálculo de los cargos de distribución
D17: cargos_comercialización | E17: Cálculo de los cargos de comercialización
D18: cargos_reconexión | E18: Cálculo de los cargos de reconexión
D19: cargos_AP | E19: Cálculo de los cargos de Alumbrado Público (servicio y consumo)
D20: cargos_abastecimiento | E20: Cálculo de los cargos de energía y potencia y de los asociados a transmisión
B21: Cálculo de los cargos de aplicación | D21: Res_cargos_Aj | E21: Compilación de los cargos de aplicación
D22: EmpalmeBTD_BTS | E22: Ajusta los cargos BTD-BTS para garantizar empalme entre los mismos (requerimiento del RDC)
D23: Ajustes | E23: Ajuste de los cargos técnicos para obtener los de aplicación
D24: Tarifa_VE | E24: Cálculo de la tarifa para carga de vehículos eléctricos
D25: Publicación | E25: Cargos resultantes en formato de publicación
B26: Resultados Económicos | D26: Resumen | E26: Comprobación de recuperación de costos

Sheet Resumen
A2: Costos Reconocidos e Ingresos Tarifarios (B/.)
A4: IMP
C5: Costos a recuperar en Tarifa | I5: Ingresos Tarifarios
A6: Nombre Componente | B6: Componente | C6: 2026/2027 | D6: 2027/2028 | E6: 2028/2029 | F6: 2029/2030 | G6: Valor Presente | I6: =C6 -> 2026/2027 | J6: =D6 -> 2027/2028 | K6: 2028/2029 | L6: 2029/2030 | M6: Valor Presente | O6: chequeo
A7: IMP sistema de distribución | B7: IPSD | C7: =Costos!B14*1000 -> 148791262.1 | D7: =Costos!C14*1000 -> 150026600.5 | E7: =Costos!D14*1000 -> 151060098.4 | F7: =Costos!E14*1000 -> 152854249.5 | G7: =SUMPRODUCT(C7:F7,Costos!$B$10:$E$10) -> 494759006 | I7: =Ajustes!X14+Ajustes!AC14+Ajustes!BU14 -> 145513576.5 | J7: =Ajustes!Y14+Ajustes!AD14+Ajustes!BV14 -> 147879282.1 | K7: =Ajustes!Z14+Ajustes!AE14+Ajustes!BW14 -> 149659899 | L7: =Ajustes!AA14+Ajustes!AF14+Ajustes!BX14 -> 151134646 | M7: =SUMPRODUCT(I7:L7,Costos!$B$10:$E$10) -> 487504318.2 | O7: =(G7+G8)-(M7+M8) -> -0.1167477965
A8: IMP servicio de alumbrado público | B8: ALUMPU | C8: =Costos!B17*1000 -> 7990123.591 | D8: =Costos!C17*1000 -> 8300327.99 | E8: =Costos!D17*1000 -> 8619695.963 | F8: =Costos!E17*1000 -> 8790668.776 | G8: =SUMPRODUCT(C8:F8,Costos!$B$10:$E$10) -> 27580102.59 | I8: =Ajustes!DI14 -> 10393881.72 | J8: =Ajustes!DJ14 -> 10566786.84 | K8: =Ajustes!DK14 -> 10695820.14 | L8: =Ajustes!DL14 -> 10802554.29 | M8: =SUMPRODUCT(I8:L8,Costos!$B$10:$E$10) -> 34834790.51
A9: IMP pérdidas del sistema de distribución | B9: IPPD | C9: =Costos!B15*1000 -> 61836313.53 | D9: =Costos!C15*1000 -> 62558049.4 | E9: =Costos!D15*1000 -> 63289254.46 | F9: =Costos!E15*1000 -> 63893961.89 | G9: =SUMPRODUCT(C9:F9,Costos!$B$10:$E$10) -> 206450697 | M9: =SUMPRODUCT(I9:L9,Costos!$B$10:$E$10) -> 0
B10: IPPD ajuste monómico | C10: =C9*Factor_Monomico!$C$12 -> 62820448.37 | D10: =D9*Factor_Monomico!$C$12 -> 63553670.78 | E10: =E9*Factor_Monomico!$C$12 -> 64296513.09 | F10: =F9*Factor_Monomico!$C$12 -> 64910844.53 | G10: =SUMPRODUCT(C10:F10,Costos!$B$10:$E$10) -> 209736392.9 | I10: =Ajustes!FC14+Ajustes!GB14+Ajustes!GG14 -> 62588944.55 | J10: =Ajustes!FD14+Ajustes!GC14+Ajustes!GH14 -> 63622732.56 | K10: =Ajustes!FE14+Ajustes!GD14+Ajustes!GI14 -> 64394213.87 | L10: =Ajustes!FF14+Ajustes!GE14+Ajustes!GJ14 -> 65032370.09 | M10: =SUMPRODUCT(I10:L10,Costos!$B$10:$E$10) -> 209736393 | O10: =G10-M10 -> -0.05238541961
A11: IMP actividad de comercialización | B11: IMPCO | C11: =Costos!B16*1000 -> 63825369.9 | D11: =Costos!C16*1000 -> 64099070.62 | E11: =Costos!D16*1000 -> 64658611.86 | F11: =Costos!E16*1000 -> 65193462.86 | G11: =SUMPRODUCT(C11:F11,Costos!$B$10:$E$10) -> 211640096.5 | I11: =Ajustes!BB14+Ajustes!BG14+Ajustes!CO14 -> 62839947.99 | J11: =Ajustes!BC14+Ajustes!BH14+Ajustes!CP14 -> 64071209.38 | K11: =Ajustes!BD14+Ajustes!BI14+Ajustes!CQ14 -> 65112325.24 | L11: =Ajustes!BE14+Ajustes!BJ14+Ajustes!CR14 -> 66063541.17 | M11: =SUMPRODUCT(I11:L11,Costos!$B$10:$E$10) -> 211640096.6 | O11: =G11-M11 -> -0.0542332232
A12: IMP Total | B12: IMP | C12: =C7+C8+C9+C11 -> 282443069.1 | D12: =D7+D8+D9+D11 -> 284984048.6 | E12: 287627660.7 | F12: 290732343 | G12: =SUMPRODUCT(C12:F12,Costos!$B$10:$E$10) -> 940429902.1
A13: IMP Total ajuste monómico | B13: IMP ajuste monómico | C13: =C7+C8+C10+C11 -> 283427204 | D13: =D7+D8+D10+D11 -> 285979669.9 | E13: 288634919.3 | F13: 291749225.6 | G13: =SUMPRODUCT(C13:F13,Costos!$B$10:$E$10) -> 943715598 | I13: =I7+I8+I10+I11 -> 281336350.7 | J13: =J7+J8+J10+J11 -> 286140010.9 | K13: 289862258.3 | L13: 293033111.6 | M13: =SUMPRODUCT(I13:L13,Costos!$B$10:$E$10) -> 943715598.2 | O13: =G13-M13 -> -0.2233664989
A16: Abastecimiento
C17: 2026/2027 | I17: =C17 -> 2026/2027
A18: Nombre Componente | C18: 1° Sem | I18: 1° Sem
A19: Costos Generación | C19: =cargos_abastecimiento!C11/2*1000 -> 228368318.2 | I19: =Ajustes!JG14+Ajustes!KT14+Ajustes!KY14 -> 228368318.3 | O19: =G19-M19 -> 0
A20: Costos Transmisión | C20: =cargos_abastecimiento!H359*1000/2 -> 8297443.148 | I20: =Ajustes!HC14 -> 8297443.15 | O20: 0
A21: Pérdidas en Transmisión | C21: =cargos_abastecimiento!C211*1000/2 -> 16638407.12 | I21: =Ajustes!IB14+Ajustes!IG14 -> 16638407.13 | O21: 0
A22: Consumo Alumbrado Público | C22: =cargos_AP!C18*cargos_AP!C19*1000 -> 3362524.93 | I22: =Ajustes!EC14 -> 3362524.931 | O22: =G22-M22 -> 0

Sheet Publicación
B3: CARGOS DEL PLIEGO TARIFARIO | E3: Grupo | F3: Componente1 | G3: Componente2
B5: Tarifa BTS: Tarifa Simple
B6: Esta tarifa se aplica a cualquier uso de la energía eléctrica de clientes cuya demanda máxima mensual sea de 15 kilovatios (15 kW) o menor. | L6: Glosario de Componentes
L7: CD_kWh_
B8: BTS PREPAGO | L8: CD_kW_
B9: Resumen de Cargos | L9: CCOMF_kWh_
B10: Cargo por Energía | C10: =C12+C14+C16+C17+C19+C20+C22+C23+C25+C24 -> 0.1804224121 | L10: CCOMF_cliente_
B11: Comercialización | L11: CX_conex_
B12: Cargo por Energía | C12: =IFERROR(INDEX(Ajustes!$E$14:$LG$299,MATCH(E12,Ajustes!$B$14:$B$299,0),MATCH(F12,Ajustes!$E$4:$LG$4,0)),)+IFERROR(INDEX(Ajustes!$E$14:$LG$299,MATCH(E12,Ajustes!$B$14:$B$299,0),MATCH(G12,Ajustes!$E$4:$LG$4,0)),) -> 0.03337183919 | E12: BTS_PREPAGO | F12: CCOMF_kWh_ | G12: CCOMV_kWh_ | L12: CCOMV_kWh_
B13: Distribución | L13: CSERAP_kWh_
B14: Cargo por Energía | C14: =IFERROR(INDEX(Ajustes!$E$14:$LG$299,MATCH(E14,Ajustes!$B$14:$B$299,0),MATCH(F14,Ajustes!$E$4:$LG$4,0)),)+IFERROR(INDEX(Ajustes!$E$14:$LG$299,MATCH(E14,Ajustes!$B$14:$B$299,0),MATCH(G14,Ajustes!$E$4:$LG$4,0)),) -> 0.03517756835 | E14: =E$12 -> BTS_PREPAGO | F14: CD_kWh_ | L14: CCONAP_kWh_
B15: Pérdida de Distribución | L15: CPERDE_kWh_
B16: Cargo por Energía | C16: =IFERROR(INDEX(Ajustes!$E$14:$LG$299,MATCH(E16,Ajustes!$B$14:$B$299,0),MATCH(F16,Ajustes!$E$4:$LG$4,0)),)+IFERROR(INDEX(Ajustes!$E$14:$LG$299,MATCH(E16,Ajustes!$B$14:$B$299,0),MATCH(G16,Ajustes!$E$4:$LG$4,0)),) -> 0.01689175338 | E16: =E$12 -> BTS_PREPAGO | F16: CPERDE_kWh_ | G16: CPERDP_kWh_ | L16: CPERDP_kWh_
B17: Alumbrado Público | C17: =IFERROR(INDEX(Ajustes!$E$14:$LG$299,MATCH(E17,Ajustes!$B$14:$B$299,0),MATCH(F17,Ajustes!$E$4:$LG$4,0)),)+IFERROR(INDEX(Ajustes!$E$14:$LG$299,MATCH(E17,Ajustes!$B$14:$B$299,0),MATCH(G17,Ajustes!$E$4:$LG$4,0)),) -> 0.002467938471 | E17: BTS_PREPAGO | F17: CSERAP_kWh_ | L17: CPERDP_kW_
B18: Transmisión | L18: CPERDE+CPERDP_kWh
B19: Cargo por Energía | C19: =IFERROR(INDEX(Ajustes!$E$14:$LG$299,MATCH(E19,Ajustes!$B$14:$B$299,0),MATCH(F19,Ajustes!$E$4:$LG$4,0)),)+IFERROR(INDEX(Ajustes!$E$14:$LG$299,MATCH(E19,Ajustes!$B$14:$B$299,0),MATCH(G19,Ajustes!$E$4:$LG$4,0)),) -> 0.006648111632 | E19: =E$12 -> BTS_PREPAGO | F19: CPT_kWh_ | L19: CPET_kWh_
B20: Cargo por Energía Pérdidas de Transmisión | C20: =IFERROR(INDEX(Ajustes!$E$14:$LG$299,MATCH(E20,Ajustes!$B$14:$B$299,0),MATCH(F20,Ajustes!$E$4:$LG$4,0)),)+IFERROR(INDEX(Ajustes!$E$14:$LG$299,MATCH(E20,Ajustes!$B$14:$B$299,0),MATCH(G20,Ajustes!$E$4:$LG$4,0)),) -> 0.004921363472 | E20: BTS_PREPAGO | F20: CPET_kWh_ | L20: CPT_kWh_
B21: Generación | L21: CPT_kW_
B22: Cargo por Energía | C22: =IFERROR(INDEX(Ajustes!$E$14:$LG$299,MATCH(E22,Ajustes!$B$14:$B$299,0),MATCH(F22,Ajustes!$E$4:$LG$4,0)),)+IFERROR(INDEX(Ajustes!$E$14:$LG$299,MATCH(E22,Ajustes!$B$14:$B$299,0),MATCH(G22,Ajustes!$E$4:$LG$4,0)),) -> 0.06474646655 | E22: =E$12 -> BTS_PREPAGO | F22: CENEGEN_kWh_ | L22: CENEGEN_kWh_
B23: Cargo por Potencia Energizada | C23: =IFERROR(INDEX(Ajustes!$E$14:$LG$299,MATCH(E23,Ajustes!$B$14:$B$299,0),MATCH(F23,Ajustes!$E$4:$LG$4,0)),)+IFERROR(INDEX(Ajustes!$E$14:$LG$299,MATCH(E23,Ajustes!$B$14:$B$299,0),MATCH(G23,Ajustes!$E$4:$LG$4,0)),) -> 0.01460056544 | E23: BTS_PREPAGO | F23: CPOTGENE_kWh_ | L23: CPOTGENE_kWh_
B24: Cargo por Abastecimiento de Alumbrado Público | C24: =IFERROR(INDEX(Ajustes!$E$14:$LG$299,MATCH(E24,Ajustes!$B$14:$B$299,0),MATCH(F24,Ajustes!$E$4:$LG$4,0)),)+IFERROR(INDEX(Ajustes!$E$14:$LG$299,MATCH(E24,Ajustes!$B$14:$B$299,0),MATCH(G24,Ajustes!$E$4:$LG$4,0)),) -> 0.001596805598 | E24: BTS_PREPAGO | F24: CCONAP_kWh_ | L24: CPOTGEN_kW_
B25: Cargo de Generación Extraordinario | C25: =IFERROR(INDEX(Ajustes!$E$14:$LG$299,MATCH(E25,Ajustes!$B$14:$B$299,0),MATCH(F25,Ajustes!$E$4:$LG$4,0)),)+IFERROR(INDEX(Ajustes!$E$14:$LG$299,MATCH(E25,Ajustes!$B$14:$B$299,0),MATCH(G25,Ajustes!$E$4:$LG$4,0)),) -> 0 | E25: =E$12 -> BTS_PREPAGO | L25: CENEGEN+CPOTGENE_kWh
B28: Tarifa BTS único
B29: Resumen de Cargos
B30: Cargo Fijo, por los primeros 10 kWh | C30: =C36 -> 2.763111221
B31: Cargo por Energía por los siguientes kWh de 11 a 300 | C31: =C37+C39+C41+C42+C44+C45+C47+C50+C53+C54 -> 0.1689079918
B32: Cargo por Energía por los siguientes kWh de 301 a 750 | C32: =C37+C39+C41+C42+C44+C45+C48+C51+C53+C54 -> 0.2340714726
B33: Cargo por Energía por los siguientes kWh en exceso de 751 | C33: =C37+C39+C41+C42+C44+C45+C49+C52+C53+C54 -> 0.2560641474
B34: Composición de los cargos:
B35: Comercialización
B36: Cargo Fijo, por los primeros 10 kWh | C36: =IFERROR(INDEX(Ajustes!$E$14:$LG$299,MATCH(E36,Ajustes!$B$14:$B$299,0),MATCH(F36,Ajustes!$E$4:$LG$4,0)),)+IFERROR(INDEX(Ajustes!$E$14:$LG$299,MATCH(E36,Ajustes!$B$14:$B$299,0),MATCH(G36,Ajustes!$E$4:$LG$4,0)),) -> 2.763111221 | E36: BTS | F36: CCOMF_cliente_
B37: Cargo por Energía (siguientes kWh) | C37: =IFERROR(INDEX(Ajustes!$E$14:$LG$299,MATCH(E37,Ajustes!$B$14:$B$299,0),MATCH(F37,Ajustes!$E$4:$LG$4,0)),)+IFERROR(INDEX(Ajustes!$E$14:$LG$299,MATCH(E37,Ajustes!$B$14:$B$299,0),MATCH(G37,Ajustes!$E$4:$LG$4,0)),) -> 0.01795201752 | E37: =E$36 -> BTS | F37: CCOMV_kWh_
B38: Distribución
B39: Cargo por Energía (siguientes kWh) | C39: =IFERROR(INDEX(Ajustes!$E$14:$LG$299,MATCH(E39,Ajustes!$B$14:$B$299,0),MATCH(F39,Ajustes!$E$4:$LG$4,0)),)+IFERROR(INDEX(Ajustes!$E$14:$LG$299,MATCH(E39,Ajustes!$B$14:$B$299,0),MATCH(G39,Ajustes!$E$4:$LG$4,0)),) -> 0.0361118196 | E39: =E$36 -> BTS | F39: CD_kWh_
B40: Pérdida de Distribución
B41: Cargo por Energía (siguientes kWh) | C41: =IFERROR(INDEX(Ajustes!$E$14:$LG$299,MATCH(E41,Ajustes!$B$14:$B$299,0),MATCH(F41,Ajustes!$E$4:$LG$4,0)),)+IFERROR(INDEX(Ajustes!$E$14:$LG$299,MATCH(E41,Ajustes!$B$14:$B$299,0),MATCH(G41,Ajustes!$E$4:$LG$4,0)),) -> 0.01734036715 | E41: =E$36 -> BTS | F41: CPERDE_kWh_ | G41: CPERDP_kWh_
B42: Alumbrado Público | C42: =IFERROR(INDEX(Ajustes!$E$14:$LG$299,MATCH(E42,Ajustes!$B$14:$B$299,0),MATCH(F42,Ajustes!$E$4:$LG$4,0)),)+IFERROR(INDEX(Ajustes!$E$14:$LG$299,MATCH(E42,Ajustes!$B$14:$B$299,0),MATCH(G42,Ajustes!$E$4:$LG$4,0)),) -> 0.002533482359 | E42: =E$36 -> BTS | F42: CSERAP_kWh_
B43: Transmisión
B44: Cargo por Energía (siguientes kWh) | C44: =IFERROR(INDEX(Ajustes!$E$14:$LG$299,MATCH(E44,Ajustes!$B$14:$B$299,0),MATCH(F44,Ajustes!$E$4:$LG$4,0)),)+IFERROR(INDEX(Ajustes!$E$14:$LG$299,MATCH(E44,Ajustes!$B$14:$B$299,0),MATCH(G44,Ajustes!$E$4:$LG$4,0)),) -> 0.0068246739 | E44: =E$36 -> BTS | F44: CPT_kWh_
B45: Cargo por Energía Pérdidas de Transmisión (siguientes kWh) | C45: =IFERROR(INDEX(Ajustes!$E$14:$LG$299,MATCH(E45,Ajustes!$B$14:$B$299,0),MATCH(F45,Ajustes!$E$4:$LG$4,0)),)+IFERROR(INDEX(Ajustes!$E$14:$LG$299,MATCH(E45,Ajustes!$B$14:$B$299,0),MATCH(G45,Ajustes!$E$4:$LG$4,0)),) -> 0.005052066316 | E45: BTS | F45: CPET_kWh_
B46: Generación
B47: Cargo por Energía por los siguientes kWh de 11 a 300 | C47: =IFERROR(INDEX(Ajustes!$E$14:$LG$299,MATCH(E47,Ajustes!$B$14:$B$299,0),MATCH(F47,Ajustes!$E$4:$LG$4,0)),)+IFERROR(INDEX(Ajustes!$E$14:$LG$299,MATCH(E47,Ajustes!$B$14:$B$299,0),MATCH(G47,Ajustes!$E$4:$LG$4,0)),) -> 0.06646601996 | E47: BTS_1 (0-300) | F47: CENEGEN_kWh_
B48: Cargo por Energía por los siguientes kWh de 301 a 750 | C48: =IFERROR(INDEX(Ajustes!$E$14:$LG$299,MATCH(E48,Ajustes!$B$14:$B$299,0),MATCH(F48,Ajustes!$E$4:$LG$4,0)),)+IFERROR(INDEX(Ajustes!$E$14:$LG$299,MATCH(E48,Ajustes!$B$14:$B$299,0),MATCH(G48,Ajustes!$E$4:$LG$4,0)),) -> 0.1196388359 | E48: BTS_2 (301-750) | F48: CENEGEN_kWh_
B49: Cargo por Energía por los siguientes kWh en exceso de 751 | C49: =IFERROR(INDEX(Ajustes!$E$14:$LG$299,MATCH(E49,Ajustes!$B$14:$B$299,0),MATCH(F49,Ajustes!$E$4:$LG$4,0)),)+IFERROR(INDEX(Ajustes!$E$14:$LG$299,MATCH(E49,Ajustes!$B$14:$B$299,0),MATCH(G49,Ajustes!$E$4:$LG$4,0)),) -> 0.1375846613 | E49: BTS_3 (751-más) | F49: CENEGEN_kWh_
B50: Cargo por Potencia Energizada por los siguientes kWh de 11 a 300 | C50: =IFERROR(INDEX(Ajustes!$E$14:$LG$299,MATCH(E50,Ajustes!$B$14:$B$299,0),MATCH(F50,Ajustes!$E$4:$LG$4,0)),)+IFERROR(INDEX(Ajustes!$E$14:$LG$299,MATCH(E50,Ajustes!$B$14:$B$299,0),MATCH(G50,Ajustes!$E$4:$LG$4,0)),) -> 0.01498833103 | E50: BTS_1 (0-300) | F50: CPOTGENE_kWh_
B51: Cargo por Potencia Energizada por los siguientes kWh de 301 a 750 | C51: =IFERROR(INDEX(Ajustes!$E$14:$LG$299,MATCH(E51,Ajustes!$B$14:$B$299,0),MATCH(F51,Ajustes!$E$4:$LG$4,0)),)+IFERROR(INDEX(Ajustes!$E$14:$LG$299,MATCH(E51,Ajustes!$B$14:$B$299,0),MATCH(G51,Ajustes!$E$4:$LG$4,0)),) -> 0.02697899586 | E51: BTS_2 (301-750) | F51: CPOTGENE_kWh_
B52: Cargo por Potencia Energizada por los siguientes kWh en exceso de 751 | C52: =IFERROR(INDEX(Ajustes!$E$14:$LG$299,MATCH(E52,Ajustes!$B$14:$B$299,0),MATCH(F52,Ajustes!$E$4:$LG$4,0)),)+IFERROR(INDEX(Ajustes!$E$14:$LG$299,MATCH(E52,Ajustes!$B$14:$B$299,0),MATCH(G52,Ajustes!$E$4:$LG$4,0)),) -> 0.03102584524 | E52: BTS_3 (751-más) | F52: CPOTGENE_kWh_
B53: Cargo por Abastecimiento de Alumbrado Público (siguientes kWh) | C53: =IFERROR(INDEX(Ajustes!$E$14:$LG$299,MATCH(E53,Ajustes!$B$14:$B$299,0),MATCH(F53,Ajustes!$E$4:$LG$4,0)),)+IFERROR(INDEX(Ajustes!$E$14:$LG$299,MATCH(E53,Ajustes!$B$14:$B$299,0),MATCH(G53,Ajustes!$E$4:$LG$4,0)),) -> 0.001639213974 | E53: =E$36 -> BTS | F53: CCONAP_kWh_
B54: Cargo de Generación Extraordinario (siguientes kWh) | C54: =IFERROR(INDEX(Ajustes!$E$14:$LG$299,MATCH(E54,Ajustes!$B$14:$B$299,0),MATCH(F54,Ajustes!$E$4:$LG$4,0)),)+IFERROR(INDEX(Ajustes!$E$14:$LG$299,MATCH(E54,Ajustes!$B$14:$B$299,0),MATCH(G54,Ajustes!$E$4:$LG$4,0)),) -> 0 | E54: BTS
B56: Tarifa BTS Social (0-50 kWh)
B57: Resumen de Cargos
B58: Cargo Fijo, por los primeros 20 kWh | C58: =C64 -> 2.763111221
B59: Cargo por Energía por los siguientes kWh de 21 a 50 | C59: =C65+C67+C69+C70+C72+C73+C75+C78+C79+C80 -> 0.1689079918
B62: Composición de los cargos:
B63: Comercialización
B64: Cargo Fijo, por los primeros 20 kWh | C64: =C36 -> 2.763111221
B65: Cargo por Energía (siguientes kWh) | C65: =C37 -> 0.01795201752
B66: Distribución
B67: Cargo por Energía (siguientes kWh) | C67: =C39 -> 0.0361118196
B68: Pérdida de Distribución
B69: Cargo por Energía (siguientes kWh) | C69: =C41 -> 0.01734036715
B70: Alumbrado Público | C70: =C42 -> 0.002533482359
B71: Transmisión
B72: Cargo por Energía (siguientes kWh) | C72: =C44 -> 0.0068246739
B73: Cargo por Energía Pérdidas de Transmisión (siguientes kWh) | C73: =C45 -> 0.005052066316
B74: Generación
B75: Cargo por Energía por los siguientes kWh de 21 a 50 | C75: =C47 -> 0.06646601996
B78: Cargo por Potencia Energizada (siguientes kWh) | C78: =C50 -> 0.01498833103
B79: Cargo por Abastecimiento de Alumbrado Público (siguientes kWh) | C79: =C53 -> 0.001639213974
B80: Cargo de Generación Extraordinario (siguientes kWh) | C80: 0
B82: BTSH
B83: Resumen de Cargos
B84: Cargo Fijo | C84: =C90 -> 2.763111221
B85: Cargo por Energía - Punta | C85: =C91+C93+C97+C100+C102+C105+C107+C110+C111+C112 -> 0.289887709 | L85: =C85/C87 -> 2.03673972
B86: Cargo por Energía - Medio Fuera Punta | C86: =C91+C94+C98+C100+C103+C105+C108+C110+C111+C112 -> 0.2161084973 | L86: =AVERAGE(C85,C87) -> 0.2161084973
B87: Cargo por Energía - Bajo Fuera Punta | C87: =C91+C95+C99+C100+C104+C105+C109+C110+C111+C112 -> 0.1423292855
B88: Composición de los cargos:
B89: Comercialización
B90: Cargo Fijo | C90: =IFERROR(INDEX(Ajustes!$E$14:$LG$299,MATCH(E90,Ajustes!$B$14:$B$299,0),MATCH(F90,Ajustes!$E$4:$LG$4,0)),)+IFERROR(INDEX(Ajustes!$E$14:$LG$299,MATCH(E90,Ajustes!$B$14:$B$299,0),MATCH(G90,Ajustes!$E$4:$LG$4,0)),) -> 2.763111221 | E90: BTSH_1 | F90: CCOMF_cliente_
B91: Cargo por Energía | C91: =IFERROR(INDEX(Ajustes!$E$14:$LG$299,MATCH(E91,Ajustes!$B$14:$B$299,0),MATCH(F91,Ajustes!$E$4:$LG$4,0)),)+IFERROR(INDEX(Ajustes!$E$14:$LG$299,MATCH(E91,Ajustes!$B$14:$B$299,0),MATCH(G91,Ajustes!$E$4:$LG$4,0)),) -> 0.0174875797 | E91: =E90 -> BTSH_1 | F91: CCOMV_kWh_
B92: Distribución
B93: Cargo por Energía - Punta | C93: =IFERROR(INDEX(Ajustes!$E$14:$LG$299,MATCH(E93,Ajustes!$B$14:$B$299,0),MATCH(F93,Ajustes!$E$4:$LG$4,0)),)+IFERROR(INDEX(Ajustes!$E$14:$LG$299,MATCH(E93,Ajustes!$B$14:$B$299,0),MATCH(G93,Ajustes!$E$4:$LG$4,0)),) -> 0.03517756835 | E93: BTSH_1 Punta | F93: CD_kWh_
B94: Cargo por Energía - Medio Fuera Punta | C94: =IFERROR(INDEX(Ajustes!$E$14:$LG$299,MATCH(E94,Ajustes!$B$14:$B$299,0),MATCH(F94,Ajustes!$E$4:$LG$4,0)),)+IFERROR(INDEX(Ajustes!$E$14:$LG$299,MATCH(E94,Ajustes!$B$14:$B$299,0),MATCH(G94,Ajustes!$E$4:$LG$4,0)),) -> 0.03517756835 | E94: BTSH_1 Fuera de Punta Medio | F94: CD_kWh_
B95: Cargo por Energía - Bajo Fuera Punta | C95: =IFERROR(INDEX(Ajustes!$E$14:$LG$299,MATCH(E95,Ajustes!$B$14:$B$299,0),MATCH(F95,Ajustes!$E$4:$LG$4,0)),)+IFERROR(INDEX(Ajustes!$E$14:$LG$299,MATCH(E95,Ajustes!$B$14:$B$299,0),MATCH(G95,Ajustes!$E$4:$LG$4,0)),) -> 0.03517756835 | E95: BTSH_1 Fuera de Punta Bajo | F95: CD_kWh_
B96: Pérdida de Distribución
B97: Cargo por Energía - Punta | C97: =IFERROR(INDEX(Ajustes!$E$14:$LG$299,MATCH(E97,Ajustes!$B$14:$B$299,0),MATCH(F97,Ajustes!$E$4:$LG$4,0)),)+IFERROR(INDEX(Ajustes!$E$14:$LG$299,MATCH(E97,Ajustes!$B$14:$B$299,0),MATCH(G97,Ajustes!$E$4:$LG$4,0)),) -> 0.01689175338 | E97: =E93 -> BTSH_1 Punta | F97: CPERDE_kWh_ | G97: CPERDP_kWh_
B98: Cargo por Energía - Medio Fuera Punta | C98: =IFERROR(INDEX(Ajustes!$E$14:$LG$299,MATCH(E98,Ajustes!$B$14:$B$299,0),MATCH(F98,Ajustes!$E$4:$LG$4,0)),)+IFERROR(INDEX(Ajustes!$E$14:$LG$299,MATCH(E98,Ajustes!$B$14:$B$299,0),MATCH(G98,Ajustes!$E$4:$LG$4,0)),) -> 0.01689175338 | E98: =E94 -> BTSH_1 Fuera de Punta Medio | F98: CPERDE_kWh_ | G98: CPERDP_kWh_
B99: Cargo por Energía - Bajo Fuera Punta | C99: =IFERROR(INDEX(Ajustes!$E$14:$LG$299,MATCH(E99,Ajustes!$B$14:$B$299,0),MATCH(F99,Ajustes!$E$4:$LG$4,0)),)+IFERROR(INDEX(Ajustes!$E$14:$LG$299,MATCH(E99,Ajustes!$B$14:$B$299,0),MATCH(G99,Ajustes!$E$4:$LG$4,0)),) -> 0.01689175338 | E99: =E95 -> BTSH_1 Fuera de Punta Bajo | F99: CPERDE_kWh_ | G99: CPERDP_kWh_
B100: Alumbrado Público | C100: =IFERROR(INDEX(Ajustes!$E$14:$LG$299,MATCH(E100,Ajustes!$B$14:$B$299,0),MATCH(F100,Ajustes!$E$4:$LG$4,0)),)+IFERROR(INDEX(Ajustes!$E$14:$LG$299,MATCH(E100,Ajustes!$B$14:$B$299,0),MATCH(G100,Ajustes!$E$4:$LG$4,0)),) -> 0.002467938471 | E100: BTSH_1 | F100: CSERAP_kWh_
B101: Transmisión
B102: Cargo por Energía - Punta | C102: =IFERROR(INDEX(Ajustes!$E$14:$LG$299,MATCH(E102,Ajustes!$B$14:$B$299,0),MATCH(F102,Ajustes!$E$4:$LG$4,0)),)+IFERROR(INDEX(Ajustes!$E$14:$LG$299,MATCH(E102,Ajustes!$B$14:$B$299,0),MATCH(G102,Ajustes!$E$4:$LG$4,0)),) -> 0.006648111632 | E102: =E93 -> BTSH_1 Punta | F102: CPT_kWh_
B103: Cargo por Energía - Medio Fuera Punta | C103: =IFERROR(INDEX(Ajustes!$E$14:$LG$299,MATCH(E103,Ajustes!$B$14:$B$299,0),MATCH(F103,Ajustes!$E$4:$LG$4,0)),)+IFERROR(INDEX(Ajustes!$E$14:$LG$299,MATCH(E103,Ajustes!$B$14:$B$299,0),MATCH(G103,Ajustes!$E$4:$LG$4,0)),) -> 0.006648111632 | E103: =E94 -> BTSH_1 Fuera de Punta Medio | F103: CPT_kWh_
B104: Cargo por Energía - Bajo Fuera Punta | C104: =IFERROR(INDEX(Ajustes!$E$14:$LG$299,MATCH(E104,Ajustes!$B$14:$B$299,0),MATCH(F104,Ajustes!$E$4:$LG$4,0)),)+IFERROR(INDEX(Ajustes!$E$14:$LG$299,MATCH(E104,Ajustes!$B$14:$B$299,0),MATCH(G104,Ajustes!$E$4:$LG$4,0)),) -> 0.006648111632 | E104: BTSH_1 Fuera de Punta Bajo | F104: CPT_kWh_
B105: Cargo por Energía Pérdidas de Transmisión | C105: =IFERROR(INDEX(Ajustes!$E$14:$LG$299,MATCH(E105,Ajustes!$B$14:$B$299,0),MATCH(F105,Ajustes!$E$4:$LG$4,0)),)+IFERROR(INDEX(Ajustes!$E$14:$LG$299,MATCH(E105,Ajustes!$B$14:$B$299,0),MATCH(G105,Ajustes!$E$4:$LG$4,0)),) -> 0.004921363472 | E105: BTSH_1 | F105: CPET_kWh_
B106: Generación
B107: Cargo por Energía - Punta | C107: =IFERROR(INDEX(Ajustes!$E$14:$LG$299,MATCH(E107,Ajustes!$B$14:$B$299,0),MATCH(F107,Ajustes!$E$4:$LG$4,0)),)+IFERROR(INDEX(Ajustes!$E$14:$LG$299,MATCH(E107,Ajustes!$B$14:$B$299,0),MATCH(G107,Ajustes!$E$4:$LG$4,0)),) -> 0.1844480294 | E107: =E93 -> BTSH_1 Punta | F107: CENEGEN_kWh_
B108: Cargo por Energía - Medio Fuera Punta | C108: =IFERROR(INDEX(Ajustes!$E$14:$LG$299,MATCH(E108,Ajustes!$B$14:$B$299,0),MATCH(F108,Ajustes!$E$4:$LG$4,0)),)+IFERROR(INDEX(Ajustes!$E$14:$LG$299,MATCH(E108,Ajustes!$B$14:$B$299,0),MATCH(G108,Ajustes!$E$4:$LG$4,0)),) -> 0.1106688177 | E108: =E94 -> BTSH_1 Fuera de Punta Medio | F108: CENEGEN_kWh_
B109: Cargo por Energía - Bajo Fuera Punta | C109: =IFERROR(INDEX(Ajustes!$E$14:$LG$299,MATCH(E109,Ajustes!$B$14:$B$299,0),MATCH(F109,Ajustes!$E$4:$LG$4,0)),)+IFERROR(INDEX(Ajustes!$E$14:$LG$299,MATCH(E109,Ajustes!$B$14:$B$299,0),MATCH(G109,Ajustes!$E$4:$LG$4,0)),) -> 0.03688960589 | E109: BTSH_1 Fuera de Punta Bajo | F109: CENEGEN_kWh_
B110: Cargo por Potencia Energizada | C110: =IFERROR(INDEX(Ajustes!$E$14:$LG$299,MATCH(E110,Ajustes!$B$14:$B$299,0),MATCH(F110,Ajustes!$E$4:$LG$4,0)),)+IFERROR(INDEX(Ajustes!$E$14:$LG$299,MATCH(E110,Ajustes!$B$14:$B$299,0),MATCH(G110,Ajustes!$E$4:$LG$4,0)),) -> 0.02024855899 | E110: BTSH_1 | F110: CPOTGENE_kWh_
B111: Cargo por Abastecimiento de Alumbrado Público | C111: =IFERROR(INDEX(Ajustes!$E$14:$LG$299,MATCH(E111,Ajustes!$B$14:$B$299,0),MATCH(F111,Ajustes!$E$4:$LG$4,0)),)+IFERROR(INDEX(Ajustes!$E$14:$LG$299,MATCH(E111,Ajustes!$B$14:$B$299,0),MATCH(G111,Ajustes!$E$4:$LG$4,0)),) -> 0.001596805598 | E111: BTSH_1 | F111: CCONAP_kWh_
B112: Cargo de Generación Extraordinario | C112: =IFERROR(INDEX(Ajustes!$E$14:$LG$299,MATCH(E112,Ajustes!$B$14:$B$299,0),MATCH(F112,Ajustes!$E$4:$LG$4,0)),)+IFERROR(INDEX(Ajustes!$E$14:$LG$299,MATCH(E112,Ajustes!$B$14:$B$299,0),MATCH(G112,Ajustes!$E$4:$LG$4,0)),) -> 0 | E112: BTSH_1
B114: Tarifa BTD: Tarifa con Demanda Máxima
B115: Esta tarifa se aplica a cualquier uso de la energía eléctrica de los clientes con una demanda máxima mensual mayor de 15 kilovatios (15 kW), conectados en baja tensión.
B117: Resumen de los Cargos:
B118: Cargo Fijo | C118: =+C126 -> 5.571783676
B119: Cargo por Demanda Máxima | C119: =+C129+C132+C136+C140 -> 17.14026834
B120: Cargo por Energía de los 1eros. 10,000 KWh | C120: =+C$127+C$130+C$133+C$134+C$137+C$138+C141+C$145+C$146+C147 -> 0.1784006567
B121: Cargo por Energía por los siguientes KWh de 10,0001 a 30,000 | C121: =+C$127+C$130+C$133+C$134+C$137+C$138+C142+C$145+C$146+C147 -> 0.1825343359
B122: Cargo por Energía por los siguientes KWh de 30,0001 a 50,000 | C122: =+C$127+C$130+C$133+C$134+C$137+C$138+C143+C$145+C$146+C147 -> 0.1868746991
B123: Cargo por Energía por los siguientes KWh en exceso de 50,001 | C123: =+C$127+C$130+C$133+C$134+C$137+C$138+C144+C$145+C$146+C147 -> 0.1914320804
B124: Composición de los Cargos
B125: Comercialización
B126: Cargo Fijo | C126: =IFERROR(INDEX(Ajustes!$E$14:$LG$299,MATCH(E126,Ajustes!$B$14:$B$299,0),MATCH(F126,Ajustes!$E$4:$LG$4,0)),)+IFERROR(INDEX(Ajustes!$E$14:$LG$299,MATCH(E126,Ajustes!$B$14:$B$299,0),MATCH(G126,Ajustes!$E$4:$LG$4,0)),) -> 5.571783676 | E126: BTD | F126: CCOMF_cliente_
B127: Cargo por Energía | C127: =IFERROR(INDEX(Ajustes!$E$14:$LG$299,MATCH(E127,Ajustes!$B$14:$B$299,0),MATCH(F127,Ajustes!$E$4:$LG$4,0)),)+IFERROR(INDEX(Ajustes!$E$14:$LG$299,MATCH(E127,Ajustes!$B$14:$B$299,0),MATCH(G127,Ajustes!$E$4:$LG$4,0)),) -> 0.004772462584 | E127: =E$126 -> BTD | F127: CCOMV_kWh_
B128: Distribución
B129: Cargo por Demanda Máxima | C129: =IFERROR(INDEX(Ajustes!$E$14:$LG$299,MATCH(E129,Ajustes!$B$14:$B$299,0),MATCH(F129,Ajustes!$E$4:$LG$4,0)),)+IFERROR(INDEX(Ajustes!$E$14:$LG$299,MATCH(E129,Ajustes!$B$14:$B$299,0),MATCH(G129,Ajustes!$E$4:$LG$4,0)),) -> 12.35048154 | E129: =E$126 -> BTD | F129: CD_kW_
B130: Cargo por Energía | C130: =IFERROR(INDEX(Ajustes!$E$14:$LG$299,MATCH(E130,Ajustes!$B$14:$B$299,0),MATCH(F130,Ajustes!$E$4:$LG$4,0)),)+IFERROR(INDEX(Ajustes!$E$14:$LG$299,MATCH(E130,Ajustes!$B$14:$B$299,0),MATCH(G130,Ajustes!$E$4:$LG$4,0)),) -> 0 | E130: BTD | F130: CD_kWh_
B131: Pérdida de Distribución
B132: Cargo por Demanda Máxima | C132: =IFERROR(INDEX(Ajustes!$E$14:$LG$299,MATCH(E132,Ajustes!$B$14:$B$299,0),MATCH(F132,Ajustes!$E$4:$LG$4,0)),)+IFERROR(INDEX(Ajustes!$E$14:$LG$299,MATCH(E132,Ajustes!$B$14:$B$299,0),MATCH(G132,Ajustes!$E$4:$LG$4,0)),) -> 0.4874887977 | E132: =E$126 -> BTD | F132: CPERDP_kW_
B133: Cargo por Energía | C133: =IFERROR(INDEX(Ajustes!$E$14:$LG$299,MATCH(E133,Ajustes!$B$14:$B$299,0),MATCH(F133,Ajustes!$E$4:$LG$4,0)),)+IFERROR(INDEX(Ajustes!$E$14:$LG$299,MATCH(E133,Ajustes!$B$14:$B$299,0),MATCH(G133,Ajustes!$E$4:$LG$4,0)),) -> 0.01486988174 | E133: BTD | F133: CPERDE_kWh_
B134: Alumbrado Público | C134: =IFERROR(INDEX(Ajustes!$E$14:$LG$299,MATCH(E134,Ajustes!$B$14:$B$299,0),MATCH(F134,Ajustes!$E$4:$LG$4,0)),)+IFERROR(INDEX(Ajustes!$E$14:$LG$299,MATCH(E134,Ajustes!$B$14:$B$299,0),MATCH(G134,Ajustes!$E$4:$LG$4,0)),) -> 0.002328917078 | E134: BTD | F134: CSERAP_kWh_
B135: Transmisión
B136: Cargo por Demanda Máxima | C136: =IFERROR(INDEX(Ajustes!$E$14:$LG$299,MATCH(E136,Ajustes!$B$14:$B$299,0),MATCH(F136,Ajustes!$E$4:$LG$4,0)),)+IFERROR(INDEX(Ajustes!$E$14:$LG$299,MATCH(E136,Ajustes!$B$14:$B$299,0),MATCH(G136,Ajustes!$E$4:$LG$4,0)),) -> 1.428660561 | E136: =E$126 -> BTD | F136: CPT_kW_
B137: Cargo por Energía | C137: =IFERROR(INDEX(Ajustes!$E$14:$LG$299,MATCH(E137,Ajustes!$B$14:$B$299,0),MATCH(F137,Ajustes!$E$4:$LG$4,0)),)+IFERROR(INDEX(Ajustes!$E$14:$LG$299,MATCH(E137,Ajustes!$B$14:$B$299,0),MATCH(G137,Ajustes!$E$4:$LG$4,0)),) -> 0.00520995984 | E137: BTD | F137: CPT_kWh_
B138: Cargo por Energía Pérdidas de Transmisión | C138: =IFERROR(INDEX(Ajustes!$E$14:$LG$299,MATCH(E138,Ajustes!$B$14:$B$299,0),MATCH(F138,Ajustes!$E$4:$LG$4,0)),)+IFERROR(INDEX(Ajustes!$E$14:$LG$299,MATCH(E138,Ajustes!$B$14:$B$299,0),MATCH(G138,Ajustes!$E$4:$LG$4,0)),) -> 0.004644295255 | E138: BTD | F138: CPET_kWh_
B139: Generación
B140: Cargo por Demanda Máxima | C140: =IFERROR(INDEX(Ajustes!$E$14:$LG$299,MATCH(E140,Ajustes!$B$14:$B$299,0),MATCH(F140,Ajustes!$E$4:$LG$4,0)),)+IFERROR(INDEX(Ajustes!$E$14:$LG$299,MATCH(E140,Ajustes!$B$14:$B$299,0),MATCH(G140,Ajustes!$E$4:$LG$4,0)),) -> 2.873637444 | E140: =E$126 -> BTD | F140: CPOTGEN_kW_ | I140: =IFERROR(INDEX(Ajustes!$E$14:$LG$299,MATCH(E140,Ajustes!$B$14:$B$299,0),MATCH(F140,Ajustes!$E$4:$LG$4,0)),) -> 2.873637444
B141: Cargo por Energía de los 1eros. 10,000 KWh | C141: =IFERROR(INDEX(Ajustes!$E$14:$LG$299,MATCH(E141,Ajustes!$B$14:$B$299,0),MATCH(F141,Ajustes!$E$4:$LG$4,0)),)+IFERROR(INDEX(Ajustes!$E$14:$LG$299,MATCH(E141,Ajustes!$B$14:$B$299,0),MATCH(G141,Ajustes!$E$4:$LG$4,0)),) -> 0.08267358364 | E141: BTD_1 (0-10,000) | F141: CENEGEN_kWh_
B142: Cargo por Energía por los siguientes kWh de 10,0001 a 30,000 | C142: =IFERROR(INDEX(Ajustes!$E$14:$LG$299,MATCH(E142,Ajustes!$B$14:$B$299,0),MATCH(F142,Ajustes!$E$4:$LG$4,0)),)+IFERROR(INDEX(Ajustes!$E$14:$LG$299,MATCH(E142,Ajustes!$B$14:$B$299,0),MATCH(G142,Ajustes!$E$4:$LG$4,0)),) -> 0.08680726282 | E142: BTD_2 (10,001-30,000) | F142: CENEGEN_kWh_
B143: Cargo por Energía por los siguientes kWh de 30,0001 a 50,000 | C143: =IFERROR(INDEX(Ajustes!$E$14:$LG$299,MATCH(E143,Ajustes!$B$14:$B$299,0),MATCH(F143,Ajustes!$E$4:$LG$4,0)),)+IFERROR(INDEX(Ajustes!$E$14:$LG$299,MATCH(E143,Ajustes!$B$14:$B$299,0),MATCH(G143,Ajustes!$E$4:$LG$4,0)),) -> 0.09114762596 | E143: BTD_3 (30,001-50,000) | F143: CENEGEN_kWh_
B144: Cargo por Energía por los siguientes kWh en exceso de 50,001 | C144: =IFERROR(INDEX(Ajustes!$E$14:$LG$299,MATCH(E144,Ajustes!$B$14:$B$299,0),MATCH(F144,Ajustes!$E$4:$LG$4,0)),)+IFERROR(INDEX(Ajustes!$E$14:$LG$299,MATCH(E144,Ajustes!$B$14:$B$299,0),MATCH(G144,Ajustes!$E$4:$LG$4,0)),) -> 0.09570500726 | E144: BTD_4 (50,001-más) | F144: CENEGEN_kWh_
B145: Cargo por Potencia Energizada | C145: =IFERROR(INDEX(Ajustes!$E$14:$LG$299,MATCH(E145,Ajustes!$B$14:$B$299,0),MATCH(F145,Ajustes!$E$4:$LG$4,0)),)+IFERROR(INDEX(Ajustes!$E$14:$LG$299,MATCH(E145,Ajustes!$B$14:$B$299,0),MATCH(G145,Ajustes!$E$4:$LG$4,0)),) -> 0.06239470063 | E145: =E$126 -> BTD | F145: CPOTGENE_kWh_
B146: Cargo por Abastecimiento de Alumbrado Público | C146: =IFERROR(INDEX(Ajustes!$E$14:$LG$299,MATCH(E146,Ajustes!$B$14:$B$299,0),MATCH(F146,Ajustes!$E$4:$LG$4,0)),)+IFERROR(INDEX(Ajustes!$E$14:$LG$299,MATCH(E146,Ajustes!$B$14:$B$299,0),MATCH(G146,Ajustes!$E$4:$LG$4,0)),) -> 0.001506855975 | E146: =E$126 -> BTD | F146: CCONAP_kWh_
B147: Cargo de Generación Extraordinario | C147: =IFERROR(INDEX(Ajustes!$E$14:$LG$299,MATCH(E147,Ajustes!$B$14:$B$299,0),MATCH(F147,Ajustes!$E$4:$LG$4,0)),)+IFERROR(INDEX(Ajustes!$E$14:$LG$299,MATCH(E147,Ajustes!$B$14:$B$299,0),MATCH(G147,Ajustes!$E$4:$LG$4,0)),) -> 0 | E147: =E$126 -> BTD
B149: Tarifa BTH: Tarifa por Bloque Horario
B150: Esta tarifa considera precios diferenciados para los suministros de electricidad según si los suministros se efectúan en período de punta del sistema eléctrico o en período fuera de punta.
B152: Resumen de los Cargos:
B153: Cargo Fijo | C153: =+C162 -> 5.571783676
B154: Cargo por Demanda Máxima - Punta | C154: =+C165+C170+C176+C182 -> 12.67849774
B155: Cargo por Demanda Máxima - Fuera de Punta Medio | C155: =+C166 -> 5.263438869
B156: Cargo por Demanda Máxima - Fuera de Punta Bajo | C156: =+C167 -> 0
B157: Cargo por Energía - Punta | C157: =+C163+C168+C171+C174+C177+C180+C183+C184+C187+C188 -> 0.202891156 | L157: =C157/C159 -> 1.989522888
B158: Cargo por Energía - Medio Fuera Punta | C158: =+C163+C168+C172+C174+C178+C180+C183+C185+C187+C188 -> 0.1526701581 | L158: =AVERAGE(C157,C159) -> 0.1524354805
B159: Cargo por Energía - Bajo Fuera Punta | C159: =+C163+C168+C173+C174+C179+C180+C183+C186+C187+C188 -> 0.1019798049
B160: Composición de los Cargos:
B161: Comercialización
B162: Cargo Fijo | C162: =IFERROR(INDEX(Ajustes!$E$14:$LG$299,MATCH(E162,Ajustes!$B$14:$B$299,0),MATCH(F162,Ajustes!$E$4:$LG$4,0)),)+IFERROR(INDEX(Ajustes!$E$14:$LG$299,MATCH(E162,Ajustes!$B$14:$B$299,0),MATCH(G162,Ajustes!$E$4:$LG$4,0)),) -> 5.571783676 | E162: BTH | F162: CCOMF_cliente_
B163: Cargo por Energía | C163: =IFERROR(INDEX(Ajustes!$E$14:$LG$299,MATCH(E163,Ajustes!$B$14:$B$299,0),MATCH(F163,Ajustes!$E$4:$LG$4,0)),)+IFERROR(INDEX(Ajustes!$E$14:$LG$299,MATCH(E163,Ajustes!$B$14:$B$299,0),MATCH(G163,Ajustes!$E$4:$LG$4,0)),) -> 0.004772462584 | E163: =E$162 -> BTH | F163: CCOMV_kWh_
B164: Distribución
B165: Cargo por Demanda Máxima - Punta | C165: =IFERROR(INDEX(Ajustes!$E$14:$LG$299,MATCH(E165,Ajustes!$B$14:$B$299,0),MATCH(F165,Ajustes!$E$4:$LG$4,0)),)+IFERROR(INDEX(Ajustes!$E$14:$LG$299,MATCH(E165,Ajustes!$B$14:$B$299,0),MATCH(G165,Ajustes!$E$4:$LG$4,0)),) -> 7.677070549 | E165: BTH Punta | F165: CD_kW_
B166: ="Cargo por Demanda Máxima - Fuera de Punta"&IF(Params!$A$30=Params!$B$30,""," Medio") -> Cargo por Demanda Máxima - Fuera de Punta | C166: =IFERROR(INDEX(Ajustes!$E$14:$LG$299,MATCH(E166,Ajustes!$B$14:$B$299,0),MATCH(F166,Ajustes!$E$4:$LG$4,0)),)+IFERROR(INDEX(Ajustes!$E$14:$LG$299,MATCH(E166,Ajustes!$B$14:$B$299,0),MATCH(G166,Ajustes!$E$4:$LG$4,0)),) -> 5.263438869 | E166: BTH Fuera de Punta | F166: CD_kW_
B167: =IF(Params!$A$30=Params!$B$30,"","Cargo por Demanda Máxima - Fuera de Punta Bajo") ->  | C167: =IFERROR(INDEX(Ajustes!$E$14:$LG$299,MATCH(E167,Ajustes!$B$14:$B$299,0),MATCH(F167,Ajustes!$E$4:$LG$4,0)),)+IFERROR(INDEX(Ajustes!$E$14:$LG$299,MATCH(E167,Ajustes!$B$14:$B$299,0),MATCH(G167,Ajustes!$E$4:$LG$4,0)),) -> 0
B168: Cargo por Energía | C168: =IFERROR(INDEX(Ajustes!$E$14:$LG$299,MATCH(E168,Ajustes!$B$14:$B$299,0),MATCH(F168,Ajustes!$E$4:$LG$4,0)),)+IFERROR(INDEX(Ajustes!$E$14:$LG$299,MATCH(E168,Ajustes!$B$14:$B$299,0),MATCH(G168,Ajustes!$E$4:$LG$4,0)),) -> 0 | E168: =E$162 -> BTH | F168: CD_kWh_
B169: Pérdida de Distribución
B170: Cargo por Demanda Máxima - Punta | C170: =IFERROR(INDEX(Ajustes!$E$14:$LG$299,MATCH(E170,Ajustes!$B$14:$B$299,0),MATCH(F170,Ajustes!$E$4:$LG$4,0)),)+IFERROR(INDEX(Ajustes!$E$14:$LG$299,MATCH(E170,Ajustes!$B$14:$B$299,0),MATCH(G170,Ajustes!$E$4:$LG$4,0)),) -> 0.5090288623 | E170: =E$165 -> BTH Punta | F170: CPERDP_kW_
B171: Cargo por Energía - Punta | C171: =IFERROR(INDEX(Ajustes!$E$14:$LG$299,MATCH(E171,Ajustes!$B$14:$B$299,0),MATCH(F171,Ajustes!$E$4:$LG$4,0)),)+IFERROR(INDEX(Ajustes!$E$14:$LG$299,MATCH(E171,Ajustes!$B$14:$B$299,0),MATCH(G171,Ajustes!$E$4:$LG$4,0)),) -> 0.01486988174 | E171: =E$165 -> BTH Punta | F171: CPERDE_kWh_
B172: Cargo por Energía - Medio Fuera Punta | C172: =IFERROR(INDEX(Ajustes!$E$14:$LG$299,MATCH(E172,Ajustes!$B$14:$B$299,0),MATCH(F172,Ajustes!$E$4:$LG$4,0)),)+IFERROR(INDEX(Ajustes!$E$14:$LG$299,MATCH(E172,Ajustes!$B$14:$B$299,0),MATCH(G172,Ajustes!$E$4:$LG$4,0)),) -> 0.01486988174 | E172: BTH Fuera de Punta Medio | F172: CPERDE_kWh_
B173: Cargo por Energía - Bajo Fuera Punta | C173: =IFERROR(INDEX(Ajustes!$E$14:$LG$299,MATCH(E173,Ajustes!$B$14:$B$299,0),MATCH(F173,Ajustes!$E$4:$LG$4,0)),)+IFERROR(INDEX(Ajustes!$E$14:$LG$299,MATCH(E173,Ajustes!$B$14:$B$299,0),MATCH(G173,Ajustes!$E$4:$LG$4,0)),) -> 0.01486988174 | E173: BTH Fuera de Punta Bajo | F173: CPERDE_kWh_
B174: Alumbrado Público | C174: =IFERROR(INDEX(Ajustes!$E$14:$LG$299,MATCH(E174,Ajustes!$B$14:$B$299,0),MATCH(F174,Ajustes!$E$4:$LG$4,0)),)+IFERROR(INDEX(Ajustes!$E$14:$LG$299,MATCH(E174,Ajustes!$B$14:$B$299,0),MATCH(G174,Ajustes!$E$4:$LG$4,0)),) -> 0.002328917078 | E174: =E$162 -> BTH | F174: CSERAP_kWh_
B175: Transmisión
B176: Cargo por Demanda Máxima - Punta | C176: =IFERROR(INDEX(Ajustes!$E$14:$LG$299,MATCH(E176,Ajustes!$B$14:$B$299,0),MATCH(F176,Ajustes!$E$4:$LG$4,0)),)+IFERROR(INDEX(Ajustes!$E$14:$LG$299,MATCH(E176,Ajustes!$B$14:$B$299,0),MATCH(G176,Ajustes!$E$4:$LG$4,0)),) -> 1.491787018 | E176: =E$165 -> BTH Punta | F176: CPT_kW_
B177: Cargo por Energía - Punta | C177: =IFERROR(INDEX(Ajustes!$E$14:$LG$299,MATCH(E177,Ajustes!$B$14:$B$299,0),MATCH(F177,Ajustes!$E$4:$LG$4,0)),)+IFERROR(INDEX(Ajustes!$E$14:$LG$299,MATCH(E177,Ajustes!$B$14:$B$299,0),MATCH(G177,Ajustes!$E$4:$LG$4,0)),) -> 0.002261842337 | E177: =E$165 -> BTH Punta | F177: CPT_kWh_
B178: Cargo por Energía - Medio Fuera Punta | C178: =IFERROR(INDEX(Ajustes!$E$14:$LG$299,MATCH(E178,Ajustes!$B$14:$B$299,0),MATCH(F178,Ajustes!$E$4:$LG$4,0)),)+IFERROR(INDEX(Ajustes!$E$14:$LG$299,MATCH(E178,Ajustes!$B$14:$B$299,0),MATCH(G178,Ajustes!$E$4:$LG$4,0)),) -> 0.002261842337 | E178: =E$172 -> BTH Fuera de Punta Medio | F178: CPT_kWh_
B179: Cargo por Energía - Bajo Fuera Punta | C179: =IFERROR(INDEX(Ajustes!$E$14:$LG$299,MATCH(E179,Ajustes!$B$14:$B$299,0),MATCH(F179,Ajustes!$E$4:$LG$4,0)),)+IFERROR(INDEX(Ajustes!$E$14:$LG$299,MATCH(E179,Ajustes!$B$14:$B$299,0),MATCH(G179,Ajustes!$E$4:$LG$4,0)),) -> 0.002261842337 | E179: =E$173 -> BTH Fuera de Punta Bajo | F179: CPT_kWh_
B180: Cargo por Energía Pérdidas de Transmisión | C180: =IFERROR(INDEX(Ajustes!$E$14:$LG$299,MATCH(E180,Ajustes!$B$14:$B$299,0),MATCH(F180,Ajustes!$E$4:$LG$4,0)),)+IFERROR(INDEX(Ajustes!$E$14:$LG$299,MATCH(E180,Ajustes!$B$14:$B$299,0),MATCH(G180,Ajustes!$E$4:$LG$4,0)),) -> 0.004644295255 | E180: =E$162 -> BTH | F180: CPET_kWh_
B181: Generación
B182: Cargo por Demanda Máxima - Punta | C182: =IFERROR(INDEX(Ajustes!$E$14:$LG$299,MATCH(E182,Ajustes!$B$14:$B$299,0),MATCH(F182,Ajustes!$E$4:$LG$4,0)),)+IFERROR(INDEX(Ajustes!$E$14:$LG$299,MATCH(E182,Ajustes!$B$14:$B$299,0),MATCH(G182,Ajustes!$E$4:$LG$4,0)),) -> 3.000611308 | E182: =E$165 -> BTH Punta | F182: CPOTGEN_kW_
B183: Cargo por Potencia Energizada | C183: =IFERROR(INDEX(Ajustes!$E$14:$LG$299,MATCH(E183,Ajustes!$B$14:$B$299,0),MATCH(F183,Ajustes!$E$4:$LG$4,0)),)+IFERROR(INDEX(Ajustes!$E$14:$LG$299,MATCH(E183,Ajustes!$B$14:$B$299,0),MATCH(G183,Ajustes!$E$4:$LG$4,0)),) -> 0.02466003784 | E183: =E$162 -> BTH | F183: CPOTGENE_kWh_
B184: Cargo por Energía - Punta | C184: =IFERROR(INDEX(Ajustes!$E$14:$LG$299,MATCH(E184,Ajustes!$B$14:$B$299,0),MATCH(F184,Ajustes!$E$4:$LG$4,0)),)+IFERROR(INDEX(Ajustes!$E$14:$LG$299,MATCH(E184,Ajustes!$B$14:$B$299,0),MATCH(G184,Ajustes!$E$4:$LG$4,0)),) -> 0.1478468632 | E184: =E$165 -> BTH Punta | F184: CENEGEN_kWh_
B185: Cargo por Energía - Medio Fuera Punta | C185: =IFERROR(INDEX(Ajustes!$E$14:$LG$299,MATCH(E185,Ajustes!$B$14:$B$299,0),MATCH(F185,Ajustes!$E$4:$LG$4,0)),)+IFERROR(INDEX(Ajustes!$E$14:$LG$299,MATCH(E185,Ajustes!$B$14:$B$299,0),MATCH(G185,Ajustes!$E$4:$LG$4,0)),) -> 0.09762586524 | E185: =E$172 -> BTH Fuera de Punta Medio | F185: CENEGEN_kWh_
B186: Cargo por Energía - Bajo Fuera Punta | C186: =IFERROR(INDEX(Ajustes!$E$14:$LG$299,MATCH(E186,Ajustes!$B$14:$B$299,0),MATCH(F186,Ajustes!$E$4:$LG$4,0)),)+IFERROR(INDEX(Ajustes!$E$14:$LG$299,MATCH(E186,Ajustes!$B$14:$B$299,0),MATCH(G186,Ajustes!$E$4:$LG$4,0)),) -> 0.04693551213 | E186: =E$173 -> BTH Fuera de Punta Bajo | F186: CENEGEN_kWh_
B187: Cargo por Abastecimiento de Alumbrado Público | C187: =IFERROR(INDEX(Ajustes!$E$14:$LG$299,MATCH(E187,Ajustes!$B$14:$B$299,0),MATCH(F187,Ajustes!$E$4:$LG$4,0)),)+IFERROR(INDEX(Ajustes!$E$14:$LG$299,MATCH(E187,Ajustes!$B$14:$B$299,0),MATCH(G187,Ajustes!$E$4:$LG$4,0)),) -> 0.001506855975 | E187: =E$162 -> BTH | F187: CCONAP_kWh_
B188: Cargo de Generación Extraordinario | C188: =IFERROR(INDEX(Ajustes!$E$14:$LG$299,MATCH(E188,Ajustes!$B$14:$B$299,0),MATCH(F188,Ajustes!$E$4:$LG$4,0)),)+IFERROR(INDEX(Ajustes!$E$14:$LG$299,MATCH(E188,Ajustes!$B$14:$B$299,0),MATCH(G188,Ajustes!$E$4:$LG$4,0)),) -> 0 | E188: BTH
B190: Tarifa BTA: Tarifa Autoconsumidores (Con Demanda Máxima)
B191: Resumen de los Cargos:
B192: Cargo Fijo | C192: =+C199 -> 5.571783676
B193: Cargo por Demanda Máxima (consumida o inyectada) | C193: =C202 -> 12.35048154
B194: Cargo por Demanda Máxima consumida | C194: =C205+C209+C213 -> 0
B195: Cargo por Energía consumida | C195: =+C200+C203+C206+C207+C210+C211+C214+C215+C216+C217 -> 0.1256679478
B196: Cargo por Energía inyectada | C196: =C219 -> 0.0854153792
B197: Composición de los Cargos
B198: Comercialización
B199: Cargo Fijo | C199: =IFERROR(INDEX(Ajustes!$E$14:$LG$299,MATCH(E199,Ajustes!$B$14:$B$299,0),MATCH(F199,Ajustes!$E$4:$LG$4,0)),)+IFERROR(INDEX(Ajustes!$E$14:$LG$299,MATCH(E199,Ajustes!$B$14:$B$299,0),MATCH(G199,Ajustes!$E$4:$LG$4,0)),) -> 5.571783676 | E199: BTA | F199: CCOMF_cliente_
B200: Cargo por Energía consumida | C200: =IFERROR(INDEX(Ajustes!$E$14:$LG$299,MATCH(E200,Ajustes!$B$14:$B$299,0),MATCH(F200,Ajustes!$E$4:$LG$4,0)),)+IFERROR(INDEX(Ajustes!$E$14:$LG$299,MATCH(E200,Ajustes!$B$14:$B$299,0),MATCH(G200,Ajustes!$E$4:$LG$4,0)),) -> 0.004772462584 | E200: =E$199 -> BTA | F200: CCOMV_kWh_
B201: Distribución
B202: Cargo por Demanda Máxima | C202: =IFERROR(INDEX(Ajustes!$E$14:$LG$299,MATCH(E202,Ajustes!$B$14:$B$299,0),MATCH(F202,Ajustes!$E$4:$LG$4,0)),)+IFERROR(INDEX(Ajustes!$E$14:$LG$299,MATCH(E202,Ajustes!$B$14:$B$299,0),MATCH(G202,Ajustes!$E$4:$LG$4,0)),) -> 12.35048154 | E202: =E$199 -> BTA | F202: CD_kW_
B203: Cargo por Energía consumida | C203: =IFERROR(INDEX(Ajustes!$E$14:$LG$299,MATCH(E203,Ajustes!$B$14:$B$299,0),MATCH(F203,Ajustes!$E$4:$LG$4,0)),)+IFERROR(INDEX(Ajustes!$E$14:$LG$299,MATCH(E203,Ajustes!$B$14:$B$299,0),MATCH(G203,Ajustes!$E$4:$LG$4,0)),) -> 0 | E203: =E$199 -> BTA | F203: CD_kWh_
B204: Pérdida de Distribución
B205: Cargo por Demanda Máxima | C205: =IFERROR(INDEX(Ajustes!$E$14:$LG$299,MATCH(E205,Ajustes!$B$14:$B$299,0),MATCH(F205,Ajustes!$E$4:$LG$4,0)),)+IFERROR(INDEX(Ajustes!$E$14:$LG$299,MATCH(E205,Ajustes!$B$14:$B$299,0),MATCH(G205,Ajustes!$E$4:$LG$4,0)),) -> 0 | E205: =E$199 -> BTA | F205: CPERDP_kW_
B206: Cargo por Energía consumida | C206: =IFERROR(INDEX(Ajustes!$E$14:$LG$299,MATCH(E206,Ajustes!$B$14:$B$299,0),MATCH(F206,Ajustes!$E$4:$LG$4,0)),)+IFERROR(INDEX(Ajustes!$E$14:$LG$299,MATCH(E206,Ajustes!$B$14:$B$299,0),MATCH(G206,Ajustes!$E$4:$LG$4,0)),) -> 0.016580118 | E206: =E$199 -> BTA | F206: CPERDE_kWh_ | G206: CPERDP_kWh_
B207: Alumbrado Público | C207: =IFERROR(INDEX(Ajustes!$E$14:$LG$299,MATCH(E207,Ajustes!$B$14:$B$299,0),MATCH(F207,Ajustes!$E$4:$LG$4,0)),)+IFERROR(INDEX(Ajustes!$E$14:$LG$299,MATCH(E207,Ajustes!$B$14:$B$299,0),MATCH(G207,Ajustes!$E$4:$LG$4,0)),) -> 0.002328917078 | E207: =E$199 -> BTA | F207: CSERAP_kWh_
B208: Transmisión
B209: Cargo por Demanda Máxima | C209: =IFERROR(INDEX(Ajustes!$E$14:$LG$299,MATCH(E209,Ajustes!$B$14:$B$299,0),MATCH(F209,Ajustes!$E$4:$LG$4,0)),)+IFERROR(INDEX(Ajustes!$E$14:$LG$299,MATCH(E209,Ajustes!$B$14:$B$299,0),MATCH(G209,Ajustes!$E$4:$LG$4,0)),) -> 0 | E209: =E$199 -> BTA | F209: CPT_kW_
B210: Cargo por Energía consumida | C210: =IFERROR(INDEX(Ajustes!$E$14:$LG$299,MATCH(E210,Ajustes!$B$14:$B$299,0),MATCH(F210,Ajustes!$E$4:$LG$4,0)),)+IFERROR(INDEX(Ajustes!$E$14:$LG$299,MATCH(E210,Ajustes!$B$14:$B$299,0),MATCH(G210,Ajustes!$E$4:$LG$4,0)),) -> 0.01041991968 | E210: =E$199 -> BTA | F210: CPT_kWh_
B211: Cargo por Energía Pérdidas de Transmisión consumida | C211: =IFERROR(INDEX(Ajustes!$E$14:$LG$299,MATCH(E211,Ajustes!$B$14:$B$299,0),MATCH(F211,Ajustes!$E$4:$LG$4,0)),)+IFERROR(INDEX(Ajustes!$E$14:$LG$299,MATCH(E211,Ajustes!$B$14:$B$299,0),MATCH(G211,Ajustes!$E$4:$LG$4,0)),) -> 0.004644295255 | E211: =E$199 -> BTA | F211: CPET_kWh_
B212: Generación Consumo
B213: Cargo por Demanda Máxima consumida | C213: =IFERROR(INDEX(Ajustes!$E$14:$LG$299,MATCH(E213,Ajustes!$B$14:$B$299,0),MATCH(F213,Ajustes!$E$4:$LG$4,0)),)+IFERROR(INDEX(Ajustes!$E$14:$LG$299,MATCH(E213,Ajustes!$B$14:$B$299,0),MATCH(G213,Ajustes!$E$4:$LG$4,0)),) -> 0 | E213: =E$199 -> BTA | F213: CPOTGEN_kW_
B214: Cargo por Energía consumida | C214: =IFERROR(INDEX(Ajustes!$E$14:$LG$299,MATCH(E214,Ajustes!$B$14:$B$299,0),MATCH(F214,Ajustes!$E$4:$LG$4,0)),)+IFERROR(INDEX(Ajustes!$E$14:$LG$299,MATCH(E214,Ajustes!$B$14:$B$299,0),MATCH(G214,Ajustes!$E$4:$LG$4,0)),) -> 0.0854153792 | E214: =E$199 -> BTA | F214: CENEGEN_kWh_
B215: Cargo por Potencia Energizada consumida | C215: =IFERROR(INDEX(Ajustes!$E$14:$LG$299,MATCH(E215,Ajustes!$B$14:$B$299,0),MATCH(F215,Ajustes!$E$4:$LG$4,0)),)+IFERROR(INDEX(Ajustes!$E$14:$LG$299,MATCH(E215,Ajustes!$B$14:$B$299,0),MATCH(G215,Ajustes!$E$4:$LG$4,0)),) -> 0 | E215: =E$199 -> BTA | F215: CPOTGENE_kWh_
B216: Cargo por Abastecimiento de Alumbrado Público (energía consumida) | C216: =IFERROR(INDEX(Ajustes!$E$14:$LG$299,MATCH(E216,Ajustes!$B$14:$B$299,0),MATCH(F216,Ajustes!$E$4:$LG$4,0)),)+IFERROR(INDEX(Ajustes!$E$14:$LG$299,MATCH(E216,Ajustes!$B$14:$B$299,0),MATCH(G216,Ajustes!$E$4:$LG$4,0)),) -> 0.001506855975 | E216: =E$199 -> BTA | F216: CCONAP_kWh_
... 388 more rows

Sheet Res_cargos_Aj
B1: CX_conex_ | C1: CD_kWh_ | D1: CD_kW_ | E1: CD_kW_ | F1: CD_kW_ | G1: CD_kW_ | H1: CD_kW_ | I1: CCOMF_cliente_ | J1: CCOMF_kWh_ | K1: CCOMV_kWh_ | L1: CSERAP_kWh_ | M1: CCONAP_kWh_ | N1: CPERDE_kWh_ | O1: CPERDE_kWh_ | P1: CPERDE_kWh_ | Q1: CPERDE_kWh_ | R1: CPERDE_kWh_ | S1: CPERDP_kWh_ | T1: CPERDP_kW_ | U1: CPERDP_kW_ | V1: CPERDP+CPERDE_kWh_ | W1: CENEGEN_kWh_ | X1: CENEGEN_kWh_ | Y1: CENEGEN_kWh_ | Z1: CENEGEN_kWh_ | AA1: CENEGEN_kWh_ | AB1: CENEGENEX_kWh_ | AC1: CPOTGENE_kWh_ | AD1: CPOTGEN_kW_ | AE1: CPOTGEN_kW_ | AF1: CPOTGENGC_kW_ | AG1: CPOTGEN_kW_ | AH1: CPOTGEN_kW_P_ | AI1: CENEGEN+CENEGENEX_kWh_ | AJ1: CENEGEN+CENEGENEX+CPOTGENE_kWh_ | AK1: CENEGEN+CENEGENEX_kWhP_ | AL1: CENEGEN+CENEGENEX_kWhFP_ | AM1: CPT_kWh_ | AN1: CPT_kW_ | AO1: CPT_kW_ | AP1: CPET_kWh_
B2: 0_1 | C2: 0_1 | D2: 0_1 | E2: P_1 | F2: ="FP"&IF(Params!$A$29=Params!$B$29,1,"") -> FP | G2: ="FP"&IF(Params!$A$29=Params!$B$29,"","M_1") -> FPM_1 | H2: ="FP"&IF(Params!$A$29=Params!$B$29,"","B_1") -> FPB_1 | I2: 0_1 | J2: 0_1 | K2: 0_1 | L2: 0_1 | M2: 0_1 | N2: 0_1 | O2: P_1 | P2: ="FP"&IF(Params!$A$29=Params!$B$29,1,"") -> FP | Q2: ="FP"&IF(Params!$A$29=Params!$B$29,"","M_1") -> FPM_1 | R2: ="FP"&IF(Params!$A$29=Params!$B$29,"","B_1") -> FPB_1 | S2: 0_1 | T2: 0_1 | U2: P_1 | W2: 0_1 | X2: P_1 | Y2: ="FP"&IF(Params!$A$29=Params!$B$29,1,"") -> FP | Z2: ="FP"&IF(Params!$A$29=Params!$B$29,"","M_1") -> FPM_1 | AA2: ="FP"&IF(Params!$A$29=Params!$B$29,"","B_1") -> FPB_1 | AC2: 0_1 | AD2: 0_1 | AE2: P_1 | AG2: 0_1 | AM2: 0_1 | AN2: 0_1 | AO2: P_1 | AP2: 0_1
B3: Cargos por Conexión | C3: Cargos de Distribución | I3: Cargos de Comercialización | L3: Cargos por Servicio de Alumbrado Público | M3: Cargos por Consumo de Alumbrado Público | N3: Cargos por pérdidas de energía en distribución | S3: Cargos por pérdidas de potencia en distribución | V3: Cargos por pérdidas en distribución | W3: Cargos por Energía en Generación | AC3: Cargos por Potencia en Generación | AI3: Cargos por Generación | AJ3: Cargos por Generación | AK3: Cargos por Generación | AM3: Cargos por Potencia en Transmisión | AP3: Cargos por Pérdidas de Energía en Transmisión | AS3: Cargos Tarifario Totales | BB3: Cargos Tarifarios VAD | BL3: Cargos Tarifarios Generación | BW3: Cargos Tarifarios Transmisión | CG3: Valor Presente V. Facturación
B4: CX_ | C4: CD_ | D4: CD_ | E4: CD_ | F4: CD_ | G4: CD_ | H4: CD_ | I4: CCOMF_ | J4: CCOMF_ | K4: CCOMV_ | L4: CSERAP_ | M4: CCONAP_ | N4: CPERDE_ | O4: CPERDE_ | P4: CPERDE_ | Q4: CPERDE_ | R4: CPERDE_ | S4: CPERDP_ | T4: CPERDP_ | U4: CPERDP_ | V4: CPERDP+CPERDE_ | W4: CENEGEN_ | X4: CENEGEN_ | Y4: CENEGEN_ | Z4: CENEGEN_ | AA4: CENEGEN_ | AB4: CENEGENEX_ | AC4: CPOTGENE_ | AD4: CPOTGEN_ | AE4: CPOTGEN_ | AF4: CPOTGENGC_ | AG4: CPOTGEN_ | AH4: CPOTGEN_ | AI4: CENEGEN+CENEGENEX_ | AJ4: CENEGEN+CENEGENEX+CPOTGENE_ | AK4: CENEGEN+CENEGENEX_ | AL4: CENEGEN+CENEGENEX_ | AM4: CPT_ | AN4: CPT_ | AO4: CPT_ | AP4: CPET_
B5: =B4&B6 -> CX_conex_ | C5: =C4&C6 -> CD_kWh_ | D5: =D4&D6 -> CD_kW_M_ | E5: =E4&E6 -> CD_kW_P_ | F5: =F4&F6 -> CD_kW_FP_ | G5: =G4&G6 -> CD_kW_FPM_ | H5: CD_kW_FPB_ | I5: CCOMF_cliente_ | J5: CCOMF_kWh_ | K5: CCOMV_kWh_ | L5: CSERAP_kWh_ | M5: CCONAP_kWh_ | N5: CPERDE_kWh_T_ | O5: CPERDE_kWh_P_ | P5: CPERDE_kWh_FP_ | Q5: CPERDE_kWh_FPM_ | R5: CPERDE_kWh_FPB_ | S5: CPERDP_kWh_T_ | T5: CPERDP_kW_M_ | U5: CPERDP_kW_P_ | V5: CPERDP+CPERDE_kWh_ | W5: CENEGEN_kWh_T_ | X5: CENEGEN_kWh_P_ | Y5: CENEGEN_kWh_FP_ | Z5: =Z4&Z6 -> CENEGEN_kWh_FPM_ | AA5: CENEGEN_kWh_FPB_ | AB5: CENEGENEX_kWh_ | AC5: CPOTGENE_kWh_ | AD5: CPOTGEN_kW_ | AE5: CPOTGEN_kWP_ | AF5: CPOTGENGC_kW_ | AG5: CPOTGEN_kW_M_ | AH5: CPOTGEN_kW_P_ | AI5: CENEGEN+CENEGENEX_kWh_ | AJ5: CENEGEN+CENEGENEX+CPOTGENE_kWh_ | AK5: CENEGEN+CENEGENEX_kWhP_ | AL5: CENEGEN+CENEGENEX_kWhFP_ | AM5: CPT_kWh_ | AN5: CPT_kW_M_ | AO5: CPT_kW_P_ | AP5: CPET_kWh_ | CI5: M | CJ5: P | CK5: FP | CM5: P | CN5: FP
B6: conex_ | C6: kWh_ | D6: kW_M_ | E6: kW_P_ | F6: kW_FP_ | G6: kW_FPM_ | H6: kW_FPB_ | I6: cliente_ | J6: kWh_ | K6: kWh_ | L6: kWh_ | M6: kWh_ | N6: kWh_T_ | O6: kWh_P_ | P6: kWh_FP_ | Q6: kWh_FPM_ | R6: kWh_FPB_ | S6: kWh_T_ | T6: kW_M_ | U6: kW_P_ | V6: kWh_ | W6: kWh_T_ | X6: kWh_P_ | Y6: kWh_FP_ | Z6: kWh_FPM_ | AA6: kWh_FPB_ | AB6: kWh_ | AC6: kWh_ | AD6: kW_ | AE6: kWP_ | AF6: kW_ | AG6: kW_M_ | AH6: kW_P_ | AI6: kWh_ | AJ6: kWh_ | AK6: kWhP_ | AL6: kWhFP_ | AM6: kWh_ | AN6: kW_M_ | AO6: kW_P_ | AP6: kWh_ | AS6: conex_ | AT6: kWh_ | AU6: kW_ | AV6: kWP_ | AW6: kWFP_ | AX6: cliente_ | AY6: kWhP_ | AZ6: kWhFP_ | BB6: =AS6 -> conex_ | BC6: =AT6 -> kWh_ | BD6: kW_ | BE6: kWP_ | BF6: kWFP_ | BG6: cliente_ | BH6: kWhP_ | BI6: kWhFP_ | BL6: =AS6 -> conex_ | BM6: =AT6 -> kWh_ | BN6: kW_ | BO6: kWP_ | BP6: kWFP_ | BQ6: cliente_ | BR6: kWhP_ | BS6: kWhFP_ | BT6: =BN6 -> kW_ | BW6: =AS6 -> conex_ | BX6: kWh_ | BY6: kW_ | BZ6: kWP_ | CA6: kWFP_ | CB6: cliente_ | CC6: kWhP_ | CD6: kWhFP_ | CG6: =BB6 -> conex_ | CH6: kWh_ | CI6: kW_ | CJ6: kWP_ | CK6: kWFP_ | CL6: cliente_ | CM6: kWhP_ | CN6: kWhFP_ | CO6: kW_Peajes horarios
B7: VAD | C7: VAD | D7: VAD | E7: VAD | F7: VAD | G7: VAD | H7: VAD | I7: VAD | J7: VAD | K7: VAD | L7: VAD | M7: GEN | N7: VAD | O7: VAD | P7: VAD | Q7: VAD | R7: VAD | S7: VAD | T7: VAD | U7: VAD | W7: GEN | X7: GEN | Y7: GEN | Z7: GEN | AA7: GEN | AB7: GEN | AC7: GEN | AD7: GEN | AE7: GEN | AF7: GEN_GC | AM7: TRANS | AN7: TRANS | AO7: TRANS | AP7: TRANS | BB7: VAD | BC7: =BB7 -> VAD | BD7: =BC7 -> VAD | BE7: VAD | BF7: VAD | BG7: VAD | BH7: VAD | BI7: VAD | BL7: GEN | BM7: =BL7 -> GEN | BN7: =BM7 -> GEN | BO7: GEN | BP7: GEN | BQ7: GEN | BR7: GEN | BS7: GEN | BT7: GEN_GC | BW7: TRANS | BX7: =BW7 -> TRANS | BY7: =BX7 -> TRANS | BZ7: TRANS | CA7: TRANS | CB7: TRANS | CC7: TRANS | CD7: TRANS
A8: =Factores!C34 -> BTS | B8: =IFERROR(INDEX(Ajustes!$E$14:$LG$300,MATCH($A8&"_"&B$2,Ajustes!$LI$14:$LI$300,0),MATCH(B$1,Ajustes!$E$4:$LG$4,0)),) -> 16.69 | C8: =IFERROR(INDEX(Ajustes!$E$14:$LG$300,MATCH($A8&"_"&C$2,Ajustes!$LI$14:$LI$300,0),MATCH(C$1,Ajustes!$E$4:$LG$4,0)),) -> 0.0361118196 | D8: =IFERROR(INDEX(Ajustes!$E$14:$LG$300,MATCH($A8&"_"&D$2,Ajustes!$LI$14:$LI$300,0),MATCH(D$1,Ajustes!$E$4:$LG$4,0)),) -> 0 | E8: =IFERROR(INDEX(Ajustes!$E$14:$LG$300,MATCH($A8&"_"&E$2,Ajustes!$LI$14:$LI$300,0),MATCH(E$1,Ajustes!$E$4:$LG$4,0)),) -> 0 | F8: =IFERROR(INDEX(Ajustes!$E$14:$LG$300,MATCH($A8&"_"&F$2,Ajustes!$LI$14:$LI$300,0),MATCH(F$1,Ajustes!$E$4:$LG$4,0)),) -> 0 | G8: =IFERROR(INDEX(Ajustes!$E$14:$LG$300,MATCH($A8&"_"&G$2,Ajustes!$LI$14:$LI$300,0),MATCH(G$1,Ajustes!$E$4:$LG$4,0)),) -> 0 | H8: =IFERROR(INDEX(Ajustes!$E$14:$LG$300,MATCH($A8&"_"&H$2,Ajustes!$LI$14:$LI$300,0),MATCH(H$1,Ajustes!$E$4:$LG$4,0)),) -> 0 | I8: =IFERROR(INDEX(Ajustes!$E$14:$LG$300,MATCH($A8&"_"&I$2,Ajustes!$LI$14:$LI$300,0),MATCH(I$1,Ajustes!$E$4:$LG$4,0)),) -> 2.763111221 | J8: =IFERROR(INDEX(Ajustes!$E$14:$LG$300,MATCH($A8&"_"&J$2,Ajustes!$LI$14:$LI$300,0),MATCH(J$1,Ajustes!$E$4:$LG$4,0)),) -> 0 | K8: =IFERROR(INDEX(Ajustes!$E$14:$LG$300,MATCH($A8&"_"&K$2,Ajustes!$LI$14:$LI$300,0),MATCH(K$1,Ajustes!$E$4:$LG$4,0)),) -> 0.01795201752 | L8: =IFERROR(INDEX(Ajustes!$E$14:$LG$300,MATCH($A8&"_"&L$2,Ajustes!$LI$14:$LI$300,0),MATCH(L$1,Ajustes!$E$4:$LG$4,0)),) -> 0.002533482359 | M8: =IFERROR(INDEX(Ajustes!$E$14:$LG$300,MATCH($A8&"_"&M$2,Ajustes!$LI$14:$LI$300,0),MATCH(M$1,Ajustes!$E$4:$LG$4,0)),) -> 0.001639213974 | N8: =IFERROR(INDEX(Ajustes!$E$14:$LG$300,MATCH($A8&"_"&N$2,Ajustes!$LI$14:$LI$300,0),MATCH(N$1,Ajustes!$E$4:$LG$4,0)),) -> 0.01617600877 | O8: =IFERROR(INDEX(Ajustes!$E$14:$LG$300,MATCH($A8&"_"&O$2,Ajustes!$LI$14:$LI$300,0),MATCH(O$1,Ajustes!$E$4:$LG$4,0)),) -> 0 | P8: =IFERROR(INDEX(Ajustes!$E$14:$LG$300,MATCH($A8&"_"&P$2,Ajustes!$LI$14:$LI$300,0),MATCH(P$1,Ajustes!$E$4:$LG$4,0)),) -> 0 | Q8: =IFERROR(INDEX(Ajustes!$E$14:$LG$300,MATCH($A8&"_"&Q$2,Ajustes!$LI$14:$LI$300,0),MATCH(Q$1,Ajustes!$E$4:$LG$4,0)),) -> 0 | R8: =IFERROR(INDEX(Ajustes!$E$14:$LG$300,MATCH($A8&"_"&R$2,Ajustes!$LI$14:$LI$300,0),MATCH(R$1,Ajustes!$E$4:$LG$4,0)),) -> 0 | S8: =IFERROR(INDEX(Ajustes!$E$14:$LG$300,MATCH($A8&"_"&S$2,Ajustes!$LI$14:$LI$300,0),MATCH(S$1,Ajustes!$E$4:$LG$4,0)),) -> 0.001164358383 | T8: =IFERROR(INDEX(Ajustes!$E$14:$LG$300,MATCH($A8&"_"&T$2,Ajustes!$LI$14:$LI$300,0),MATCH(T$1,Ajustes!$E$4:$LG$4,0)),) -> 0 | U8: =IFERROR(INDEX(Ajustes!$E$14:$LG$300,MATCH($A8&"_"&U$2,Ajustes!$LI$14:$LI$300,0),MATCH(U$1,Ajustes!$E$4:$LG$4,0)),) -> 0 | V8: =N8+S8 -> 0.01734036715 | W8: =IFERROR(INDEX(Ajustes!$E$14:$LG$300,MATCH($A8&"_"&W$2,Ajustes!$LI$14:$LI$300,0),MATCH(W$1,Ajustes!$E$4:$LG$4,0)),) -> 0.06646601996 | X8: =IFERROR(INDEX(Ajustes!$E$14:$LG$300,MATCH($A8&"_"&X$2,Ajustes!$LI$14:$LI$300,0),MATCH(X$1,Ajustes!$E$4:$LG$4,0)),) -> 0 | Y8: =IFERROR(INDEX(Ajustes!$E$14:$LG$300,MATCH($A8&"_"&Y$2,Ajustes!$LI$14:$LI$300,0),MATCH(Y$1,Ajustes!$E$4:$LG$4,0)),) -> 0 | Z8: =IFERROR(INDEX(Ajustes!$E$14:$LG$300,MATCH($A8&"_"&Z$2,Ajustes!$LI$14:$LI$300,0),MATCH(Z$1,Ajustes!$E$4:$LG$4,0)),) -> 0 | AA8: =IFERROR(INDEX(Ajustes!$E$14:$LG$300,MATCH($A8&"_"&AA$2,Ajustes!$LI$14:$LI$300,0),MATCH(AA$1,Ajustes!$E$4:$LG$4,0)),) -> 0 | AB8: =IFERROR(INDEX(Ajustes!$E$14:$LG$300,MATCH($A8&"_"&AB$2,Ajustes!$LI$14:$LI$300,0),MATCH(AB$1,Ajustes!$E$4:$LG$4,0)),) -> 0 | AC8: =IFERROR(INDEX(Ajustes!$E$14:$LG$300,MATCH($A8&"_"&AC$2,Ajustes!$LI$14:$LI$300,0),MATCH(AC$1,Ajustes!$E$4:$LG$4,0)),) -> 0.01498833103 | AD8: =IFERROR(INDEX(Ajustes!$E$14:$LG$300,MATCH($A8&"_"&AD$2,Ajustes!$LI$14:$LI$300,0),MATCH(AD$1,Ajustes!$E$4:$LG$4,0)),) -> 0 | AE8: =IFERROR(INDEX(Ajustes!$E$14:$LG$300,MATCH($A8&"_"&AE$2,Ajustes!$LI$14:$LI$300,0),MATCH(AE$1,Ajustes!$E$4:$LG$4,0)),) -> 0 | AF8: =IFERROR(INDEX(Ajustes!$E$14:$LG$300,MATCH($A8&"_"&AF$2,Ajustes!$LI$14:$LI$300,0),MATCH(AF$1,Ajustes!$E$4:$LG$4,0)),) -> 0 | AG8: =IFERROR(INDEX(Ajustes!$E$14:$LG$300,MATCH($A8&"_"&AG$2,Ajustes!$LI$14:$LI$300,0),MATCH(AG$1,Ajustes!$E$4:$LG$4,0)),) -> 0 | AH8: =IFERROR(INDEX(Ajustes!$E$14:$LG$300,MATCH($A8&"_"&AH$2,Ajustes!$LI$14:$LI$300,0),MATCH(AH$1,Ajustes!$E$4:$LG$4,0)),) -> 0 | AI8: =W8+AB8 -> 0.06646601996 | AJ8: =W8+AB8+AC8 -> 0.08145435099 | AK8: =X8+AB8 -> 0 | AL8: =Y8+AB8 -> 0 | AM8: =IFERROR(INDEX(Ajustes!$E$14:$LG$300,MATCH($A8&"_"&AM$2,Ajustes!$LI$14:$LI$300,0),MATCH(AM$1,Ajustes!$E$4:$LG$4,0)),) -> 0.0068246739 | AN8: =IFERROR(INDEX(Ajustes!$E$14:$LG$300,MATCH($A8&"_"&AN$2,Ajustes!$LI$14:$LI$300,0),MATCH(AN$1,Ajustes!$E$4:$LG$4,0)),) -> 0 | AO8: =IFERROR(INDEX(Ajustes!$E$14:$LG$300,MATCH($A8&"_"&AO$2,Ajustes!$LI$14:$LI$300,0),MATCH(AO$1,Ajustes!$E$4:$LG$4,0)),) -> 0 | AP8: =IFERROR(INDEX(Ajustes!$E$14:$LG$300,MATCH($A8&"_"&AP$2,Ajustes!$LI$14:$LI$300,0),MATCH(AP$1,Ajustes!$E$4:$LG$4,0)),) -> 0.005052066316 | AS8: =SUMIFS($B8:$AP8,$B$6:$AP$6,AS$6) -> 16.69 | AT8: 0.2503623428 | AU8: 0 | AV8: 0 | AW8: 0 | AX8: 2.763111221 | AY8: 0 | AZ8: 0 | BB8: =SUMIFS($B8:$AP8,$B$6:$AP$6,BB$6,$B$7:$AP$7,BB$7) -> 16.69 | BC8: 0.05659731948 | BD8: 0 | BE8: 0 | BF8: 0 | BG8: 2.763111221 | BH8: 0 | BI8: 0 | BL8: =SUMIFS($B8:$AP8,$B$6:$AP$6,BL$6,$B$7:$AP$7,BL$7) -> 0 | BM8: 0.01662754501 | BN8: 0 | BO8: 0 | BP8: 0 | BQ8: 0 | BR8: 0 | BS8: 0 | BT8: 0 | BW8: =SUMIFS($B8:$AP8,$B$6:$AP$6,BW$6,$B$7:$AP$7,BW$7) -> 0 | BX8: 0.01187674022 | BY8: 0 | BZ8: 0 | CA8: 0 | CB8: 0 | CC8: 0 | CD8: 0 | CG8: =IF(A8="",0,SUMIFS(Clientes!Q:Q,Clientes!C:C,A8)) -> 45777.53487 | CH8: =IF(A8="",0,SUMIFS(Energia!K:K,Energia!C:C,A8)) -> 6643868.107 | CI8: =IF(A8="",0,SUMIFS(Potencia!K:K,Potencia!B:B,A8,Potencia!M:M,CI$5)) -> 0 | CJ8: =IF(A8="",0,SUMIFS(Potencia!K:K,Potencia!B:B,A8,Potencia!M:M,CJ$5)) -> 0 | CK8: =IF(A8="",0,SUMIFS(Potencia!K:K,Potencia!B:B,A8,Potencia!M:M,CK$5)) -> 0 | CL8: =IF(A8="",0,SUMIFS(Clientes!K:K,Clientes!C:C,A8)) -> 1589131.896 | CM8: =IF(A8="",0,SUMIFS(Energia!K:K,Energia!B:B,A8,Energia!AA:AA,CM$5)) -> 0.000659934741 | CN8: =IF(A8="",0,SUMIFS(Energia!K:K,Energia!B:B,A8,Energia!AA:AA,CN$5)) -> 0.002627159814 | CO8: =IF(AND(BT8>0,CJ8>0),CJ8,) -> 0
A9: =Factores!C35 -> BTD | B9: =IFERROR(INDEX(Ajustes!$E$14:$LG$300,MATCH($A9&"_"&B$2,Ajustes!$LI$14:$LI$300,0),MATCH(B$1,Ajustes!$E$4:$LG$4,0)),) -> 71.85 | C9: =IFERROR(INDEX(Ajustes!$E$14:$LG$300,MATCH($A9&"_"&C$2,Ajustes!$LI$14:$LI$300,0),MATCH(C$1,Ajustes!$E$4:$LG$4,0)),) -> 0 | D9: =IFERROR(INDEX(Ajustes!$E$14:$LG$300,MATCH($A9&"_"&D$2,Ajustes!$LI$14:$LI$300,0),MATCH(D$1,Ajustes!$E$4:$LG$4,0)),) -> 12.35048154 | E9: =IFERROR(INDEX(Ajustes!$E$14:$LG$300,MATCH($A9&"_"&E$2,Ajustes!$LI$14:$LI$300,0),MATCH(E$1,Ajustes!$E$4:$LG$4,0)),) -> 0 | F9: =IFERROR(INDEX(Ajustes!$E$14:$LG$300,MATCH($A9&"_"&F$2,Ajustes!$LI$14:$LI$300,0),MATCH(F$1,Ajustes!$E$4:$LG$4,0)),) -> 0 | G9: =IFERROR(INDEX(Ajustes!$E$14:$LG$300,MATCH($A9&"_"&G$2,Ajustes!$LI$14:$LI$300,0),MATCH(G$1,Ajustes!$E$4:$LG$4,0)),) -> 0 | H9: =IFERROR(INDEX(Ajustes!$E$14:$LG$300,MATCH($A9&"_"&H$2,Ajustes!$LI$14:$LI$300,0),MATCH(H$1,Ajustes!$E$4:$LG$4,0)),) -> 0 | I9: =IFERROR(INDEX(Ajustes!$E$14:$LG$300,MATCH($A9&"_"&I$2,Ajustes!$LI$14:$LI$300,0),MATCH(I$1,Ajustes!$E$4:$LG$4,0)),) -> 5.571783676 | J9: =IFERROR(INDEX(Ajustes!$E$14:$LG$300,MATCH($A9&"_"&J$2,Ajustes!$LI$14:$LI$300,0),MATCH(J$1,Ajustes!$E$4:$LG$4,0)),) -> 0 | K9: =IFERROR(INDEX(Ajustes!$E$14:$LG$300,MATCH($A9&"_"&K$2,Ajustes!$LI$14:$LI$300,0),MATCH(K$1,Ajustes!$E$4:$LG$4,0)),) -> 0.004772462584 | L9: =IFERROR(INDEX(Ajustes!$E$14:$LG$300,MATCH($A9&"_"&L$2,Ajustes!$LI$14:$LI$300,0),MATCH(L$1,Ajustes!$E$4:$LG$4,0)),) -> 0.002328917078 | M9: =IFERROR(INDEX(Ajustes!$E$14:$LG$300,MATCH($A9&"_"&M$2,Ajustes!$LI$14:$LI$300,0),MATCH(M$1,Ajustes!$E$4:$LG$4,0)),) -> 0.001506855975 | N9: =IFERROR(INDEX(Ajustes!$E$14:$LG$300,MATCH($A9&"_"&N$2,Ajustes!$LI$14:$LI$300,0),MATCH(N$1,Ajustes!$E$4:$LG$4,0)),) -> 0.01486988174 | O9: =IFERROR(INDEX(Ajustes!$E$14:$LG$300,MATCH($A9&"_"&O$2,Ajustes!$LI$14:$LI$300,0),MATCH(O$1,Ajustes!$E$4:$LG$4,0)),) -> 0 | P9: =IFERROR(INDEX(Ajustes!$E$14:$LG$300,MATCH($A9&"_"&P$2,Ajustes!$LI$14:$LI$300,0),MATCH(P$1,Ajustes!$E$4:$LG$4,0)),) -> 0 | Q9: =IFERROR(INDEX(Ajustes!$E$14:$LG$300,MATCH($A9&"_"&Q$2,Ajustes!$LI$14:$LI$300,0),MATCH(Q$1,Ajustes!$E$4:$LG$4,0)),) -> 0 | R9: =IFERROR(INDEX(Ajustes!$E$14:$LG$300,MATCH($A9&"_"&R$2,Ajustes!$LI$14:$LI$300,0),MATCH(R$1,Ajustes!$E$4:$LG$4,0)),) -> 0 | S9: =IFERROR(INDEX(Ajustes!$E$14:$LG$300,MATCH($A9&"_"&S$2,Ajustes!$LI$14:$LI$300,0),MATCH(S$1,Ajustes!$E$4:$LG$4,0)),) -> 0 | T9: =IFERROR(INDEX(Ajustes!$E$14:$LG$300,MATCH($A9&"_"&T$2,Ajustes!$LI$14:$LI$300,0),MATCH(T$1,Ajustes!$E$4:$LG$4,0)),) -> 0.4874887977 | U9: =IFERROR(INDEX(Ajustes!$E$14:$LG$300,MATCH($A9&"_"&U$2,Ajustes!$LI$14:$LI$300,0),MATCH(U$1,Ajustes!$E$4:$LG$4,0)),) -> 0 | V9: =N9+S9 -> 0.01486988174 | W9: =IFERROR(INDEX(Ajustes!$E$14:$LG$300,MATCH($A9&"_"&W$2,Ajustes!$LI$14:$LI$300,0),MATCH(W$1,Ajustes!$E$4:$LG$4,0)),) -> 0.08267358364 | X9: =IFERROR(INDEX(Ajustes!$E$14:$LG$300,MATCH($A9&"_"&X$2,Ajustes!$LI$14:$LI$300,0),MATCH(X$1,Ajustes!$E$4:$LG$4,0)),) -> 0 | Y9: =IFERROR(INDEX(Ajustes!$E$14:$LG$300,MATCH($A9&"_"&Y$2,Ajustes!$LI$14:$LI$300,0),MATCH(Y$1,Ajustes!$E$4:$LG$4,0)),) -> 0 | Z9: =IFERROR(INDEX(Ajustes!$E$14:$LG$300,MATCH($A9&"_"&Z$2,Ajustes!$LI$14:$LI$300,0),MATCH(Z$1,Ajustes!$E$4:$LG$4,0)),) -> 0 | AA9: =IFERROR(INDEX(Ajustes!$E$14:$LG$300,MATCH($A9&"_"&AA$2,Ajustes!$LI$14:$LI$300,0),MATCH(AA$1,Ajustes!$E$4:$LG$4,0)),) -> 0 | AB9: =IFERROR(INDEX(Ajustes!$E$14:$LG$300,MATCH($A9&"_"&AB$2,Ajustes!$LI$14:$LI$300,0),MATCH(AB$1,Ajustes!$E$4:$LG$4,0)),) -> 0 | AC9: =IFERROR(INDEX(Ajustes!$E$14:$LG$300,MATCH($A9&"_"&AC$2,Ajustes!$LI$14:$LI$300,0),MATCH(AC$1,Ajustes!$E$4:$LG$4,0)),) -> 0.06239470063 | AD9: =IFERROR(INDEX(Ajustes!$E$14:$LG$300,MATCH($A9&"_"&AD$2,Ajustes!$LI$14:$LI$300,0),MATCH(AD$1,Ajustes!$E$4:$LG$4,0)),) -> 2.873637444 | AE9: =IFERROR(INDEX(Ajustes!$E$14:$LG$300,MATCH($A9&"_"&AE$2,Ajustes!$LI$14:$LI$300,0),MATCH(AE$1,Ajustes!$E$4:$LG$4,0)),) -> 0 | AF9: =IFERROR(INDEX(Ajustes!$E$14:$LG$300,MATCH($A9&"_"&AF$2,Ajustes!$LI$14:$LI$300,0),MATCH(AF$1,Ajustes!$E$4:$LG$4,0)),) -> 0 | AG9: =IFERROR(INDEX(Ajustes!$E$14:$LG$300,MATCH($A9&"_"&AG$2,Ajustes!$LI$14:$LI$300,0),MATCH(AG$1,Ajustes!$E$4:$LG$4,0)),) -> 2.873637444 | AH9: =IFERROR(INDEX(Ajustes!$E$14:$LG$300,MATCH($A9&"_"&AH$2,Ajustes!$LI$14:$LI$300,0),MATCH(AH$1,Ajustes!$E$4:$LG$4,0)),) -> 0 | AI9: =W9+AB9 -> 0.08267358364 | AJ9: =W9+AB9+AC9 -> 0.1450682843 | AK9: =X9+AB9 -> 0 | AL9: =Y9+AB9 -> 0 | AM9: =IFERROR(INDEX(Ajustes!$E$14:$LG$300,MATCH($A9&"_"&AM$2,Ajustes!$LI$14:$LI$300,0),MATCH(AM$1,Ajustes!$E$4:$LG$4,0)),) -> 0.00520995984 | AN9: =IFERROR(INDEX(Ajustes!$E$14:$LG$300,MATCH($A9&"_"&AN$2,Ajustes!$LI$14:$LI$300,0),MATCH(AN$1,Ajustes!$E$4:$LG$4,0)),) -> 1.428660561 | AO9: =IFERROR(INDEX(Ajustes!$E$14:$LG$300,MATCH($A9&"_"&AO$2,Ajustes!$LI$14:$LI$300,0),MATCH(AO$1,Ajustes!$E$4:$LG$4,0)),) -> 0 | AP9: =IFERROR(INDEX(Ajustes!$E$14:$LG$300,MATCH($A9&"_"&AP$2,Ajustes!$LI$14:$LI$300,0),MATCH(AP$1,Ajustes!$E$4:$LG$4,0)),) -> 0.004644295255 | AS9: 71.85 | AT9: 0.323468941 | AU9: 2.873637444 | AV9: 0 | AW9: 0 | AX9: 5.571783676 | AY9: 0 | AZ9: 0 | BB9: 71.85 | BC9: 0.007101379662 | BD9: 0 | BE9: 0 | BF9: 0 | BG9: 5.571783676 | BH9: 0 | BI9: 0 | BL9: 0 | BM9: 0.06390155661 | BN9: 2.873637444 | BO9: 0 | BP9: 0 | BQ9: 0 | BR9: 0 | BS9: 0 | BT9: 0 | BW9: 0 | BX9: 0.009854255096 | BY9: 0 | BZ9: 0 | CA9: 0 | CB9: 0 | CC9: 0 | CD9: 0 | CG9: =IF(A9="",0,SUMIFS(Clientes!Q:Q,Clientes!C:C,A9)) -> 556.5365843 | CH9: =IF(A9="",0,SUMIFS(Energia!K:K,Energia!C:C,A9)) -> 2476254.507 | CI9: =IF(A9="",0,SUMIFS(Potencia!K:K,Potencia!B:B,A9,Potencia!M:M,CI$5)) -> 790.6824469 | CJ9: =IF(A9="",0,SUMIFS(Potencia!K:K,Potencia!B:B,A9,Potencia!M:M,CJ$5)) -> 0 | CK9: =IF(A9="",0,SUMIFS(Potencia!K:K,Potencia!B:B,A9,Potencia!M:M,CK$5)) -> 0 | CL9: =IF(A9="",0,SUMIFS(Clientes!K:K,Clientes!C:C,A9)) -> 19367.36511 | CM9: =IF(A9="",0,SUMIFS(Energia!K:K,Energia!B:B,A9,Energia!AA:AA,CM$5)) -> 0 | CN9: =IF(A9="",0,SUMIFS(Energia!K:K,Energia!B:B,A9,Energia!AA:AA,CN$5)) -> 0 | CO9: =IF(AND(BT9>0,CJ9>0),CJ9,) -> 0
A10: =Factores!C36 -> BTH | B10: =IFERROR(INDEX(Ajustes!$E$14:$LG$300,MATCH($A10&"_"&B$2,Ajustes!$LI$14:$LI$300,0),MATCH(B$1,Ajustes!$E$4:$LG$4,0)),) -> 71.85 | C10: =IFERROR(INDEX(Ajustes!$E$14:$LG$300,MATCH($A10&"_"&C$2,Ajustes!$LI$14:$LI$300,0),MATCH(C$1,Ajustes!$E$4:$LG$4,0)),) -> 0 | D10: =IFERROR(INDEX(Ajustes!$E$14:$LG$300,MATCH($A10&"_"&D$2,Ajustes!$LI$14:$LI$300,0),MATCH(D$1,Ajustes!$E$4:$LG$4,0)),) -> 0 | E10: =IFERROR(INDEX(Ajustes!$E$14:$LG$300,MATCH($A10&"_"&E$2,Ajustes!$LI$14:$LI$300,0),MATCH(E$1,Ajustes!$E$4:$LG$4,0)),) -> 7.677070549 | F10: =IFERROR(INDEX(Ajustes!$E$14:$LG$300,MATCH($A10&"_"&F$2,Ajustes!$LI$14:$LI$300,0),MATCH(F$1,Ajustes!$E$4:$LG$4,0)),) -> 0 | G10: =IFERROR(INDEX(Ajustes!$E$14:$LG$300,MATCH($A10&"_"&G$2,Ajustes!$LI$14:$LI$300,0),MATCH(G$1,Ajustes!$E$4:$LG$4,0)),) -> 2.954109713 | H10: =IFERROR(INDEX(Ajustes!$E$14:$LG$300,MATCH($A10&"_"&H$2,Ajustes!$LI$14:$LI$300,0),MATCH(H$1,Ajustes!$E$4:$LG$4,0)),) -> 2.36328777 | I10: =IFERROR(INDEX(Ajustes!$E$14:$LG$300,MATCH($A10&"_"&I$2,Ajustes!$LI$14:$LI$300,0),MATCH(I$1,Ajustes!$E$4:$LG$4,0)),) -> 5.571783676 | J10: =IFERROR(INDEX(Ajustes!$E$14:$LG$300,MATCH($A10&"_"&J$2,Ajustes!$LI$14:$LI$300,0),MATCH(J$1,Ajustes!$E$4:$LG$4,0)),) -> 0 | K10: =IFERROR(INDEX(Ajustes!$E$14:$LG$300,MATCH($A10&"_"&K$2,Ajustes!$LI$14:$LI$300,0),MATCH(K$1,Ajustes!$E$4:$LG$4,0)),) -> 0.004772462584 | L10: =IFERROR(INDEX(Ajustes!$E$14:$LG$300,MATCH($A10&"_"&L$2,Ajustes!$LI$14:$LI$300,0),MATCH(L$1,Ajustes!$E$4:$LG$4,0)),) -> 0.002328917078 | M10: =IFERROR(INDEX(Ajustes!$E$14:$LG$300,MATCH($A10&"_"&M$2,Ajustes!$LI$14:$LI$300,0),MATCH(M$1,Ajustes!$E$4:$LG$4,0)),) -> 0.001506855975 | N10: =IFERROR(INDEX(Ajustes!$E$14:$LG$300,MATCH($A10&"_"&N$2,Ajustes!$LI$14:$LI$300,0),MATCH(N$1,Ajustes!$E$4:$LG$4,0)),) -> 0 | O10: =IFERROR(INDEX(Ajustes!$E$14:$LG$300,MATCH($A10&"_"&O$2,Ajustes!$LI$14:$LI$300,0),MATCH(O$1,Ajustes!$E$4:$LG$4,0)),) -> 0.01486988174 | P10: =IFERROR(INDEX(Ajustes!$E$14:$LG$300,MATCH($A10&"_"&P$2,Ajustes!$LI$14:$LI$300,0),MATCH(P$1,Ajustes!$E$4:$LG$4,0)),) -> 0 | Q10: =IFERROR(INDEX(Ajustes!$E$14:$LG$300,MATCH($A10&"_"&Q$2,Ajustes!$LI$14:$LI$300,0),MATCH(Q$1,Ajustes!$E$4:$LG$4,0)),) -> 0.01486988174 | R10: =IFERROR(INDEX(Ajustes!$E$14:$LG$300,MATCH($A10&"_"&R$2,Ajustes!$LI$14:$LI$300,0),MATCH(R$1,Ajustes!$E$4:$LG$4,0)),) -> 0.01486988174 | S10: =IFERROR(INDEX(Ajustes!$E$14:$LG$300,MATCH($A10&"_"&S$2,Ajustes!$LI$14:$LI$300,0),MATCH(S$1,Ajustes!$E$4:$LG$4,0)),) -> 0 | T10: =IFERROR(INDEX(Ajustes!$E$14:$LG$300,MATCH($A10&"_"&T$2,Ajustes!$LI$14:$LI$300,0),MATCH(T$1,Ajustes!$E$4:$LG$4,0)),) -> 0 | U10: =IFERROR(INDEX(Ajustes!$E$14:$LG$300,MATCH($A10&"_"&U$2,Ajustes!$LI$14:$LI$300,0),MATCH(U$1,Ajustes!$E$4:$LG$4,0)),) -> 0.5090288623 | V10: 0 | W10: =IFERROR(INDEX(Ajustes!$E$14:$LG$300,MATCH($A10&"_"&W$2,Ajustes!$LI$14:$LI$300,0),MATCH(W$1,Ajustes!$E$4:$LG$4,0)),) -> 0 | X10: =IFERROR(INDEX(Ajustes!$E$14:$LG$300,MATCH($A10&"_"&X$2,Ajustes!$LI$14:$LI$300,0),MATCH(X$1,Ajustes!$E$4:$LG$4,0)),) -> 0.1478468632 | Y10: =IFERROR(INDEX(Ajustes!$E$14:$LG$300,MATCH($A10&"_"&Y$2,Ajustes!$LI$14:$LI$300,0),MATCH(Y$1,Ajustes!$E$4:$LG$4,0)),) -> 0 | Z10: =IFERROR(INDEX(Ajustes!$E$14:$LG$300,MATCH($A10&"_"&Z$2,Ajustes!$LI$14:$LI$300,0),MATCH(Z$1,Ajustes!$E$4:$LG$4,0)),) -> 0.09762586524 | AA10: =IFERROR(INDEX(Ajustes!$E$14:$LG$300,MATCH($A10&"_"&AA$2,Ajustes!$LI$14:$LI$300,0),MATCH(AA$1,Ajustes!$E$4:$LG$4,0)),) -> 0.04693551213 | AB10: =IFERROR(INDEX(Ajustes!$E$14:$LG$300,MATCH($A10&"_"&AB$2,Ajustes!$LI$14:$LI$300,0),MATCH(AB$1,Ajustes!$E$4:$LG$4,0)),) -> 0 | AC10: =IFERROR(INDEX(Ajustes!$E$14:$LG$300,MATCH($A10&"_"&AC$2,Ajustes!$LI$14:$LI$300,0),MATCH(AC$1,Ajustes!$E$4:$LG$4,0)),) -> 0.02466003784 | AD10: =IFERROR(INDEX(Ajustes!$E$14:$LG$300,MATCH($A10&"_"&AD$2,Ajustes!$LI$14:$LI$300,0),MATCH(AD$1,Ajustes!$E$4:$LG$4,0)),) -> 0 | AE10: =IFERROR(INDEX(Ajustes!$E$14:$LG$300,MATCH($A10&"_"&AE$2,Ajustes!$LI$14:$LI$300,0),MATCH(AE$1,Ajustes!$E$4:$LG$4,0)),) -> 3.000611308 | AF10: =IFERROR(INDEX(Ajustes!$E$14:$LG$300,MATCH($A10&"_"&AF$2,Ajustes!$LI$14:$LI$300,0),MATCH(AF$1,Ajustes!$E$4:$LG$4,0)),) -> 0 | AG10: =IFERROR(INDEX(Ajustes!$E$14:$LG$300,MATCH($A10&"_"&AG$2,Ajustes!$LI$14:$LI$300,0),MATCH(AG$1,Ajustes!$E$4:$LG$4,0)),) -> 0 | AH10: =IFERROR(INDEX(Ajustes!$E$14:$LG$300,MATCH($A10&"_"&AH$2,Ajustes!$LI$14:$LI$300,0),MATCH(AH$1,Ajustes!$E$4:$LG$4,0)),) -> 0 | AI10: 0 | AJ10: 0.02466003784 | AK10: 0.1478468632 | AL10: 0 | AM10: =IFERROR(INDEX(Ajustes!$E$14:$LG$300,MATCH($A10&"_"&AM$2,Ajustes!$LI$14:$LI$300,0),MATCH(AM$1,Ajustes!$E$4:$LG$4,0)),) -> 0.002261842337 | AN10: =IFERROR(INDEX(Ajustes!$E$14:$LG$300,MATCH($A10&"_"&AN$2,Ajustes!$LI$14:$LI$300,0),MATCH(AN$1,Ajustes!$E$4:$LG$4,0)),) -> 0 | AO10: =IFERROR(INDEX(Ajustes!$E$14:$LG$300,MATCH($A10&"_"&AO$2,Ajustes!$LI$14:$LI$300,0),MATCH(AO$1,Ajustes!$E$4:$LG$4,0)),) -> 1.491787018 | AP10: =IFERROR(INDEX(Ajustes!$E$14:$LG$300,MATCH($A10&"_"&AP$2,Ajustes!$LI$14:$LI$300,0),MATCH(AP$1,Ajustes!$E$4:$LG$4,0)),) -> 0.004644295255 | AS10: 71.85 | AT10: 0.06483444891 | AU10: 0 | AV10: 3.000611308 | AW10: 0 | AX10: 5.571783676 | AY10: 0.1478468632 | AZ10: 0 | BB10: 71.85 | BC10: 0.007101379662 | BD10: 0 | BE10: 0 | BF10: 0 | BG10: 5.571783676 | BH10: 0 | BI10: 0 | BL10: 0 | BM10: 0.02616689382 | BN10: 0 | BO10: 3.000611308 | BP10: 0 | BQ10: 0 | BR10: 0 | BS10: 0 | BT10: 0 | BW10: 0 | BX10: 0.006906137592 | BY10: 0 | BZ10: 0 | CA10: 0 | CB10: 0 | CC10: 0 | CD10: 0 | CG10: =IF(A10="",0,SUMIFS(Clientes!Q:Q,Clientes!C:C,A10)) -> 9.160710523 | CH10: =IF(A10="",0,SUMIFS(Energia!K:K,Energia!C:C,A10)) -> 117029.7006 | CI10: =IF(A10="",0,SUMIFS(Potencia!K:K,Potencia!B:B,A10,Potencia!M:M,CI$5)) -> 0 | CJ10: =IF(A10="",0,SUMIFS(Potencia!K:K,Potencia!B:B,A10,Potencia!M:M,CJ$5)) -> 14.14396518 | CK10: =IF(A10="",0,SUMIFS(Potencia!K:K,Potencia!B:B,A10,Potencia!M:M,CK$5)) -> 16.39740049 | CL10: =IF(A10="",0,SUMIFS(Clientes!K:K,Clientes!C:C,A10)) -> 308.6756901 | CM10: =IF(A10="",0,SUMIFS(Energia!K:K,Energia!B:B,A10,Energia!AA:AA,CM$5)) -> 28184.36938 | CN10: =IF(A10="",0,SUMIFS(Energia!K:K,Energia!B:B,A10,Energia!AA:AA,CN$5)) -> 88845.33126 | CO10: 0
A11: =Factores!C37 -> BTS_A | B11: =IFERROR(INDEX(Ajustes!$E$14:$LG$300,MATCH($A11&"_"&B$2,Ajustes!$LI$14:$LI$300,0),MATCH(B$1,Ajustes!$E$4:$LG$4,0)),) -> 0 | C11: =IFERROR(INDEX(Ajustes!$E$14:$LG$300,MATCH($A11&"_"&C$2,Ajustes!$LI$14:$LI$300,0),MATCH(C$1,Ajustes!$E$4:$LG$4,0)),) -> 0 | D11: =IFERROR(INDEX(Ajustes!$E$14:$LG$300,MATCH($A11&"_"&D$2,Ajustes!$LI$14:$LI$300,0),MATCH(D$1,Ajustes!$E$4:$LG$4,0)),) -> 0 | E11: =IFERROR(INDEX(Ajustes!$E$14:$LG$300,MATCH($A11&"_"&E$2,Ajustes!$LI$14:$LI$300,0),MATCH(E$1,Ajustes!$E$4:$LG$4,0)),) -> 0 | F11: =IFERROR(INDEX(Ajustes!$E$14:$LG$300,MATCH($A11&"_"&F$2,Ajustes!$LI$14:$LI$300,0),MATCH(F$1,Ajustes!$E$4:$LG$4,0)),) -> 0 | G11: =IFERROR(INDEX(Ajustes!$E$14:$LG$300,MATCH($A11&"_"&G$2,Ajustes!$LI$14:$LI$300,0),MATCH(G$1,Ajustes!$E$4:$LG$4,0)),) -> 0 | H11: =IFERROR(INDEX(Ajustes!$E$14:$LG$300,MATCH($A11&"_"&H$2,Ajustes!$LI$14:$LI$300,0),MATCH(H$1,Ajustes!$E$4:$LG$4,0)),) -> 0 | I11: =IFERROR(INDEX(Ajustes!$E$14:$LG$300,MATCH($A11&"_"&I$2,Ajustes!$LI$14:$LI$300,0),MATCH(I$1,Ajustes!$E$4:$LG$4,0)),) -> 0 | J11: =IFERROR(INDEX(Ajustes!$E$14:$LG$300,MATCH($A11&"_"&J$2,Ajustes!$LI$14:$LI$300,0),MATCH(J$1,Ajustes!$E$4:$LG$4,0)),) -> 0 | K11: =IFERROR(INDEX(Ajustes!$E$14:$LG$300,MATCH($A11&"_"&K$2,Ajustes!$LI$14:$LI$300,0),MATCH(K$1,Ajustes!$E$4:$LG$4,0)),) -> 0 | L11: =IFERROR(INDEX(Ajustes!$E$14:$LG$300,MATCH($A11&"_"&L$2,Ajustes!$LI$14:$LI$300,0),MATCH(L$1,Ajustes!$E$4:$LG$4,0)),) -> 0 | M11: =IFERROR(INDEX(Ajustes!$E$14:$LG$300,MATCH($A11&"_"&M$2,Ajustes!$LI$14:$LI$300,0),MATCH(M$1,Ajustes!$E$4:$LG$4,0)),) -> 0 | N11: =IFERROR(INDEX(Ajustes!$E$14:$LG$300,MATCH($A11&"_"&N$2,Ajustes!$LI$14:$LI$300,0),MATCH(N$1,Ajustes!$E$4:$LG$4,0)),) -> 0 | O11: =IFERROR(INDEX(Ajustes!$E$14:$LG$300,MATCH($A11&"_"&O$2,Ajustes!$LI$14:$LI$300,0),MATCH(O$1,Ajustes!$E$4:$LG$4,0)),) -> 0 | P11: =IFERROR(INDEX(Ajustes!$E$14:$LG$300,MATCH($A11&"_"&P$2,Ajustes!$LI$14:$LI$300,0),MATCH(P$1,Ajustes!$E$4:$LG$4,0)),) -> 0 | Q11: =IFERROR(INDEX(Ajustes!$E$14:$LG$300,MATCH($A11&"_"&Q$2,Ajustes!$LI$14:$LI$300,0),MATCH(Q$1,Ajustes!$E$4:$LG$4,0)),) -> 0 | R11: =IFERROR(INDEX(Ajustes!$E$14:$LG$300,MATCH($A11&"_"&R$2,Ajustes!$LI$14:$LI$300,0),MATCH(R$1,Ajustes!$E$4:$LG$4,0)),) -> 0 | S11: =IFERROR(INDEX(Ajustes!$E$14:$LG$300,MATCH($A11&"_"&S$2,Ajustes!$LI$14:$LI$300,0),MATCH(S$1,Ajustes!$E$4:$LG$4,0)),) -> 0 | T11: =IFERROR(INDEX(Ajustes!$E$14:$LG$300,MATCH($A11&"_"&T$2,Ajustes!$LI$14:$LI$300,0),MATCH(T$1,Ajustes!$E$4:$LG$4,0)),) -> 0 | U11: =IFERROR(INDEX(Ajustes!$E$14:$LG$300,MATCH($A11&"_"&U$2,Ajustes!$LI$14:$LI$300,0),MATCH(U$1,Ajustes!$E$4:$LG$4,0)),) -> 0 | V11: 0 | W11: =IFERROR(INDEX(Ajustes!$E$14:$LG$300,MATCH($A11&"_"&W$2,Ajustes!$LI$14:$LI$300,0),MATCH(W$1,Ajustes!$E$4:$LG$4,0)),) -> 0 | X11: =IFERROR(INDEX(Ajustes!$E$14:$LG$300,MATCH($A11&"_"&X$2,Ajustes!$LI$14:$LI$300,0),MATCH(X$1,Ajustes!$E$4:$LG$4,0)),) -> 0 | Y11: =IFERROR(INDEX(Ajustes!$E$14:$LG$300,MATCH($A11&"_"&Y$2,Ajustes!$LI$14:$LI$300,0),MATCH(Y$1,Ajustes!$E$4:$LG$4,0)),) -> 0 | Z11: =IFERROR(INDEX(Ajustes!$E$14:$LG$300,MATCH($A11&"_"&Z$2,Ajustes!$LI$14:$LI$300,0),MATCH(Z$1,Ajustes!$E$4:$LG$4,0)),) -> 0 | AA11: =IFERROR(INDEX(Ajustes!$E$14:$LG$300,MATCH($A11&"_"&AA$2,Ajustes!$LI$14:$LI$300,0),MATCH(AA$1,Ajustes!$E$4:$LG$4,0)),) -> 0 | AB11: =IFERROR(INDEX(Ajustes!$E$14:$LG$300,MATCH($A11&"_"&AB$2,Ajustes!$LI$14:$LI$300,0),MATCH(AB$1,Ajustes!$E$4:$LG$4,0)),) -> 0 | AC11: =IFERROR(INDEX(Ajustes!$E$14:$LG$300,MATCH($A11&"_"&AC$2,Ajustes!$LI$14:$LI$300,0),MATCH(AC$1,Ajustes!$E$4:$LG$4,0)),) -> 0 | AD11: =IFERROR(INDEX(Ajustes!$E$14:$LG$300,MATCH($A11&"_"&AD$2,Ajustes!$LI$14:$LI$300,0),MATCH(AD$1,Ajustes!$E$4:$LG$4,0)),) -> 0 | AE11: =IFERROR(INDEX(Ajustes!$E$14:$LG$300,MATCH($A11&"_"&AE$2,Ajustes!$LI$14:$LI$300,0),MATCH(AE$1,Ajustes!$E$4:$LG$4,0)),) -> 0 | AF11: =IFERROR(INDEX(Ajustes!$E$14:$LG$300,MATCH($A11&"_"&AF$2,Ajustes!$LI$14:$LI$300,0),MATCH(AF$1,Ajustes!$E$4:$LG$4,0)),) -> 0 | AG11: =IFERROR(INDEX(Ajustes!$E$14:$LG$300,MATCH($A11&"_"&AG$2,Ajustes!$LI$14:$LI$300,0),MATCH(AG$1,Ajustes!$E$4:$LG$4,0)),) -> 0 | AH11: =IFERROR(INDEX(Ajustes!$E$14:$LG$300,MATCH($A11&"_"&AH$2,Ajustes!$LI$14:$LI$300,0),MATCH(AH$1,Ajustes!$E$4:$LG$4,0)),) -> 0 | AI11: 0 | AJ11: 0 | AK11: 0 | AL11: 0 | AM11: =IFERROR(INDEX(Ajustes!$E$14:$LG$300,MATCH($A11&"_"&AM$2,Ajustes!$LI$14:$LI$300,0),MATCH(AM$1,Ajustes!$E$4:$LG$4,0)),) -> 0 | AN11: =IFERROR(INDEX(Ajustes!$E$14:$LG$300,MATCH($A11&"_"&AN$2,Ajustes!$LI$14:$LI$300,0),MATCH(AN$1,Ajustes!$E$4:$LG$4,0)),) -> 0 | AO11: =IFERROR(INDEX(Ajustes!$E$14:$LG$300,MATCH($A11&"_"&AO$2,Ajustes!$LI$14:$LI$300,0),MATCH(AO$1,Ajustes!$E$4:$LG$4,0)),) -> 0 | AP11: =IFERROR(INDEX(Ajustes!$E$14:$LG$300,MATCH($A11&"_"&AP$2,Ajustes!$LI$14:$LI$300,0),MATCH(AP$1,Ajustes!$E$4:$LG$4,0)),) -> 0 | AS11: 0 | AT11: 0 | AU11: 0 | AV11: 0 | AW11: 0 | AX11: 0 | AY11: 0 | AZ11: 0 | BB11: 0 | BC11: 0 | BD11: 0 | BE11: 0 | BF11: 0 | BG11: 0 | BH11: 0 | BI11: 0 | BL11: 0 | BM11: 0 | BN11: 0 | BO11: 0 | BP11: 0 | BQ11: 0 | BR11: 0 | BS11: 0 | BT11: 0 | BW11: 0 | BX11: 0 | BY11: 0 | BZ11: 0 | CA11: 0 | CB11: 0 | CC11: 0 | CD11: 0 | CG11: =IF(A11="",0,SUMIFS(Clientes!Q:Q,Clientes!C:C,A11)) -> 0 | CH11: =IF(A11="",0,SUMIFS(Energia!K:K,Energia!C:C,A11)) -> 0 | CI11: =IF(A11="",0,SUMIFS(Potencia!K:K,Potencia!B:B,A11,Potencia!M:M,CI$5)) -> 0 | CJ11: =IF(A11="",0,SUMIFS(Potencia!K:K,Potencia!B:B,A11,Potencia!M:M,CJ$5)) -> 0 | CK11: =IF(A11="",0,SUMIFS(Potencia!K:K,Potencia!B:B,A11,Potencia!M:M,CK$5)) -> 0 | CL11: =IF(A11="",0,SUMIFS(Clientes!K:K,Clientes!C:C,A11)) -> 0 | CM11: =IF(A11="",0,SUMIFS(Energia!K:K,Energia!B:B,A11,Energia!AA:AA,CM$5)) -> 0 | CN11: =IF(A11="",0,SUMIFS(Energia!K:K,Energia!B:B,A11,Energia!AA:AA,CN$5)) -> 0 | CO11: 0
A12: =Factores!C38 -> BTA | B12: =IFERROR(INDEX(Ajustes!$E$14:$LG$300,MATCH($A12&"_"&B$2,Ajustes!$LI$14:$LI$300,0),MATCH(B$1,Ajustes!$E$4:$LG$4,0)),) -> 71.85 | C12: =IFERROR(INDEX(Ajustes!$E$14:$LG$300,MATCH($A12&"_"&C$2,Ajustes!$LI$14:$LI$300,0),MATCH(C$1,Ajustes!$E$4:$LG$4,0)),) -> 0 | D12: =IFERROR(INDEX(Ajustes!$E$14:$LG$300,MATCH($A12&"_"&D$2,Ajustes!$LI$14:$LI$300,0),MATCH(D$1,Ajustes!$E$4:$LG$4,0)),) -> 12.35048154 | E12: =IFERROR(INDEX(Ajustes!$E$14:$LG$300,MATCH($A12&"_"&E$2,Ajustes!$LI$14:$LI$300,0),MATCH(E$1,Ajustes!$E$4:$LG$4,0)),) -> 0 | F12: =IFERROR(INDEX(Ajustes!$E$14:$LG$300,MATCH($A12&"_"&F$2,Ajustes!$LI$14:$LI$300,0),MATCH(F$1,Ajustes!$E$4:$LG$4,0)),) -> 0 | G12: =IFERROR(INDEX(Ajustes!$E$14:$LG$300,MATCH($A12&"_"&G$2,Ajustes!$LI$14:$LI$300,0),MATCH(G$1,Ajustes!$E$4:$LG$4,0)),) -> 0 | H12: =IFERROR(INDEX(Ajustes!$E$14:$LG$300,MATCH($A12&"_"&H$2,Ajustes!$LI$14:$LI$300,0),MATCH(H$1,Ajustes!$E$4:$LG$4,0)),) -> 0 | I12: =IFERROR(INDEX(Ajustes!$E$14:$LG$300,MATCH($A12&"_"&I$2,Ajustes!$LI$14:$LI$300,0),MATCH(I$1,Ajustes!$E$4:$LG$4,0)),) -> 5.571783676 | J12: =IFERROR(INDEX(Ajustes!$E$14:$LG$300,MATCH($A12&"_"&J$2,Ajustes!$LI$14:$LI$300,0),MATCH(J$1,Ajustes!$E$4:$LG$4,0)),) -> 0 | K12: =IFERROR(INDEX(Ajustes!$E$14:$LG$300,MATCH($A12&"_"&K$2,Ajustes!$LI$14:$LI$300,0),MATCH(K$1,Ajustes!$E$4:$LG$4,0)),) -> 0.004772462584 | L12: =IFERROR(INDEX(Ajustes!$E$14:$LG$300,MATCH($A12&"_"&L$2,Ajustes!$LI$14:$LI$300,0),MATCH(L$1,Ajustes!$E$4:$LG$4,0)),) -> 0.002328917078 | M12: =IFERROR(INDEX(Ajustes!$E$14:$LG$300,MATCH($A12&"_"&M$2,Ajustes!$LI$14:$LI$300,0),MATCH(M$1,Ajustes!$E$4:$LG$4,0)),) -> 0.001506855975 | N12: =IFERROR(INDEX(Ajustes!$E$14:$LG$300,MATCH($A12&"_"&N$2,Ajustes!$LI$14:$LI$300,0),MATCH(N$1,Ajustes!$E$4:$LG$4,0)),) -> 0.01486988174 | O12: =IFERROR(INDEX(Ajustes!$E$14:$LG$300,MATCH($A12&"_"&O$2,Ajustes!$LI$14:$LI$300,0),MATCH(O$1,Ajustes!$E$4:$LG$4,0)),) -> 0 | P12: =IFERROR(INDEX(Ajustes!$E$14:$LG$300,MATCH($A12&"_"&P$2,Ajustes!$LI$14:$LI$300,0),MATCH(P$1,Ajustes!$E$4:$LG$4,0)),) -> 0 | Q12: =IFERROR(INDEX(Ajustes!$E$14:$LG$300,MATCH($A12&"_"&Q$2,Ajustes!$LI$14:$LI$300,0),MATCH(Q$1,Ajustes!$E$4:$LG$4,0)),) -> 0 | R12: =IFERROR(INDEX(Ajustes!$E$14:$LG$300,MATCH($A12&"_"&R$2,Ajustes!$LI$14:$LI$300,0),MATCH(R$1,Ajustes!$E$4:$LG$4,0)),) -> 0 | S12: =IFERROR(INDEX(Ajustes!$E$14:$LG$300,MATCH($A12&"_"&S$2,Ajustes!$LI$14:$LI$300,0),MATCH(S$1,Ajustes!$E$4:$LG$4,0)),) -> 0.001710236259 | T12: =IFERROR(INDEX(Ajustes!$E$14:$LG$300,MATCH($A12&"_"&T$2,Ajustes!$LI$14:$LI$300,0),MATCH(T$1,Ajustes!$E$4:$LG$4,0)),) -> 0 | U12: =IFERROR(INDEX(Ajustes!$E$14:$LG$300,MATCH($A12&"_"&U$2,Ajustes!$LI$14:$LI$300,0),MATCH(U$1,Ajustes!$E$4:$LG$4,0)),) -> 0 | V12: 0.016580118 | W12: =IFERROR(INDEX(Ajustes!$E$14:$LG$300,MATCH($A12&"_"&W$2,Ajustes!$LI$14:$LI$300,0),MATCH(W$1,Ajustes!$E$4:$LG$4,0)),) -> 0.0854153792 | X12: =IFERROR(INDEX(Ajustes!$E$14:$LG$300,MATCH($A12&"_"&X$2,Ajustes!$LI$14:$LI$300,0),MATCH(X$1,Ajustes!$E$4:$LG$4,0)),) -> 0 | Y12: =IFERROR(INDEX(Ajustes!$E$14:$LG$300,MATCH($A12&"_"&Y$2,Ajustes!$LI$14:$LI$300,0),MATCH(Y$1,Ajustes!$E$4:$LG$4,0)),) -> 0 | Z12: =IFERROR(INDEX(Ajustes!$E$14:$LG$300,MATCH($A12&"_"&Z$2,Ajustes!$LI$14:$LI$300,0),MATCH(Z$1,Ajustes!$E$4:$LG$4,0)),) -> 0 | AA12: =IFERROR(INDEX(Ajustes!$E$14:$LG$300,MATCH($A12&"_"&AA$2,Ajustes!$LI$14:$LI$300,0),MATCH(AA$1,Ajustes!$E$4:$LG$4,0)),) -> 0 | AB12: =IFERROR(INDEX(Ajustes!$E$14:$LG$300,MATCH($A12&"_"&AB$2,Ajustes!$LI$14:$LI$300,0),MATCH(AB$1,Ajustes!$E$4:$LG$4,0)),) -> 0 | AC12: =IFERROR(INDEX(Ajustes!$E$14:$LG$300,MATCH($A12&"_"&AC$2,Ajustes!$LI$14:$LI$300,0),MATCH(AC$1,Ajustes!$E$4:$LG$4,0)),) -> 0 | AD12: =IFERROR(INDEX(Ajustes!$E$14:$LG$300,MATCH($A12&"_"&AD$2,Ajustes!$LI$14:$LI$300,0),MATCH(AD$1,Ajustes!$E$4:$LG$4,0)),) -> 0 | AE12: =IFERROR(INDEX(Ajustes!$E$14:$LG$300,MATCH($A12&"_"&AE$2,Ajustes!$LI$14:$LI$300,0),MATCH(AE$1,Ajustes!$E$4:$LG$4,0)),) -> 0 | AF12: =IFERROR(INDEX(Ajustes!$E$14:$LG$300,MATCH($A12&"_"&AF$2,Ajustes!$LI$14:$LI$300,0),MATCH(AF$1,Ajustes!$E$4:$LG$4,0)),) -> 0 | AG12: =IFERROR(INDEX(Ajustes!$E$14:$LG$300,MATCH($A12&"_"&AG$2,Ajustes!$LI$14:$LI$300,0),MATCH(AG$1,Ajustes!$E$4:$LG$4,0)),) -> 0 | AH12: =IFERROR(INDEX(Ajustes!$E$14:$LG$300,MATCH($A12&"_"&AH$2,Ajustes!$LI$14:$LI$300,0),MATCH(AH$1,Ajustes!$E$4:$LG$4,0)),) -> 0 | AI12: 0.0854153792 | AJ12: 0.0854153792 | AK12: 0 | AL12: 0 | AM12: =IFERROR(INDEX(Ajustes!$E$14:$LG$300,MATCH($A12&"_"&AM$2,Ajustes!$LI$14:$LI$300,0),MATCH(AM$1,Ajustes!$E$4:$LG$4,0)),) -> 0.01041991968 | AN12: =IFERROR(INDEX(Ajustes!$E$14:$LG$300,MATCH($A12&"_"&AN$2,Ajustes!$LI$14:$LI$300,0),MATCH(AN$1,Ajustes!$E$4:$LG$4,0)),) -> 0 | AO12: =IFERROR(INDEX(Ajustes!$E$14:$LG$300,MATCH($A12&"_"&AO$2,Ajustes!$LI$14:$LI$300,0),MATCH(AO$1,Ajustes!$E$4:$LG$4,0)),) -> 0 | AP12: =IFERROR(INDEX(Ajustes!$E$14:$LG$300,MATCH($A12&"_"&AP$2,Ajustes!$LI$14:$LI$300,0),MATCH(AP$1,Ajustes!$E$4:$LG$4,0)),) -> 0.004644295255 | AS12: 71.85 | AT12: 0.211083327 | AU12: 0 | AV12: 0 | AW12: 0 | AX12: 5.571783676 | AY12: 0 | AZ12: 0 | BB12: 71.85 | BC12: 0.007101379662 | BD12: 0 | BE12: 0 | BF12: 0 | BG12: 5.571783676 | BH12: 0 | BI12: 0 | BL12: 0 | BM12: 0.001506855975 | BN12: 0 | BO12: 0 | BP12: 0 | BQ12: 0 | BR12: 0 | BS12: 0 | BT12: 0 | BW12: 0 | BX12: 0.01506421494 | BY12: 0 | BZ12: 0 | CA12: 0 | CB12: 0 | CC12: 0 | CD12: 0 | CG12: =IF(A12="",0,SUMIFS(Clientes!Q:Q,Clientes!C:C,A12)) -> 0 | CH12: =IF(A12="",0,SUMIFS(Energia!K:K,Energia!C:C,A12)) -> 0 | CI12: =IF(A12="",0,SUMIFS(Potencia!K:K,Potencia!B:B,A12,Potencia!M:M,CI$5)) -> 0 | CJ12: =IF(A12="",0,SUMIFS(Potencia!K:K,Potencia!B:B,A12,Potencia!M:M,CJ$5)) -> 0 | CK12: =IF(A12="",0,SUMIFS(Potencia!K:K,Potencia!B:B,A12,Potencia!M:M,CK$5)) -> 0 | CL12: =IF(A12="",0,SUMIFS(Clientes!K:K,Clientes!C:C,A12)) -> 0 | CM12: =IF(A12="",0,SUMIFS(Energia!K:K,Energia!B:B,A12,Energia!AA:AA,CM$5)) -> 0 | CN12: =IF(A12="",0,SUMIFS(Energia!K:K,Energia!B:B,A12,Energia!AA:AA,CN$5)) -> 0 | CO12: 0
A13: =Factores!C39 -> BTD PEAJE | B13: =IFERROR(INDEX(Ajustes!$E$14:$LG$300,MATCH($A13&"_"&B$2,Ajustes!$LI$14:$LI$300,0),MATCH(B$1,Ajustes!$E$4:$LG$4,0)),) -> 71.85 | C13: =IFERROR(INDEX(Ajustes!$E$14:$LG$300,MATCH($A13&"_"&C$2,Ajustes!$LI$14:$LI$300,0),MATCH(C$1,Ajustes!$E$4:$LG$4,0)),) -> 0 | D13: =IFERROR(INDEX(Ajustes!$E$14:$LG$300,MATCH($A13&"_"&D$2,Ajustes!$LI$14:$LI$300,0),MATCH(D$1,Ajustes!$E$4:$LG$4,0)),) -> 12.35048154 | E13: =IFERROR(INDEX(Ajustes!$E$14:$LG$300,MATCH($A13&"_"&E$2,Ajustes!$LI$14:$LI$300,0),MATCH(E$1,Ajustes!$E$4:$LG$4,0)),) -> 0 | F13: =IFERROR(INDEX(Ajustes!$E$14:$LG$300,MATCH($A13&"_"&F$2,Ajustes!$LI$14:$LI$300,0),MATCH(F$1,Ajustes!$E$4:$LG$4,0)),) -> 0 | G13: =IFERROR(INDEX(Ajustes!$E$14:$LG$300,MATCH($A13&"_"&G$2,Ajustes!$LI$14:$LI$300,0),MATCH(G$1,Ajustes!$E$4:$LG$4,0)),) -> 0 | H13: =IFERROR(INDEX(Ajustes!$E$14:$LG$300,MATCH($A13&"_"&H$2,Ajustes!$LI$14:$LI$300,0),MATCH(H$1,Ajustes!$E$4:$LG$4,0)),) -> 0 | I13: =IFERROR(INDEX(Ajustes!$E$14:$LG$300,MATCH($A13&"_"&I$2,Ajustes!$LI$14:$LI$300,0),MATCH(I$1,Ajustes!$E$4:$LG$4,0)),) -> 2.785891838 | J13: =IFERROR(INDEX(Ajustes!$E$14:$LG$300,MATCH($A13&"_"&J$2,Ajustes!$LI$14:$LI$300,0),MATCH(J$1,Ajustes!$E$4:$LG$4,0)),) -> 0 | K13: =IFERROR(INDEX(Ajustes!$E$14:$LG$300,MATCH($A13&"_"&K$2,Ajustes!$LI$14:$LI$300,0),MATCH(K$1,Ajustes!$E$4:$LG$4,0)),) -> 0.004772462584 | L13: =IFERROR(INDEX(Ajustes!$E$14:$LG$300,MATCH($A13&"_"&L$2,Ajustes!$LI$14:$LI$300,0),MATCH(L$1,Ajustes!$E$4:$LG$4,0)),) -> 0.002328917078 | M13: =IFERROR(INDEX(Ajustes!$E$14:$LG$300,MATCH($A13&"_"&M$2,Ajustes!$LI$14:$LI$300,0),MATCH(M$1,Ajustes!$E$4:$LG$4,0)),) -> 0.001506855975 | N13: =IFERROR(INDEX(Ajustes!$E$14:$LG$300,MATCH($A13&"_"&N$2,Ajustes!$LI$14:$LI$300,0),MATCH(N$1,Ajustes!$E$4:$LG$4,0)),) -> 0.01486988174 | O13: =IFERROR(INDEX(Ajustes!$E$14:$LG$300,MATCH($A13&"_"&O$2,Ajustes!$LI$14:$LI$300,0),MATCH(O$1,Ajustes!$E$4:$LG$4,0)),) -> 0 | P13: =IFERROR(INDEX(Ajustes!$E$14:$LG$300,MATCH($A13&"_"&P$2,Ajustes!$LI$14:$LI$300,0),MATCH(P$1,Ajustes!$E$4:$LG$4,0)),) -> 0 | Q13: =IFERROR(INDEX(Ajustes!$E$14:$LG$300,MATCH($A13&"_"&Q$2,Ajustes!$LI$14:$LI$300,0),MATCH(Q$1,Ajustes!$E$4:$LG$4,0)),) -> 0 | R13: =IFERROR(INDEX(Ajustes!$E$14:$LG$300,MATCH($A13&"_"&R$2,Ajustes!$LI$14:$LI$300,0),MATCH(R$1,Ajustes!$E$4:$LG$4,0)),) -> 0 | S13: =IFERROR(INDEX(Ajustes!$E$14:$LG$300,MATCH($A13&"_"&S$2,Ajustes!$LI$14:$LI$300,0),MATCH(S$1,Ajustes!$E$4:$LG$4,0)),) -> 0 | T13: =IFERROR(INDEX(Ajustes!$E$14:$LG$300,MATCH($A13&"_"&T$2,Ajustes!$LI$14:$LI$300,0),MATCH(T$1,Ajustes!$E$4:$LG$4,0)),) -> 0.4874887977 | U13: =IFERROR(INDEX(Ajustes!$E$14:$LG$300,MATCH($A13&"_"&U$2,Ajustes!$LI$14:$LI$300,0),MATCH(U$1,Ajustes!$E$4:$LG$4,0)),) -> 0 | V13: 0.01486988174 | W13: =IFERROR(INDEX(Ajustes!$E$14:$LG$300,MATCH($A13&"_"&W$2,Ajustes!$LI$14:$LI$300,0),MATCH(W$1,Ajustes!$E$4:$LG$4,0)),) -> 0 | X13: =IFERROR(INDEX(Ajustes!$E$14:$LG$300,MATCH($A13&"_"&X$2,Ajustes!$LI$14:$LI$300,0),MATCH(X$1,Ajustes!$E$4:$LG$4,0)),) -> 0 | Y13: =IFERROR(INDEX(Ajustes!$E$14:$LG$300,MATCH($A13&"_"&Y$2,Ajustes!$LI$14:$LI$300,0),MATCH(Y$1,Ajustes!$E$4:$LG$4,0)),) -> 0 | Z13: =IFERROR(INDEX(Ajustes!$E$14:$LG$300,MATCH($A13&"_"&Z$2,Ajustes!$LI$14:$LI$300,0),MATCH(Z$1,Ajustes!$E$4:$LG$4,0)),) -> 0 | AA13: =IFERROR(INDEX(Ajustes!$E$14:$LG$300,MATCH($A13&"_"&AA$2,Ajustes!$LI$14:$LI$300,0),MATCH(AA$1,Ajustes!$E$4:$LG$4,0)),) -> 0 | AB13: =IFERROR(INDEX(Ajustes!$E$14:$LG$300,MATCH($A13&"_"&AB$2,Ajustes!$LI$14:$LI$300,0),MATCH(AB$1,Ajustes!$E$4:$LG$4,0)),) -> 0 | AC13: =IFERROR(INDEX(Ajustes!$E$14:$LG$300,MATCH($A13&"_"&AC$2,Ajustes!$LI$14:$LI$300,0),MATCH(AC$1,Ajustes!$E$4:$LG$4,0)),) -> 0 | AD13: =IFERROR(INDEX(Ajustes!$E$14:$LG$300,MATCH($A13&"_"&AD$2,Ajustes!$LI$14:$LI$300,0),MATCH(AD$1,Ajustes!$E$4:$LG$4,0)),) -> 16.00385787 | AE13: =IFERROR(INDEX(Ajustes!$E$14:$LG$300,MATCH($A13&"_"&AE$2,Ajustes!$LI$14:$LI$300,0),MATCH(AE$1,Ajustes!$E$4:$LG$4,0)),) -> 0 | AF13: =IFERROR(INDEX(Ajustes!$E$14:$LG$300,MATCH($A13&"_"&AF$2,Ajustes!$LI$14:$LI$300,0),MATCH(AF$1,Ajustes!$E$4:$LG$4,0)),) -> 0 | AG13: =IFERROR(INDEX(Ajustes!$E$14:$LG$300,MATCH($A13&"_"&AG$2,Ajustes!$LI$14:$LI$300,0),MATCH(AG$1,Ajustes!$E$4:$LG$4,0)),) -> 16.00385787 | AH13: =IFERROR(INDEX(Ajustes!$E$14:$LG$300,MATCH($A13&"_"&AH$2,Ajustes!$LI$14:$LI$300,0),MATCH(AH$1,Ajustes!$E$4:$LG$4,0)),) -> 0 | AI13: 0 | AJ13: 0 | AK13: 0 | AL13: 0 | AM13: =IFERROR(INDEX(Ajustes!$E$14:$LG$300,MATCH($A13&"_"&AM$2,Ajustes!$LI$14:$LI$300,0),MATCH(AM$1,Ajustes!$E$4:$LG$4,0)),) -> 0.00520995984 | AN13: =IFERROR(INDEX(Ajustes!$E$14:$LG$300,MATCH($A13&"_"&AN$2,Ajustes!$LI$14:$LI$300,0),MATCH(AN$1,Ajustes!$E$4:$LG$4,0)),) -> 1.428660561 | AO13: =IFERROR(INDEX(Ajustes!$E$14:$LG$300,MATCH($A13&"_"&AO$2,Ajustes!$LI$14:$LI$300,0),MATCH(AO$1,Ajustes!$E$4:$LG$4,0)),) -> 0 | AP13: =IFERROR(INDEX(Ajustes!$E$14:$LG$300,MATCH($A13&"_"&AP$2,Ajustes!$LI$14:$LI$300,0),MATCH(AP$1,Ajustes!$E$4:$LG$4,0)),) -> 0 | AS13: 71.85 | AT13: 0.02868807722 | AU13: 16.00385787 | AV13: 0 | AW13: 0 | AX13: 2.785891838 | AY13: 0 | AZ13: 0 | BB13: 71.85 | BC13: 0.007101379662 | BD13: 0 | BE13: 0 | BF13: 0 | BG13: 2.785891838 | BH13: 0 | BI13: 0 | BL13: 0 | BM13: 0.001506855975 | BN13: 16.00385787 | BO13: 0 | BP13: 0 | BQ13: 0 | BR13: 0 | BS13: 0 | BT13: 0 | BW13: 0 | BX13: 0.00520995984 | BY13: 0 | BZ13: 0 | CA13: 0 | CB13: 0 | CC13: 0 | CD13: 0 | CG13: =IF(A13="",0,SUMIFS(Clientes!Q:Q,Clientes!C:C,A13)) -> 10.63712171 | CH13: =IF(A13="",0,SUMIFS(Energia!K:K,Energia!C:C,A13)) -> 384099.0236 | CI13: =IF(A13="",0,SUMIFS(Potencia!K:K,Potencia!B:B,A13,Potencia!M:M,CI$5)) -> 78.56572797 | CJ13: =IF(A13="",0,SUMIFS(Potencia!K:K,Potencia!B:B,A13,Potencia!M:M,CJ$5)) -> 0 | CK13: =IF(A13="",0,SUMIFS(Potencia!K:K,Potencia!B:B,A13,Potencia!M:M,CK$5)) -> 0 | CL13: =IF(A13="",0,SUMIFS(Clientes!K:K,Clientes!C:C,A13)) -> 386.4558492 | CM13: =IF(A13="",0,SUMIFS(Energia!K:K,Energia!B:B,A13,Energia!AA:AA,CM$5)) -> 0 | CN13: =IF(A13="",0,SUMIFS(Energia!K:K,Energia!B:B,A13,Energia!AA:AA,CN$5)) -> 0 | CO13: 0
A14: =Factores!C40 -> BTH PEAJE | B14: =IFERROR(INDEX(Ajustes!$E$14:$LG$300,MATCH($A14&"_"&B$2,Ajustes!$LI$14:$LI$300,0),MATCH(B$1,Ajustes!$E$4:$LG$4,0)),) -> 71.85 | C14: =IFERROR(INDEX(Ajustes!$E$14:$LG$300,MATCH($A14&"_"&C$2,Ajustes!$LI$14:$LI$300,0),MATCH(C$1,Ajustes!$E$4:$LG$4,0)),) -> 0 | D14: =IFERROR(INDEX(Ajustes!$E$14:$LG$300,MATCH($A14&"_"&D$2,Ajustes!$LI$14:$LI$300,0),MATCH(D$1,Ajustes!$E$4:$LG$4,0)),) -> 0 | E14: =IFERROR(INDEX(Ajustes!$E$14:$LG$300,MATCH($A14&"_"&E$2,Ajustes!$LI$14:$LI$300,0),MATCH(E$1,Ajustes!$E$4:$LG$4,0)),) -> 7.677070549 | F14: =IFERROR(INDEX(Ajustes!$E$14:$LG$300,MATCH($A14&"_"&F$2,Ajustes!$LI$14:$LI$300,0),MATCH(F$1,Ajustes!$E$4:$LG$4,0)),) -> 0 | G14: =IFERROR(INDEX(Ajustes!$E$14:$LG$300,MATCH($A14&"_"&G$2,Ajustes!$LI$14:$LI$300,0),MATCH(G$1,Ajustes!$E$4:$LG$4,0)),) -> 2.954109713 | H14: =IFERROR(INDEX(Ajustes!$E$14:$LG$300,MATCH($A14&"_"&H$2,Ajustes!$LI$14:$LI$300,0),MATCH(H$1,Ajustes!$E$4:$LG$4,0)),) -> 2.36328777 | I14: =IFERROR(INDEX(Ajustes!$E$14:$LG$300,MATCH($A14&"_"&I$2,Ajustes!$LI$14:$LI$300,0),MATCH(I$1,Ajustes!$E$4:$LG$4,0)),) -> 2.785891838 | J14: =IFERROR(INDEX(Ajustes!$E$14:$LG$300,MATCH($A14&"_"&J$2,Ajustes!$LI$14:$LI$300,0),MATCH(J$1,Ajustes!$E$4:$LG$4,0)),) -> 0 | K14: =IFERROR(INDEX(Ajustes!$E$14:$LG$300,MATCH($A14&"_"&K$2,Ajustes!$LI$14:$LI$300,0),MATCH(K$1,Ajustes!$E$4:$LG$4,0)),) -> 0.004772462584 | L14: =IFERROR(INDEX(Ajustes!$E$14:$LG$300,MATCH($A14&"_"&L$2,Ajustes!$LI$14:$LI$300,0),MATCH(L$1,Ajustes!$E$4:$LG$4,0)),) -> 0.002328917078 | M14: =IFERROR(INDEX(Ajustes!$E$14:$LG$300,MATCH($A14&"_"&M$2,Ajustes!$LI$14:$LI$300,0),MATCH(M$1,Ajustes!$E$4:$LG$4,0)),) -> 0.001506855975 | N14: =IFERROR(INDEX(Ajustes!$E$14:$LG$300,MATCH($A14&"_"&N$2,Ajustes!$LI$14:$LI$300,0),MATCH(N$1,Ajustes!$E$4:$LG$4,0)),) -> 0 | O14: =IFERROR(INDEX(Ajustes!$E$14:$LG$300,MATCH($A14&"_"&O$2,Ajustes!$LI$14:$LI$300,0),MATCH(O$1,Ajustes!$E$4:$LG$4,0)),) -> 0.01486988174 | P14: =IFERROR(INDEX(Ajustes!$E$14:$LG$300,MATCH($A14&"_"&P$2,Ajustes!$LI$14:$LI$300,0),MATCH(P$1,Ajustes!$E$4:$LG$4,0)),) -> 0 | Q14: =IFERROR(INDEX(Ajustes!$E$14:$LG$300,MATCH($A14&"_"&Q$2,Ajustes!$LI$14:$LI$300,0),MATCH(Q$1,Ajustes!$E$4:$LG$4,0)),) -> 0.01486988174 | R14: =IFERROR(INDEX(Ajustes!$E$14:$LG$300,MATCH($A14&"_"&R$2,Ajustes!$LI$14:$LI$300,0),MATCH(R$1,Ajustes!$E$4:$LG$4,0)),) -> 0.01486988174 | S14: =IFERROR(INDEX(Ajustes!$E$14:$LG$300,MATCH($A14&"_"&S$2,Ajustes!$LI$14:$LI$300,0),MATCH(S$1,Ajustes!$E$4:$LG$4,0)),) -> 0 | T14: =IFERROR(INDEX(Ajustes!$E$14:$LG$300,MATCH($A14&"_"&T$2,Ajustes!$LI$14:$LI$300,0),MATCH(T$1,Ajustes!$E$4:$LG$4,0)),) -> 0 | U14: =IFERROR(INDEX(Ajustes!$E$14:$LG$300,MATCH($A14&"_"&U$2,Ajustes!$LI$14:$LI$300,0),MATCH(U$1,Ajustes!$E$4:$LG$4,0)),) -> 0.5090288623 | V14: 0 | W14: =IFERROR(INDEX(Ajustes!$E$14:$LG$300,MATCH($A14&"_"&W$2,Ajustes!$LI$14:$LI$300,0),MATCH(W$1,Ajustes!$E$4:$LG$4,0)),) -> 0 | X14: =IFERROR(INDEX(Ajustes!$E$14:$LG$300,MATCH($A14&"_"&X$2,Ajustes!$LI$14:$LI$300,0),MATCH(X$1,Ajustes!$E$4:$LG$4,0)),) -> 0 | Y14: =IFERROR(INDEX(Ajustes!$E$14:$LG$300,MATCH($A14&"_"&Y$2,Ajustes!$LI$14:$LI$300,0),MATCH(Y$1,Ajustes!$E$4:$LG$4,0)),) -> 0 | Z14: =IFERROR(INDEX(Ajustes!$E$14:$LG$300,MATCH($A14&"_"&Z$2,Ajustes!$LI$14:$LI$300,0),MATCH(Z$1,Ajustes!$E$4:$LG$4,0)),) -> 0 | AA14: =IFERROR(INDEX(Ajustes!$E$14:$LG$300,MATCH($A14&"_"&AA$2,Ajustes!$LI$14:$LI$300,0),MATCH(AA$1,Ajustes!$E$4:$LG$4,0)),) -> 0 | AB14: =IFERROR(INDEX(Ajustes!$E$14:$LG$300,MATCH($A14&"_"&AB$2,Ajustes!$LI$14:$LI$300,0),MATCH(AB$1,Ajustes!$E$4:$LG$4,0)),) -> 0 | AC14: =IFERROR(INDEX(Ajustes!$E$14:$LG$300,MATCH($A14&"_"&AC$2,Ajustes!$LI$14:$LI$300,0),MATCH(AC$1,Ajustes!$E$4:$LG$4,0)),) -> 0 | AD14: =IFERROR(INDEX(Ajustes!$E$14:$LG$300,MATCH($A14&"_"&AD$2,Ajustes!$LI$14:$LI$300,0),MATCH(AD$1,Ajustes!$E$4:$LG$4,0)),) -> 0 | AE14: =IFERROR(INDEX(Ajustes!$E$14:$LG$300,MATCH($A14&"_"&AE$2,Ajustes!$LI$14:$LI$300,0),MATCH(AE$1,Ajustes!$E$4:$LG$4,0)),) -> 16.00385787 | AF14: =IFERROR(INDEX(Ajustes!$E$14:$LG$300,MATCH($A14&"_"&AF$2,Ajustes!$LI$14:$LI$300,0),MATCH(AF$1,Ajustes!$E$4:$LG$4,0)),) -> 0 | AG14: =IFERROR(INDEX(Ajustes!$E$14:$LG$300,MATCH($A14&"_"&AG$2,Ajustes!$LI$14:$LI$300,0),MATCH(AG$1,Ajustes!$E$4:$LG$4,0)),) -> 0 | AH14: =IFERROR(INDEX(Ajustes!$E$14:$LG$300,MATCH($A14&"_"&AH$2,Ajustes!$LI$14:$LI$300,0),MATCH(AH$1,Ajustes!$E$4:$LG$4,0)),) -> 0 | AI14: 0 | AJ14: 0 | AK14: 0 | AL14: 0 | AM14: =IFERROR(INDEX(Ajustes!$E$14:$LG$300,MATCH($A14&"_"&AM$2,Ajustes!$LI$14:$LI$300,0),MATCH(AM$1,Ajustes!$E$4:$LG$4,0)),) -> 0.002261842337 | AN14: =IFERROR(INDEX(Ajustes!$E$14:$LG$300,MATCH($A14&"_"&AN$2,Ajustes!$LI$14:$LI$300,0),MATCH(AN$1,Ajustes!$E$4:$LG$4,0)),) -> 0 | AO14: =IFERROR(INDEX(Ajustes!$E$14:$LG$300,MATCH($A14&"_"&AO$2,Ajustes!$LI$14:$LI$300,0),MATCH(AO$1,Ajustes!$E$4:$LG$4,0)),) -> 1.491787018 | AP14: =IFERROR(INDEX(Ajustes!$E$14:$LG$300,MATCH($A14&"_"&AP$2,Ajustes!$LI$14:$LI$300,0),MATCH(AP$1,Ajustes!$E$4:$LG$4,0)),) -> 0 | AS14: 71.85 | AT14: 0.01087007797 | AU14: 0 | AV14: 16.00385787 | AW14: 0 | AX14: 2.785891838 | AY14: 0 | AZ14: 0 | BB14: 71.85 | BC14: 0.007101379662 | BD14: 0 | BE14: 0 | BF14: 0 | BG14: 2.785891838 | BH14: 0 | BI14: 0 | BL14: 0 | BM14: 0.001506855975 | BN14: 0 | BO14: 16.00385787 | BP14: 0 | BQ14: 0 | BR14: 0 | BS14: 0 | BT14: 0 | BW14: 0 | BX14: 0.002261842337 | BY14: 0 | BZ14: 0 | CA14: 0 | CB14: 0 | CC14: 0 | CD14: 0 | CG14: =IF(A14="",0,SUMIFS(Clientes!Q:Q,Clientes!C:C,A14)) -> 0 | CH14: =IF(A14="",0,SUMIFS(Energia!K:K,Energia!C:C,A14)) -> 11475.7204 | CI14: =IF(A14="",0,SUMIFS(Potencia!K:K,Potencia!B:B,A14,Potencia!M:M,CI$5)) -> 0 | CJ14: =IF(A14="",0,SUMIFS(Potencia!K:K,Potencia!B:B,A14,Potencia!M:M,CJ$5)) -> 2.092657868 | CK14: =IF(A14="",0,SUMIFS(Potencia!K:K,Potencia!B:B,A14,Potencia!M:M,CK$5)) -> 2.06041274 | CL14: =IF(A14="",0,SUMIFS(Clientes!K:K,Clientes!C:C,A14)) -> 9.861283665 | CM14: =IF(A14="",0,SUMIFS(Energia!K:K,Energia!B:B,A14,Energia!AA:AA,CM$5)) -> 3846.769132 | CN14: =IF(A14="",0,SUMIFS(Energia!K:K,Energia!B:B,A14,Energia!AA:AA,CN$5)) -> 7628.951265 | CO14: 0
A15: =Factores!C41 -> BTS_Prepago | B15: =IFERROR(INDEX(Ajustes!$E$14:$LG$300,MATCH($A15&"_"&B$2,Ajustes!$LI$14:$LI$300,0),MATCH(B$1,Ajustes!$E$4:$LG$4,0)),) -> 16.69 | C15: =IFERROR(INDEX(Ajustes!$E$14:$LG$300,MATCH($A15&"_"&C$2,Ajustes!$LI$14:$LI$300,0),MATCH(C$1,Ajustes!$E$4:$LG$4,0)),) -> 0.03517756835 | D15: =IFERROR(INDEX(Ajustes!$E$14:$LG$300,MATCH($A15&"_"&D$2,Ajustes!$LI$14:$LI$300,0),MATCH(D$1,Ajustes!$E$4:$LG$4,0)),) -> 0 | E15: =IFERROR(INDEX(Ajustes!$E$14:$LG$300,MATCH($A15&"_"&E$2,Ajustes!$LI$14:$LI$300,0),MATCH(E$1,Ajustes!$E$4:$LG$4,0)),) -> 0 | F15: =IFERROR(INDEX(Ajustes!$E$14:$LG$300,MATCH($A15&"_"&F$2,Ajustes!$LI$14:$LI$300,0),MATCH(F$1,Ajustes!$E$4:$LG$4,0)),) -> 0 | G15: =IFERROR(INDEX(Ajustes!$E$14:$LG$300,MATCH($A15&"_"&G$2,Ajustes!$LI$14:$LI$300,0),MATCH(G$1,Ajustes!$E$4:$LG$4,0)),) -> 0 | H15: =IFERROR(INDEX(Ajustes!$E$14:$LG$300,MATCH($A15&"_"&H$2,Ajustes!$LI$14:$LI$300,0),MATCH(H$1,Ajustes!$E$4:$LG$4,0)),) -> 0 | I15: =IFERROR(INDEX(Ajustes!$E$14:$LG$300,MATCH($A15&"_"&I$2,Ajustes!$LI$14:$LI$300,0),MATCH(I$1,Ajustes!$E$4:$LG$4,0)),) -> 0 | J15: =IFERROR(INDEX(Ajustes!$E$14:$LG$300,MATCH($A15&"_"&J$2,Ajustes!$LI$14:$LI$300,0),MATCH(J$1,Ajustes!$E$4:$LG$4,0)),) -> 0.01588425949 | K15: =IFERROR(INDEX(Ajustes!$E$14:$LG$300,MATCH($A15&"_"&K$2,Ajustes!$LI$14:$LI$300,0),MATCH(K$1,Ajustes!$E$4:$LG$4,0)),) -> 0.0174875797 | L15: =IFERROR(INDEX(Ajustes!$E$14:$LG$300,MATCH($A15&"_"&L$2,Ajustes!$LI$14:$LI$300,0),MATCH(L$1,Ajustes!$E$4:$LG$4,0)),) -> 0.002467938471 | M15: =IFERROR(INDEX(Ajustes!$E$14:$LG$300,MATCH($A15&"_"&M$2,Ajustes!$LI$14:$LI$300,0),MATCH(M$1,Ajustes!$E$4:$LG$4,0)),) -> 0.001596805598 | N15: =IFERROR(INDEX(Ajustes!$E$14:$LG$300,MATCH($A15&"_"&N$2,Ajustes!$LI$14:$LI$300,0),MATCH(N$1,Ajustes!$E$4:$LG$4,0)),) -> 0.01575751819 | O15: =IFERROR(INDEX(Ajustes!$E$14:$LG$300,MATCH($A15&"_"&O$2,Ajustes!$LI$14:$LI$300,0),MATCH(O$1,Ajustes!$E$4:$LG$4,0)),) -> 0 | P15: =IFERROR(INDEX(Ajustes!$E$14:$LG$300,MATCH($A15&"_"&P$2,Ajustes!$LI$14:$LI$300,0),MATCH(P$1,Ajustes!$E$4:$LG$4,0)),) -> 0 | Q15: =IFERROR(INDEX(Ajustes!$E$14:$LG$300,MATCH($A15&"_"&Q$2,Ajustes!$LI$14:$LI$300,0),MATCH(Q$1,Ajustes!$E$4:$LG$4,0)),) -> 0 | R15: =IFERROR(INDEX(Ajustes!$E$14:$LG$300,MATCH($A15&"_"&R$2,Ajustes!$LI$14:$LI$300,0),MATCH(R$1,Ajustes!$E$4:$LG$4,0)),) -> 0 | S15: =IFERROR(INDEX(Ajustes!$E$14:$LG$300,MATCH($A15&"_"&S$2,Ajustes!$LI$14:$LI$300,0),MATCH(S$1,Ajustes!$E$4:$LG$4,0)),) -> 0.001134235191 | T15: =IFERROR(INDEX(Ajustes!$E$14:$LG$300,MATCH($A15&"_"&T$2,Ajustes!$LI$14:$LI$300,0),MATCH(T$1,Ajustes!$E$4:$LG$4,0)),) -> 0 | U15: =IFERROR(INDEX(Ajustes!$E$14:$LG$300,MATCH($A15&"_"&U$2,Ajustes!$LI$14:$LI$300,0),MATCH(U$1,Ajustes!$E$4:$LG$4,0)),) -> 0 | V15: 0.01689175338 | W15: =IFERROR(INDEX(Ajustes!$E$14:$LG$300,MATCH($A15&"_"&W$2,Ajustes!$LI$14:$LI$300,0),MATCH(W$1,Ajustes!$E$4:$LG$4,0)),) -> 0.06474646655 | X15: =IFERROR(INDEX(Ajustes!$E$14:$LG$300,MATCH($A15&"_"&X$2,Ajustes!$LI$14:$LI$300,0),MATCH(X$1,Ajustes!$E$4:$LG$4,0)),) -> 0 | Y15: =IFERROR(INDEX(Ajustes!$E$14:$LG$300,MATCH($A15&"_"&Y$2,Ajustes!$LI$14:$LI$300,0),MATCH(Y$1,Ajustes!$E$4:$LG$4,0)),) -> 0 | Z15: =IFERROR(INDEX(Ajustes!$E$14:$LG$300,MATCH($A15&"_"&Z$2,Ajustes!$LI$14:$LI$300,0),MATCH(Z$1,Ajustes!$E$4:$LG$4,0)),) -> 0 | AA15: =IFERROR(INDEX(Ajustes!$E$14:$LG$300,MATCH($A15&"_"&AA$2,Ajustes!$LI$14:$LI$300,0),MATCH(AA$1,Ajustes!$E$4:$LG$4,0)),) -> 0 | AB15: =IFERROR(INDEX(Ajustes!$E$14:$LG$300,MATCH($A15&"_"&AB$2,Ajustes!$LI$14:$LI$300,0),MATCH(AB$1,Ajustes!$E$4:$LG$4,0)),) -> 0 | AC15: =IFERROR(INDEX(Ajustes!$E$14:$LG$300,MATCH($A15&"_"&AC$2,Ajustes!$LI$14:$LI$300,0),MATCH(AC$1,Ajustes!$E$4:$LG$4,0)),) -> 0.01460056544 | AD15: =IFERROR(INDEX(Ajustes!$E$14:$LG$300,MATCH($A15&"_"&AD$2,Ajustes!$LI$14:$LI$300,0),MATCH(AD$1,Ajustes!$E$4:$LG$4,0)),) -> 0 | AE15: =IFERROR(INDEX(Ajustes!$E$14:$LG$300,MATCH($A15&"_"&AE$2,Ajustes!$LI$14:$LI$300,0),MATCH(AE$1,Ajustes!$E$4:$LG$4,0)),) -> 0 | AF15: =IFERROR(INDEX(Ajustes!$E$14:$LG$300,MATCH($A15&"_"&AF$2,Ajustes!$LI$14:$LI$300,0),MATCH(AF$1,Ajustes!$E$4:$LG$4,0)),) -> 0 | AG15: =IFERROR(INDEX(Ajustes!$E$14:$LG$300,MATCH($A15&"_"&AG$2,Ajustes!$LI$14:$LI$300,0),MATCH(AG$1,Ajustes!$E$4:$LG$4,0)),) -> 0 | AH15: =IFERROR(INDEX(Ajustes!$E$14:$LG$300,MATCH($A15&"_"&AH$2,Ajustes!$LI$14:$LI$300,0),MATCH(AH$1,Ajustes!$E$4:$LG$4,0)),) -> 0 | AI15: 0.06474646655 | AJ15: 0.07934703199 | AK15: 0 | AL15: 0 | AM15: =IFERROR(INDEX(Ajustes!$E$14:$LG$300,MATCH($A15&"_"&AM$2,Ajustes!$LI$14:$LI$300,0),MATCH(AM$1,Ajustes!$E$4:$LG$4,0)),) -> 0.006648111632 | AN15: =IFERROR(INDEX(Ajustes!$E$14:$LG$300,MATCH($A15&"_"&AN$2,Ajustes!$LI$14:$LI$300,0),MATCH(AN$1,Ajustes!$E$4:$LG$4,0)),) -> 0 | AO15: =IFERROR(INDEX(Ajustes!$E$14:$LG$300,MATCH($A15&"_"&AO$2,Ajustes!$LI$14:$LI$300,0),MATCH(AO$1,Ajustes!$E$4:$LG$4,0)),) -> 0 | AP15: =IFERROR(INDEX(Ajustes!$E$14:$LG$300,MATCH($A15&"_"&AP$2,Ajustes!$LI$14:$LI$300,0),MATCH(AP$1,Ajustes!$E$4:$LG$4,0)),) -> 0.004921363472 | AS15: 16.69 | AT15: 0.2597694441 | AU15: 0 | AV15: 0 | AW15: 0 | AX15: 0 | AY15: 0 | AZ15: 0 | BB15: 16.69 | BC15: 0.07101734601 | BD15: 0 | BE15: 0 | BF15: 0 | BG15: 0 | BH15: 0 | BI15: 0 | BL15: 0 | BM15: 0.01619737104 | BN15: 0 | BO15: 0 | BP15: 0 | BQ15: 0 | BR15: 0 | BS15: 0 | BT15: 0 | BW15: 0 | BX15: 0.0115694751 | BY15: 0 | BZ15: 0 | CA15: 0 | CB15: 0 | CC15: 0 | CD15: 0 | CG15: =IF(A15="",0,SUMIFS(Clientes!Q:Q,Clientes!C:C,A15)) -> 8904.082465 | CH15: =IF(A15="",0,SUMIFS(Energia!K:K,Energia!C:C,A15)) -> 645140.3779 | CI15: =IF(A15="",0,SUMIFS(Potencia!K:K,Potencia!B:B,A15,Potencia!M:M,CI$5)) -> 0 | CJ15: =IF(A15="",0,SUMIFS(Potencia!K:K,Potencia!B:B,A15,Potencia!M:M,CJ$5)) -> 0 | CK15: =IF(A15="",0,SUMIFS(Potencia!K:K,Potencia!B:B,A15,Potencia!M:M,CK$5)) -> 0 | CL15: =IF(A15="",0,SUMIFS(Clientes!K:K,Clientes!C:C,A15)) -> 309059.1351 | CM15: =IF(A15="",0,SUMIFS(Energia!K:K,Energia!B:B,A15,Energia!AA:AA,CM$5)) -> 0 | CN15: =IF(A15="",0,SUMIFS(Energia!K:K,Energia!B:B,A15,Energia!AA:AA,CN$5)) -> 0 | CO15: 0
A16: =Factores!C42 -> 0 | B16: =IFERROR(INDEX(Ajustes!$E$14:$LG$300,MATCH($A16&"_"&B$2,Ajustes!$LI$14:$LI$300,0),MATCH(B$1,Ajustes!$E$4:$LG$4,0)),) -> 0 | C16: =IFERROR(INDEX(Ajustes!$E$14:$LG$300,MATCH($A16&"_"&C$2,Ajustes!$LI$14:$LI$300,0),MATCH(C$1,Ajustes!$E$4:$LG$4,0)),) -> 0 | D16: =IFERROR(INDEX(Ajustes!$E$14:$LG$300,MATCH($A16&"_"&D$2,Ajustes!$LI$14:$LI$300,0),MATCH(D$1,Ajustes!$E$4:$LG$4,0)),) -> 0 | E16: =IFERROR(INDEX(Ajustes!$E$14:$LG$300,MATCH($A16&"_"&E$2,Ajustes!$LI$14:$LI$300,0),MATCH(E$1,Ajustes!$E$4:$LG$4,0)),) -> 0 | F16: =IFERROR(INDEX(Ajustes!$E$14:$LG$300,MATCH($A16&"_"&F$2,Ajustes!$LI$14:$LI$300,0),MATCH(F$1,Ajustes!$E$4:$LG$4,0)),) -> 0 | G16: =IFERROR(INDEX(Ajustes!$E$14:$LG$300,MATCH($A16&"_"&G$2,Ajustes!$LI$14:$LI$300,0),MATCH(G$1,Ajustes!$E$4:$LG$4,0)),) -> 0 | H16: =IFERROR(INDEX(Ajustes!$E$14:$LG$300,MATCH($A16&"_"&H$2,Ajustes!$LI$14:$LI$300,0),MATCH(H$1,Ajustes!$E$4:$LG$4,0)),) -> 0 | I16: =IFERROR(INDEX(Ajustes!$E$14:$LG$300,MATCH($A16&"_"&I$2,Ajustes!$LI$14:$LI$300,0),MATCH(I$1,Ajustes!$E$4:$LG$4,0)),) -> 0 | J16: =IFERROR(INDEX(Ajustes!$E$14:$LG$300,MATCH($A16&"_"&J$2,Ajustes!$LI$14:$LI$300,0),MATCH(J$1,Ajustes!$E$4:$LG$4,0)),) -> 0 | K16: =IFERROR(INDEX(Ajustes!$E$14:$LG$300,MATCH($A16&"_"&K$2,Ajustes!$LI$14:$LI$300,0),MATCH(K$1,Ajustes!$E$4:$LG$4,0)),) -> 0 | L16: =IFERROR(INDEX(Ajustes!$E$14:$LG$300,MATCH($A16&"_"&L$2,Ajustes!$LI$14:$LI$300,0),MATCH(L$1,Ajustes!$E$4:$LG$4,0)),) -> 0 | M16: =IFERROR(INDEX(Ajustes!$E$14:$LG$300,MATCH($A16&"_"&M$2,Ajustes!$LI$14:$LI$300,0),MATCH(M$1,Ajustes!$E$4:$LG$4,0)),) -> 0 | N16: =IFERROR(INDEX(Ajustes!$E$14:$LG$300,MATCH($A16&"_"&N$2,Ajustes!$LI$14:$LI$300,0),MATCH(N$1,Ajustes!$E$4:$LG$4,0)),) -> 0 | O16: =IFERROR(INDEX(Ajustes!$E$14:$LG$300,MATCH($A16&"_"&O$2,Ajustes!$LI$14:$LI$300,0),MATCH(O$1,Ajustes!$E$4:$LG$4,0)),) -> 0 | P16: =IFERROR(INDEX(Ajustes!$E$14:$LG$300,MATCH($A16&"_"&P$2,Ajustes!$LI$14:$LI$300,0),MATCH(P$1,Ajustes!$E$4:$LG$4,0)),) -> 0 | Q16: =IFERROR(INDEX(Ajustes!$E$14:$LG$300,MATCH($A16&"_"&Q$2,Ajustes!$LI$14:$LI$300,0),MATCH(Q$1,Ajustes!$E$4:$LG$4,0)),) -> 0 | R16: =IFERROR(INDEX(Ajustes!$E$14:$LG$300,MATCH($A16&"_"&R$2,Ajustes!$LI$14:$LI$300,0),MATCH(R$1,Ajustes!$E$4:$LG$4,0)),) -> 0 | S16: =IFERROR(INDEX(Ajustes!$E$14:$LG$300,MATCH($A16&"_"&S$2,Ajustes!$LI$14:$LI$300,0),MATCH(S$1,Ajustes!$E$4:$LG$4,0)),) -> 0 | T16: =IFERROR(INDEX(Ajustes!$E$14:$LG$300,MATCH($A16&"_"&T$2,Ajustes!$LI$14:$LI$300,0),MATCH(T$1,Ajustes!$E$4:$LG$4,0)),) -> 0 | U16: =IFERROR(INDEX(Ajustes!$E$14:$LG$300,MATCH($A16&"_"&U$2,Ajustes!$LI$14:$LI$300,0),MATCH(U$1,Ajustes!$E$4:$LG$4,0)),) -> 0 | V16: 0 | W16: =IFERROR(INDEX(Ajustes!$E$14:$LG$300,MATCH($A16&"_"&W$2,Ajustes!$LI$14:$LI$300,0),MATCH(W$1,Ajustes!$E$4:$LG$4,0)),) -> 0 | X16: =IFERROR(INDEX(Ajustes!$E$14:$LG$300,MATCH($A16&"_"&X$2,Ajustes!$LI$14:$LI$300,0),MATCH(X$1,Ajustes!$E$4:$LG$4,0)),) -> 0 | Y16: =IFERROR(INDEX(Ajustes!$E$14:$LG$300,MATCH($A16&"_"&Y$2,Ajustes!$LI$14:$LI$300,0),MATCH(Y$1,Ajustes!$E$4:$LG$4,0)),) -> 0 | Z16: =IFERROR(INDEX(Ajustes!$E$14:$LG$300,MATCH($A16&"_"&Z$2,Ajustes!$LI$14:$LI$300,0),MATCH(Z$1,Ajustes!$E$4:$LG$4,0)),) -> 0 | AA16: =IFERROR(INDEX(Ajustes!$E$14:$LG$300,MATCH($A16&"_"&AA$2,Ajustes!$LI$14:$LI$300,0),MATCH(AA$1,Ajustes!$E$4:$LG$4,0)),) -> 0 | AB16: =IFERROR(INDEX(Ajustes!$E$14:$LG$300,MATCH($A16&"_"&AB$2,Ajustes!$LI$14:$LI$300,0),MATCH(AB$1,Ajustes!$E$4:$LG$4,0)),) -> 0 | AC16: =IFERROR(INDEX(Ajustes!$E$14:$LG$300,MATCH($A16&"_"&AC$2,Ajustes!$LI$14:$LI$300,0),MATCH(AC$1,Ajustes!$E$4:$LG$4,0)),) -> 0 | AD16: =IFERROR(INDEX(Ajustes!$E$14:$LG$300,MATCH($A16&"_"&AD$2,Ajustes!$LI$14:$LI$300,0),MATCH(AD$1,Ajustes!$E$4:$LG$4,0)),) -> 0 | AE16: =IFERROR(INDEX(Ajustes!$E$14:$LG$300,MATCH($A16&"_"&AE$2,Ajustes!$LI$14:$LI$300,0),MATCH(AE$1,Ajustes!$E$4:$LG$4,0)),) -> 0 | AF16: =IFERROR(INDEX(Ajustes!$E$14:$LG$300,MATCH($A16&"_"&AF$2,Ajustes!$LI$14:$LI$300,0),MATCH(AF$1,Ajustes!$E$4:$LG$4,0)),) -> 0 | AG16: =IFERROR(INDEX(Ajustes!$E$14:$LG$300,MATCH($A16&"_"&AG$2,Ajustes!$LI$14:$LI$300,0),MATCH(AG$1,Ajustes!$E$4:$LG$4,0)),) -> 0 | AH16: =IFERROR(INDEX(Ajustes!$E$14:$LG$300,MATCH($A16&"_"&AH$2,Ajustes!$LI$14:$LI$300,0),MATCH(AH$1,Ajustes!$E$4:$LG$4,0)),) -> 0 | AI16: 0 | AJ16: 0 | AK16: 0 | AL16: 0 | AM16: =IFERROR(INDEX(Ajustes!$E$14:$LG$300,MATCH($A16&"_"&AM$2,Ajustes!$LI$14:$LI$300,0),MATCH(AM$1,Ajustes!$E$4:$LG$4,0)),) -> 0 | AN16: =IFERROR(INDEX(Ajustes!$E$14:$LG$300,MATCH($A16&"_"&AN$2,Ajustes!$LI$14:$LI$300,0),MATCH(AN$1,Ajustes!$E$4:$LG$4,0)),) -> 0 | AO16: =IFERROR(INDEX(Ajustes!$E$14:$LG$300,MATCH($A16&"_"&AO$2,Ajustes!$LI$14:$LI$300,0),MATCH(AO$1,Ajustes!$E$4:$LG$4,0)),) -> 0 | AP16: =IFERROR(INDEX(Ajustes!$E$14:$LG$300,MATCH($A16&"_"&AP$2,Ajustes!$LI$14:$LI$300,0),MATCH(AP$1,Ajustes!$E$4:$LG$4,0)),) -> 0 | AS16: 0 | AT16: 0 | AU16: 0 | AV16: 0 | AW16: 0 | AX16: 0 | AY16: 0 | AZ16: 0 | BB16: 0 | BC16: 0 | BD16: 0 | BE16: 0 | BF16: 0 | BG16: 0 | BH16: 0 | BI16: 0 | BL16: 0 | BM16: 0 | BN16: 0 | BO16: 0 | BP16: 0 | BQ16: 0 | BR16: 0 | BS16: 0 | BT16: 0 | BW16: 0 | BX16: 0 | BY16: 0 | BZ16: 0 | CA16: 0 | CB16: 0 | CC16: 0 | CD16: 0 | CG16: =IF(A16="",0,SUMIFS(Clientes!Q:Q,Clientes!C:C,A16)) -> 0 | CH16: =IF(A16="",0,SUMIFS(Energia!K:K,Energia!C:C,A16)) -> 0 | CI16: =IF(A16="",0,SUMIFS(Potencia!K:K,Potencia!B:B,A16,Potencia!M:M,CI$5)) -> 0 | CJ16: =IF(A16="",0,SUMIFS(Potencia!K:K,Potencia!B:B,A16,Potencia!M:M,CJ$5)) -> 0 | CK16: =IF(A16="",0,SUMIFS(Potencia!K:K,Potencia!B:B,A16,Potencia!M:M,CK$5)) -> 0 | CL16: =IF(A16="",0,SUMIFS(Clientes!K:K,Clientes!C:C,A16)) -> 0 | CM16: =IF(A16="",0,SUMIFS(Energia!K:K,Energia!B:B,A16,Energia!AA:AA,CM$5)) -> 0 | CN16: =IF(A16="",0,SUMIFS(Energia!K:K,Energia!B:B,A16,Energia!AA:AA,CN$5)) -> 0 | CO16: 0
A17: =Factores!C43 ->  | B17: =IFERROR(INDEX(Ajustes!$E$14:$LG$300,MATCH($A17&"_"&B$2,Ajustes!$LI$14:$LI$300,0),MATCH(B$1,Ajustes!$E$4:$LG$4,0)),) -> 0 | C17: =IFERROR(INDEX(Ajustes!$E$14:$LG$300,MATCH($A17&"_"&C$2,Ajustes!$LI$14:$LI$300,0),MATCH(C$1,Ajustes!$E$4:$LG$4,0)),) -> 0 | D17: =IFERROR(INDEX(Ajustes!$E$14:$LG$300,MATCH($A17&"_"&D$2,Ajustes!$LI$14:$LI$300,0),MATCH(D$1,Ajustes!$E$4:$LG$4,0)),) -> 0 | E17: =IFERROR(INDEX(Ajustes!$E$14:$LG$300,MATCH($A17&"_"&E$2,Ajustes!$LI$14:$LI$300,0),MATCH(E$1,Ajustes!$E$4:$LG$4,0)),) -> 0 | F17: =IFERROR(INDEX(Ajustes!$E$14:$LG$300,MATCH($A17&"_"&F$2,Ajustes!$LI$14:$LI$300,0),MATCH(F$1,Ajustes!$E$4:$LG$4,0)),) -> 0 | G17: =IFERROR(INDEX(Ajustes!$E$14:$LG$300,MATCH($A17&"_"&G$2,Ajustes!$LI$14:$LI$300,0),MATCH(G$1,Ajustes!$E$4:$LG$4,0)),) -> 0 | H17: =IFERROR(INDEX(Ajustes!$E$14:$LG$300,MATCH($A17&"_"&H$2,Ajustes!$LI$14:$LI$300,0),MATCH(H$1,Ajustes!$E$4:$LG$4,0)),) -> 0 | I17: =IFERROR(INDEX(Ajustes!$E$14:$LG$300,MATCH($A17&"_"&I$2,Ajustes!$LI$14:$LI$300,0),MATCH(I$1,Ajustes!$E$4:$LG$4,0)),) -> 0 | J17: =IFERROR(INDEX(Ajustes!$E$14:$LG$300,MATCH($A17&"_"&J$2,Ajustes!$LI$14:$LI$300,0),MATCH(J$1,Ajustes!$E$4:$LG$4,0)),) -> 0 | K17: =IFERROR(INDEX(Ajustes!$E$14:$LG$300,MATCH($A17&"_"&K$2,Ajustes!$LI$14:$LI$300,0),MATCH(K$1,Ajustes!$E$4:$LG$4,0)),) -> 0 | L17: =IFERROR(INDEX(Ajustes!$E$14:$LG$300,MATCH($A17&"_"&L$2,Ajustes!$LI$14:$LI$300,0),MATCH(L$1,Ajustes!$E$4:$LG$4,0)),) -> 0 | M17: =IFERROR(INDEX(Ajustes!$E$14:$LG$300,MATCH($A17&"_"&M$2,Ajustes!$LI$14:$LI$300,0),MATCH(M$1,Ajustes!$E$4:$LG$4,0)),) -> 0 | N17: =IFERROR(INDEX(Ajustes!$E$14:$LG$300,MATCH($A17&"_"&N$2,Ajustes!$LI$14:$LI$300,0),MATCH(N$1,Ajustes!$E$4:$LG$4,0)),) -> 0 | O17: =IFERROR(INDEX(Ajustes!$E$14:$LG$300,MATCH($A17&"_"&O$2,Ajustes!$LI$14:$LI$300,0),MATCH(O$1,Ajustes!$E$4:$LG$4,0)),) -> 0 | P17: =IFERROR(INDEX(Ajustes!$E$14:$LG$300,MATCH($A17&"_"&P$2,Ajustes!$LI$14:$LI$300,0),MATCH(P$1,Ajustes!$E$4:$LG$4,0)),) -> 0 | Q17: =IFERROR(INDEX(Ajustes!$E$14:$LG$300,MATCH($A17&"_"&Q$2,Ajustes!$LI$14:$LI$300,0),MATCH(Q$1,Ajustes!$E$4:$LG$4,0)),) -> 0 | R17: =IFERROR(INDEX(Ajustes!$E$14:$LG$300,MATCH($A17&"_"&R$2,Ajustes!$LI$14:$LI$300,0),MATCH(R$1,Ajustes!$E$4:$LG$4,0)),) -> 0 | S17: =IFERROR(INDEX(Ajustes!$E$14:$LG$300,MATCH($A17&"_"&S$2,Ajustes!$LI$14:$LI$300,0),MATCH(S$1,Ajustes!$E$4:$LG$4,0)),) -> 0 | T17: =IFERROR(INDEX(Ajustes!$E$14:$LG$300,MATCH($A17&"_"&T$2,Ajustes!$LI$14:$LI$300,0),MATCH(T$1,Ajustes!$E$4:$LG$4,0)),) -> 0 | U17: =IFERROR(INDEX(Ajustes!$E$14:$LG$300,MATCH($A17&"_"&U$2,Ajustes!$LI$14:$LI$300,0),MATCH(U$1,Ajustes!$E$4:$LG$4,0)),) -> 0 | V17: 0 | W17: =IFERROR(INDEX(Ajustes!$E$14:$LG$300,MATCH($A17&"_"&W$2,Ajustes!$LI$14:$LI$300,0),MATCH(W$1,Ajustes!$E$4:$LG$4,0)),) -> 0 | X17: =IFERROR(INDEX(Ajustes!$E$14:$LG$300,MATCH($A17&"_"&X$2,Ajustes!$LI$14:$LI$300,0),MATCH(X$1,Ajustes!$E$4:$LG$4,0)),) -> 0 | Y17: =IFERROR(INDEX(Ajustes!$E$14:$LG$300,MATCH($A17&"_"&Y$2,Ajustes!$LI$14:$LI$300,0),MATCH(Y$1,Ajustes!$E$4:$LG$4,0)),) -> 0 | Z17: =IFERROR(INDEX(Ajustes!$E$14:$LG$300,MATCH($A17&"_"&Z$2,Ajustes!$LI$14:$LI$300,0),MATCH(Z$1,Ajustes!$E$4:$LG$4,0)),) -> 0 | AA17: =IFERROR(INDEX(Ajustes!$E$14:$LG$300,MATCH($A17&"_"&AA$2,Ajustes!$LI$14:$LI$300,0),MATCH(AA$1,Ajustes!$E$4:$LG$4,0)),) -> 0 | AB17: =IFERROR(INDEX(Ajustes!$E$14:$LG$300,MATCH($A17&"_"&AB$2,Ajustes!$LI$14:$LI$300,0),MATCH(AB$1,Ajustes!$E$4:$LG$4,0)),) -> 0 | AC17: =IFERROR(INDEX(Ajustes!$E$14:$LG$300,MATCH($A17&"_"&AC$2,Ajustes!$LI$14:$LI$300,0),MATCH(AC$1,Ajustes!$E$4:$LG$4,0)),) -> 0 | AD17: =IFERROR(INDEX(Ajustes!$E$14:$LG$300,MATCH($A17&"_"&AD$2,Ajustes!$LI$14:$LI$300,0),MATCH(AD$1,Ajustes!$E$4:$LG$4,0)),) -> 0 | AE17: =IFERROR(INDEX(Ajustes!$E$14:$LG$300,MATCH($A17&"_"&AE$2,Ajustes!$LI$14:$LI$300,0),MATCH(AE$1,Ajustes!$E$4:$LG$4,0)),) -> 0 | AF17: =IFERROR(INDEX(Ajustes!$E$14:$LG$300,MATCH($A17&"_"&AF$2,Ajustes!$LI$14:$LI$300,0),MATCH(AF$1,Ajustes!$E$4:$LG$4,0)),) -> 0 | AG17: =IFERROR(INDEX(Ajustes!$E$14:$LG$300,MATCH($A17&"_"&AG$2,Ajustes!$LI$14:$LI$300,0),MATCH(AG$1,Ajustes!$E$4:$LG$4,0)),) -> 0 | AH17: =IFERROR(INDEX(Ajustes!$E$14:$LG$300,MATCH($A17&"_"&AH$2,Ajustes!$LI$14:$LI$300,0),MATCH(AH$1,Ajustes!$E$4:$LG$4,0)),) -> 0 | AI17: 0 | AJ17: 0 | AK17: 0 | AL17: 0 | AM17: =IFERROR(INDEX(Ajustes!$E$14:$LG$300,MATCH($A17&"_"&AM$2,Ajustes!$LI$14:$LI$300,0),MATCH(AM$1,Ajustes!$E$4:$LG$4,0)),) -> 0 | AN17: =IFERROR(INDEX(Ajustes!$E$14:$LG$300,MATCH($A17&"_"&AN$2,Ajustes!$LI$14:$LI$300,0),MATCH(AN$1,Ajustes!$E$4:$LG$4,0)),) -> 0 | AO17: =IFERROR(INDEX(Ajustes!$E$14:$LG$300,MATCH($A17&"_"&AO$2,Ajustes!$LI$14:$LI$300,0),MATCH(AO$1,Ajustes!$E$4:$LG$4,0)),) -> 0 | AP17: =IFERROR(INDEX(Ajustes!$E$14:$LG$300,MATCH($A17&"_"&AP$2,Ajustes!$LI$14:$LI$300,0),MATCH(AP$1,Ajustes!$E$4:$LG$4,0)),) -> 0 | AS17: 0 | AT17: 0 | AU17: 0 | AV17: 0 | AW17: 0 | AX17: 0 | AY17: 0 | AZ17: 0 | BB17: 0 | BC17: 0 | BD17: 0 | BE17: 0 | BF17: 0 | BG17: 0 | BH17: 0 | BI17: 0 | BL17: 0 | BM17: 0 | BN17: 0 | BO17: 0 | BP17: 0 | BQ17: 0 | BR17: 0 | BS17: 0 | BT17: 0 | BW17: 0 | BX17: 0 | BY17: 0 | BZ17: 0 | CA17: 0 | CB17: 0 | CC17: 0 | CD17: 0 | CG17: =IF(A17="",0,SUMIFS(Clientes!Q:Q,Clientes!C:C,A17)) -> 0 | CH17: =IF(A17="",0,SUMIFS(Energia!K:K,Energia!C:C,A17)) -> 0 | CI17: =IF(A17="",0,SUMIFS(Potencia!K:K,Potencia!B:B,A17,Potencia!M:M,CI$5)) -> 0 | CJ17: =IF(A17="",0,SUMIFS(Potencia!K:K,Potencia!B:B,A17,Potencia!M:M,CJ$5)) -> 0 | CK17: =IF(A17="",0,SUMIFS(Potencia!K:K,Potencia!B:B,A17,Potencia!M:M,CK$5)) -> 0 | CL17: =IF(A17="",0,SUMIFS(Clientes!K:K,Clientes!C:C,A17)) -> 0 | CM17: =IF(A17="",0,SUMIFS(Energia!K:K,Energia!B:B,A17,Energia!AA:AA,CM$5)) -> 0 | CN17: =IF(A17="",0,SUMIFS(Energia!K:K,Energia!B:B,A17,Energia!AA:AA,CN$5)) -> 0 | CO17: 0
A18: =Factores!C44 ->  | B18: =IFERROR(INDEX(Ajustes!$E$14:$LG$300,MATCH($A18&"_"&B$2,Ajustes!$LI$14:$LI$300,0),MATCH(B$1,Ajustes!$E$4:$LG$4,0)),) -> 0 | C18: =IFERROR(INDEX(Ajustes!$E$14:$LG$300,MATCH($A18&"_"&C$2,Ajustes!$LI$14:$LI$300,0),MATCH(C$1,Ajustes!$E$4:$LG$4,0)),) -> 0 | D18: =IFERROR(INDEX(Ajustes!$E$14:$LG$300,MATCH($A18&"_"&D$2,Ajustes!$LI$14:$LI$300,0),MATCH(D$1,Ajustes!$E$4:$LG$4,0)),) -> 0 | E18: =IFERROR(INDEX(Ajustes!$E$14:$LG$300,MATCH($A18&"_"&E$2,Ajustes!$LI$14:$LI$300,0),MATCH(E$1,Ajustes!$E$4:$LG$4,0)),) -> 0 | F18: =IFERROR(INDEX(Ajustes!$E$14:$LG$300,MATCH($A18&"_"&F$2,Ajustes!$LI$14:$LI$300,0),MATCH(F$1,Ajustes!$E$4:$LG$4,0)),) -> 0 | G18: =IFERROR(INDEX(Ajustes!$E$14:$LG$300,MATCH($A18&"_"&G$2,Ajustes!$LI$14:$LI$300,0),MATCH(G$1,Ajustes!$E$4:$LG$4,0)),) -> 0 | H18: =IFERROR(INDEX(Ajustes!$E$14:$LG$300,MATCH($A18&"_"&H$2,Ajustes!$LI$14:$LI$300,0),MATCH(H$1,Ajustes!$E$4:$LG$4,0)),) -> 0 | I18: =IFERROR(INDEX(Ajustes!$E$14:$LG$300,MATCH($A18&"_"&I$2,Ajustes!$LI$14:$LI$300,0),MATCH(I$1,Ajustes!$E$4:$LG$4,0)),) -> 0 | J18: =IFERROR(INDEX(Ajustes!$E$14:$LG$300,MATCH($A18&"_"&J$2,Ajustes!$LI$14:$LI$300,0),MATCH(J$1,Ajustes!$E$4:$LG$4,0)),) -> 0 | K18: =IFERROR(INDEX(Ajustes!$E$14:$LG$300,MATCH($A18&"_"&K$2,Ajustes!$LI$14:$LI$300,0),MATCH(K$1,Ajustes!$E$4:$LG$4,0)),) -> 0 | L18: =IFERROR(INDEX(Ajustes!$E$14:$LG$300,MATCH($A18&"_"&L$2,Ajustes!$LI$14:$LI$300,0),MATCH(L$1,Ajustes!$E$4:$LG$4,0)),) -> 0 | M18: =IFERROR(INDEX(Ajustes!$E$14:$LG$300,MATCH($A18&"_"&M$2,Ajustes!$LI$14:$LI$300,0),MATCH(M$1,Ajustes!$E$4:$LG$4,0)),) -> 0 | N18: =IFERROR(INDEX(Ajustes!$E$14:$LG$300,MATCH($A18&"_"&N$2,Ajustes!$LI$14:$LI$300,0),MATCH(N$1,Ajustes!$E$4:$LG$4,0)),) -> 0 | O18: =IFERROR(INDEX(Ajustes!$E$14:$LG$300,MATCH($A18&"_"&O$2,Ajustes!$LI$14:$LI$300,0),MATCH(O$1,Ajustes!$E$4:$LG$4,0)),) -> 0 | P18: =IFERROR(INDEX(Ajustes!$E$14:$LG$300,MATCH($A18&"_"&P$2,Ajustes!$LI$14:$LI$300,0),MATCH(P$1,Ajustes!$E$4:$LG$4,0)),) -> 0 | Q18: =IFERROR(INDEX(Ajustes!$E$14:$LG$300,MATCH($A18&"_"&Q$2,Ajustes!$LI$14:$LI$300,0),MATCH(Q$1,Ajustes!$E$4:$LG$4,0)),) -> 0 | R18: =IFERROR(INDEX(Ajustes!$E$14:$LG$300,MATCH($A18&"_"&R$2,Ajustes!$LI$14:$LI$300,0),MATCH(R$1,Ajustes!$E$4:$LG$4,0)),) -> 0 | S18: =IFERROR(INDEX(Ajustes!$E$14:$LG$300,MATCH($A18&"_"&S$2,Ajustes!$LI$14:$LI$300,0),MATCH(S$1,Ajustes!$E$4:$LG$4,0)),) -> 0 | T18: =IFERROR(INDEX(Ajustes!$E$14:$LG$300,MATCH($A18&"_"&T$2,Ajustes!$LI$14:$LI$300,0),MATCH(T$1,Ajustes!$E$4:$LG$4,0)),) -> 0 | U18: =IFERROR(INDEX(Ajustes!$E$14:$LG$300,MATCH($A18&"_"&U$2,Ajustes!$LI$14:$LI$300,0),MATCH(U$1,Ajustes!$E$4:$LG$4,0)),) -> 0 | V18: 0 | W18: =IFERROR(INDEX(Ajustes!$E$14:$LG$300,MATCH($A18&"_"&W$2,Ajustes!$LI$14:$LI$300,0),MATCH(W$1,Ajustes!$E$4:$LG$4,0)),) -> 0 | X18: =IFERROR(INDEX(Ajustes!$E$14:$LG$300,MATCH($A18&"_"&X$2,Ajustes!$LI$14:$LI$300,0),MATCH(X$1,Ajustes!$E$4:$LG$4,0)),) -> 0 | Y18: =IFERROR(INDEX(Ajustes!$E$14:$LG$300,MATCH($A18&"_"&Y$2,Ajustes!$LI$14:$LI$300,0),MATCH(Y$1,Ajustes!$E$4:$LG$4,0)),) -> 0 | Z18: =IFERROR(INDEX(Ajustes!$E$14:$LG$300,MATCH($A18&"_"&Z$2,Ajustes!$LI$14:$LI$300,0),MATCH(Z$1,Ajustes!$E$4:$LG$4,0)),) -> 0 | AA18: =IFERROR(INDEX(Ajustes!$E$14:$LG$300,MATCH($A18&"_"&AA$2,Ajustes!$LI$14:$LI$300,0),MATCH(AA$1,Ajustes!$E$4:$LG$4,0)),) -> 0 | AB18: =IFERROR(INDEX(Ajustes!$E$14:$LG$300,MATCH($A18&"_"&AB$2,Ajustes!$LI$14:$LI$300,0),MATCH(AB$1,Ajustes!$E$4:$LG$4,0)),) -> 0 | AC18: =IFERROR(INDEX(Ajustes!$E$14:$LG$300,MATCH($A18&"_"&AC$2,Ajustes!$LI$14:$LI$300,0),MATCH(AC$1,Ajustes!$E$4:$LG$4,0)),) -> 0 | AD18: =IFERROR(INDEX(Ajustes!$E$14:$LG$300,MATCH($A18&"_"&AD$2,Ajustes!$LI$14:$LI$300,0),MATCH(AD$1,Ajustes!$E$4:$LG$4,0)),) -> 0 | AE18: =IFERROR(INDEX(Ajustes!$E$14:$LG$300,MATCH($A18&"_"&AE$2,Ajustes!$LI$14:$LI$300,0),MATCH(AE$1,Ajustes!$E$4:$LG$4,0)),) -> 0 | AF18: =IFERROR(INDEX(Ajustes!$E$14:$LG$300,MATCH($A18&"_"&AF$2,Ajustes!$LI$14:$LI$300,0),MATCH(AF$1,Ajustes!$E$4:$LG$4,0)),) -> 0 | AG18: =IFERROR(INDEX(Ajustes!$E$14:$LG$300,MATCH($A18&"_"&AG$2,Ajustes!$LI$14:$LI$300,0),MATCH(AG$1,Ajustes!$E$4:$LG$4,0)),) -> 0 | AH18: =IFERROR(INDEX(Ajustes!$E$14:$LG$300,MATCH($A18&"_"&AH$2,Ajustes!$LI$14:$LI$300,0),MATCH(AH$1,Ajustes!$E$4:$LG$4,0)),) -> 0 | AI18: 0 | AJ18: 0 | AK18: 0 | AL18: 0 | AM18: =IFERROR(INDEX(Ajustes!$E$14:$LG$300,MATCH($A18&"_"&AM$2,Ajustes!$LI$14:$LI$300,0),MATCH(AM$1,Ajustes!$E$4:$LG$4,0)),) -> 0 | AN18: =IFERROR(INDEX(Ajustes!$E$14:$LG$300,MATCH($A18&"_"&AN$2,Ajustes!$LI$14:$LI$300,0),MATCH(AN$1,Ajustes!$E$4:$LG$4,0)),) -> 0 | AO18: =IFERROR(INDEX(Ajustes!$E$14:$LG$300,MATCH($A18&"_"&AO$2,Ajustes!$LI$14:$LI$300,0),MATCH(AO$1,Ajustes!$E$4:$LG$4,0)),) -> 0 | AP18: =IFERROR(INDEX(Ajustes!$E$14:$LG$300,MATCH($A18&"_"&AP$2,Ajustes!$LI$14:$LI$300,0),MATCH(AP$1,Ajustes!$E$4:$LG$4,0)),) -> 0 | AS18: =SUMIFS($B18:$AP18,$B$6:$AP$6,AS$6) -> 0 | AT18: 0 | AU18: 0 | AV18: 0 | AW18: 0 | AX18: 0 | AY18: 0 | AZ18: 0 | BB18: =SUMIFS($B18:$AP18,$B$6:$AP$6,BB$6,$B$7:$AP$7,BB$7) -> 0 | BC18: 0 | BD18: 0 | BE18: 0 | BF18: 0 | BG18: 0 | BH18: 0 | BI18: 0 | BL18: =SUMIFS($B18:$AP18,$B$6:$AP$6,BL$6,$B$7:$AP$7,BL$7) -> 0 | BM18: 0 | BN18: 0 | BO18: 0 | BP18: 0 | BQ18: 0 | BR18: 0 | BS18: 0 | BT18: 0 | BW18: =SUMIFS($B18:$AP18,$B$6:$AP$6,BW$6,$B$7:$AP$7,BW$7) -> 0 | BX18: 0 | BY18: 0 | BZ18: 0 | CA18: 0 | CB18: 0 | CC18: 0 | CD18: 0 | CG18: =IF(A18="",0,SUMIFS(Clientes!Q:Q,Clientes!C:C,A18)) -> 0 | CH18: =IF(A18="",0,SUMIFS(Energia!K:K,Energia!C:C,A18)) -> 0 | CI18: =IF(A18="",0,SUMIFS(Potencia!K:K,Potencia!B:B,A18,Potencia!M:M,CI$5)) -> 0 | CJ18: =IF(A18="",0,SUMIFS(Potencia!K:K,Potencia!B:B,A18,Potencia!M:M,CJ$5)) -> 0 | CK18: =IF(A18="",0,SUMIFS(Potencia!K:K,Potencia!B:B,A18,Potencia!M:M,CK$5)) -> 0 | CL18: =IF(A18="",0,SUMIFS(Clientes!K:K,Clientes!C:C,A18)) -> 0 | CM18: =IF(A18="",0,SUMIFS(Energia!K:K,Energia!B:B,A18,Energia!AA:AA,CM$5)) -> 0 | CN18: =IF(A18="",0,SUMIFS(Energia!K:K,Energia!B:B,A18,Energia!AA:AA,CN$5)) -> 0 | CO18: 0
A19: =Factores!C45 ->  | B19: =IFERROR(INDEX(Ajustes!$E$14:$LG$300,MATCH($A19&"_"&B$2,Ajustes!$LI$14:$LI$300,0),MATCH(B$1,Ajustes!$E$4:$LG$4,0)),) -> 0 | C19: =IFERROR(INDEX(Ajustes!$E$14:$LG$300,MATCH($A19&"_"&C$2,Ajustes!$LI$14:$LI$300,0),MATCH(C$1,Ajustes!$E$4:$LG$4,0)),) -> 0 | D19: =IFERROR(INDEX(Ajustes!$E$14:$LG$300,MATCH($A19&"_"&D$2,Ajustes!$LI$14:$LI$300,0),MATCH(D$1,Ajustes!$E$4:$LG$4,0)),) -> 0 | E19: =IFERROR(INDEX(Ajustes!$E$14:$LG$300,MATCH($A19&"_"&E$2,Ajustes!$LI$14:$LI$300,0),MATCH(E$1,Ajustes!$E$4:$LG$4,0)),) -> 0 | F19: =IFERROR(INDEX(Ajustes!$E$14:$LG$300,MATCH($A19&"_"&F$2,Ajustes!$LI$14:$LI$300,0),MATCH(F$1,Ajustes!$E$4:$LG$4,0)),) -> 0 | G19: =IFERROR(INDEX(Ajustes!$E$14:$LG$300,MATCH($A19&"_"&G$2,Ajustes!$LI$14:$LI$300,0),MATCH(G$1,Ajustes!$E$4:$LG$4,0)),) -> 0 | H19: =IFERROR(INDEX(Ajustes!$E$14:$LG$300,MATCH($A19&"_"&H$2,Ajustes!$LI$14:$LI$300,0),MATCH(H$1,Ajustes!$E$4:$LG$4,0)),) -> 0 | I19: =IFERROR(INDEX(Ajustes!$E$14:$LG$300,MATCH($A19&"_"&I$2,Ajustes!$LI$14:$LI$300,0),MATCH(I$1,Ajustes!$E$4:$LG$4,0)),) -> 0 | J19: =IFERROR(INDEX(Ajustes!$E$14:$LG$300,MATCH($A19&"_"&J$2,Ajustes!$LI$14:$LI$300,0),MATCH(J$1,Ajustes!$E$4:$LG$4,0)),) -> 0 | K19: =IFERROR(INDEX(Ajustes!$E$14:$LG$300,MATCH($A19&"_"&K$2,Ajustes!$LI$14:$LI$300,0),MATCH(K$1,Ajustes!$E$4:$LG$4,0)),) -> 0 | L19: =IFERROR(INDEX(Ajustes!$E$14:$LG$300,MATCH($A19&"_"&L$2,Ajustes!$LI$14:$LI$300,0),MATCH(L$1,Ajustes!$E$4:$LG$4,0)),) -> 0 | M19: =IFERROR(INDEX(Ajustes!$E$14:$LG$300,MATCH($A19&"_"&M$2,Ajustes!$LI$14:$LI$300,0),MATCH(M$1,Ajustes!$E$4:$LG$4,0)),) -> 0 | N19: =IFERROR(INDEX(Ajustes!$E$14:$LG$300,MATCH($A19&"_"&N$2,Ajustes!$LI$14:$LI$300,0),MATCH(N$1,Ajustes!$E$4:$LG$4,0)),) -> 0 | O19: =IFERROR(INDEX(Ajustes!$E$14:$LG$300,MATCH($A19&"_"&O$2,Ajustes!$LI$14:$LI$300,0),MATCH(O$1,Ajustes!$E$4:$LG$4,0)),) -> 0 | P19: =IFERROR(INDEX(Ajustes!$E$14:$LG$300,MATCH($A19&"_"&P$2,Ajustes!$LI$14:$LI$300,0),MATCH(P$1,Ajustes!$E$4:$LG$4,0)),) -> 0 | Q19: =IFERROR(INDEX(Ajustes!$E$14:$LG$300,MATCH($A19&"_"&Q$2,Ajustes!$LI$14:$LI$300,0),MATCH(Q$1,Ajustes!$E$4:$LG$4,0)),) -> 0 | R19: =IFERROR(INDEX(Ajustes!$E$14:$LG$300,MATCH($A19&"_"&R$2,Ajustes!$LI$14:$LI$300,0),MATCH(R$1,Ajustes!$E$4:$LG$4,0)),) -> 0 | S19: =IFERROR(INDEX(Ajustes!$E$14:$LG$300,MATCH($A19&"_"&S$2,Ajustes!$LI$14:$LI$300,0),MATCH(S$1,Ajustes!$E$4:$LG$4,0)),) -> 0 | T19: =IFERROR(INDEX(Ajustes!$E$14:$LG$300,MATCH($A19&"_"&T$2,Ajustes!$LI$14:$LI$300,0),MATCH(T$1,Ajustes!$E$4:$LG$4,0)),) -> 0 | U19: =IFERROR(INDEX(Ajustes!$E$14:$LG$300,MATCH($A19&"_"&U$2,Ajustes!$LI$14:$LI$300,0),MATCH(U$1,Ajustes!$E$4:$LG$4,0)),) -> 0 | V19: 0 | W19: =IFERROR(INDEX(Ajustes!$E$14:$LG$300,MATCH($A19&"_"&W$2,Ajustes!$LI$14:$LI$300,0),MATCH(W$1,Ajustes!$E$4:$LG$4,0)),) -> 0 | X19: =IFERROR(INDEX(Ajustes!$E$14:$LG$300,MATCH($A19&"_"&X$2,Ajustes!$LI$14:$LI$300,0),MATCH(X$1,Ajustes!$E$4:$LG$4,0)),) -> 0 | Y19: =IFERROR(INDEX(Ajustes!$E$14:$LG$300,MATCH($A19&"_"&Y$2,Ajustes!$LI$14:$LI$300,0),MATCH(Y$1,Ajustes!$E$4:$LG$4,0)),) -> 0 | Z19: =IFERROR(INDEX(Ajustes!$E$14:$LG$300,MATCH($A19&"_"&Z$2,Ajustes!$LI$14:$LI$300,0),MATCH(Z$1,Ajustes!$E$4:$LG$4,0)),) -> 0 | AA19: =IFERROR(INDEX(Ajustes!$E$14:$LG$300,MATCH($A19&"_"&AA$2,Ajustes!$LI$14:$LI$300,0),MATCH(AA$1,Ajustes!$E$4:$LG$4,0)),) -> 0 | AB19: =IFERROR(INDEX(Ajustes!$E$14:$LG$300,MATCH($A19&"_"&AB$2,Ajustes!$LI$14:$LI$300,0),MATCH(AB$1,Ajustes!$E$4:$LG$4,0)),) -> 0 | AC19: =IFERROR(INDEX(Ajustes!$E$14:$LG$300,MATCH($A19&"_"&AC$2,Ajustes!$LI$14:$LI$300,0),MATCH(AC$1,Ajustes!$E$4:$LG$4,0)),) -> 0 | AD19: =IFERROR(INDEX(Ajustes!$E$14:$LG$300,MATCH($A19&"_"&AD$2,Ajustes!$LI$14:$LI$300,0),MATCH(AD$1,Ajustes!$E$4:$LG$4,0)),) -> 0 | AE19: =IFERROR(INDEX(Ajustes!$E$14:$LG$300,MATCH($A19&"_"&AE$2,Ajustes!$LI$14:$LI$300,0),MATCH(AE$1,Ajustes!$E$4:$LG$4,0)),) -> 0 | AF19: =IFERROR(INDEX(Ajustes!$E$14:$LG$300,MATCH($A19&"_"&AF$2,Ajustes!$LI$14:$LI$300,0),MATCH(AF$1,Ajustes!$E$4:$LG$4,0)),) -> 0 | AG19: =IFERROR(INDEX(Ajustes!$E$14:$LG$300,MATCH($A19&"_"&AG$2,Ajustes!$LI$14:$LI$300,0),MATCH(AG$1,Ajustes!$E$4:$LG$4,0)),) -> 0 | AH19: =IFERROR(INDEX(Ajustes!$E$14:$LG$300,MATCH($A19&"_"&AH$2,Ajustes!$LI$14:$LI$300,0),MATCH(AH$1,Ajustes!$E$4:$LG$4,0)),) -> 0 | AI19: 0 | AJ19: 0 | AK19: 0 | AL19: 0 | AM19: =IFERROR(INDEX(Ajustes!$E$14:$LG$300,MATCH($A19&"_"&AM$2,Ajustes!$LI$14:$LI$300,0),MATCH(AM$1,Ajustes!$E$4:$LG$4,0)),) -> 0 | AN19: =IFERROR(INDEX(Ajustes!$E$14:$LG$300,MATCH($A19&"_"&AN$2,Ajustes!$LI$14:$LI$300,0),MATCH(AN$1,Ajustes!$E$4:$LG$4,0)),) -> 0 | AO19: =IFERROR(INDEX(Ajustes!$E$14:$LG$300,MATCH($A19&"_"&AO$2,Ajustes!$LI$14:$LI$300,0),MATCH(AO$1,Ajustes!$E$4:$LG$4,0)),) -> 0 | AP19: =IFERROR(INDEX(Ajustes!$E$14:$LG$300,MATCH($A19&"_"&AP$2,Ajustes!$LI$14:$LI$300,0),MATCH(AP$1,Ajustes!$E$4:$LG$4,0)),) -> 0 | AS19: 0 | AT19: 0 | AU19: 0 | AV19: 0 | AW19: 0 | AX19: 0 | AY19: 0 | AZ19: 0 | BB19: 0 | BC19: 0 | BD19: 0 | BE19: 0 | BF19: 0 | BG19: 0 | BH19: 0 | BI19: 0 | BL19: 0 | BM19: 0 | BN19: 0 | BO19: 0 | BP19: 0 | BQ19: 0 | BR19: 0 | BS19: 0 | BT19: 0 | BW19: 0 | BX19: 0 | BY19: 0 | BZ19: 0 | CA19: 0 | CB19: 0 | CC19: 0 | CD19: 0 | CG19: =IF(A19="",0,SUMIFS(Clientes!Q:Q,Clientes!C:C,A19)) -> 0 | CH19: =IF(A19="",0,SUMIFS(Energia!K:K,Energia!C:C,A19)) -> 0 | CI19: =IF(A19="",0,SUMIFS(Potencia!K:K,Potencia!B:B,A19,Potencia!M:M,CI$5)) -> 0 | CJ19: =IF(A19="",0,SUMIFS(Potencia!K:K,Potencia!B:B,A19,Potencia!M:M,CJ$5)) -> 0 | CK19: =IF(A19="",0,SUMIFS(Potencia!K:K,Potencia!B:B,A19,Potencia!M:M,CK$5)) -> 0 | CL19: =IF(A19="",0,SUMIFS(Clientes!K:K,Clientes!C:C,A19)) -> 0 | CM19: =IF(A19="",0,SUMIFS(Energia!K:K,Energia!B:B,A19,Energia!AA:AA,CM$5)) -> 0 | CN19: =IF(A19="",0,SUMIFS(Energia!K:K,Energia!B:B,A19,Energia!AA:AA,CN$5)) -> 0 | CO19: 0
A20: =Factores!C46 ->  | B20: =IFERROR(INDEX(Ajustes!$E$14:$LG$300,MATCH($A20&"_"&B$2,Ajustes!$LI$14:$LI$300,0),MATCH(B$1,Ajustes!$E$4:$LG$4,0)),) -> 0 | C20: =IFERROR(INDEX(Ajustes!$E$14:$LG$300,MATCH($A20&"_"&C$2,Ajustes!$LI$14:$LI$300,0),MATCH(C$1,Ajustes!$E$4:$LG$4,0)),) -> 0 | D20: =IFERROR(INDEX(Ajustes!$E$14:$LG$300,MATCH($A20&"_"&D$2,Ajustes!$LI$14:$LI$300,0),MATCH(D$1,Ajustes!$E$4:$LG$4,0)),) -> 0 | E20: =IFERROR(INDEX(Ajustes!$E$14:$LG$300,MATCH($A20&"_"&E$2,Ajustes!$LI$14:$LI$300,0),MATCH(E$1,Ajustes!$E$4:$LG$4,0)),) -> 0 | F20: =IFERROR(INDEX(Ajustes!$E$14:$LG$300,MATCH($A20&"_"&F$2,Ajustes!$LI$14:$LI$300,0),MATCH(F$1,Ajustes!$E$4:$LG$4,0)),) -> 0 | G20: =IFERROR(INDEX(Ajustes!$E$14:$LG$300,MATCH($A20&"_"&G$2,Ajustes!$LI$14:$LI$300,0),MATCH(G$1,Ajustes!$E$4:$LG$4,0)),) -> 0 | H20: =IFERROR(INDEX(Ajustes!$E$14:$LG$300,MATCH($A20&"_"&H$2,Ajustes!$LI$14:$LI$300,0),MATCH(H$1,Ajustes!$E$4:$LG$4,0)),) -> 0 | I20: =IFERROR(INDEX(Ajustes!$E$14:$LG$300,MATCH($A20&"_"&I$2,Ajustes!$LI$14:$LI$300,0),MATCH(I$1,Ajustes!$E$4:$LG$4,0)),) -> 0 | J20: =IFERROR(INDEX(Ajustes!$E$14:$LG$300,MATCH($A20&"_"&J$2,Ajustes!$LI$14:$LI$300,0),MATCH(J$1,Ajustes!$E$4:$LG$4,0)),) -> 0 | K20: =IFERROR(INDEX(Ajustes!$E$14:$LG$300,MATCH($A20&"_"&K$2,Ajustes!$LI$14:$LI$300,0),MATCH(K$1,Ajustes!$E$4:$LG$4,0)),) -> 0 | L20: =IFERROR(INDEX(Ajustes!$E$14:$LG$300,MATCH($A20&"_"&L$2,Ajustes!$LI$14:$LI$300,0),MATCH(L$1,Ajustes!$E$4:$LG$4,0)),) -> 0 | M20: =IFERROR(INDEX(Ajustes!$E$14:$LG$300,MATCH($A20&"_"&M$2,Ajustes!$LI$14:$LI$300,0),MATCH(M$1,Ajustes!$E$4:$LG$4,0)),) -> 0 | N20: =IFERROR(INDEX(Ajustes!$E$14:$LG$300,MATCH($A20&"_"&N$2,Ajustes!$LI$14:$LI$300,0),MATCH(N$1,Ajustes!$E$4:$LG$4,0)),) -> 0 | O20: =IFERROR(INDEX(Ajustes!$E$14:$LG$300,MATCH($A20&"_"&O$2,Ajustes!$LI$14:$LI$300,0),MATCH(O$1,Ajustes!$E$4:$LG$4,0)),) -> 0 | P20: =IFERROR(INDEX(Ajustes!$E$14:$LG$300,MATCH($A20&"_"&P$2,Ajustes!$LI$14:$LI$300,0),MATCH(P$1,Ajustes!$E$4:$LG$4,0)),) -> 0 | Q20: =IFERROR(INDEX(Ajustes!$E$14:$LG$300,MATCH($A20&"_"&Q$2,Ajustes!$LI$14:$LI$300,0),MATCH(Q$1,Ajustes!$E$4:$LG$4,0)),) -> 0 | R20: =IFERROR(INDEX(Ajustes!$E$14:$LG$300,MATCH($A20&"_"&R$2,Ajustes!$LI$14:$LI$300,0),MATCH(R$1,Ajustes!$E$4:$LG$4,0)),) -> 0 | S20: =IFERROR(INDEX(Ajustes!$E$14:$LG$300,MATCH($A20&"_"&S$2,Ajustes!$LI$14:$LI$300,0),MATCH(S$1,Ajustes!$E$4:$LG$4,0)),) -> 0 | T20: =IFERROR(INDEX(Ajustes!$E$14:$LG$300,MATCH($A20&"_"&T$2,Ajustes!$LI$14:$LI$300,0),MATCH(T$1,Ajustes!$E$4:$LG$4,0)),) -> 0 | U20: =IFERROR(INDEX(Ajustes!$E$14:$LG$300,MATCH($A20&"_"&U$2,Ajustes!$LI$14:$LI$300,0),MATCH(U$1,Ajustes!$E$4:$LG$4,0)),) -> 0 | V20: 0 | W20: =IFERROR(INDEX(Ajustes!$E$14:$LG$300,MATCH($A20&"_"&W$2,Ajustes!$LI$14:$LI$300,0),MATCH(W$1,Ajustes!$E$4:$LG$4,0)),) -> 0 | X20: =IFERROR(INDEX(Ajustes!$E$14:$LG$300,MATCH($A20&"_"&X$2,Ajustes!$LI$14:$LI$300,0),MATCH(X$1,Ajustes!$E$4:$LG$4,0)),) -> 0 | Y20: =IFERROR(INDEX(Ajustes!$E$14:$LG$300,MATCH($A20&"_"&Y$2,Ajustes!$LI$14:$LI$300,0),MATCH(Y$1,Ajustes!$E$4:$LG$4,0)),) -> 0 | Z20: =IFERROR(INDEX(Ajustes!$E$14:$LG$300,MATCH($A20&"_"&Z$2,Ajustes!$LI$14:$LI$300,0),MATCH(Z$1,Ajustes!$E$4:$LG$4,0)),) -> 0 | AA20: =IFERROR(INDEX(Ajustes!$E$14:$LG$300,MATCH($A20&"_"&AA$2,Ajustes!$LI$14:$LI$300,0),MATCH(AA$1,Ajustes!$E$4:$LG$4,0)),) -> 0 | AB20: =IFERROR(INDEX(Ajustes!$E$14:$LG$300,MATCH($A20&"_"&AB$2,Ajustes!$LI$14:$LI$300,0),MATCH(AB$1,Ajustes!$E$4:$LG$4,0)),) -> 0 | AC20: =IFERROR(INDEX(Ajustes!$E$14:$LG$300,MATCH($A20&"_"&AC$2,Ajustes!$LI$14:$LI$300,0),MATCH(AC$1,Ajustes!$E$4:$LG$4,0)),) -> 0 | AD20: =IFERROR(INDEX(Ajustes!$E$14:$LG$300,MATCH($A20&"_"&AD$2,Ajustes!$LI$14:$LI$300,0),MATCH(AD$1,Ajustes!$E$4:$LG$4,0)),) -> 0 | AE20: =IFERROR(INDEX(Ajustes!$E$14:$LG$300,MATCH($A20&"_"&AE$2,Ajustes!$LI$14:$LI$300,0),MATCH(AE$1,Ajustes!$E$4:$LG$4,0)),) -> 0 | AF20: =IFERROR(INDEX(Ajustes!$E$14:$LG$300,MATCH($A20&"_"&AF$2,Ajustes!$LI$14:$LI$300,0),MATCH(AF$1,Ajustes!$E$4:$LG$4,0)),) -> 0 | AG20: =IFERROR(INDEX(Ajustes!$E$14:$LG$300,MATCH($A20&"_"&AG$2,Ajustes!$LI$14:$LI$300,0),MATCH(AG$1,Ajustes!$E$4:$LG$4,0)),) -> 0 | AH20: =IFERROR(INDEX(Ajustes!$E$14:$LG$300,MATCH($A20&"_"&AH$2,Ajustes!$LI$14:$LI$300,0),MATCH(AH$1,Ajustes!$E$4:$LG$4,0)),) -> 0 | AI20: 0 | AJ20: 0 | AK20: 0 | AL20: 0 | AM20: =IFERROR(INDEX(Ajustes!$E$14:$LG$300,MATCH($A20&"_"&AM$2,Ajustes!$LI$14:$LI$300,0),MATCH(AM$1,Ajustes!$E$4:$LG$4,0)),) -> 0 | AN20: =IFERROR(INDEX(Ajustes!$E$14:$LG$300,MATCH($A20&"_"&AN$2,Ajustes!$LI$14:$LI$300,0),MATCH(AN$1,Ajustes!$E$4:$LG$4,0)),) -> 0 | AO20: =IFERROR(INDEX(Ajustes!$E$14:$LG$300,MATCH($A20&"_"&AO$2,Ajustes!$LI$14:$LI$300,0),MATCH(AO$1,Ajustes!$E$4:$LG$4,0)),) -> 0 | AP20: =IFERROR(INDEX(Ajustes!$E$14:$LG$300,MATCH($A20&"_"&AP$2,Ajustes!$LI$14:$LI$300,0),MATCH(AP$1,Ajustes!$E$4:$LG$4,0)),) -> 0 | AS20: 0 | AT20: 0 | AU20: 0 | AV20: 0 | AW20: 0 | AX20: 0 | AY20: 0 | AZ20: 0 | BB20: 0 | BC20: 0 | BD20: 0 | BE20: 0 | BF20: 0 | BG20: 0 | BH20: 0 | BI20: 0 | BL20: 0 | BM20: 0 | BN20: 0 | BO20: 0 | BP20: 0 | BQ20: 0 | BR20: 0 | BS20: 0 | BT20: 0 | BW20: 0 | BX20: 0 | BY20: 0 | BZ20: 0 | CA20: 0 | CB20: 0 | CC20: 0 | CD20: 0 | CG20: =IF(A20="",0,SUMIFS(Clientes!Q:Q,Clientes!C:C,A20)) -> 0 | CH20: =IF(A20="",0,SUMIFS(Energia!K:K,Energia!C:C,A20)) -> 0 | CI20: =IF(A20="",0,SUMIFS(Potencia!K:K,Potencia!B:B,A20,Potencia!M:M,CI$5)) -> 0 | CJ20: =IF(A20="",0,SUMIFS(Potencia!K:K,Potencia!B:B,A20,Potencia!M:M,CJ$5)) -> 0 | CK20: =IF(A20="",0,SUMIFS(Potencia!K:K,Potencia!B:B,A20,Potencia!M:M,CK$5)) -> 0 | CL20: =IF(A20="",0,SUMIFS(Clientes!K:K,Clientes!C:C,A20)) -> 0 | CM20: =IF(A20="",0,SUMIFS(Energia!K:K,Energia!B:B,A20,Energia!AA:AA,CM$5)) -> 0 | CN20: =IF(A20="",0,SUMIFS(Energia!K:K,Energia!B:B,A20,Energia!AA:AA,CN$5)) -> 0 | CO20: 0
A21: =Factores!C47 ->  | B21: =IFERROR(INDEX(Ajustes!$E$14:$LG$300,MATCH($A21&"_"&B$2,Ajustes!$LI$14:$LI$300,0),MATCH(B$1,Ajustes!$E$4:$LG$4,0)),) -> 0 | C21: =IFERROR(INDEX(Ajustes!$E$14:$LG$300,MATCH($A21&"_"&C$2,Ajustes!$LI$14:$LI$300,0),MATCH(C$1,Ajustes!$E$4:$LG$4,0)),) -> 0 | D21: =IFERROR(INDEX(Ajustes!$E$14:$LG$300,MATCH($A21&"_"&D$2,Ajustes!$LI$14:$LI$300,0),MATCH(D$1,Ajustes!$E$4:$LG$4,0)),) -> 0 | E21: =IFERROR(INDEX(Ajustes!$E$14:$LG$300,MATCH($A21&"_"&E$2,Ajustes!$LI$14:$LI$300,0),MATCH(E$1,Ajustes!$E$4:$LG$4,0)),) -> 0 | F21: =IFERROR(INDEX(Ajustes!$E$14:$LG$300,MATCH($A21&"_"&F$2,Ajustes!$LI$14:$LI$300,0),MATCH(F$1,Ajustes!$E$4:$LG$4,0)),) -> 0 | G21: =IFERROR(INDEX(Ajustes!$E$14:$LG$300,MATCH($A21&"_"&G$2,Ajustes!$LI$14:$LI$300,0),MATCH(G$1,Ajustes!$E$4:$LG$4,0)),) -> 0 | H21: =IFERROR(INDEX(Ajustes!$E$14:$LG$300,MATCH($A21&"_"&H$2,Ajustes!$LI$14:$LI$300,0),MATCH(H$1,Ajustes!$E$4:$LG$4,0)),) -> 0 | I21: =IFERROR(INDEX(Ajustes!$E$14:$LG$300,MATCH($A21&"_"&I$2,Ajustes!$LI$14:$LI$300,0),MATCH(I$1,Ajustes!$E$4:$LG$4,0)),) -> 0 | J21: =IFERROR(INDEX(Ajustes!$E$14:$LG$300,MATCH($A21&"_"&J$2,Ajustes!$LI$14:$LI$300,0),MATCH(J$1,Ajustes!$E$4:$LG$4,0)),) -> 0 | K21: =IFERROR(INDEX(Ajustes!$E$14:$LG$300,MATCH($A21&"_"&K$2,Ajustes!$LI$14:$LI$300,0),MATCH(K$1,Ajustes!$E$4:$LG$4,0)),) -> 0 | L21: =IFERROR(INDEX(Ajustes!$E$14:$LG$300,MATCH($A21&"_"&L$2,Ajustes!$LI$14:$LI$300,0),MATCH(L$1,Ajustes!$E$4:$LG$4,0)),) -> 0 | M21: =IFERROR(INDEX(Ajustes!$E$14:$LG$300,MATCH($A21&"_"&M$2,Ajustes!$LI$14:$LI$300,0),MATCH(M$1,Ajustes!$E$4:$LG$4,0)),) -> 0 | N21: =IFERROR(INDEX(Ajustes!$E$14:$LG$300,MATCH($A21&"_"&N$2,Ajustes!$LI$14:$LI$300,0),MATCH(N$1,Ajustes!$E$4:$LG$4,0)),) -> 0 | O21: =IFERROR(INDEX(Ajustes!$E$14:$LG$300,MATCH($A21&"_"&O$2,Ajustes!$LI$14:$LI$300,0),MATCH(O$1,Ajustes!$E$4:$LG$4,0)),) -> 0 | P21: =IFERROR(INDEX(Ajustes!$E$14:$LG$300,MATCH($A21&"_"&P$2,Ajustes!$LI$14:$LI$300,0),MATCH(P$1,Ajustes!$E$4:$LG$4,0)),) -> 0 | Q21: =IFERROR(INDEX(Ajustes!$E$14:$LG$300,MATCH($A21&"_"&Q$2,Ajustes!$LI$14:$LI$300,0),MATCH(Q$1,Ajustes!$E$4:$LG$4,0)),) -> 0 | R21: =IFERROR(INDEX(Ajustes!$E$14:$LG$300,MATCH($A21&"_"&R$2,Ajustes!$LI$14:$LI$300,0),MATCH(R$1,Ajustes!$E$4:$LG$4,0)),) -> 0 | S21: =IFERROR(INDEX(Ajustes!$E$14:$LG$300,MATCH($A21&"_"&S$2,Ajustes!$LI$14:$LI$300,0),MATCH(S$1,Ajustes!$E$4:$LG$4,0)),) -> 0 | T21: =IFERROR(INDEX(Ajustes!$E$14:$LG$300,MATCH($A21&"_"&T$2,Ajustes!$LI$14:$LI$300,0),MATCH(T$1,Ajustes!$E$4:$LG$4,0)),) -> 0 | U21: =IFERROR(INDEX(Ajustes!$E$14:$LG$300,MATCH($A21&"_"&U$2,Ajustes!$LI$14:$LI$300,0),MATCH(U$1,Ajustes!$E$4:$LG$4,0)),) -> 0 | V21: 0 | W21: =IFERROR(INDEX(Ajustes!$E$14:$LG$300,MATCH($A21&"_"&W$2,Ajustes!$LI$14:$LI$300,0),MATCH(W$1,Ajustes!$E$4:$LG$4,0)),) -> 0 | X21: =IFERROR(INDEX(Ajustes!$E$14:$LG$300,MATCH($A21&"_"&X$2,Ajustes!$LI$14:$LI$300,0),MATCH(X$1,Ajustes!$E$4:$LG$4,0)),) -> 0 | Y21: =IFERROR(INDEX(Ajustes!$E$14:$LG$300,MATCH($A21&"_"&Y$2,Ajustes!$LI$14:$LI$300,0),MATCH(Y$1,Ajustes!$E$4:$LG$4,0)),) -> 0 | Z21: =IFERROR(INDEX(Ajustes!$E$14:$LG$300,MATCH($A21&"_"&Z$2,Ajustes!$LI$14:$LI$300,0),MATCH(Z$1,Ajustes!$E$4:$LG$4,0)),) -> 0 | AA21: =IFERROR(INDEX(Ajustes!$E$14:$LG$300,MATCH($A21&"_"&AA$2,Ajustes!$LI$14:$LI$300,0),MATCH(AA$1,Ajustes!$E$4:$LG$4,0)),) -> 0 | AB21: =IFERROR(INDEX(Ajustes!$E$14:$LG$300,MATCH($A21&"_"&AB$2,Ajustes!$LI$14:$LI$300,0),MATCH(AB$1,Ajustes!$E$4:$LG$4,0)),) -> 0 | AC21: =IFERROR(INDEX(Ajustes!$E$14:$LG$300,MATCH($A21&"_"&AC$2,Ajustes!$LI$14:$LI$300,0),MATCH(AC$1,Ajustes!$E$4:$LG$4,0)),) -> 0 | AD21: =IFERROR(INDEX(Ajustes!$E$14:$LG$300,MATCH($A21&"_"&AD$2,Ajustes!$LI$14:$LI$300,0),MATCH(AD$1,Ajustes!$E$4:$LG$4,0)),) -> 0 | AE21: =IFERROR(INDEX(Ajustes!$E$14:$LG$300,MATCH($A21&"_"&AE$2,Ajustes!$LI$14:$LI$300,0),MATCH(AE$1,Ajustes!$E$4:$LG$4,0)),) -> 0 | AF21: =IFERROR(INDEX(Ajustes!$E$14:$LG$300,MATCH($A21&"_"&AF$2,Ajustes!$LI$14:$LI$300,0),MATCH(AF$1,Ajustes!$E$4:$LG$4,0)),) -> 0 | AG21: =IFERROR(INDEX(Ajustes!$E$14:$LG$300,MATCH($A21&"_"&AG$2,Ajustes!$LI$14:$LI$300,0),MATCH(AG$1,Ajustes!$E$4:$LG$4,0)),) -> 0 | AH21: =IFERROR(INDEX(Ajustes!$E$14:$LG$300,MATCH($A21&"_"&AH$2,Ajustes!$LI$14:$LI$300,0),MATCH(AH$1,Ajustes!$E$4:$LG$4,0)),) -> 0 | AI21: 0 | AJ21: 0 | AK21: 0 | AL21: 0 | AM21: =IFERROR(INDEX(Ajustes!$E$14:$LG$300,MATCH($A21&"_"&AM$2,Ajustes!$LI$14:$LI$300,0),MATCH(AM$1,Ajustes!$E$4:$LG$4,0)),) -> 0 | AN21: =IFERROR(INDEX(Ajustes!$E$14:$LG$300,MATCH($A21&"_"&AN$2,Ajustes!$LI$14:$LI$300,0),MATCH(AN$1,Ajustes!$E$4:$LG$4,0)),) -> 0 | AO21: =IFERROR(INDEX(Ajustes!$E$14:$LG$300,MATCH($A21&"_"&AO$2,Ajustes!$LI$14:$LI$300,0),MATCH(AO$1,Ajustes!$E$4:$LG$4,0)),) -> 0 | AP21: =IFERROR(INDEX(Ajustes!$E$14:$LG$300,MATCH($A21&"_"&AP$2,Ajustes!$LI$14:$LI$300,0),MATCH(AP$1,Ajustes!$E$4:$LG$4,0)),) -> 0 | AS21: 0 | AT21: 0 | AU21: 0 | AV21: 0 | AW21: 0 | AX21: 0 | AY21: 0 | AZ21: 0 | BB21: 0 | BC21: 0 | BD21: 0 | BE21: 0 | BF21: 0 | BG21: 0 | BH21: 0 | BI21: 0 | BL21: 0 | BM21: 0 | BN21: 0 | BO21: 0 | BP21: 0 | BQ21: 0 | BR21: 0 | BS21: 0 | BT21: 0 | BW21: 0 | BX21: 0 | BY21: 0 | BZ21: 0 | CA21: 0 | CB21: 0 | CC21: 0 | CD21: 0 | CG21: =IF(A21="",0,SUMIFS(Clientes!Q:Q,Clientes!C:C,A21)) -> 0 | CH21: =IF(A21="",0,SUMIFS(Energia!K:K,Energia!C:C,A21)) -> 0 | CI21: =IF(A21="",0,SUMIFS(Potencia!K:K,Potencia!B:B,A21,Potencia!M:M,CI$5)) -> 0 | CJ21: =IF(A21="",0,SUMIFS(Potencia!K:K,Potencia!B:B,A21,Potencia!M:M,CJ$5)) -> 0 | CK21: =IF(A21="",0,SUMIFS(Potencia!K:K,Potencia!B:B,A21,Potencia!M:M,CK$5)) -> 0 | CL21: =IF(A21="",0,SUMIFS(Clientes!K:K,Clientes!C:C,A21)) -> 0 | CM21: =IF(A21="",0,SUMIFS(Energia!K:K,Energia!B:B,A21,Energia!AA:AA,CM$5)) -> 0 | CN21: =IF(A21="",0,SUMIFS(Energia!K:K,Energia!B:B,A21,Energia!AA:AA,CN$5)) -> 0 | CO21: 0
A22: =Factores!C48 ->  | B22: =IFERROR(INDEX(Ajustes!$E$14:$LG$300,MATCH($A22&"_"&B$2,Ajustes!$LI$14:$LI$300,0),MATCH(B$1,Ajustes!$E$4:$LG$4,0)),) -> 0 | C22: =IFERROR(INDEX(Ajustes!$E$14:$LG$300,MATCH($A22&"_"&C$2,Ajustes!$LI$14:$LI$300,0),MATCH(C$1,Ajustes!$E$4:$LG$4,0)),) -> 0 | D22: =IFERROR(INDEX(Ajustes!$E$14:$LG$300,MATCH($A22&"_"&D$2,Ajustes!$LI$14:$LI$300,0),MATCH(D$1,Ajustes!$E$4:$LG$4,0)),) -> 0 | E22: =IFERROR(INDEX(Ajustes!$E$14:$LG$300,MATCH($A22&"_"&E$2,Ajustes!$LI$14:$LI$300,0),MATCH(E$1,Ajustes!$E$4:$LG$4,0)),) -> 0 | F22: =IFERROR(INDEX(Ajustes!$E$14:$LG$300,MATCH($A22&"_"&F$2,Ajustes!$LI$14:$LI$300,0),MATCH(F$1,Ajustes!$E$4:$LG$4,0)),) -> 0 | G22: =IFERROR(INDEX(Ajustes!$E$14:$LG$300,MATCH($A22&"_"&G$2,Ajustes!$LI$14:$LI$300,0),MATCH(G$1,Ajustes!$E$4:$LG$4,0)),) -> 0 | H22: =IFERROR(INDEX(Ajustes!$E$14:$LG$300,MATCH($A22&"_"&H$2,Ajustes!$LI$14:$LI$300,0),MATCH(H$1,Ajustes!$E$4:$LG$4,0)),) -> 0 | I22: =IFERROR(INDEX(Ajustes!$E$14:$LG$300,MATCH($A22&"_"&I$2,Ajustes!$LI$14:$LI$300,0),MATCH(I$1,Ajustes!$E$4:$LG$4,0)),) -> 0 | J22: =IFERROR(INDEX(Ajustes!$E$14:$LG$300,MATCH($A22&"_"&J$2,Ajustes!$LI$14:$LI$300,0),MATCH(J$1,Ajustes!$E$4:$LG$4,0)),) -> 0 | K22: =IFERROR(INDEX(Ajustes!$E$14:$LG$300,MATCH($A22&"_"&K$2,Ajustes!$LI$14:$LI$300,0),MATCH(K$1,Ajustes!$E$4:$LG$4,0)),) -> 0 | L22: =IFERROR(INDEX(Ajustes!$E$14:$LG$300,MATCH($A22&"_"&L$2,Ajustes!$LI$14:$LI$300,0),MATCH(L$1,Ajustes!$E$4:$LG$4,0)),) -> 0 | M22: =IFERROR(INDEX(Ajustes!$E$14:$LG$300,MATCH($A22&"_"&M$2,Ajustes!$LI$14:$LI$300,0),MATCH(M$1,Ajustes!$E$4:$LG$4,0)),) -> 0 | N22: =IFERROR(INDEX(Ajustes!$E$14:$LG$300,MATCH($A22&"_"&N$2,Ajustes!$LI$14:$LI$300,0),MATCH(N$1,Ajustes!$E$4:$LG$4,0)),) -> 0 | O22: =IFERROR(INDEX(Ajustes!$E$14:$LG$300,MATCH($A22&"_"&O$2,Ajustes!$LI$14:$LI$300,0),MATCH(O$1,Ajustes!$E$4:$LG$4,0)),) -> 0 | P22: =IFERROR(INDEX(Ajustes!$E$14:$LG$300,MATCH($A22&"_"&P$2,Ajustes!$LI$14:$LI$300,0),MATCH(P$1,Ajustes!$E$4:$LG$4,0)),) -> 0 | Q22: =IFERROR(INDEX(Ajustes!$E$14:$LG$300,MATCH($A22&"_"&Q$2,Ajustes!$LI$14:$LI$300,0),MATCH(Q$1,Ajustes!$E$4:$LG$4,0)),) -> 0 | R22: =IFERROR(INDEX(Ajustes!$E$14:$LG$300,MATCH($A22&"_"&R$2,Ajustes!$LI$14:$LI$300,0),MATCH(R$1,Ajustes!$E$4:$LG$4,0)),) -> 0 | S22: =IFERROR(INDEX(Ajustes!$E$14:$LG$300,MATCH($A22&"_"&S$2,Ajustes!$LI$14:$LI$300,0),MATCH(S$1,Ajustes!$E$4:$LG$4,0)),) -> 0 | T22: =IFERROR(INDEX(Ajustes!$E$14:$LG$300,MATCH($A22&"_"&T$2,Ajustes!$LI$14:$LI$300,0),MATCH(T$1,Ajustes!$E$4:$LG$4,0)),) -> 0 | U22: =IFERROR(INDEX(Ajustes!$E$14:$LG$300,MATCH($A22&"_"&U$2,Ajustes!$LI$14:$LI$300,0),MATCH(U$1,Ajustes!$E$4:$LG$4,0)),) -> 0 | V22: 0 | W22: =IFERROR(INDEX(Ajustes!$E$14:$LG$300,MATCH($A22&"_"&W$2,Ajustes!$LI$14:$LI$300,0),MATCH(W$1,Ajustes!$E$4:$LG$4,0)),) -> 0 | X22: =IFERROR(INDEX(Ajustes!$E$14:$LG$300,MATCH($A22&"_"&X$2,Ajustes!$LI$14:$LI$300,0),MATCH(X$1,Ajustes!$E$4:$LG$4,0)),) -> 0 | Y22: =IFERROR(INDEX(Ajustes!$E$14:$LG$300,MATCH($A22&"_"&Y$2,Ajustes!$LI$14:$LI$300,0),MATCH(Y$1,Ajustes!$E$4:$LG$4,0)),) -> 0 | Z22: =IFERROR(INDEX(Ajustes!$E$14:$LG$300,MATCH($A22&"_"&Z$2,Ajustes!$LI$14:$LI$300,0),MATCH(Z$1,Ajustes!$E$4:$LG$4,0)),) -> 0 | AA22: =IFERROR(INDEX(Ajustes!$E$14:$LG$300,MATCH($A22&"_"&AA$2,Ajustes!$LI$14:$LI$300,0),MATCH(AA$1,Ajustes!$E$4:$LG$4,0)),) -> 0 | AB22: =IFERROR(INDEX(Ajustes!$E$14:$LG$300,MATCH($A22&"_"&AB$2,Ajustes!$LI$14:$LI$300,0),MATCH(AB$1,Ajustes!$E$4:$LG$4,0)),) -> 0 | AC22: =IFERROR(INDEX(Ajustes!$E$14:$LG$300,MATCH($A22&"_"&AC$2,Ajustes!$LI$14:$LI$300,0),MATCH(AC$1,Ajustes!$E$4:$LG$4,0)),) -> 0 | AD22: =IFERROR(INDEX(Ajustes!$E$14:$LG$300,MATCH($A22&"_"&AD$2,Ajustes!$LI$14:$LI$300,0),MATCH(AD$1,Ajustes!$E$4:$LG$4,0)),) -> 0 | AE22: =IFERROR(INDEX(Ajustes!$E$14:$LG$300,MATCH($A22&"_"&AE$2,Ajustes!$LI$14:$LI$300,0),MATCH(AE$1,Ajustes!$E$4:$LG$4,0)),) -> 0 | AF22: =IFERROR(INDEX(Ajustes!$E$14:$LG$300,MATCH($A22&"_"&AF$2,Ajustes!$LI$14:$LI$300,0),MATCH(AF$1,Ajustes!$E$4:$LG$4,0)),) -> 0 | AG22: =IFERROR(INDEX(Ajustes!$E$14:$LG$300,MATCH($A22&"_"&AG$2,Ajustes!$LI$14:$LI$300,0),MATCH(AG$1,Ajustes!$E$4:$LG$4,0)),) -> 0 | AH22: =IFERROR(INDEX(Ajustes!$E$14:$LG$300,MATCH($A22&"_"&AH$2,Ajustes!$LI$14:$LI$300,0),MATCH(AH$1,Ajustes!$E$4:$LG$4,0)),) -> 0 | AI22: 0 | AJ22: 0 | AK22: 0 | AL22: 0 | AM22: =IFERROR(INDEX(Ajustes!$E$14:$LG$300,MATCH($A22&"_"&AM$2,Ajustes!$LI$14:$LI$300,0),MATCH(AM$1,Ajustes!$E$4:$LG$4,0)),) -> 0 | AN22: =IFERROR(INDEX(Ajustes!$E$14:$LG$300,MATCH($A22&"_"&AN$2,Ajustes!$LI$14:$LI$300,0),MATCH(AN$1,Ajustes!$E$4:$LG$4,0)),) -> 0 | AO22: =IFERROR(INDEX(Ajustes!$E$14:$LG$300,MATCH($A22&"_"&AO$2,Ajustes!$LI$14:$LI$300,0),MATCH(AO$1,Ajustes!$E$4:$LG$4,0)),) -> 0 | AP22: =IFERROR(INDEX(Ajustes!$E$14:$LG$300,MATCH($A22&"_"&AP$2,Ajustes!$LI$14:$LI$300,0),MATCH(AP$1,Ajustes!$E$4:$LG$4,0)),) -> 0 | AS22: 0 | AT22: 0 | AU22: 0 | AV22: 0 | AW22: 0 | AX22: 0 | AY22: 0 | AZ22: 0 | BB22: 0 | BC22: 0 | BD22: 0 | BE22: 0 | BF22: 0 | BG22: 0 | BH22: 0 | BI22: 0 | BL22: 0 | BM22: 0 | BN22: 0 | BO22: 0 | BP22: 0 | BQ22: 0 | BR22: 0 | BS22: 0 | BT22: 0 | BW22: 0 | BX22: 0 | BY22: 0 | BZ22: 0 | CA22: 0 | CB22: 0 | CC22: 0 | CD22: 0 | CG22: =IF(A22="",0,SUMIFS(Clientes!Q:Q,Clientes!C:C,A22)) -> 0 | CH22: =IF(A22="",0,SUMIFS(Energia!K:K,Energia!C:C,A22)) -> 0 | CI22: =IF(A22="",0,SUMIFS(Potencia!K:K,Potencia!B:B,A22,Potencia!M:M,CI$5)) -> 0 | CJ22: =IF(A22="",0,SUMIFS(Potencia!K:K,Potencia!B:B,A22,Potencia!M:M,CJ$5)) -> 0 | CK22: =IF(A22="",0,SUMIFS(Potencia!K:K,Potencia!B:B,A22,Potencia!M:M,CK$5)) -> 0 | CL22: =IF(A22="",0,SUMIFS(Clientes!K:K,Clientes!C:C,A22)) -> 0 | CM22: =IF(A22="",0,SUMIFS(Energia!K:K,Energia!B:B,A22,Energia!AA:AA,CM$5)) -> 0 | CN22: =IF(A22="",0,SUMIFS(Energia!K:K,Energia!B:B,A22,Energia!AA:AA,CN$5)) -> 0 | CO22: 0
A23: =Factores!C49 ->  | B23: =IFERROR(INDEX(Ajustes!$E$14:$LG$300,MATCH($A23&"_"&B$2,Ajustes!$LI$14:$LI$300,0),MATCH(B$1,Ajustes!$E$4:$LG$4,0)),) -> 0 | C23: =IFERROR(INDEX(Ajustes!$E$14:$LG$300,MATCH($A23&"_"&C$2,Ajustes!$LI$14:$LI$300,0),MATCH(C$1,Ajustes!$E$4:$LG$4,0)),) -> 0 | D23: =IFERROR(INDEX(Ajustes!$E$14:$LG$300,MATCH($A23&"_"&D$2,Ajustes!$LI$14:$LI$300,0),MATCH(D$1,Ajustes!$E$4:$LG$4,0)),) -> 0 | E23: =IFERROR(INDEX(Ajustes!$E$14:$LG$300,MATCH($A23&"_"&E$2,Ajustes!$LI$14:$LI$300,0),MATCH(E$1,Ajustes!$E$4:$LG$4,0)),) -> 0 | F23: =IFERROR(INDEX(Ajustes!$E$14:$LG$300,MATCH($A23&"_"&F$2,Ajustes!$LI$14:$LI$300,0),MATCH(F$1,Ajustes!$E$4:$LG$4,0)),) -> 0 | G23: =IFERROR(INDEX(Ajustes!$E$14:$LG$300,MATCH($A23&"_"&G$2,Ajustes!$LI$14:$LI$300,0),MATCH(G$1,Ajustes!$E$4:$LG$4,0)),) -> 0 | H23: =IFERROR(INDEX(Ajustes!$E$14:$LG$300,MATCH($A23&"_"&H$2,Ajustes!$LI$14:$LI$300,0),MATCH(H$1,Ajustes!$E$4:$LG$4,0)),) -> 0 | I23: =IFERROR(INDEX(Ajustes!$E$14:$LG$300,MATCH($A23&"_"&I$2,Ajustes!$LI$14:$LI$300,0),MATCH(I$1,Ajustes!$E$4:$LG$4,0)),) -> 0 | J23: =IFERROR(INDEX(Ajustes!$E$14:$LG$300,MATCH($A23&"_"&J$2,Ajustes!$LI$14:$LI$300,0),MATCH(J$1,Ajustes!$E$4:$LG$4,0)),) -> 0 | K23: =IFERROR(INDEX(Ajustes!$E$14:$LG$300,MATCH($A23&"_"&K$2,Ajustes!$LI$14:$LI$300,0),MATCH(K$1,Ajustes!$E$4:$LG$4,0)),) -> 0 | L23: =IFERROR(INDEX(Ajustes!$E$14:$LG$300,MATCH($A23&"_"&L$2,Ajustes!$LI$14:$LI$300,0),MATCH(L$1,Ajustes!$E$4:$LG$4,0)),) -> 0 | M23: =IFERROR(INDEX(Ajustes!$E$14:$LG$300,MATCH($A23&"_"&M$2,Ajustes!$LI$14:$LI$300,0),MATCH(M$1,Ajustes!$E$4:$LG$4,0)),) -> 0 | N23: =IFERROR(INDEX(Ajustes!$E$14:$LG$300,MATCH($A23&"_"&N$2,Ajustes!$LI$14:$LI$300,0),MATCH(N$1,Ajustes!$E$4:$LG$4,0)),) -> 0 | O23: =IFERROR(INDEX(Ajustes!$E$14:$LG$300,MATCH($A23&"_"&O$2,Ajustes!$LI$14:$LI$300,0),MATCH(O$1,Ajustes!$E$4:$LG$4,0)),) -> 0 | P23: =IFERROR(INDEX(Ajustes!$E$14:$LG$300,MATCH($A23&"_"&P$2,Ajustes!$LI$14:$LI$300,0),MATCH(P$1,Ajustes!$E$4:$LG$4,0)),) -> 0 | Q23: =IFERROR(INDEX(Ajustes!$E$14:$LG$300,MATCH($A23&"_"&Q$2,Ajustes!$LI$14:$LI$300,0),MATCH(Q$1,Ajustes!$E$4:$LG$4,0)),) -> 0 | R23: =IFERROR(INDEX(Ajustes!$E$14:$LG$300,MATCH($A23&"_"&R$2,Ajustes!$LI$14:$LI$300,0),MATCH(R$1,Ajustes!$E$4:$LG$4,0)),) -> 0 | S23: =IFERROR(INDEX(Ajustes!$E$14:$LG$300,MATCH($A23&"_"&S$2,Ajustes!$LI$14:$LI$300,0),MATCH(S$1,Ajustes!$E$4:$LG$4,0)),) -> 0 | T23: =IFERROR(INDEX(Ajustes!$E$14:$LG$300,MATCH($A23&"_"&T$2,Ajustes!$LI$14:$LI$300,0),MATCH(T$1,Ajustes!$E$4:$LG$4,0)),) -> 0 | U23: =IFERROR(INDEX(Ajustes!$E$14:$LG$300,MATCH($A23&"_"&U$2,Ajustes!$LI$14:$LI$300,0),MATCH(U$1,Ajustes!$E$4:$LG$4,0)),) -> 0 | V23: 0 | W23: =IFERROR(INDEX(Ajustes!$E$14:$LG$300,MATCH($A23&"_"&W$2,Ajustes!$LI$14:$LI$300,0),MATCH(W$1,Ajustes!$E$4:$LG$4,0)),) -> 0 | X23: =IFERROR(INDEX(Ajustes!$E$14:$LG$300,MATCH($A23&"_"&X$2,Ajustes!$LI$14:$LI$300,0),MATCH(X$1,Ajustes!$E$4:$LG$4,0)),) -> 0 | Y23: =IFERROR(INDEX(Ajustes!$E$14:$LG$300,MATCH($A23&"_"&Y$2,Ajustes!$LI$14:$LI$300,0),MATCH(Y$1,Ajustes!$E$4:$LG$4,0)),) -> 0 | Z23: =IFERROR(INDEX(Ajustes!$E$14:$LG$300,MATCH($A23&"_"&Z$2,Ajustes!$LI$14:$LI$300,0),MATCH(Z$1,Ajustes!$E$4:$LG$4,0)),) -> 0 | AA23: =IFERROR(INDEX(Ajustes!$E$14:$LG$300,MATCH($A23&"_"&AA$2,Ajustes!$LI$14:$LI$300,0),MATCH(AA$1,Ajustes!$E$4:$LG$4,0)),) -> 0 | AB23: =IFERROR(INDEX(Ajustes!$E$14:$LG$300,MATCH($A23&"_"&AB$2,Ajustes!$LI$14:$LI$300,0),MATCH(AB$1,Ajustes!$E$4:$LG$4,0)),) -> 0 | AC23: =IFERROR(INDEX(Ajustes!$E$14:$LG$300,MATCH($A23&"_"&AC$2,Ajustes!$LI$14:$LI$300,0),MATCH(AC$1,Ajustes!$E$4:$LG$4,0)),) -> 0 | AD23: =IFERROR(INDEX(Ajustes!$E$14:$LG$300,MATCH($A23&"_"&AD$2,Ajustes!$LI$14:$LI$300,0),MATCH(AD$1,Ajustes!$E$4:$LG$4,0)),) -> 0 | AE23: =IFERROR(INDEX(Ajustes!$E$14:$LG$300,MATCH($A23&"_"&AE$2,Ajustes!$LI$14:$LI$300,0),MATCH(AE$1,Ajustes!$E$4:$LG$4,0)),) -> 0 | AF23: =IFERROR(INDEX(Ajustes!$E$14:$LG$300,MATCH($A23&"_"&AF$2,Ajustes!$LI$14:$LI$300,0),MATCH(AF$1,Ajustes!$E$4:$LG$4,0)),) -> 0 | AG23: =IFERROR(INDEX(Ajustes!$E$14:$LG$300,MATCH($A23&"_"&AG$2,Ajustes!$LI$14:$LI$300,0),MATCH(AG$1,Ajustes!$E$4:$LG$4,0)),) -> 0 | AH23: =IFERROR(INDEX(Ajustes!$E$14:$LG$300,MATCH($A23&"_"&AH$2,Ajustes!$LI$14:$LI$300,0),MATCH(AH$1,Ajustes!$E$4:$LG$4,0)),) -> 0 | AI23: 0 | AJ23: 0 | AK23: 0 | AL23: 0 | AM23: =IFERROR(INDEX(Ajustes!$E$14:$LG$300,MATCH($A23&"_"&AM$2,Ajustes!$LI$14:$LI$300,0),MATCH(AM$1,Ajustes!$E$4:$LG$4,0)),) -> 0 | AN23: =IFERROR(INDEX(Ajustes!$E$14:$LG$300,MATCH($A23&"_"&AN$2,Ajustes!$LI$14:$LI$300,0),MATCH(AN$1,Ajustes!$E$4:$LG$4,0)),) -> 0 | AO23: =IFERROR(INDEX(Ajustes!$E$14:$LG$300,MATCH($A23&"_"&AO$2,Ajustes!$LI$14:$LI$300,0),MATCH(AO$1,Ajustes!$E$4:$LG$4,0)),) -> 0 | AP23: =IFERROR(INDEX(Ajustes!$E$14:$LG$300,MATCH($A23&"_"&AP$2,Ajustes!$LI$14:$LI$300,0),MATCH(AP$1,Ajustes!$E$4:$LG$4,0)),) -> 0 | AS23: 0 | AT23: 0 | AU23: 0 | AV23: 0 | AW23: 0 | AX23: 0 | AY23: 0 | AZ23: 0 | BB23: 0 | BC23: 0 | BD23: 0 | BE23: 0 | BF23: 0 | BG23: 0 | BH23: 0 | BI23: 0 | BL23: 0 | BM23: 0 | BN23: 0 | BO23: 0 | BP23: 0 | BQ23: 0 | BR23: 0 | BS23: 0 | BT23: 0 | BW23: 0 | BX23: 0 | BY23: 0 | BZ23: 0 | CA23: 0 | CB23: 0 | CC23: 0 | CD23: 0 | CG23: =IF(A23="",0,SUMIFS(Clientes!Q:Q,Clientes!C:C,A23)) -> 0 | CH23: =IF(A23="",0,SUMIFS(Energia!K:K,Energia!C:C,A23)) -> 0 | CI23: =IF(A23="",0,SUMIFS(Potencia!K:K,Potencia!B:B,A23,Potencia!M:M,CI$5)) -> 0 | CJ23: =IF(A23="",0,SUMIFS(Potencia!K:K,Potencia!B:B,A23,Potencia!M:M,CJ$5)) -> 0 | CK23: =IF(A23="",0,SUMIFS(Potencia!K:K,Potencia!B:B,A23,Potencia!M:M,CK$5)) -> 0 | CL23: =IF(A23="",0,SUMIFS(Clientes!K:K,Clientes!C:C,A23)) -> 0 | CM23: =IF(A23="",0,SUMIFS(Energia!K:K,Energia!B:B,A23,Energia!AA:AA,CM$5)) -> 0 | CN23: =IF(A23="",0,SUMIFS(Energia!K:K,Energia!B:B,A23,Energia!AA:AA,CN$5)) -> 0 | CO23: 0
A24: =Factores!C50 ->  | B24: =IFERROR(INDEX(Ajustes!$E$14:$LG$300,MATCH($A24&"_"&B$2,Ajustes!$LI$14:$LI$300,0),MATCH(B$1,Ajustes!$E$4:$LG$4,0)),) -> 0 | C24: =IFERROR(INDEX(Ajustes!$E$14:$LG$300,MATCH($A24&"_"&C$2,Ajustes!$LI$14:$LI$300,0),MATCH(C$1,Ajustes!$E$4:$LG$4,0)),) -> 0 | D24: =IFERROR(INDEX(Ajustes!$E$14:$LG$300,MATCH($A24&"_"&D$2,Ajustes!$LI$14:$LI$300,0),MATCH(D$1,Ajustes!$E$4:$LG$4,0)),) -> 0 | E24: =IFERROR(INDEX(Ajustes!$E$14:$LG$300,MATCH($A24&"_"&E$2,Ajustes!$LI$14:$LI$300,0),MATCH(E$1,Ajustes!$E$4:$LG$4,0)),) -> 0 | F24: =IFERROR(INDEX(Ajustes!$E$14:$LG$300,MATCH($A24&"_"&F$2,Ajustes!$LI$14:$LI$300,0),MATCH(F$1,Ajustes!$E$4:$LG$4,0)),) -> 0 | G24: =IFERROR(INDEX(Ajustes!$E$14:$LG$300,MATCH($A24&"_"&G$2,Ajustes!$LI$14:$LI$300,0),MATCH(G$1,Ajustes!$E$4:$LG$4,0)),) -> 0 | H24: =IFERROR(INDEX(Ajustes!$E$14:$LG$300,MATCH($A24&"_"&H$2,Ajustes!$LI$14:$LI$300,0),MATCH(H$1,Ajustes!$E$4:$LG$4,0)),) -> 0 | I24: =IFERROR(INDEX(Ajustes!$E$14:$LG$300,MATCH($A24&"_"&I$2,Ajustes!$LI$14:$LI$300,0),MATCH(I$1,Ajustes!$E$4:$LG$4,0)),) -> 0 | J24: =IFERROR(INDEX(Ajustes!$E$14:$LG$300,MATCH($A24&"_"&J$2,Ajustes!$LI$14:$LI$300,0),MATCH(J$1,Ajustes!$E$4:$LG$4,0)),) -> 0 | K24: =IFERROR(INDEX(Ajustes!$E$14:$LG$300,MATCH($A24&"_"&K$2,Ajustes!$LI$14:$LI$300,0),MATCH(K$1,Ajustes!$E$4:$LG$4,0)),) -> 0 | L24: =IFERROR(INDEX(Ajustes!$E$14:$LG$300,MATCH($A24&"_"&L$2,Ajustes!$LI$14:$LI$300,0),MATCH(L$1,Ajustes!$E$4:$LG$4,0)),) -> 0 | M24: =IFERROR(INDEX(Ajustes!$E$14:$LG$300,MATCH($A24&"_"&M$2,Ajustes!$LI$14:$LI$300,0),MATCH(M$1,Ajustes!$E$4:$LG$4,0)),) -> 0 | N24: =IFERROR(INDEX(Ajustes!$E$14:$LG$300,MATCH($A24&"_"&N$2,Ajustes!$LI$14:$LI$300,0),MATCH(N$1,Ajustes!$E$4:$LG$4,0)),) -> 0 | O24: =IFERROR(INDEX(Ajustes!$E$14:$LG$300,MATCH($A24&"_"&O$2,Ajustes!$LI$14:$LI$300,0),MATCH(O$1,Ajustes!$E$4:$LG$4,0)),) -> 0 | P24: =IFERROR(INDEX(Ajustes!$E$14:$LG$300,MATCH($A24&"_"&P$2,Ajustes!$LI$14:$LI$300,0),MATCH(P$1,Ajustes!$E$4:$LG$4,0)),) -> 0 | Q24: =IFERROR(INDEX(Ajustes!$E$14:$LG$300,MATCH($A24&"_"&Q$2,Ajustes!$LI$14:$LI$300,0),MATCH(Q$1,Ajustes!$E$4:$LG$4,0)),) -> 0 | R24: =IFERROR(INDEX(Ajustes!$E$14:$LG$300,MATCH($A24&"_"&R$2,Ajustes!$LI$14:$LI$300,0),MATCH(R$1,Ajustes!$E$4:$LG$4,0)),) -> 0 | S24: =IFERROR(INDEX(Ajustes!$E$14:$LG$300,MATCH($A24&"_"&S$2,Ajustes!$LI$14:$LI$300,0),MATCH(S$1,Ajustes!$E$4:$LG$4,0)),) -> 0 | T24: =IFERROR(INDEX(Ajustes!$E$14:$LG$300,MATCH($A24&"_"&T$2,Ajustes!$LI$14:$LI$300,0),MATCH(T$1,Ajustes!$E$4:$LG$4,0)),) -> 0 | U24: =IFERROR(INDEX(Ajustes!$E$14:$LG$300,MATCH($A24&"_"&U$2,Ajustes!$LI$14:$LI$300,0),MATCH(U$1,Ajustes!$E$4:$LG$4,0)),) -> 0 | V24: 0 | W24: =IFERROR(INDEX(Ajustes!$E$14:$LG$300,MATCH($A24&"_"&W$2,Ajustes!$LI$14:$LI$300,0),MATCH(W$1,Ajustes!$E$4:$LG$4,0)),) -> 0 | X24: =IFERROR(INDEX(Ajustes!$E$14:$LG$300,MATCH($A24&"_"&X$2,Ajustes!$LI$14:$LI$300,0),MATCH(X$1,Ajustes!$E$4:$LG$4,0)),) -> 0 | Y24: =IFERROR(INDEX(Ajustes!$E$14:$LG$300,MATCH($A24&"_"&Y$2,Ajustes!$LI$14:$LI$300,0),MATCH(Y$1,Ajustes!$E$4:$LG$4,0)),) -> 0 | Z24: =IFERROR(INDEX(Ajustes!$E$14:$LG$300,MATCH($A24&"_"&Z$2,Ajustes!$LI$14:$LI$300,0),MATCH(Z$1,Ajustes!$E$4:$LG$4,0)),) -> 0 | AA24: =IFERROR(INDEX(Ajustes!$E$14:$LG$300,MATCH($A24&"_"&AA$2,Ajustes!$LI$14:$LI$300,0),MATCH(AA$1,Ajustes!$E$4:$LG$4,0)),) -> 0 | AB24: =IFERROR(INDEX(Ajustes!$E$14:$LG$300,MATCH($A24&"_"&AB$2,Ajustes!$LI$14:$LI$300,0),MATCH(AB$1,Ajustes!$E$4:$LG$4,0)),) -> 0 | AC24: =IFERROR(INDEX(Ajustes!$E$14:$LG$300,MATCH($A24&"_"&AC$2,Ajustes!$LI$14:$LI$300,0),MATCH(AC$1,Ajustes!$E$4:$LG$4,0)),) -> 0 | AD24: =IFERROR(INDEX(Ajustes!$E$14:$LG$300,MATCH($A24&"_"&AD$2,Ajustes!$LI$14:$LI$300,0),MATCH(AD$1,Ajustes!$E$4:$LG$4,0)),) -> 0 | AE24: =IFERROR(INDEX(Ajustes!$E$14:$LG$300,MATCH($A24&"_"&AE$2,Ajustes!$LI$14:$LI$300,0),MATCH(AE$1,Ajustes!$E$4:$LG$4,0)),) -> 0 | AF24: =IFERROR(INDEX(Ajustes!$E$14:$LG$300,MATCH($A24&"_"&AF$2,Ajustes!$LI$14:$LI$300,0),MATCH(AF$1,Ajustes!$E$4:$LG$4,0)),) -> 0 | AG24: =IFERROR(INDEX(Ajustes!$E$14:$LG$300,MATCH($A24&"_"&AG$2,Ajustes!$LI$14:$LI$300,0),MATCH(AG$1,Ajustes!$E$4:$LG$4,0)),) -> 0 | AH24: =IFERROR(INDEX(Ajustes!$E$14:$LG$300,MATCH($A24&"_"&AH$2,Ajustes!$LI$14:$LI$300,0),MATCH(AH$1,Ajustes!$E$4:$LG$4,0)),) -> 0 | AI24: 0 | AJ24: 0 | AK24: 0 | AL24: 0 | AM24: =IFERROR(INDEX(Ajustes!$E$14:$LG$300,MATCH($A24&"_"&AM$2,Ajustes!$LI$14:$LI$300,0),MATCH(AM$1,Ajustes!$E$4:$LG$4,0)),) -> 0 | AN24: =IFERROR(INDEX(Ajustes!$E$14:$LG$300,MATCH($A24&"_"&AN$2,Ajustes!$LI$14:$LI$300,0),MATCH(AN$1,Ajustes!$E$4:$LG$4,0)),) -> 0 | AO24: =IFERROR(INDEX(Ajustes!$E$14:$LG$300,MATCH($A24&"_"&AO$2,Ajustes!$LI$14:$LI$300,0),MATCH(AO$1,Ajustes!$E$4:$LG$4,0)),) -> 0 | AP24: =IFERROR(INDEX(Ajustes!$E$14:$LG$300,MATCH($A24&"_"&AP$2,Ajustes!$LI$14:$LI$300,0),MATCH(AP$1,Ajustes!$E$4:$LG$4,0)),) -> 0 | AS24: 0 | AT24: 0 | AU24: 0 | AV24: 0 | AW24: 0 | AX24: 0 | AY24: 0 | AZ24: 0 | BB24: 0 | BC24: 0 | BD24: 0 | BE24: 0 | BF24: 0 | BG24: 0 | BH24: 0 | BI24: 0 | BL24: 0 | BM24: 0 | BN24: 0 | BO24: 0 | BP24: 0 | BQ24: 0 | BR24: 0 | BS24: 0 | BT24: 0 | BW24: 0 | BX24: 0 | BY24: 0 | BZ24: 0 | CA24: 0 | CB24: 0 | CC24: 0 | CD24: 0 | CG24: =IF(A24="",0,SUMIFS(Clientes!Q:Q,Clientes!C:C,A24)) -> 0 | CH24: =IF(A24="",0,SUMIFS(Energia!K:K,Energia!C:C,A24)) -> 0 | CI24: =IF(A24="",0,SUMIFS(Potencia!K:K,Potencia!B:B,A24,Potencia!M:M,CI$5)) -> 0 | CJ24: =IF(A24="",0,SUMIFS(Potencia!K:K,Potencia!B:B,A24,Potencia!M:M,CJ$5)) -> 0 | CK24: =IF(A24="",0,SUMIFS(Potencia!K:K,Potencia!B:B,A24,Potencia!M:M,CK$5)) -> 0 | CL24: =IF(A24="",0,SUMIFS(Clientes!K:K,Clientes!C:C,A24)) -> 0 | CM24: =IF(A24="",0,SUMIFS(Energia!K:K,Energia!B:B,A24,Energia!AA:AA,CM$5)) -> 0 | CN24: =IF(A24="",0,SUMIFS(Energia!K:K,Energia!B:B,A24,Energia!AA:AA,CN$5)) -> 0 | CO24: 0
A25: =Factores!C51 ->  | B25: =IFERROR(INDEX(Ajustes!$E$14:$LG$300,MATCH($A25&"_"&B$2,Ajustes!$LI$14:$LI$300,0),MATCH(B$1,Ajustes!$E$4:$LG$4,0)),) -> 0 | C25: =IFERROR(INDEX(Ajustes!$E$14:$LG$300,MATCH($A25&"_"&C$2,Ajustes!$LI$14:$LI$300,0),MATCH(C$1,Ajustes!$E$4:$LG$4,0)),) -> 0 | D25: =IFERROR(INDEX(Ajustes!$E$14:$LG$300,MATCH($A25&"_"&D$2,Ajustes!$LI$14:$LI$300,0),MATCH(D$1,Ajustes!$E$4:$LG$4,0)),) -> 0 | E25: =IFERROR(INDEX(Ajustes!$E$14:$LG$300,MATCH($A25&"_"&E$2,Ajustes!$LI$14:$LI$300,0),MATCH(E$1,Ajustes!$E$4:$LG$4,0)),) -> 0 | F25: =IFERROR(INDEX(Ajustes!$E$14:$LG$300,MATCH($A25&"_"&F$2,Ajustes!$LI$14:$LI$300,0),MATCH(F$1,Ajustes!$E$4:$LG$4,0)),) -> 0 | G25: =IFERROR(INDEX(Ajustes!$E$14:$LG$300,MATCH($A25&"_"&G$2,Ajustes!$LI$14:$LI$300,0),MATCH(G$1,Ajustes!$E$4:$LG$4,0)),) -> 0 | H25: =IFERROR(INDEX(Ajustes!$E$14:$LG$300,MATCH($A25&"_"&H$2,Ajustes!$LI$14:$LI$300,0),MATCH(H$1,Ajustes!$E$4:$LG$4,0)),) -> 0 | I25: =IFERROR(INDEX(Ajustes!$E$14:$LG$300,MATCH($A25&"_"&I$2,Ajustes!$LI$14:$LI$300,0),MATCH(I$1,Ajustes!$E$4:$LG$4,0)),) -> 0 | J25: =IFERROR(INDEX(Ajustes!$E$14:$LG$300,MATCH($A25&"_"&J$2,Ajustes!$LI$14:$LI$300,0),MATCH(J$1,Ajustes!$E$4:$LG$4,0)),) -> 0 | K25: =IFERROR(INDEX(Ajustes!$E$14:$LG$300,MATCH($A25&"_"&K$2,Ajustes!$LI$14:$LI$300,0),MATCH(K$1,Ajustes!$E$4:$LG$4,0)),) -> 0 | L25: =IFERROR(INDEX(Ajustes!$E$14:$LG$300,MATCH($A25&"_"&L$2,Ajustes!$LI$14:$LI$300,0),MATCH(L$1,Ajustes!$E$4:$LG$4,0)),) -> 0 | M25: =IFERROR(INDEX(Ajustes!$E$14:$LG$300,MATCH($A25&"_"&M$2,Ajustes!$LI$14:$LI$300,0),MATCH(M$1,Ajustes!$E$4:$LG$4,0)),) -> 0 | N25: =IFERROR(INDEX(Ajustes!$E$14:$LG$300,MATCH($A25&"_"&N$2,Ajustes!$LI$14:$LI$300,0),MATCH(N$1,Ajustes!$E$4:$LG$4,0)),) -> 0 | O25: =IFERROR(INDEX(Ajustes!$E$14:$LG$300,MATCH($A25&"_"&O$2,Ajustes!$LI$14:$LI$300,0),MATCH(O$1,Ajustes!$E$4:$LG$4,0)),) -> 0 | P25: =IFERROR(INDEX(Ajustes!$E$14:$LG$300,MATCH($A25&"_"&P$2,Ajustes!$LI$14:$LI$300,0),MATCH(P$1,Ajustes!$E$4:$LG$4,0)),) -> 0 | Q25: =IFERROR(INDEX(Ajustes!$E$14:$LG$300,MATCH($A25&"_"&Q$2,Ajustes!$LI$14:$LI$300,0),MATCH(Q$1,Ajustes!$E$4:$LG$4,0)),) -> 0 | R25: =IFERROR(INDEX(Ajustes!$E$14:$LG$300,MATCH($A25&"_"&R$2,Ajustes!$LI$14:$LI$300,0),MATCH(R$1,Ajustes!$E$4:$LG$4,0)),) -> 0 | S25: =IFERROR(INDEX(Ajustes!$E$14:$LG$300,MATCH($A25&"_"&S$2,Ajustes!$LI$14:$LI$300,0),MATCH(S$1,Ajustes!$E$4:$LG$4,0)),) -> 0 | T25: =IFERROR(INDEX(Ajustes!$E$14:$LG$300,MATCH($A25&"_"&T$2,Ajustes!$LI$14:$LI$300,0),MATCH(T$1,Ajustes!$E$4:$LG$4,0)),) -> 0 | U25: =IFERROR(INDEX(Ajustes!$E$14:$LG$300,MATCH($A25&"_"&U$2,Ajustes!$LI$14:$LI$300,0),MATCH(U$1,Ajustes!$E$4:$LG$4,0)),) -> 0 | V25: 0 | W25: =IFERROR(INDEX(Ajustes!$E$14:$LG$300,MATCH($A25&"_"&W$2,Ajustes!$LI$14:$LI$300,0),MATCH(W$1,Ajustes!$E$4:$LG$4,0)),) -> 0 | X25: =IFERROR(INDEX(Ajustes!$E$14:$LG$300,MATCH($A25&"_"&X$2,Ajustes!$LI$14:$LI$300,0),MATCH(X$1,Ajustes!$E$4:$LG$4,0)),) -> 0 | Y25: =IFERROR(INDEX(Ajustes!$E$14:$LG$300,MATCH($A25&"_"&Y$2,Ajustes!$LI$14:$LI$300,0),MATCH(Y$1,Ajustes!$E$4:$LG$4,0)),) -> 0 | Z25: =IFERROR(INDEX(Ajustes!$E$14:$LG$300,MATCH($A25&"_"&Z$2,Ajustes!$LI$14:$LI$300,0),MATCH(Z$1,Ajustes!$E$4:$LG$4,0)),) -> 0 | AA25: =IFERROR(INDEX(Ajustes!$E$14:$LG$300,MATCH($A25&"_"&AA$2,Ajustes!$LI$14:$LI$300,0),MATCH(AA$1,Ajustes!$E$4:$LG$4,0)),) -> 0 | AB25: =IFERROR(INDEX(Ajustes!$E$14:$LG$300,MATCH($A25&"_"&AB$2,Ajustes!$LI$14:$LI$300,0),MATCH(AB$1,Ajustes!$E$4:$LG$4,0)),) -> 0 | AC25: =IFERROR(INDEX(Ajustes!$E$14:$LG$300,MATCH($A25&"_"&AC$2,Ajustes!$LI$14:$LI$300,0),MATCH(AC$1,Ajustes!$E$4:$LG$4,0)),) -> 0 | AD25: =IFERROR(INDEX(Ajustes!$E$14:$LG$300,MATCH($A25&"_"&AD$2,Ajustes!$LI$14:$LI$300,0),MATCH(AD$1,Ajustes!$E$4:$LG$4,0)),) -> 0 | AE25: =IFERROR(INDEX(Ajustes!$E$14:$LG$300,MATCH($A25&"_"&AE$2,Ajustes!$LI$14:$LI$300,0),MATCH(AE$1,Ajustes!$E$4:$LG$4,0)),) -> 0 | AF25: =IFERROR(INDEX(Ajustes!$E$14:$LG$300,MATCH($A25&"_"&AF$2,Ajustes!$LI$14:$LI$300,0),MATCH(AF$1,Ajustes!$E$4:$LG$4,0)),) -> 0 | AG25: =IFERROR(INDEX(Ajustes!$E$14:$LG$300,MATCH($A25&"_"&AG$2,Ajustes!$LI$14:$LI$300,0),MATCH(AG$1,Ajustes!$E$4:$LG$4,0)),) -> 0 | AH25: =IFERROR(INDEX(Ajustes!$E$14:$LG$300,MATCH($A25&"_"&AH$2,Ajustes!$LI$14:$LI$300,0),MATCH(AH$1,Ajustes!$E$4:$LG$4,0)),) -> 0 | AI25: 0 | AJ25: 0 | AK25: 0 | AL25: 0 | AM25: =IFERROR(INDEX(Ajustes!$E$14:$LG$300,MATCH($A25&"_"&AM$2,Ajustes!$LI$14:$LI$300,0),MATCH(AM$1,Ajustes!$E$4:$LG$4,0)),) -> 0 | AN25: =IFERROR(INDEX(Ajustes!$E$14:$LG$300,MATCH($A25&"_"&AN$2,Ajustes!$LI$14:$LI$300,0),MATCH(AN$1,Ajustes!$E$4:$LG$4,0)),) -> 0 | AO25: =IFERROR(INDEX(Ajustes!$E$14:$LG$300,MATCH($A25&"_"&AO$2,Ajustes!$LI$14:$LI$300,0),MATCH(AO$1,Ajustes!$E$4:$LG$4,0)),) -> 0 | AP25: =IFERROR(INDEX(Ajustes!$E$14:$LG$300,MATCH($A25&"_"&AP$2,Ajustes!$LI$14:$LI$300,0),MATCH(AP$1,Ajustes!$E$4:$LG$4,0)),) -> 0 | AS25: 0 | AT25: 0 | AU25: 0 | AV25: 0 | AW25: 0 | AX25: 0 | AY25: 0 | AZ25: 0 | BB25: 0 | BC25: 0 | BD25: 0 | BE25: 0 | BF25: 0 | BG25: 0 | BH25: 0 | BI25: 0 | BL25: 0 | BM25: 0 | BN25: 0 | BO25: 0 | BP25: 0 | BQ25: 0 | BR25: 0 | BS25: 0 | BT25: 0 | BW25: 0 | BX25: 0 | BY25: 0 | BZ25: 0 | CA25: 0 | CB25: 0 | CC25: 0 | CD25: 0 | CG25: =IF(A25="",0,SUMIFS(Clientes!Q:Q,Clientes!C:C,A25)) -> 0 | CH25: =IF(A25="",0,SUMIFS(Energia!K:K,Energia!C:C,A25)) -> 0 | CI25: =IF(A25="",0,SUMIFS(Potencia!K:K,Potencia!B:B,A25,Potencia!M:M,CI$5)) -> 0 | CJ25: =IF(A25="",0,SUMIFS(Potencia!K:K,Potencia!B:B,A25,Potencia!M:M,CJ$5)) -> 0 | CK25: =IF(A25="",0,SUMIFS(Potencia!K:K,Potencia!B:B,A25,Potencia!M:M,CK$5)) -> 0 | CL25: =IF(A25="",0,SUMIFS(Clientes!K:K,Clientes!C:C,A25)) -> 0 | CM25: =IF(A25="",0,SUMIFS(Energia!K:K,Energia!B:B,A25,Energia!AA:AA,CM$5)) -> 0 | CN25: =IF(A25="",0,SUMIFS(Energia!K:K,Energia!B:B,A25,Energia!AA:AA,CN$5)) -> 0 | CO25: 0
A26: =Factores!C52 ->  | B26: =IFERROR(INDEX(Ajustes!$E$14:$LG$300,MATCH($A26&"_"&B$2,Ajustes!$LI$14:$LI$300,0),MATCH(B$1,Ajustes!$E$4:$LG$4,0)),) -> 0 | C26: =IFERROR(INDEX(Ajustes!$E$14:$LG$300,MATCH($A26&"_"&C$2,Ajustes!$LI$14:$LI$300,0),MATCH(C$1,Ajustes!$E$4:$LG$4,0)),) -> 0 | D26: =IFERROR(INDEX(Ajustes!$E$14:$LG$300,MATCH($A26&"_"&D$2,Ajustes!$LI$14:$LI$300,0),MATCH(D$1,Ajustes!$E$4:$LG$4,0)),) -> 0 | E26: =IFERROR(INDEX(Ajustes!$E$14:$LG$300,MATCH($A26&"_"&E$2,Ajustes!$LI$14:$LI$300,0),MATCH(E$1,Ajustes!$E$4:$LG$4,0)),) -> 0 | F26: =IFERROR(INDEX(Ajustes!$E$14:$LG$300,MATCH($A26&"_"&F$2,Ajustes!$LI$14:$LI$300,0),MATCH(F$1,Ajustes!$E$4:$LG$4,0)),) -> 0 | G26: =IFERROR(INDEX(Ajustes!$E$14:$LG$300,MATCH($A26&"_"&G$2,Ajustes!$LI$14:$LI$300,0),MATCH(G$1,Ajustes!$E$4:$LG$4,0)),) -> 0 | H26: =IFERROR(INDEX(Ajustes!$E$14:$LG$300,MATCH($A26&"_"&H$2,Ajustes!$LI$14:$LI$300,0),MATCH(H$1,Ajustes!$E$4:$LG$4,0)),) -> 0 | I26: =IFERROR(INDEX(Ajustes!$E$14:$LG$300,MATCH($A26&"_"&I$2,Ajustes!$LI$14:$LI$300,0),MATCH(I$1,Ajustes!$E$4:$LG$4,0)),) -> 0 | J26: =IFERROR(INDEX(Ajustes!$E$14:$LG$300,MATCH($A26&"_"&J$2,Ajustes!$LI$14:$LI$300,0),MATCH(J$1,Ajustes!$E$4:$LG$4,0)),) -> 0 | K26: =IFERROR(INDEX(Ajustes!$E$14:$LG$300,MATCH($A26&"_"&K$2,Ajustes!$LI$14:$LI$300,0),MATCH(K$1,Ajustes!$E$4:$LG$4,0)),) -> 0 | L26: =IFERROR(INDEX(Ajustes!$E$14:$LG$300,MATCH($A26&"_"&L$2,Ajustes!$LI$14:$LI$300,0),MATCH(L$1,Ajustes!$E$4:$LG$4,0)),) -> 0 | M26: =IFERROR(INDEX(Ajustes!$E$14:$LG$300,MATCH($A26&"_"&M$2,Ajustes!$LI$14:$LI$300,0),MATCH(M$1,Ajustes!$E$4:$LG$4,0)),) -> 0 | N26: =IFERROR(INDEX(Ajustes!$E$14:$LG$300,MATCH($A26&"_"&N$2,Ajustes!$LI$14:$LI$300,0),MATCH(N$1,Ajustes!$E$4:$LG$4,0)),) -> 0 | O26: =IFERROR(INDEX(Ajustes!$E$14:$LG$300,MATCH($A26&"_"&O$2,Ajustes!$LI$14:$LI$300,0),MATCH(O$1,Ajustes!$E$4:$LG$4,0)),) -> 0 | P26: =IFERROR(INDEX(Ajustes!$E$14:$LG$300,MATCH($A26&"_"&P$2,Ajustes!$LI$14:$LI$300,0),MATCH(P$1,Ajustes!$E$4:$LG$4,0)),) -> 0 | Q26: =IFERROR(INDEX(Ajustes!$E$14:$LG$300,MATCH($A26&"_"&Q$2,Ajustes!$LI$14:$LI$300,0),MATCH(Q$1,Ajustes!$E$4:$LG$4,0)),) -> 0 | R26: =IFERROR(INDEX(Ajustes!$E$14:$LG$300,MATCH($A26&"_"&R$2,Ajustes!$LI$14:$LI$300,0),MATCH(R$1,Ajustes!$E$4:$LG$4,0)),) -> 0 | S26: =IFERROR(INDEX(Ajustes!$E$14:$LG$300,MATCH($A26&"_"&S$2,Ajustes!$LI$14:$LI$300,0),MATCH(S$1,Ajustes!$E$4:$LG$4,0)),) -> 0 | T26: =IFERROR(INDEX(Ajustes!$E$14:$LG$300,MATCH($A26&"_"&T$2,Ajustes!$LI$14:$LI$300,0),MATCH(T$1,Ajustes!$E$4:$LG$4,0)),) -> 0 | U26: =IFERROR(INDEX(Ajustes!$E$14:$LG$300,MATCH($A26&"_"&U$2,Ajustes!$LI$14:$LI$300,0),MATCH(U$1,Ajustes!$E$4:$LG$4,0)),) -> 0 | V26: 0 | W26: =IFERROR(INDEX(Ajustes!$E$14:$LG$300,MATCH($A26&"_"&W$2,Ajustes!$LI$14:$LI$300,0),MATCH(W$1,Ajustes!$E$4:$LG$4,0)),) -> 0 | X26: =IFERROR(INDEX(Ajustes!$E$14:$LG$300,MATCH($A26&"_"&X$2,Ajustes!$LI$14:$LI$300,0),MATCH(X$1,Ajustes!$E$4:$LG$4,0)),) -> 0 | Y26: =IFERROR(INDEX(Ajustes!$E$14:$LG$300,MATCH($A26&"_"&Y$2,Ajustes!$LI$14:$LI$300,0),MATCH(Y$1,Ajustes!$E$4:$LG$4,0)),) -> 0 | Z26: =IFERROR(INDEX(Ajustes!$E$14:$LG$300,MATCH($A26&"_"&Z$2,Ajustes!$LI$14:$LI$300,0),MATCH(Z$1,Ajustes!$E$4:$LG$4,0)),) -> 0 | AA26: =IFERROR(INDEX(Ajustes!$E$14:$LG$300,MATCH($A26&"_"&AA$2,Ajustes!$LI$14:$LI$300,0),MATCH(AA$1,Ajustes!$E$4:$LG$4,0)),) -> 0 | AB26: =IFERROR(INDEX(Ajustes!$E$14:$LG$300,MATCH($A26&"_"&AB$2,Ajustes!$LI$14:$LI$300,0),MATCH(AB$1,Ajustes!$E$4:$LG$4,0)),) -> 0 | AC26: =IFERROR(INDEX(Ajustes!$E$14:$LG$300,MATCH($A26&"_"&AC$2,Ajustes!$LI$14:$LI$300,0),MATCH(AC$1,Ajustes!$E$4:$LG$4,0)),) -> 0 | AD26: =IFERROR(INDEX(Ajustes!$E$14:$LG$300,MATCH($A26&"_"&AD$2,Ajustes!$LI$14:$LI$300,0),MATCH(AD$1,Ajustes!$E$4:$LG$4,0)),) -> 0 | AE26: =IFERROR(INDEX(Ajustes!$E$14:$LG$300,MATCH($A26&"_"&AE$2,Ajustes!$LI$14:$LI$300,0),MATCH(AE$1,Ajustes!$E$4:$LG$4,0)),) -> 0 | AF26: =IFERROR(INDEX(Ajustes!$E$14:$LG$300,MATCH($A26&"_"&AF$2,Ajustes!$LI$14:$LI$300,0),MATCH(AF$1,Ajustes!$E$4:$LG$4,0)),) -> 0 | AG26: =IFERROR(INDEX(Ajustes!$E$14:$LG$300,MATCH($A26&"_"&AG$2,Ajustes!$LI$14:$LI$300,0),MATCH(AG$1,Ajustes!$E$4:$LG$4,0)),) -> 0 | AH26: =IFERROR(INDEX(Ajustes!$E$14:$LG$300,MATCH($A26&"_"&AH$2,Ajustes!$LI$14:$LI$300,0),MATCH(AH$1,Ajustes!$E$4:$LG$4,0)),) -> 0 | AI26: 0 | AJ26: 0 | AK26: 0 | AL26: 0 | AM26: =IFERROR(INDEX(Ajustes!$E$14:$LG$300,MATCH($A26&"_"&AM$2,Ajustes!$LI$14:$LI$300,0),MATCH(AM$1,Ajustes!$E$4:$LG$4,0)),) -> 0 | AN26: =IFERROR(INDEX(Ajustes!$E$14:$LG$300,MATCH($A26&"_"&AN$2,Ajustes!$LI$14:$LI$300,0),MATCH(AN$1,Ajustes!$E$4:$LG$4,0)),) -> 0 | AO26: =IFERROR(INDEX(Ajustes!$E$14:$LG$300,MATCH($A26&"_"&AO$2,Ajustes!$LI$14:$LI$300,0),MATCH(AO$1,Ajustes!$E$4:$LG$4,0)),) -> 0 | AP26: =IFERROR(INDEX(Ajustes!$E$14:$LG$300,MATCH($A26&"_"&AP$2,Ajustes!$LI$14:$LI$300,0),MATCH(AP$1,Ajustes!$E$4:$LG$4,0)),) -> 0 | AS26: 0 | AT26: 0 | AU26: 0 | AV26: 0 | AW26: 0 | AX26: 0 | AY26: 0 | AZ26: 0 | BB26: 0 | BC26: 0 | BD26: 0 | BE26: 0 | BF26: 0 | BG26: 0 | BH26: 0 | BI26: 0 | BL26: 0 | BM26: 0 | BN26: 0 | BO26: 0 | BP26: 0 | BQ26: 0 | BR26: 0 | BS26: 0 | BT26: 0 | BW26: 0 | BX26: 0 | BY26: 0 | BZ26: 0 | CA26: 0 | CB26: 0 | CC26: 0 | CD26: 0 | CG26: =IF(A26="",0,SUMIFS(Clientes!Q:Q,Clientes!C:C,A26)) -> 0 | CH26: =IF(A26="",0,SUMIFS(Energia!K:K,Energia!C:C,A26)) -> 0 | CI26: =IF(A26="",0,SUMIFS(Potencia!K:K,Potencia!B:B,A26,Potencia!M:M,CI$5)) -> 0 | CJ26: =IF(A26="",0,SUMIFS(Potencia!K:K,Potencia!B:B,A26,Potencia!M:M,CJ$5)) -> 0 | CK26: =IF(A26="",0,SUMIFS(Potencia!K:K,Potencia!B:B,A26,Potencia!M:M,CK$5)) -> 0 | CL26: =IF(A26="",0,SUMIFS(Clientes!K:K,Clientes!C:C,A26)) -> 0 | CM26: =IF(A26="",0,SUMIFS(Energia!K:K,Energia!B:B,A26,Energia!AA:AA,CM$5)) -> 0 | CN26: =IF(A26="",0,SUMIFS(Energia!K:K,Energia!B:B,A26,Energia!AA:AA,CN$5)) -> 0 | CO26: 0
A27: =Factores!C53 ->  | B27: =IFERROR(INDEX(Ajustes!$E$14:$LG$300,MATCH($A27&"_"&B$2,Ajustes!$LI$14:$LI$300,0),MATCH(B$1,Ajustes!$E$4:$LG$4,0)),) -> 0 | C27: =IFERROR(INDEX(Ajustes!$E$14:$LG$300,MATCH($A27&"_"&C$2,Ajustes!$LI$14:$LI$300,0),MATCH(C$1,Ajustes!$E$4:$LG$4,0)),) -> 0 | D27: =IFERROR(INDEX(Ajustes!$E$14:$LG$300,MATCH($A27&"_"&D$2,Ajustes!$LI$14:$LI$300,0),MATCH(D$1,Ajustes!$E$4:$LG$4,0)),) -> 0 | E27: =IFERROR(INDEX(Ajustes!$E$14:$LG$300,MATCH($A27&"_"&E$2,Ajustes!$LI$14:$LI$300,0),MATCH(E$1,Ajustes!$E$4:$LG$4,0)),) -> 0 | F27: =IFERROR(INDEX(Ajustes!$E$14:$LG$300,MATCH($A27&"_"&F$2,Ajustes!$LI$14:$LI$300,0),MATCH(F$1,Ajustes!$E$4:$LG$4,0)),) -> 0 | G27: =IFERROR(INDEX(Ajustes!$E$14:$LG$300,MATCH($A27&"_"&G$2,Ajustes!$LI$14:$LI$300,0),MATCH(G$1,Ajustes!$E$4:$LG$4,0)),) -> 0 | H27: =IFERROR(INDEX(Ajustes!$E$14:$LG$300,MATCH($A27&"_"&H$2,Ajustes!$LI$14:$LI$300,0),MATCH(H$1,Ajustes!$E$4:$LG$4,0)),) -> 0 | I27: =IFERROR(INDEX(Ajustes!$E$14:$LG$300,MATCH($A27&"_"&I$2,Ajustes!$LI$14:$LI$300,0),MATCH(I$1,Ajustes!$E$4:$LG$4,0)),) -> 0 | J27: =IFERROR(INDEX(Ajustes!$E$14:$LG$300,MATCH($A27&"_"&J$2,Ajustes!$LI$14:$LI$300,0),MATCH(J$1,Ajustes!$E$4:$LG$4,0)),) -> 0 | K27: =IFERROR(INDEX(Ajustes!$E$14:$LG$300,MATCH($A27&"_"&K$2,Ajustes!$LI$14:$LI$300,0),MATCH(K$1,Ajustes!$E$4:$LG$4,0)),) -> 0 | L27: =IFERROR(INDEX(Ajustes!$E$14:$LG$300,MATCH($A27&"_"&L$2,Ajustes!$LI$14:$LI$300,0),MATCH(L$1,Ajustes!$E$4:$LG$4,0)),) -> 0 | M27: =IFERROR(INDEX(Ajustes!$E$14:$LG$300,MATCH($A27&"_"&M$2,Ajustes!$LI$14:$LI$300,0),MATCH(M$1,Ajustes!$E$4:$LG$4,0)),) -> 0 | N27: =IFERROR(INDEX(Ajustes!$E$14:$LG$300,MATCH($A27&"_"&N$2,Ajustes!$LI$14:$LI$300,0),MATCH(N$1,Ajustes!$E$4:$LG$4,0)),) -> 0 | O27: =IFERROR(INDEX(Ajustes!$E$14:$LG$300,MATCH($A27&"_"&O$2,Ajustes!$LI$14:$LI$300,0),MATCH(O$1,Ajustes!$E$4:$LG$4,0)),) -> 0 | P27: =IFERROR(INDEX(Ajustes!$E$14:$LG$300,MATCH($A27&"_"&P$2,Ajustes!$LI$14:$LI$300,0),MATCH(P$1,Ajustes!$E$4:$LG$4,0)),) -> 0 | Q27: =IFERROR(INDEX(Ajustes!$E$14:$LG$300,MATCH($A27&"_"&Q$2,Ajustes!$LI$14:$LI$300,0),MATCH(Q$1,Ajustes!$E$4:$LG$4,0)),) -> 0 | R27: =IFERROR(INDEX(Ajustes!$E$14:$LG$300,MATCH($A27&"_"&R$2,Ajustes!$LI$14:$LI$300,0),MATCH(R$1,Ajustes!$E$4:$LG$4,0)),) -> 0 | S27: =IFERROR(INDEX(Ajustes!$E$14:$LG$300,MATCH($A27&"_"&S$2,Ajustes!$LI$14:$LI$300,0),MATCH(S$1,Ajustes!$E$4:$LG$4,0)),) -> 0 | T27: =IFERROR(INDEX(Ajustes!$E$14:$LG$300,MATCH($A27&"_"&T$2,Ajustes!$LI$14:$LI$300,0),MATCH(T$1,Ajustes!$E$4:$LG$4,0)),) -> 0 | U27: =IFERROR(INDEX(Ajustes!$E$14:$LG$300,MATCH($A27&"_"&U$2,Ajustes!$LI$14:$LI$300,0),MATCH(U$1,Ajustes!$E$4:$LG$4,0)),) -> 0 | V27: 0 | W27: =IFERROR(INDEX(Ajustes!$E$14:$LG$300,MATCH($A27&"_"&W$2,Ajustes!$LI$14:$LI$300,0),MATCH(W$1,Ajustes!$E$4:$LG$4,0)),) -> 0 | X27: =IFERROR(INDEX(Ajustes!$E$14:$LG$300,MATCH($A27&"_"&X$2,Ajustes!$LI$14:$LI$300,0),MATCH(X$1,Ajustes!$E$4:$LG$4,0)),) -> 0 | Y27: =IFERROR(INDEX(Ajustes!$E$14:$LG$300,MATCH($A27&"_"&Y$2,Ajustes!$LI$14:$LI$300,0),MATCH(Y$1,Ajustes!$E$4:$LG$4,0)),) -> 0 | Z27: =IFERROR(INDEX(Ajustes!$E$14:$LG$300,MATCH($A27&"_"&Z$2,Ajustes!$LI$14:$LI$300,0),MATCH(Z$1,Ajustes!$E$4:$LG$4,0)),) -> 0 | AA27: =IFERROR(INDEX(Ajustes!$E$14:$LG$300,MATCH($A27&"_"&AA$2,Ajustes!$LI$14:$LI$300,0),MATCH(AA$1,Ajustes!$E$4:$LG$4,0)),) -> 0 | AB27: =IFERROR(INDEX(Ajustes!$E$14:$LG$300,MATCH($A27&"_"&AB$2,Ajustes!$LI$14:$LI$300,0),MATCH(AB$1,Ajustes!$E$4:$LG$4,0)),) -> 0 | AC27: =IFERROR(INDEX(Ajustes!$E$14:$LG$300,MATCH($A27&"_"&AC$2,Ajustes!$LI$14:$LI$300,0),MATCH(AC$1,Ajustes!$E$4:$LG$4,0)),) -> 0 | AD27: =IFERROR(INDEX(Ajustes!$E$14:$LG$300,MATCH($A27&"_"&AD$2,Ajustes!$LI$14:$LI$300,0),MATCH(AD$1,Ajustes!$E$4:$LG$4,0)),) -> 0 | AE27: =IFERROR(INDEX(Ajustes!$E$14:$LG$300,MATCH($A27&"_"&AE$2,Ajustes!$LI$14:$LI$300,0),MATCH(AE$1,Ajustes!$E$4:$LG$4,0)),) -> 0 | AF27: =IFERROR(INDEX(Ajustes!$E$14:$LG$300,MATCH($A27&"_"&AF$2,Ajustes!$LI$14:$LI$300,0),MATCH(AF$1,Ajustes!$E$4:$LG$4,0)),) -> 0 | AG27: =IFERROR(INDEX(Ajustes!$E$14:$LG$300,MATCH($A27&"_"&AG$2,Ajustes!$LI$14:$LI$300,0),MATCH(AG$1,Ajustes!$E$4:$LG$4,0)),) -> 0 | AH27: =IFERROR(INDEX(Ajustes!$E$14:$LG$300,MATCH($A27&"_"&AH$2,Ajustes!$LI$14:$LI$300,0),MATCH(AH$1,Ajustes!$E$4:$LG$4,0)),) -> 0 | AI27: 0 | AJ27: 0 | AK27: 0 | AL27: 0 | AM27: =IFERROR(INDEX(Ajustes!$E$14:$LG$300,MATCH($A27&"_"&AM$2,Ajustes!$LI$14:$LI$300,0),MATCH(AM$1,Ajustes!$E$4:$LG$4,0)),) -> 0 | AN27: =IFERROR(INDEX(Ajustes!$E$14:$LG$300,MATCH($A27&"_"&AN$2,Ajustes!$LI$14:$LI$300,0),MATCH(AN$1,Ajustes!$E$4:$LG$4,0)),) -> 0 | AO27: =IFERROR(INDEX(Ajustes!$E$14:$LG$300,MATCH($A27&"_"&AO$2,Ajustes!$LI$14:$LI$300,0),MATCH(AO$1,Ajustes!$E$4:$LG$4,0)),) -> 0 | AP27: =IFERROR(INDEX(Ajustes!$E$14:$LG$300,MATCH($A27&"_"&AP$2,Ajustes!$LI$14:$LI$300,0),MATCH(AP$1,Ajustes!$E$4:$LG$4,0)),) -> 0 | AS27: 0 | AT27: 0 | AU27: 0 | AV27: 0 | AW27: 0 | AX27: 0 | AY27: 0 | AZ27: 0 | BB27: 0 | BC27: 0 | BD27: 0 | BE27: 0 | BF27: 0 | BG27: 0 | BH27: 0 | BI27: 0 | BL27: 0 | BM27: 0 | BN27: 0 | BO27: 0 | BP27: 0 | BQ27: 0 | BR27: 0 | BS27: 0 | BT27: 0 | BW27: 0 | BX27: 0 | BY27: 0 | BZ27: 0 | CA27: 0 | CB27: 0 | CC27: 0 | CD27: 0 | CG27: =IF(A27="",0,SUMIFS(Clientes!Q:Q,Clientes!C:C,A27)) -> 0 | CH27: =IF(A27="",0,SUMIFS(Energia!K:K,Energia!C:C,A27)) -> 0 | CI27: =IF(A27="",0,SUMIFS(Potencia!K:K,Potencia!B:B,A27,Potencia!M:M,CI$5)) -> 0 | CJ27: =IF(A27="",0,SUMIFS(Potencia!K:K,Potencia!B:B,A27,Potencia!M:M,CJ$5)) -> 0 | CK27: =IF(A27="",0,SUMIFS(Potencia!K:K,Potencia!B:B,A27,Potencia!M:M,CK$5)) -> 0 | CL27: =IF(A27="",0,SUMIFS(Clientes!K:K,Clientes!C:C,A27)) -> 0 | CM27: =IF(A27="",0,SUMIFS(Energia!K:K,Energia!B:B,A27,Energia!AA:AA,CM$5)) -> 0 | CN27: =IF(A27="",0,SUMIFS(Energia!K:K,Energia!B:B,A27,Energia!AA:AA,CN$5)) -> 0 | CO27: 0
A28: =Factores!C54 -> AP | B28: =IFERROR(INDEX(Ajustes!$E$14:$LG$300,MATCH($A28&"_"&B$2,Ajustes!$LI$14:$LI$300,0),MATCH(B$1,Ajustes!$E$4:$LG$4,0)),) -> 0 | C28: =IFERROR(INDEX(Ajustes!$E$14:$LG$300,MATCH($A28&"_"&C$2,Ajustes!$LI$14:$LI$300,0),MATCH(C$1,Ajustes!$E$4:$LG$4,0)),) -> 0 | D28: =IFERROR(INDEX(Ajustes!$E$14:$LG$300,MATCH($A28&"_"&D$2,Ajustes!$LI$14:$LI$300,0),MATCH(D$1,Ajustes!$E$4:$LG$4,0)),) -> 0 | E28: =IFERROR(INDEX(Ajustes!$E$14:$LG$300,MATCH($A28&"_"&E$2,Ajustes!$LI$14:$LI$300,0),MATCH(E$1,Ajustes!$E$4:$LG$4,0)),) -> 0 | F28: =IFERROR(INDEX(Ajustes!$E$14:$LG$300,MATCH($A28&"_"&F$2,Ajustes!$LI$14:$LI$300,0),MATCH(F$1,Ajustes!$E$4:$LG$4,0)),) -> 0 | G28: =IFERROR(INDEX(Ajustes!$E$14:$LG$300,MATCH($A28&"_"&G$2,Ajustes!$LI$14:$LI$300,0),MATCH(G$1,Ajustes!$E$4:$LG$4,0)),) -> 0 | H28: =IFERROR(INDEX(Ajustes!$E$14:$LG$300,MATCH($A28&"_"&H$2,Ajustes!$LI$14:$LI$300,0),MATCH(H$1,Ajustes!$E$4:$LG$4,0)),) -> 0 | I28: =IFERROR(INDEX(Ajustes!$E$14:$LG$300,MATCH($A28&"_"&I$2,Ajustes!$LI$14:$LI$300,0),MATCH(I$1,Ajustes!$E$4:$LG$4,0)),) -> 0 | J28: =IFERROR(INDEX(Ajustes!$E$14:$LG$300,MATCH($A28&"_"&J$2,Ajustes!$LI$14:$LI$300,0),MATCH(J$1,Ajustes!$E$4:$LG$4,0)),) -> 0 | K28: =IFERROR(INDEX(Ajustes!$E$14:$LG$300,MATCH($A28&"_"&K$2,Ajustes!$LI$14:$LI$300,0),MATCH(K$1,Ajustes!$E$4:$LG$4,0)),) -> 0 | L28: =IFERROR(INDEX(Ajustes!$E$14:$LG$300,MATCH($A28&"_"&L$2,Ajustes!$LI$14:$LI$300,0),MATCH(L$1,Ajustes!$E$4:$LG$4,0)),) -> 0 | M28: =IFERROR(INDEX(Ajustes!$E$14:$LG$300,MATCH($A28&"_"&M$2,Ajustes!$LI$14:$LI$300,0),MATCH(M$1,Ajustes!$E$4:$LG$4,0)),) -> 0 | N28: =IFERROR(INDEX(Ajustes!$E$14:$LG$300,MATCH($A28&"_"&N$2,Ajustes!$LI$14:$LI$300,0),MATCH(N$1,Ajustes!$E$4:$LG$4,0)),) -> 0 | O28: =IFERROR(INDEX(Ajustes!$E$14:$LG$300,MATCH($A28&"_"&O$2,Ajustes!$LI$14:$LI$300,0),MATCH(O$1,Ajustes!$E$4:$LG$4,0)),) -> 0 | P28: =IFERROR(INDEX(Ajustes!$E$14:$LG$300,MATCH($A28&"_"&P$2,Ajustes!$LI$14:$LI$300,0),MATCH(P$1,Ajustes!$E$4:$LG$4,0)),) -> 0 | Q28: =IFERROR(INDEX(Ajustes!$E$14:$LG$300,MATCH($A28&"_"&Q$2,Ajustes!$LI$14:$LI$300,0),MATCH(Q$1,Ajustes!$E$4:$LG$4,0)),) -> 0 | R28: =IFERROR(INDEX(Ajustes!$E$14:$LG$300,MATCH($A28&"_"&R$2,Ajustes!$LI$14:$LI$300,0),MATCH(R$1,Ajustes!$E$4:$LG$4,0)),) -> 0 | S28: =IFERROR(INDEX(Ajustes!$E$14:$LG$300,MATCH($A28&"_"&S$2,Ajustes!$LI$14:$LI$300,0),MATCH(S$1,Ajustes!$E$4:$LG$4,0)),) -> 0 | T28: =IFERROR(INDEX(Ajustes!$E$14:$LG$300,MATCH($A28&"_"&T$2,Ajustes!$LI$14:$LI$300,0),MATCH(T$1,Ajustes!$E$4:$LG$4,0)),) -> 0 | U28: =IFERROR(INDEX(Ajustes!$E$14:$LG$300,MATCH($A28&"_"&U$2,Ajustes!$LI$14:$LI$300,0),MATCH(U$1,Ajustes!$E$4:$LG$4,0)),) -> 0 | V28: 0 | W28: =IFERROR(INDEX(Ajustes!$E$14:$LG$300,MATCH($A28&"_"&W$2,Ajustes!$LI$14:$LI$300,0),MATCH(W$1,Ajustes!$E$4:$LG$4,0)),) -> 0 | X28: =IFERROR(INDEX(Ajustes!$E$14:$LG$300,MATCH($A28&"_"&X$2,Ajustes!$LI$14:$LI$300,0),MATCH(X$1,Ajustes!$E$4:$LG$4,0)),) -> 0 | Y28: =IFERROR(INDEX(Ajustes!$E$14:$LG$300,MATCH($A28&"_"&Y$2,Ajustes!$LI$14:$LI$300,0),MATCH(Y$1,Ajustes!$E$4:$LG$4,0)),) -> 0 | Z28: =IFERROR(INDEX(Ajustes!$E$14:$LG$300,MATCH($A28&"_"&Z$2,Ajustes!$LI$14:$LI$300,0),MATCH(Z$1,Ajustes!$E$4:$LG$4,0)),) -> 0 | AA28: =IFERROR(INDEX(Ajustes!$E$14:$LG$300,MATCH($A28&"_"&AA$2,Ajustes!$LI$14:$LI$300,0),MATCH(AA$1,Ajustes!$E$4:$LG$4,0)),) -> 0 | AB28: =IFERROR(INDEX(Ajustes!$E$14:$LG$300,MATCH($A28&"_"&AB$2,Ajustes!$LI$14:$LI$300,0),MATCH(AB$1,Ajustes!$E$4:$LG$4,0)),) -> 0 | AC28: =IFERROR(INDEX(Ajustes!$E$14:$LG$300,MATCH($A28&"_"&AC$2,Ajustes!$LI$14:$LI$300,0),MATCH(AC$1,Ajustes!$E$4:$LG$4,0)),) -> 0 | AD28: =IFERROR(INDEX(Ajustes!$E$14:$LG$300,MATCH($A28&"_"&AD$2,Ajustes!$LI$14:$LI$300,0),MATCH(AD$1,Ajustes!$E$4:$LG$4,0)),) -> 0 | AE28: =IFERROR(INDEX(Ajustes!$E$14:$LG$300,MATCH($A28&"_"&AE$2,Ajustes!$LI$14:$LI$300,0),MATCH(AE$1,Ajustes!$E$4:$LG$4,0)),) -> 0 | AF28: =IFERROR(INDEX(Ajustes!$E$14:$LG$300,MATCH($A28&"_"&AF$2,Ajustes!$LI$14:$LI$300,0),MATCH(AF$1,Ajustes!$E$4:$LG$4,0)),) -> 0 | AG28: =IFERROR(INDEX(Ajustes!$E$14:$LG$300,MATCH($A28&"_"&AG$2,Ajustes!$LI$14:$LI$300,0),MATCH(AG$1,Ajustes!$E$4:$LG$4,0)),) -> 0 | AH28: =IFERROR(INDEX(Ajustes!$E$14:$LG$300,MATCH($A28&"_"&AH$2,Ajustes!$LI$14:$LI$300,0),MATCH(AH$1,Ajustes!$E$4:$LG$4,0)),) -> 0 | AI28: 0 | AJ28: 0 | AK28: 0 | AL28: 0 | AM28: =IFERROR(INDEX(Ajustes!$E$14:$LG$300,MATCH($A28&"_"&AM$2,Ajustes!$LI$14:$LI$300,0),MATCH(AM$1,Ajustes!$E$4:$LG$4,0)),) -> 0 | AN28: =IFERROR(INDEX(Ajustes!$E$14:$LG$300,MATCH($A28&"_"&AN$2,Ajustes!$LI$14:$LI$300,0),MATCH(AN$1,Ajustes!$E$4:$LG$4,0)),) -> 0 | AO28: =IFERROR(INDEX(Ajustes!$E$14:$LG$300,MATCH($A28&"_"&AO$2,Ajustes!$LI$14:$LI$300,0),MATCH(AO$1,Ajustes!$E$4:$LG$4,0)),) -> 0 | AP28: =IFERROR(INDEX(Ajustes!$E$14:$LG$300,MATCH($A28&"_"&AP$2,Ajustes!$LI$14:$LI$300,0),MATCH(AP$1,Ajustes!$E$4:$LG$4,0)),) -> 0 | AS28: =SUMIFS($B28:$AP28,$B$6:$AP$6,AS$6) -> 0 | AT28: 0 | AU28: 0 | AV28: 0 | AW28: 0 | AX28: 0 | AY28: 0 | AZ28: 0 | BB28: =SUMIFS($B28:$AP28,$B$6:$AP$6,BB$6,$B$7:$AP$7,BB$7) -> 0 | BC28: 0 | BD28: 0 | BE28: 0 | BF28: 0 | BG28: 0 | BH28: 0 | BI28: 0 | BL28: =SUMIFS($B28:$AP28,$B$6:$AP$6,BL$6,$B$7:$AP$7,BL$7) -> 0 | BM28: 0 | BN28: 0 | BO28: 0 | BP28: 0 | BQ28: 0 | BR28: 0 | BS28: 0 | BT28: 0 | BW28: =SUMIFS($B28:$AP28,$B$6:$AP$6,BW$6,$B$7:$AP$7,BW$7) -> 0 | BX28: 0 | BY28: 0 | BZ28: 0 | CA28: 0 | CB28: 0 | CC28: 0 | CD28: 0 | CG28: =IF(A28="",0,SUMIFS(Clientes!Q:Q,Clientes!C:C,A28)) -> 0 | CH28: =IF(A28="",0,SUMIFS(Energia!K:K,Energia!C:C,A28)) -> 258868.5575 | CI28: =IF(A28="",0,SUMIFS(Potencia!K:K,Potencia!B:B,A28,Potencia!M:M,CI$5)) -> 0 | CJ28: =IF(A28="",0,SUMIFS(Potencia!K:K,Potencia!B:B,A28,Potencia!M:M,CJ$5)) -> 0 | CK28: =IF(A28="",0,SUMIFS(Potencia!K:K,Potencia!B:B,A28,Potencia!M:M,CK$5)) -> 0 | CL28: =IF(A28="",0,SUMIFS(Clientes!K:K,Clientes!C:C,A28)) -> 0 | CM28: =IF(A28="",0,SUMIFS(Energia!K:K,Energia!B:B,A28,Energia!AA:AA,CM$5)) -> 0 | CN28: =IF(A28="",0,SUMIFS(Energia!K:K,Energia!B:B,A28,Energia!AA:AA,CN$5)) -> 0 | CO28: 0
A29: =Factores!C55 ->  | B29: =IFERROR(INDEX(Ajustes!$E$14:$LG$300,MATCH($A29&"_"&B$2,Ajustes!$LI$14:$LI$300,0),MATCH(B$1,Ajustes!$E$4:$LG$4,0)),) -> 0 | C29: =IFERROR(INDEX(Ajustes!$E$14:$LG$300,MATCH($A29&"_"&C$2,Ajustes!$LI$14:$LI$300,0),MATCH(C$1,Ajustes!$E$4:$LG$4,0)),) -> 0 | D29: =IFERROR(INDEX(Ajustes!$E$14:$LG$300,MATCH($A29&"_"&D$2,Ajustes!$LI$14:$LI$300,0),MATCH(D$1,Ajustes!$E$4:$LG$4,0)),) -> 0 | E29: =IFERROR(INDEX(Ajustes!$E$14:$LG$300,MATCH($A29&"_"&E$2,Ajustes!$LI$14:$LI$300,0),MATCH(E$1,Ajustes!$E$4:$LG$4,0)),) -> 0 | F29: =IFERROR(INDEX(Ajustes!$E$14:$LG$300,MATCH($A29&"_"&F$2,Ajustes!$LI$14:$LI$300,0),MATCH(F$1,Ajustes!$E$4:$LG$4,0)),) -> 0 | G29: =IFERROR(INDEX(Ajustes!$E$14:$LG$300,MATCH($A29&"_"&G$2,Ajustes!$LI$14:$LI$300,0),MATCH(G$1,Ajustes!$E$4:$LG$4,0)),) -> 0 | H29: =IFERROR(INDEX(Ajustes!$E$14:$LG$300,MATCH($A29&"_"&H$2,Ajustes!$LI$14:$LI$300,0),MATCH(H$1,Ajustes!$E$4:$LG$4,0)),) -> 0 | I29: =IFERROR(INDEX(Ajustes!$E$14:$LG$300,MATCH($A29&"_"&I$2,Ajustes!$LI$14:$LI$300,0),MATCH(I$1,Ajustes!$E$4:$LG$4,0)),) -> 0 | J29: =IFERROR(INDEX(Ajustes!$E$14:$LG$300,MATCH($A29&"_"&J$2,Ajustes!$LI$14:$LI$300,0),MATCH(J$1,Ajustes!$E$4:$LG$4,0)),) -> 0 | K29: =IFERROR(INDEX(Ajustes!$E$14:$LG$300,MATCH($A29&"_"&K$2,Ajustes!$LI$14:$LI$300,0),MATCH(K$1,Ajustes!$E$4:$LG$4,0)),) -> 0 | L29: =IFERROR(INDEX(Ajustes!$E$14:$LG$300,MATCH($A29&"_"&L$2,Ajustes!$LI$14:$LI$300,0),MATCH(L$1,Ajustes!$E$4:$LG$4,0)),) -> 0 | M29: =IFERROR(INDEX(Ajustes!$E$14:$LG$300,MATCH($A29&"_"&M$2,Ajustes!$LI$14:$LI$300,0),MATCH(M$1,Ajustes!$E$4:$LG$4,0)),) -> 0 | N29: =IFERROR(INDEX(Ajustes!$E$14:$LG$300,MATCH($A29&"_"&N$2,Ajustes!$LI$14:$LI$300,0),MATCH(N$1,Ajustes!$E$4:$LG$4,0)),) -> 0 | O29: =IFERROR(INDEX(Ajustes!$E$14:$LG$300,MATCH($A29&"_"&O$2,Ajustes!$LI$14:$LI$300,0),MATCH(O$1,Ajustes!$E$4:$LG$4,0)),) -> 0 | P29: =IFERROR(INDEX(Ajustes!$E$14:$LG$300,MATCH($A29&"_"&P$2,Ajustes!$LI$14:$LI$300,0),MATCH(P$1,Ajustes!$E$4:$LG$4,0)),) -> 0 | Q29: =IFERROR(INDEX(Ajustes!$E$14:$LG$300,MATCH($A29&"_"&Q$2,Ajustes!$LI$14:$LI$300,0),MATCH(Q$1,Ajustes!$E$4:$LG$4,0)),) -> 0 | R29: =IFERROR(INDEX(Ajustes!$E$14:$LG$300,MATCH($A29&"_"&R$2,Ajustes!$LI$14:$LI$300,0),MATCH(R$1,Ajustes!$E$4:$LG$4,0)),) -> 0 | S29: =IFERROR(INDEX(Ajustes!$E$14:$LG$300,MATCH($A29&"_"&S$2,Ajustes!$LI$14:$LI$300,0),MATCH(S$1,Ajustes!$E$4:$LG$4,0)),) -> 0 | T29: =IFERROR(INDEX(Ajustes!$E$14:$LG$300,MATCH($A29&"_"&T$2,Ajustes!$LI$14:$LI$300,0),MATCH(T$1,Ajustes!$E$4:$LG$4,0)),) -> 0 | U29: =IFERROR(INDEX(Ajustes!$E$14:$LG$300,MATCH($A29&"_"&U$2,Ajustes!$LI$14:$LI$300,0),MATCH(U$1,Ajustes!$E$4:$LG$4,0)),) -> 0 | V29: 0 | W29: =IFERROR(INDEX(Ajustes!$E$14:$LG$300,MATCH($A29&"_"&W$2,Ajustes!$LI$14:$LI$300,0),MATCH(W$1,Ajustes!$E$4:$LG$4,0)),) -> 0 | X29: =IFERROR(INDEX(Ajustes!$E$14:$LG$300,MATCH($A29&"_"&X$2,Ajustes!$LI$14:$LI$300,0),MATCH(X$1,Ajustes!$E$4:$LG$4,0)),) -> 0 | Y29: =IFERROR(INDEX(Ajustes!$E$14:$LG$300,MATCH($A29&"_"&Y$2,Ajustes!$LI$14:$LI$300,0),MATCH(Y$1,Ajustes!$E$4:$LG$4,0)),) -> 0 | Z29: =IFERROR(INDEX(Ajustes!$E$14:$LG$300,MATCH($A29&"_"&Z$2,Ajustes!$LI$14:$LI$300,0),MATCH(Z$1,Ajustes!$E$4:$LG$4,0)),) -> 0 | AA29: =IFERROR(INDEX(Ajustes!$E$14:$LG$300,MATCH($A29&"_"&AA$2,Ajustes!$LI$14:$LI$300,0),MATCH(AA$1,Ajustes!$E$4:$LG$4,0)),) -> 0 | AB29: =IFERROR(INDEX(Ajustes!$E$14:$LG$300,MATCH($A29&"_"&AB$2,Ajustes!$LI$14:$LI$300,0),MATCH(AB$1,Ajustes!$E$4:$LG$4,0)),) -> 0 | AC29: =IFERROR(INDEX(Ajustes!$E$14:$LG$300,MATCH($A29&"_"&AC$2,Ajustes!$LI$14:$LI$300,0),MATCH(AC$1,Ajustes!$E$4:$LG$4,0)),) -> 0 | AD29: =IFERROR(INDEX(Ajustes!$E$14:$LG$300,MATCH($A29&"_"&AD$2,Ajustes!$LI$14:$LI$300,0),MATCH(AD$1,Ajustes!$E$4:$LG$4,0)),) -> 0 | AE29: =IFERROR(INDEX(Ajustes!$E$14:$LG$300,MATCH($A29&"_"&AE$2,Ajustes!$LI$14:$LI$300,0),MATCH(AE$1,Ajustes!$E$4:$LG$4,0)),) -> 0 | AF29: =IFERROR(INDEX(Ajustes!$E$14:$LG$300,MATCH($A29&"_"&AF$2,Ajustes!$LI$14:$LI$300,0),MATCH(AF$1,Ajustes!$E$4:$LG$4,0)),) -> 0 | AG29: =IFERROR(INDEX(Ajustes!$E$14:$LG$300,MATCH($A29&"_"&AG$2,Ajustes!$LI$14:$LI$300,0),MATCH(AG$1,Ajustes!$E$4:$LG$4,0)),) -> 0 | AH29: =IFERROR(INDEX(Ajustes!$E$14:$LG$300,MATCH($A29&"_"&AH$2,Ajustes!$LI$14:$LI$300,0),MATCH(AH$1,Ajustes!$E$4:$LG$4,0)),) -> 0 | AI29: 0 | AJ29: 0 | AK29: 0 | AL29: 0 | AM29: =IFERROR(INDEX(Ajustes!$E$14:$LG$300,MATCH($A29&"_"&AM$2,Ajustes!$LI$14:$LI$300,0),MATCH(AM$1,Ajustes!$E$4:$LG$4,0)),) -> 0 | AN29: =IFERROR(INDEX(Ajustes!$E$14:$LG$300,MATCH($A29&"_"&AN$2,Ajustes!$LI$14:$LI$300,0),MATCH(AN$1,Ajustes!$E$4:$LG$4,0)),) -> 0 | AO29: =IFERROR(INDEX(Ajustes!$E$14:$LG$300,MATCH($A29&"_"&AO$2,Ajustes!$LI$14:$LI$300,0),MATCH(AO$1,Ajustes!$E$4:$LG$4,0)),) -> 0 | AP29: =IFERROR(INDEX(Ajustes!$E$14:$LG$300,MATCH($A29&"_"&AP$2,Ajustes!$LI$14:$LI$300,0),MATCH(AP$1,Ajustes!$E$4:$LG$4,0)),) -> 0 | AS29: 0 | AT29: 0 | AU29: 0 | AV29: 0 | AW29: 0 | AX29: 0 | AY29: 0 | AZ29: 0 | BB29: 0 | BC29: 0 | BD29: 0 | BE29: 0 | BF29: 0 | BG29: 0 | BH29: 0 | BI29: 0 | BL29: 0 | BM29: 0 | BN29: 0 | BO29: 0 | BP29: 0 | BQ29: 0 | BR29: 0 | BS29: 0 | BT29: 0 | BW29: 0 | BX29: 0 | BY29: 0 | BZ29: 0 | CA29: 0 | CB29: 0 | CC29: 0 | CD29: 0 | CG29: =IF(A29="",0,SUMIFS(Clientes!Q:Q,Clientes!C:C,A29)) -> 0 | CH29: =IF(A29="",0,SUMIFS(Energia!K:K,Energia!C:C,A29)) -> 0 | CI29: =IF(A29="",0,SUMIFS(Potencia!K:K,Potencia!B:B,A29,Potencia!M:M,CI$5)) -> 0 | CJ29: =IF(A29="",0,SUMIFS(Potencia!K:K,Potencia!B:B,A29,Potencia!M:M,CJ$5)) -> 0 | CK29: =IF(A29="",0,SUMIFS(Potencia!K:K,Potencia!B:B,A29,Potencia!M:M,CK$5)) -> 0 | CL29: =IF(A29="",0,SUMIFS(Clientes!K:K,Clientes!C:C,A29)) -> 0 | CM29: =IF(A29="",0,SUMIFS(Energia!K:K,Energia!B:B,A29,Energia!AA:AA,CM$5)) -> 0 | CN29: =IF(A29="",0,SUMIFS(Energia!K:K,Energia!B:B,A29,Energia!AA:AA,CN$5)) -> 0 | CO29: 0
A30: =Factores!C56 ->  | B30: =IFERROR(INDEX(Ajustes!$E$14:$LG$300,MATCH($A30&"_"&B$2,Ajustes!$LI$14:$LI$300,0),MATCH(B$1,Ajustes!$E$4:$LG$4,0)),) -> 0 | C30: =IFERROR(INDEX(Ajustes!$E$14:$LG$300,MATCH($A30&"_"&C$2,Ajustes!$LI$14:$LI$300,0),MATCH(C$1,Ajustes!$E$4:$LG$4,0)),) -> 0 | D30: =IFERROR(INDEX(Ajustes!$E$14:$LG$300,MATCH($A30&"_"&D$2,Ajustes!$LI$14:$LI$300,0),MATCH(D$1,Ajustes!$E$4:$LG$4,0)),) -> 0 | E30: =IFERROR(INDEX(Ajustes!$E$14:$LG$300,MATCH($A30&"_"&E$2,Ajustes!$LI$14:$LI$300,0),MATCH(E$1,Ajustes!$E$4:$LG$4,0)),) -> 0 | F30: =IFERROR(INDEX(Ajustes!$E$14:$LG$300,MATCH($A30&"_"&F$2,Ajustes!$LI$14:$LI$300,0),MATCH(F$1,Ajustes!$E$4:$LG$4,0)),) -> 0 | G30: =IFERROR(INDEX(Ajustes!$E$14:$LG$300,MATCH($A30&"_"&G$2,Ajustes!$LI$14:$LI$300,0),MATCH(G$1,Ajustes!$E$4:$LG$4,0)),) -> 0 | H30: =IFERROR(INDEX(Ajustes!$E$14:$LG$300,MATCH($A30&"_"&H$2,Ajustes!$LI$14:$LI$300,0),MATCH(H$1,Ajustes!$E$4:$LG$4,0)),) -> 0 | I30: =IFERROR(INDEX(Ajustes!$E$14:$LG$300,MATCH($A30&"_"&I$2,Ajustes!$LI$14:$LI$300,0),MATCH(I$1,Ajustes!$E$4:$LG$4,0)),) -> 0 | J30: =IFERROR(INDEX(Ajustes!$E$14:$LG$300,MATCH($A30&"_"&J$2,Ajustes!$LI$14:$LI$300,0),MATCH(J$1,Ajustes!$E$4:$LG$4,0)),) -> 0 | K30: =IFERROR(INDEX(Ajustes!$E$14:$LG$300,MATCH($A30&"_"&K$2,Ajustes!$LI$14:$LI$300,0),MATCH(K$1,Ajustes!$E$4:$LG$4,0)),) -> 0 | L30: =IFERROR(INDEX(Ajustes!$E$14:$LG$300,MATCH($A30&"_"&L$2,Ajustes!$LI$14:$LI$300,0),MATCH(L$1,Ajustes!$E$4:$LG$4,0)),) -> 0 | M30: =IFERROR(INDEX(Ajustes!$E$14:$LG$300,MATCH($A30&"_"&M$2,Ajustes!$LI$14:$LI$300,0),MATCH(M$1,Ajustes!$E$4:$LG$4,0)),) -> 0 | N30: =IFERROR(INDEX(Ajustes!$E$14:$LG$300,MATCH($A30&"_"&N$2,Ajustes!$LI$14:$LI$300,0),MATCH(N$1,Ajustes!$E$4:$LG$4,0)),) -> 0 | O30: =IFERROR(INDEX(Ajustes!$E$14:$LG$300,MATCH($A30&"_"&O$2,Ajustes!$LI$14:$LI$300,0),MATCH(O$1,Ajustes!$E$4:$LG$4,0)),) -> 0 | P30: =IFERROR(INDEX(Ajustes!$E$14:$LG$300,MATCH($A30&"_"&P$2,Ajustes!$LI$14:$LI$300,0),MATCH(P$1,Ajustes!$E$4:$LG$4,0)),) -> 0 | Q30: =IFERROR(INDEX(Ajustes!$E$14:$LG$300,MATCH($A30&"_"&Q$2,Ajustes!$LI$14:$LI$300,0),MATCH(Q$1,Ajustes!$E$4:$LG$4,0)),) -> 0 | R30: =IFERROR(INDEX(Ajustes!$E$14:$LG$300,MATCH($A30&"_"&R$2,Ajustes!$LI$14:$LI$300,0),MATCH(R$1,Ajustes!$E$4:$LG$4,0)),) -> 0 | S30: =IFERROR(INDEX(Ajustes!$E$14:$LG$300,MATCH($A30&"_"&S$2,Ajustes!$LI$14:$LI$300,0),MATCH(S$1,Ajustes!$E$4:$LG$4,0)),) -> 0 | T30: =IFERROR(INDEX(Ajustes!$E$14:$LG$300,MATCH($A30&"_"&T$2,Ajustes!$LI$14:$LI$300,0),MATCH(T$1,Ajustes!$E$4:$LG$4,0)),) -> 0 | U30: =IFERROR(INDEX(Ajustes!$E$14:$LG$300,MATCH($A30&"_"&U$2,Ajustes!$LI$14:$LI$300,0),MATCH(U$1,Ajustes!$E$4:$LG$4,0)),) -> 0 | V30: 0 | W30: =IFERROR(INDEX(Ajustes!$E$14:$LG$300,MATCH($A30&"_"&W$2,Ajustes!$LI$14:$LI$300,0),MATCH(W$1,Ajustes!$E$4:$LG$4,0)),) -> 0 | X30: =IFERROR(INDEX(Ajustes!$E$14:$LG$300,MATCH($A30&"_"&X$2,Ajustes!$LI$14:$LI$300,0),MATCH(X$1,Ajustes!$E$4:$LG$4,0)),) -> 0 | Y30: =IFERROR(INDEX(Ajustes!$E$14:$LG$300,MATCH($A30&"_"&Y$2,Ajustes!$LI$14:$LI$300,0),MATCH(Y$1,Ajustes!$E$4:$LG$4,0)),) -> 0 | Z30: =IFERROR(INDEX(Ajustes!$E$14:$LG$300,MATCH($A30&"_"&Z$2,Ajustes!$LI$14:$LI$300,0),MATCH(Z$1,Ajustes!$E$4:$LG$4,0)),) -> 0 | AA30: =IFERROR(INDEX(Ajustes!$E$14:$LG$300,MATCH($A30&"_"&AA$2,Ajustes!$LI$14:$LI$300,0),MATCH(AA$1,Ajustes!$E$4:$LG$4,0)),) -> 0 | AB30: =IFERROR(INDEX(Ajustes!$E$14:$LG$300,MATCH($A30&"_"&AB$2,Ajustes!$LI$14:$LI$300,0),MATCH(AB$1,Ajustes!$E$4:$LG$4,0)),) -> 0 | AC30: =IFERROR(INDEX(Ajustes!$E$14:$LG$300,MATCH($A30&"_"&AC$2,Ajustes!$LI$14:$LI$300,0),MATCH(AC$1,Ajustes!$E$4:$LG$4,0)),) -> 0 | AD30: =IFERROR(INDEX(Ajustes!$E$14:$LG$300,MATCH($A30&"_"&AD$2,Ajustes!$LI$14:$LI$300,0),MATCH(AD$1,Ajustes!$E$4:$LG$4,0)),) -> 0 | AE30: =IFERROR(INDEX(Ajustes!$E$14:$LG$300,MATCH($A30&"_"&AE$2,Ajustes!$LI$14:$LI$300,0),MATCH(AE$1,Ajustes!$E$4:$LG$4,0)),) -> 0 | AF30: =IFERROR(INDEX(Ajustes!$E$14:$LG$300,MATCH($A30&"_"&AF$2,Ajustes!$LI$14:$LI$300,0),MATCH(AF$1,Ajustes!$E$4:$LG$4,0)),) -> 0 | AG30: =IFERROR(INDEX(Ajustes!$E$14:$LG$300,MATCH($A30&"_"&AG$2,Ajustes!$LI$14:$LI$300,0),MATCH(AG$1,Ajustes!$E$4:$LG$4,0)),) -> 0 | AH30: =IFERROR(INDEX(Ajustes!$E$14:$LG$300,MATCH($A30&"_"&AH$2,Ajustes!$LI$14:$LI$300,0),MATCH(AH$1,Ajustes!$E$4:$LG$4,0)),) -> 0 | AI30: 0 | AJ30: 0 | AK30: 0 | AL30: 0 | AM30: =IFERROR(INDEX(Ajustes!$E$14:$LG$300,MATCH($A30&"_"&AM$2,Ajustes!$LI$14:$LI$300,0),MATCH(AM$1,Ajustes!$E$4:$LG$4,0)),) -> 0 | AN30: =IFERROR(INDEX(Ajustes!$E$14:$LG$300,MATCH($A30&"_"&AN$2,Ajustes!$LI$14:$LI$300,0),MATCH(AN$1,Ajustes!$E$4:$LG$4,0)),) -> 0 | AO30: =IFERROR(INDEX(Ajustes!$E$14:$LG$300,MATCH($A30&"_"&AO$2,Ajustes!$LI$14:$LI$300,0),MATCH(AO$1,Ajustes!$E$4:$LG$4,0)),) -> 0 | AP30: =IFERROR(INDEX(Ajustes!$E$14:$LG$300,MATCH($A30&"_"&AP$2,Ajustes!$LI$14:$LI$300,0),MATCH(AP$1,Ajustes!$E$4:$LG$4,0)),) -> 0 | AS30: 0 | AT30: 0 | AU30: 0 | AV30: 0 | AW30: 0 | AX30: 0 | AY30: 0 | AZ30: 0 | BB30: 0 | BC30: 0 | BD30: 0 | BE30: 0 | BF30: 0 | BG30: 0 | BH30: 0 | BI30: 0 | BL30: 0 | BM30: 0 | BN30: 0 | BO30: 0 | BP30: 0 | BQ30: 0 | BR30: 0 | BS30: 0 | BT30: 0 | BW30: 0 | BX30: 0 | BY30: 0 | BZ30: 0 | CA30: 0 | CB30: 0 | CC30: 0 | CD30: 0 | CG30: =IF(A30="",0,SUMIFS(Clientes!Q:Q,Clientes!C:C,A30)) -> 0 | CH30: =IF(A30="",0,SUMIFS(Energia!K:K,Energia!C:C,A30)) -> 0 | CI30: =IF(A30="",0,SUMIFS(Potencia!K:K,Potencia!B:B,A30,Potencia!M:M,CI$5)) -> 0 | CJ30: =IF(A30="",0,SUMIFS(Potencia!K:K,Potencia!B:B,A30,Potencia!M:M,CJ$5)) -> 0 | CK30: =IF(A30="",0,SUMIFS(Potencia!K:K,Potencia!B:B,A30,Potencia!M:M,CK$5)) -> 0 | CL30: =IF(A30="",0,SUMIFS(Clientes!K:K,Clientes!C:C,A30)) -> 0 | CM30: =IF(A30="",0,SUMIFS(Energia!K:K,Energia!B:B,A30,Energia!AA:AA,CM$5)) -> 0 | CN30: =IF(A30="",0,SUMIFS(Energia!K:K,Energia!B:B,A30,Energia!AA:AA,CN$5)) -> 0 | CO30: 0
A31: =Factores!C57 ->  | B31: =IFERROR(INDEX(Ajustes!$E$14:$LG$300,MATCH($A31&"_"&B$2,Ajustes!$LI$14:$LI$300,0),MATCH(B$1,Ajustes!$E$4:$LG$4,0)),) -> 0 | C31: =IFERROR(INDEX(Ajustes!$E$14:$LG$300,MATCH($A31&"_"&C$2,Ajustes!$LI$14:$LI$300,0),MATCH(C$1,Ajustes!$E$4:$LG$4,0)),) -> 0 | D31: =IFERROR(INDEX(Ajustes!$E$14:$LG$300,MATCH($A31&"_"&D$2,Ajustes!$LI$14:$LI$300,0),MATCH(D$1,Ajustes!$E$4:$LG$4,0)),) -> 0 | E31: =IFERROR(INDEX(Ajustes!$E$14:$LG$300,MATCH($A31&"_"&E$2,Ajustes!$LI$14:$LI$300,0),MATCH(E$1,Ajustes!$E$4:$LG$4,0)),) -> 0 | F31: =IFERROR(INDEX(Ajustes!$E$14:$LG$300,MATCH($A31&"_"&F$2,Ajustes!$LI$14:$LI$300,0),MATCH(F$1,Ajustes!$E$4:$LG$4,0)),) -> 0 | G31: =IFERROR(INDEX(Ajustes!$E$14:$LG$300,MATCH($A31&"_"&G$2,Ajustes!$LI$14:$LI$300,0),MATCH(G$1,Ajustes!$E$4:$LG$4,0)),) -> 0 | H31: =IFERROR(INDEX(Ajustes!$E$14:$LG$300,MATCH($A31&"_"&H$2,Ajustes!$LI$14:$LI$300,0),MATCH(H$1,Ajustes!$E$4:$LG$4,0)),) -> 0 | I31: =IFERROR(INDEX(Ajustes!$E$14:$LG$300,MATCH($A31&"_"&I$2,Ajustes!$LI$14:$LI$300,0),MATCH(I$1,Ajustes!$E$4:$LG$4,0)),) -> 0 | J31: =IFERROR(INDEX(Ajustes!$E$14:$LG$300,MATCH($A31&"_"&J$2,Ajustes!$LI$14:$LI$300,0),MATCH(J$1,Ajustes!$E$4:$LG$4,0)),) -> 0 | K31: =IFERROR(INDEX(Ajustes!$E$14:$LG$300,MATCH($A31&"_"&K$2,Ajustes!$LI$14:$LI$300,0),MATCH(K$1,Ajustes!$E$4:$LG$4,0)),) -> 0 | L31: =IFERROR(INDEX(Ajustes!$E$14:$LG$300,MATCH($A31&"_"&L$2,Ajustes!$LI$14:$LI$300,0),MATCH(L$1,Ajustes!$E$4:$LG$4,0)),) -> 0 | M31: =IFERROR(INDEX(Ajustes!$E$14:$LG$300,MATCH($A31&"_"&M$2,Ajustes!$LI$14:$LI$300,0),MATCH(M$1,Ajustes!$E$4:$LG$4,0)),) -> 0 | N31: =IFERROR(INDEX(Ajustes!$E$14:$LG$300,MATCH($A31&"_"&N$2,Ajustes!$LI$14:$LI$300,0),MATCH(N$1,Ajustes!$E$4:$LG$4,0)),) -> 0 | O31: =IFERROR(INDEX(Ajustes!$E$14:$LG$300,MATCH($A31&"_"&O$2,Ajustes!$LI$14:$LI$300,0),MATCH(O$1,Ajustes!$E$4:$LG$4,0)),) -> 0 | P31: =IFERROR(INDEX(Ajustes!$E$14:$LG$300,MATCH($A31&"_"&P$2,Ajustes!$LI$14:$LI$300,0),MATCH(P$1,Ajustes!$E$4:$LG$4,0)),) -> 0 | Q31: =IFERROR(INDEX(Ajustes!$E$14:$LG$300,MATCH($A31&"_"&Q$2,Ajustes!$LI$14:$LI$300,0),MATCH(Q$1,Ajustes!$E$4:$LG$4,0)),) -> 0 | R31: =IFERROR(INDEX(Ajustes!$E$14:$LG$300,MATCH($A31&"_"&R$2,Ajustes!$LI$14:$LI$300,0),MATCH(R$1,Ajustes!$E$4:$LG$4,0)),) -> 0 | S31: =IFERROR(INDEX(Ajustes!$E$14:$LG$300,MATCH($A31&"_"&S$2,Ajustes!$LI$14:$LI$300,0),MATCH(S$1,Ajustes!$E$4:$LG$4,0)),) -> 0 | T31: =IFERROR(INDEX(Ajustes!$E$14:$LG$300,MATCH($A31&"_"&T$2,Ajustes!$LI$14:$LI$300,0),MATCH(T$1,Ajustes!$E$4:$LG$4,0)),) -> 0 | U31: =IFERROR(INDEX(Ajustes!$E$14:$LG$300,MATCH($A31&"_"&U$2,Ajustes!$LI$14:$LI$300,0),MATCH(U$1,Ajustes!$E$4:$LG$4,0)),) -> 0 | V31: 0 | W31: =IFERROR(INDEX(Ajustes!$E$14:$LG$300,MATCH($A31&"_"&W$2,Ajustes!$LI$14:$LI$300,0),MATCH(W$1,Ajustes!$E$4:$LG$4,0)),) -> 0 | X31: =IFERROR(INDEX(Ajustes!$E$14:$LG$300,MATCH($A31&"_"&X$2,Ajustes!$LI$14:$LI$300,0),MATCH(X$1,Ajustes!$E$4:$LG$4,0)),) -> 0 | Y31: =IFERROR(INDEX(Ajustes!$E$14:$LG$300,MATCH($A31&"_"&Y$2,Ajustes!$LI$14:$LI$300,0),MATCH(Y$1,Ajustes!$E$4:$LG$4,0)),) -> 0 | Z31: =IFERROR(INDEX(Ajustes!$E$14:$LG$300,MATCH($A31&"_"&Z$2,Ajustes!$LI$14:$LI$300,0),MATCH(Z$1,Ajustes!$E$4:$LG$4,0)),) -> 0 | AA31: =IFERROR(INDEX(Ajustes!$E$14:$LG$300,MATCH($A31&"_"&AA$2,Ajustes!$LI$14:$LI$300,0),MATCH(AA$1,Ajustes!$E$4:$LG$4,0)),) -> 0 | AB31: =IFERROR(INDEX(Ajustes!$E$14:$LG$300,MATCH($A31&"_"&AB$2,Ajustes!$LI$14:$LI$300,0),MATCH(AB$1,Ajustes!$E$4:$LG$4,0)),) -> 0 | AC31: =IFERROR(INDEX(Ajustes!$E$14:$LG$300,MATCH($A31&"_"&AC$2,Ajustes!$LI$14:$LI$300,0),MATCH(AC$1,Ajustes!$E$4:$LG$4,0)),) -> 0 | AD31: =IFERROR(INDEX(Ajustes!$E$14:$LG$300,MATCH($A31&"_"&AD$2,Ajustes!$LI$14:$LI$300,0),MATCH(AD$1,Ajustes!$E$4:$LG$4,0)),) -> 0 | AE31: =IFERROR(INDEX(Ajustes!$E$14:$LG$300,MATCH($A31&"_"&AE$2,Ajustes!$LI$14:$LI$300,0),MATCH(AE$1,Ajustes!$E$4:$LG$4,0)),) -> 0 | AF31: =IFERROR(INDEX(Ajustes!$E$14:$LG$300,MATCH($A31&"_"&AF$2,Ajustes!$LI$14:$LI$300,0),MATCH(AF$1,Ajustes!$E$4:$LG$4,0)),) -> 0 | AG31: =IFERROR(INDEX(Ajustes!$E$14:$LG$300,MATCH($A31&"_"&AG$2,Ajustes!$LI$14:$LI$300,0),MATCH(AG$1,Ajustes!$E$4:$LG$4,0)),) -> 0 | AH31: =IFERROR(INDEX(Ajustes!$E$14:$LG$300,MATCH($A31&"_"&AH$2,Ajustes!$LI$14:$LI$300,0),MATCH(AH$1,Ajustes!$E$4:$LG$4,0)),) -> 0 | AI31: 0 | AJ31: 0 | AK31: 0 | AL31: 0 | AM31: =IFERROR(INDEX(Ajustes!$E$14:$LG$300,MATCH($A31&"_"&AM$2,Ajustes!$LI$14:$LI$300,0),MATCH(AM$1,Ajustes!$E$4:$LG$4,0)),) -> 0 | AN31: =IFERROR(INDEX(Ajustes!$E$14:$LG$300,MATCH($A31&"_"&AN$2,Ajustes!$LI$14:$LI$300,0),MATCH(AN$1,Ajustes!$E$4:$LG$4,0)),) -> 0 | AO31: =IFERROR(INDEX(Ajustes!$E$14:$LG$300,MATCH($A31&"_"&AO$2,Ajustes!$LI$14:$LI$300,0),MATCH(AO$1,Ajustes!$E$4:$LG$4,0)),) -> 0 | AP31: =IFERROR(INDEX(Ajustes!$E$14:$LG$300,MATCH($A31&"_"&AP$2,Ajustes!$LI$14:$LI$300,0),MATCH(AP$1,Ajustes!$E$4:$LG$4,0)),) -> 0 | AS31: 0 | AT31: 0 | AU31: 0 | AV31: 0 | AW31: 0 | AX31: 0 | AY31: 0 | AZ31: 0 | BB31: 0 | BC31: 0 | BD31: 0 | BE31: 0 | BF31: 0 | BG31: 0 | BH31: 0 | BI31: 0 | BL31: 0 | BM31: 0 | BN31: 0 | BO31: 0 | BP31: 0 | BQ31: 0 | BR31: 0 | BS31: 0 | BT31: 0 | BW31: 0 | BX31: 0 | BY31: 0 | BZ31: 0 | CA31: 0 | CB31: 0 | CC31: 0 | CD31: 0 | CG31: =IF(A31="",0,SUMIFS(Clientes!Q:Q,Clientes!C:C,A31)) -> 0 | CH31: =IF(A31="",0,SUMIFS(Energia!K:K,Energia!C:C,A31)) -> 0 | CI31: =IF(A31="",0,SUMIFS(Potencia!K:K,Potencia!B:B,A31,Potencia!M:M,CI$5)) -> 0 | CJ31: =IF(A31="",0,SUMIFS(Potencia!K:K,Potencia!B:B,A31,Potencia!M:M,CJ$5)) -> 0 | CK31: =IF(A31="",0,SUMIFS(Potencia!K:K,Potencia!B:B,A31,Potencia!M:M,CK$5)) -> 0 | CL31: =IF(A31="",0,SUMIFS(Clientes!K:K,Clientes!C:C,A31)) -> 0 | CM31: =IF(A31="",0,SUMIFS(Energia!K:K,Energia!B:B,A31,Energia!AA:AA,CM$5)) -> 0 | CN31: =IF(A31="",0,SUMIFS(Energia!K:K,Energia!B:B,A31,Energia!AA:AA,CN$5)) -> 0 | CO31: 0
A32: =Factores!C58 ->  | B32: =IFERROR(INDEX(Ajustes!$E$14:$LG$300,MATCH($A32&"_"&B$2,Ajustes!$LI$14:$LI$300,0),MATCH(B$1,Ajustes!$E$4:$LG$4,0)),) -> 0 | C32: =IFERROR(INDEX(Ajustes!$E$14:$LG$300,MATCH($A32&"_"&C$2,Ajustes!$LI$14:$LI$300,0),MATCH(C$1,Ajustes!$E$4:$LG$4,0)),) -> 0 | D32: =IFERROR(INDEX(Ajustes!$E$14:$LG$300,MATCH($A32&"_"&D$2,Ajustes!$LI$14:$LI$300,0),MATCH(D$1,Ajustes!$E$4:$LG$4,0)),) -> 0 | E32: =IFERROR(INDEX(Ajustes!$E$14:$LG$300,MATCH($A32&"_"&E$2,Ajustes!$LI$14:$LI$300,0),MATCH(E$1,Ajustes!$E$4:$LG$4,0)),) -> 0 | F32: =IFERROR(INDEX(Ajustes!$E$14:$LG$300,MATCH($A32&"_"&F$2,Ajustes!$LI$14:$LI$300,0),MATCH(F$1,Ajustes!$E$4:$LG$4,0)),) -> 0 | G32: =IFERROR(INDEX(Ajustes!$E$14:$LG$300,MATCH($A32&"_"&G$2,Ajustes!$LI$14:$LI$300,0),MATCH(G$1,Ajustes!$E$4:$LG$4,0)),) -> 0 | H32: =IFERROR(INDEX(Ajustes!$E$14:$LG$300,MATCH($A32&"_"&H$2,Ajustes!$LI$14:$LI$300,0),MATCH(H$1,Ajustes!$E$4:$LG$4,0)),) -> 0 | I32: =IFERROR(INDEX(Ajustes!$E$14:$LG$300,MATCH($A32&"_"&I$2,Ajustes!$LI$14:$LI$300,0),MATCH(I$1,Ajustes!$E$4:$LG$4,0)),) -> 0 | J32: =IFERROR(INDEX(Ajustes!$E$14:$LG$300,MATCH($A32&"_"&J$2,Ajustes!$LI$14:$LI$300,0),MATCH(J$1,Ajustes!$E$4:$LG$4,0)),) -> 0 | K32: =IFERROR(INDEX(Ajustes!$E$14:$LG$300,MATCH($A32&"_"&K$2,Ajustes!$LI$14:$LI$300,0),MATCH(K$1,Ajustes!$E$4:$LG$4,0)),) -> 0 | L32: =IFERROR(INDEX(Ajustes!$E$14:$LG$300,MATCH($A32&"_"&L$2,Ajustes!$LI$14:$LI$300,0),MATCH(L$1,Ajustes!$E$4:$LG$4,0)),) -> 0 | M32: =IFERROR(INDEX(Ajustes!$E$14:$LG$300,MATCH($A32&"_"&M$2,Ajustes!$LI$14:$LI$300,0),MATCH(M$1,Ajustes!$E$4:$LG$4,0)),) -> 0 | N32: =IFERROR(INDEX(Ajustes!$E$14:$LG$300,MATCH($A32&"_"&N$2,Ajustes!$LI$14:$LI$300,0),MATCH(N$1,Ajustes!$E$4:$LG$4,0)),) -> 0 | O32: =IFERROR(INDEX(Ajustes!$E$14:$LG$300,MATCH($A32&"_"&O$2,Ajustes!$LI$14:$LI$300,0),MATCH(O$1,Ajustes!$E$4:$LG$4,0)),) -> 0 | P32: =IFERROR(INDEX(Ajustes!$E$14:$LG$300,MATCH($A32&"_"&P$2,Ajustes!$LI$14:$LI$300,0),MATCH(P$1,Ajustes!$E$4:$LG$4,0)),) -> 0 | Q32: =IFERROR(INDEX(Ajustes!$E$14:$LG$300,MATCH($A32&"_"&Q$2,Ajustes!$LI$14:$LI$300,0),MATCH(Q$1,Ajustes!$E$4:$LG$4,0)),) -> 0 | R32: =IFERROR(INDEX(Ajustes!$E$14:$LG$300,MATCH($A32&"_"&R$2,Ajustes!$LI$14:$LI$300,0),MATCH(R$1,Ajustes!$E$4:$LG$4,0)),) -> 0 | S32: =IFERROR(INDEX(Ajustes!$E$14:$LG$300,MATCH($A32&"_"&S$2,Ajustes!$LI$14:$LI$300,0),MATCH(S$1,Ajustes!$E$4:$LG$4,0)),) -> 0 | T32: =IFERROR(INDEX(Ajustes!$E$14:$LG$300,MATCH($A32&"_"&T$2,Ajustes!$LI$14:$LI$300,0),MATCH(T$1,Ajustes!$E$4:$LG$4,0)),) -> 0 | U32: =IFERROR(INDEX(Ajustes!$E$14:$LG$300,MATCH($A32&"_"&U$2,Ajustes!$LI$14:$LI$300,0),MATCH(U$1,Ajustes!$E$4:$LG$4,0)),) -> 0 | V32: 0 | W32: =IFERROR(INDEX(Ajustes!$E$14:$LG$300,MATCH($A32&"_"&W$2,Ajustes!$LI$14:$LI$300,0),MATCH(W$1,Ajustes!$E$4:$LG$4,0)),) -> 0 | X32: =IFERROR(INDEX(Ajustes!$E$14:$LG$300,MATCH($A32&"_"&X$2,Ajustes!$LI$14:$LI$300,0),MATCH(X$1,Ajustes!$E$4:$LG$4,0)),) -> 0 | Y32: =IFERROR(INDEX(Ajustes!$E$14:$LG$300,MATCH($A32&"_"&Y$2,Ajustes!$LI$14:$LI$300,0),MATCH(Y$1,Ajustes!$E$4:$LG$4,0)),) -> 0 | Z32: =IFERROR(INDEX(Ajustes!$E$14:$LG$300,MATCH($A32&"_"&Z$2,Ajustes!$LI$14:$LI$300,0),MATCH(Z$1,Ajustes!$E$4:$LG$4,0)),) -> 0 | AA32: =IFERROR(INDEX(Ajustes!$E$14:$LG$300,MATCH($A32&"_"&AA$2,Ajustes!$LI$14:$LI$300,0),MATCH(AA$1,Ajustes!$E$4:$LG$4,0)),) -> 0 | AB32: =IFERROR(INDEX(Ajustes!$E$14:$LG$300,MATCH($A32&"_"&AB$2,Ajustes!$LI$14:$LI$300,0),MATCH(AB$1,Ajustes!$E$4:$LG$4,0)),) -> 0 | AC32: =IFERROR(INDEX(Ajustes!$E$14:$LG$300,MATCH($A32&"_"&AC$2,Ajustes!$LI$14:$LI$300,0),MATCH(AC$1,Ajustes!$E$4:$LG$4,0)),) -> 0 | AD32: =IFERROR(INDEX(Ajustes!$E$14:$LG$300,MATCH($A32&"_"&AD$2,Ajustes!$LI$14:$LI$300,0),MATCH(AD$1,Ajustes!$E$4:$LG$4,0)),) -> 0 | AE32: =IFERROR(INDEX(Ajustes!$E$14:$LG$300,MATCH($A32&"_"&AE$2,Ajustes!$LI$14:$LI$300,0),MATCH(AE$1,Ajustes!$E$4:$LG$4,0)),) -> 0 | AF32: =IFERROR(INDEX(Ajustes!$E$14:$LG$300,MATCH($A32&"_"&AF$2,Ajustes!$LI$14:$LI$300,0),MATCH(AF$1,Ajustes!$E$4:$LG$4,0)),) -> 0 | AG32: =IFERROR(INDEX(Ajustes!$E$14:$LG$300,MATCH($A32&"_"&AG$2,Ajustes!$LI$14:$LI$300,0),MATCH(AG$1,Ajustes!$E$4:$LG$4,0)),) -> 0 | AH32: =IFERROR(INDEX(Ajustes!$E$14:$LG$300,MATCH($A32&"_"&AH$2,Ajustes!$LI$14:$LI$300,0),MATCH(AH$1,Ajustes!$E$4:$LG$4,0)),) -> 0 | AI32: 0 | AJ32: 0 | AK32: 0 | AL32: 0 | AM32: =IFERROR(INDEX(Ajustes!$E$14:$LG$300,MATCH($A32&"_"&AM$2,Ajustes!$LI$14:$LI$300,0),MATCH(AM$1,Ajustes!$E$4:$LG$4,0)),) -> 0 | AN32: =IFERROR(INDEX(Ajustes!$E$14:$LG$300,MATCH($A32&"_"&AN$2,Ajustes!$LI$14:$LI$300,0),MATCH(AN$1,Ajustes!$E$4:$LG$4,0)),) -> 0 | AO32: =IFERROR(INDEX(Ajustes!$E$14:$LG$300,MATCH($A32&"_"&AO$2,Ajustes!$LI$14:$LI$300,0),MATCH(AO$1,Ajustes!$E$4:$LG$4,0)),) -> 0 | AP32: =IFERROR(INDEX(Ajustes!$E$14:$LG$300,MATCH($A32&"_"&AP$2,Ajustes!$LI$14:$LI$300,0),MATCH(AP$1,Ajustes!$E$4:$LG$4,0)),) -> 0 | AS32: 0 | AT32: 0 | AU32: 0 | AV32: 0 | AW32: 0 | AX32: 0 | AY32: 0 | AZ32: 0 | BB32: 0 | BC32: 0 | BD32: 0 | BE32: 0 | BF32: 0 | BG32: 0 | BH32: 0 | BI32: 0 | BL32: 0 | BM32: 0 | BN32: 0 | BO32: 0 | BP32: 0 | BQ32: 0 | BR32: 0 | BS32: 0 | BT32: 0 | BW32: 0 | BX32: 0 | BY32: 0 | BZ32: 0 | CA32: 0 | CB32: 0 | CC32: 0 | CD32: 0 | CG32: =IF(A32="",0,SUMIFS(Clientes!Q:Q,Clientes!C:C,A32)) -> 0 | CH32: =IF(A32="",0,SUMIFS(Energia!K:K,Energia!C:C,A32)) -> 0 | CI32: =IF(A32="",0,SUMIFS(Potencia!K:K,Potencia!B:B,A32,Potencia!M:M,CI$5)) -> 0 | CJ32: =IF(A32="",0,SUMIFS(Potencia!K:K,Potencia!B:B,A32,Potencia!M:M,CJ$5)) -> 0 | CK32: =IF(A32="",0,SUMIFS(Potencia!K:K,Potencia!B:B,A32,Potencia!M:M,CK$5)) -> 0 | CL32: =IF(A32="",0,SUMIFS(Clientes!K:K,Clientes!C:C,A32)) -> 0 | CM32: =IF(A32="",0,SUMIFS(Energia!K:K,Energia!B:B,A32,Energia!AA:AA,CM$5)) -> 0 | CN32: =IF(A32="",0,SUMIFS(Energia!K:K,Energia!B:B,A32,Energia!AA:AA,CN$5)) -> 0 | CO32: 0
A33: =Factores!C59 ->  | B33: =IFERROR(INDEX(Ajustes!$E$14:$LG$300,MATCH($A33&"_"&B$2,Ajustes!$LI$14:$LI$300,0),MATCH(B$1,Ajustes!$E$4:$LG$4,0)),) -> 0 | C33: =IFERROR(INDEX(Ajustes!$E$14:$LG$300,MATCH($A33&"_"&C$2,Ajustes!$LI$14:$LI$300,0),MATCH(C$1,Ajustes!$E$4:$LG$4,0)),) -> 0 | D33: =IFERROR(INDEX(Ajustes!$E$14:$LG$300,MATCH($A33&"_"&D$2,Ajustes!$LI$14:$LI$300,0),MATCH(D$1,Ajustes!$E$4:$LG$4,0)),) -> 0 | E33: =IFERROR(INDEX(Ajustes!$E$14:$LG$300,MATCH($A33&"_"&E$2,Ajustes!$LI$14:$LI$300,0),MATCH(E$1,Ajustes!$E$4:$LG$4,0)),) -> 0 | F33: =IFERROR(INDEX(Ajustes!$E$14:$LG$300,MATCH($A33&"_"&F$2,Ajustes!$LI$14:$LI$300,0),MATCH(F$1,Ajustes!$E$4:$LG$4,0)),) -> 0 | G33: =IFERROR(INDEX(Ajustes!$E$14:$LG$300,MATCH($A33&"_"&G$2,Ajustes!$LI$14:$LI$300,0),MATCH(G$1,Ajustes!$E$4:$LG$4,0)),) -> 0 | H33: =IFERROR(INDEX(Ajustes!$E$14:$LG$300,MATCH($A33&"_"&H$2,Ajustes!$LI$14:$LI$300,0),MATCH(H$1,Ajustes!$E$4:$LG$4,0)),) -> 0 | I33: =IFERROR(INDEX(Ajustes!$E$14:$LG$300,MATCH($A33&"_"&I$2,Ajustes!$LI$14:$LI$300,0),MATCH(I$1,Ajustes!$E$4:$LG$4,0)),) -> 0 | J33: =IFERROR(INDEX(Ajustes!$E$14:$LG$300,MATCH($A33&"_"&J$2,Ajustes!$LI$14:$LI$300,0),MATCH(J$1,Ajustes!$E$4:$LG$4,0)),) -> 0 | K33: =IFERROR(INDEX(Ajustes!$E$14:$LG$300,MATCH($A33&"_"&K$2,Ajustes!$LI$14:$LI$300,0),MATCH(K$1,Ajustes!$E$4:$LG$4,0)),) -> 0 | L33: =IFERROR(INDEX(Ajustes!$E$14:$LG$300,MATCH($A33&"_"&L$2,Ajustes!$LI$14:$LI$300,0),MATCH(L$1,Ajustes!$E$4:$LG$4,0)),) -> 0 | M33: =IFERROR(INDEX(Ajustes!$E$14:$LG$300,MATCH($A33&"_"&M$2,Ajustes!$LI$14:$LI$300,0),MATCH(M$1,Ajustes!$E$4:$LG$4,0)),) -> 0 | N33: =IFERROR(INDEX(Ajustes!$E$14:$LG$300,MATCH($A33&"_"&N$2,Ajustes!$LI$14:$LI$300,0),MATCH(N$1,Ajustes!$E$4:$LG$4,0)),) -> 0 | O33: =IFERROR(INDEX(Ajustes!$E$14:$LG$300,MATCH($A33&"_"&O$2,Ajustes!$LI$14:$LI$300,0),MATCH(O$1,Ajustes!$E$4:$LG$4,0)),) -> 0 | P33: =IFERROR(INDEX(Ajustes!$E$14:$LG$300,MATCH($A33&"_"&P$2,Ajustes!$LI$14:$LI$300,0),MATCH(P$1,Ajustes!$E$4:$LG$4,0)),) -> 0 | Q33: =IFERROR(INDEX(Ajustes!$E$14:$LG$300,MATCH($A33&"_"&Q$2,Ajustes!$LI$14:$LI$300,0),MATCH(Q$1,Ajustes!$E$4:$LG$4,0)),) -> 0 | R33: =IFERROR(INDEX(Ajustes!$E$14:$LG$300,MATCH($A33&"_"&R$2,Ajustes!$LI$14:$LI$300,0),MATCH(R$1,Ajustes!$E$4:$LG$4,0)),) -> 0 | S33: =IFERROR(INDEX(Ajustes!$E$14:$LG$300,MATCH($A33&"_"&S$2,Ajustes!$LI$14:$LI$300,0),MATCH(S$1,Ajustes!$E$4:$LG$4,0)),) -> 0 | T33: =IFERROR(INDEX(Ajustes!$E$14:$LG$300,MATCH($A33&"_"&T$2,Ajustes!$LI$14:$LI$300,0),MATCH(T$1,Ajustes!$E$4:$LG$4,0)),) -> 0 | U33: =IFERROR(INDEX(Ajustes!$E$14:$LG$300,MATCH($A33&"_"&U$2,Ajustes!$LI$14:$LI$300,0),MATCH(U$1,Ajustes!$E$4:$LG$4,0)),) -> 0 | V33: 0 | W33: =IFERROR(INDEX(Ajustes!$E$14:$LG$300,MATCH($A33&"_"&W$2,Ajustes!$LI$14:$LI$300,0),MATCH(W$1,Ajustes!$E$4:$LG$4,0)),) -> 0 | X33: =IFERROR(INDEX(Ajustes!$E$14:$LG$300,MATCH($A33&"_"&X$2,Ajustes!$LI$14:$LI$300,0),MATCH(X$1,Ajustes!$E$4:$LG$4,0)),) -> 0 | Y33: =IFERROR(INDEX(Ajustes!$E$14:$LG$300,MATCH($A33&"_"&Y$2,Ajustes!$LI$14:$LI$300,0),MATCH(Y$1,Ajustes!$E$4:$LG$4,0)),) -> 0 | Z33: =IFERROR(INDEX(Ajustes!$E$14:$LG$300,MATCH($A33&"_"&Z$2,Ajustes!$LI$14:$LI$300,0),MATCH(Z$1,Ajustes!$E$4:$LG$4,0)),) -> 0 | AA33: =IFERROR(INDEX(Ajustes!$E$14:$LG$300,MATCH($A33&"_"&AA$2,Ajustes!$LI$14:$LI$300,0),MATCH(AA$1,Ajustes!$E$4:$LG$4,0)),) -> 0 | AB33: =IFERROR(INDEX(Ajustes!$E$14:$LG$300,MATCH($A33&"_"&AB$2,Ajustes!$LI$14:$LI$300,0),MATCH(AB$1,Ajustes!$E$4:$LG$4,0)),) -> 0 | AC33: =IFERROR(INDEX(Ajustes!$E$14:$LG$300,MATCH($A33&"_"&AC$2,Ajustes!$LI$14:$LI$300,0),MATCH(AC$1,Ajustes!$E$4:$LG$4,0)),) -> 0 | AD33: =IFERROR(INDEX(Ajustes!$E$14:$LG$300,MATCH($A33&"_"&AD$2,Ajustes!$LI$14:$LI$300,0),MATCH(AD$1,Ajustes!$E$4:$LG$4,0)),) -> 0 | AE33: =IFERROR(INDEX(Ajustes!$E$14:$LG$300,MATCH($A33&"_"&AE$2,Ajustes!$LI$14:$LI$300,0),MATCH(AE$1,Ajustes!$E$4:$LG$4,0)),) -> 0 | AF33: =IFERROR(INDEX(Ajustes!$E$14:$LG$300,MATCH($A33&"_"&AF$2,Ajustes!$LI$14:$LI$300,0),MATCH(AF$1,Ajustes!$E$4:$LG$4,0)),) -> 0 | AG33: =IFERROR(INDEX(Ajustes!$E$14:$LG$300,MATCH($A33&"_"&AG$2,Ajustes!$LI$14:$LI$300,0),MATCH(AG$1,Ajustes!$E$4:$LG$4,0)),) -> 0 | AH33: =IFERROR(INDEX(Ajustes!$E$14:$LG$300,MATCH($A33&"_"&AH$2,Ajustes!$LI$14:$LI$300,0),MATCH(AH$1,Ajustes!$E$4:$LG$4,0)),) -> 0 | AI33: 0 | AJ33: 0 | AK33: 0 | AL33: 0 | AM33: =IFERROR(INDEX(Ajustes!$E$14:$LG$300,MATCH($A33&"_"&AM$2,Ajustes!$LI$14:$LI$300,0),MATCH(AM$1,Ajustes!$E$4:$LG$4,0)),) -> 0 | AN33: =IFERROR(INDEX(Ajustes!$E$14:$LG$300,MATCH($A33&"_"&AN$2,Ajustes!$LI$14:$LI$300,0),MATCH(AN$1,Ajustes!$E$4:$LG$4,0)),) -> 0 | AO33: =IFERROR(INDEX(Ajustes!$E$14:$LG$300,MATCH($A33&"_"&AO$2,Ajustes!$LI$14:$LI$300,0),MATCH(AO$1,Ajustes!$E$4:$LG$4,0)),) -> 0 | AP33: =IFERROR(INDEX(Ajustes!$E$14:$LG$300,MATCH($A33&"_"&AP$2,Ajustes!$LI$14:$LI$300,0),MATCH(AP$1,Ajustes!$E$4:$LG$4,0)),) -> 0 | AS33: 0 | AT33: 0 | AU33: 0 | AV33: 0 | AW33: 0 | AX33: 0 | AY33: 0 | AZ33: 0 | BB33: 0 | BC33: 0 | BD33: 0 | BE33: 0 | BF33: 0 | BG33: 0 | BH33: 0 | BI33: 0 | BL33: 0 | BM33: 0 | BN33: 0 | BO33: 0 | BP33: 0 | BQ33: 0 | BR33: 0 | BS33: 0 | BT33: 0 | BW33: 0 | BX33: 0 | BY33: 0 | BZ33: 0 | CA33: 0 | CB33: 0 | CC33: 0 | CD33: 0 | CG33: =IF(A33="",0,SUMIFS(Clientes!Q:Q,Clientes!C:C,A33)) -> 0 | CH33: =IF(A33="",0,SUMIFS(Energia!K:K,Energia!C:C,A33)) -> 0 | CI33: =IF(A33="",0,SUMIFS(Potencia!K:K,Potencia!B:B,A33,Potencia!M:M,CI$5)) -> 0 | CJ33: =IF(A33="",0,SUMIFS(Potencia!K:K,Potencia!B:B,A33,Potencia!M:M,CJ$5)) -> 0 | CK33: =IF(A33="",0,SUMIFS(Potencia!K:K,Potencia!B:B,A33,Potencia!M:M,CK$5)) -> 0 | CL33: =IF(A33="",0,SUMIFS(Clientes!K:K,Clientes!C:C,A33)) -> 0 | CM33: =IF(A33="",0,SUMIFS(Energia!K:K,Energia!B:B,A33,Energia!AA:AA,CM$5)) -> 0 | CN33: =IF(A33="",0,SUMIFS(Energia!K:K,Energia!B:B,A33,Energia!AA:AA,CN$5)) -> 0 | CO33: 0
A34: =Factores!C60 ->  | B34: =IFERROR(INDEX(Ajustes!$E$14:$LG$300,MATCH($A34&"_"&B$2,Ajustes!$LI$14:$LI$300,0),MATCH(B$1,Ajustes!$E$4:$LG$4,0)),) -> 0 | C34: =IFERROR(INDEX(Ajustes!$E$14:$LG$300,MATCH($A34&"_"&C$2,Ajustes!$LI$14:$LI$300,0),MATCH(C$1,Ajustes!$E$4:$LG$4,0)),) -> 0 | D34: =IFERROR(INDEX(Ajustes!$E$14:$LG$300,MATCH($A34&"_"&D$2,Ajustes!$LI$14:$LI$300,0),MATCH(D$1,Ajustes!$E$4:$LG$4,0)),) -> 0 | E34: =IFERROR(INDEX(Ajustes!$E$14:$LG$300,MATCH($A34&"_"&E$2,Ajustes!$LI$14:$LI$300,0),MATCH(E$1,Ajustes!$E$4:$LG$4,0)),) -> 0 | F34: =IFERROR(INDEX(Ajustes!$E$14:$LG$300,MATCH($A34&"_"&F$2,Ajustes!$LI$14:$LI$300,0),MATCH(F$1,Ajustes!$E$4:$LG$4,0)),) -> 0 | G34: =IFERROR(INDEX(Ajustes!$E$14:$LG$300,MATCH($A34&"_"&G$2,Ajustes!$LI$14:$LI$300,0),MATCH(G$1,Ajustes!$E$4:$LG$4,0)),) -> 0 | H34: =IFERROR(INDEX(Ajustes!$E$14:$LG$300,MATCH($A34&"_"&H$2,Ajustes!$LI$14:$LI$300,0),MATCH(H$1,Ajustes!$E$4:$LG$4,0)),) -> 0 | I34: =IFERROR(INDEX(Ajustes!$E$14:$LG$300,MATCH($A34&"_"&I$2,Ajustes!$LI$14:$LI$300,0),MATCH(I$1,Ajustes!$E$4:$LG$4,0)),) -> 0 | J34: =IFERROR(INDEX(Ajustes!$E$14:$LG$300,MATCH($A34&"_"&J$2,Ajustes!$LI$14:$LI$300,0),MATCH(J$1,Ajustes!$E$4:$LG$4,0)),) -> 0 | K34: =IFERROR(INDEX(Ajustes!$E$14:$LG$300,MATCH($A34&"_"&K$2,Ajustes!$LI$14:$LI$300,0),MATCH(K$1,Ajustes!$E$4:$LG$4,0)),) -> 0 | L34: =IFERROR(INDEX(Ajustes!$E$14:$LG$300,MATCH($A34&"_"&L$2,Ajustes!$LI$14:$LI$300,0),MATCH(L$1,Ajustes!$E$4:$LG$4,0)),) -> 0 | M34: =IFERROR(INDEX(Ajustes!$E$14:$LG$300,MATCH($A34&"_"&M$2,Ajustes!$LI$14:$LI$300,0),MATCH(M$1,Ajustes!$E$4:$LG$4,0)),) -> 0 | N34: =IFERROR(INDEX(Ajustes!$E$14:$LG$300,MATCH($A34&"_"&N$2,Ajustes!$LI$14:$LI$300,0),MATCH(N$1,Ajustes!$E$4:$LG$4,0)),) -> 0 | O34: =IFERROR(INDEX(Ajustes!$E$14:$LG$300,MATCH($A34&"_"&O$2,Ajustes!$LI$14:$LI$300,0),MATCH(O$1,Ajustes!$E$4:$LG$4,0)),) -> 0 | P34: =IFERROR(INDEX(Ajustes!$E$14:$LG$300,MATCH($A34&"_"&P$2,Ajustes!$LI$14:$LI$300,0),MATCH(P$1,Ajustes!$E$4:$LG$4,0)),) -> 0 | Q34: =IFERROR(INDEX(Ajustes!$E$14:$LG$300,MATCH($A34&"_"&Q$2,Ajustes!$LI$14:$LI$300,0),MATCH(Q$1,Ajustes!$E$4:$LG$4,0)),) -> 0 | R34: =IFERROR(INDEX(Ajustes!$E$14:$LG$300,MATCH($A34&"_"&R$2,Ajustes!$LI$14:$LI$300,0),MATCH(R$1,Ajustes!$E$4:$LG$4,0)),) -> 0 | S34: =IFERROR(INDEX(Ajustes!$E$14:$LG$300,MATCH($A34&"_"&S$2,Ajustes!$LI$14:$LI$300,0),MATCH(S$1,Ajustes!$E$4:$LG$4,0)),) -> 0 | T34: =IFERROR(INDEX(Ajustes!$E$14:$LG$300,MATCH($A34&"_"&T$2,Ajustes!$LI$14:$LI$300,0),MATCH(T$1,Ajustes!$E$4:$LG$4,0)),) -> 0 | U34: =IFERROR(INDEX(Ajustes!$E$14:$LG$300,MATCH($A34&"_"&U$2,Ajustes!$LI$14:$LI$300,0),MATCH(U$1,Ajustes!$E$4:$LG$4,0)),) -> 0 | V34: 0 | W34: =IFERROR(INDEX(Ajustes!$E$14:$LG$300,MATCH($A34&"_"&W$2,Ajustes!$LI$14:$LI$300,0),MATCH(W$1,Ajustes!$E$4:$LG$4,0)),) -> 0 | X34: =IFERROR(INDEX(Ajustes!$E$14:$LG$300,MATCH($A34&"_"&X$2,Ajustes!$LI$14:$LI$300,0),MATCH(X$1,Ajustes!$E$4:$LG$4,0)),) -> 0 | Y34: =IFERROR(INDEX(Ajustes!$E$14:$LG$300,MATCH($A34&"_"&Y$2,Ajustes!$LI$14:$LI$300,0),MATCH(Y$1,Ajustes!$E$4:$LG$4,0)),) -> 0 | Z34: =IFERROR(INDEX(Ajustes!$E$14:$LG$300,MATCH($A34&"_"&Z$2,Ajustes!$LI$14:$LI$300,0),MATCH(Z$1,Ajustes!$E$4:$LG$4,0)),) -> 0 | AA34: =IFERROR(INDEX(Ajustes!$E$14:$LG$300,MATCH($A34&"_"&AA$2,Ajustes!$LI$14:$LI$300,0),MATCH(AA$1,Ajustes!$E$4:$LG$4,0)),) -> 0 | AB34: =IFERROR(INDEX(Ajustes!$E$14:$LG$300,MATCH($A34&"_"&AB$2,Ajustes!$LI$14:$LI$300,0),MATCH(AB$1,Ajustes!$E$4:$LG$4,0)),) -> 0 | AC34: =IFERROR(INDEX(Ajustes!$E$14:$LG$300,MATCH($A34&"_"&AC$2,Ajustes!$LI$14:$LI$300,0),MATCH(AC$1,Ajustes!$E$4:$LG$4,0)),) -> 0 | AD34: =IFERROR(INDEX(Ajustes!$E$14:$LG$300,MATCH($A34&"_"&AD$2,Ajustes!$LI$14:$LI$300,0),MATCH(AD$1,Ajustes!$E$4:$LG$4,0)),) -> 0 | AE34: =IFERROR(INDEX(Ajustes!$E$14:$LG$300,MATCH($A34&"_"&AE$2,Ajustes!$LI$14:$LI$300,0),MATCH(AE$1,Ajustes!$E$4:$LG$4,0)),) -> 0 | AF34: =IFERROR(INDEX(Ajustes!$E$14:$LG$300,MATCH($A34&"_"&AF$2,Ajustes!$LI$14:$LI$300,0),MATCH(AF$1,Ajustes!$E$4:$LG$4,0)),) -> 0 | AG34: =IFERROR(INDEX(Ajustes!$E$14:$LG$300,MATCH($A34&"_"&AG$2,Ajustes!$LI$14:$LI$300,0),MATCH(AG$1,Ajustes!$E$4:$LG$4,0)),) -> 0 | AH34: =IFERROR(INDEX(Ajustes!$E$14:$LG$300,MATCH($A34&"_"&AH$2,Ajustes!$LI$14:$LI$300,0),MATCH(AH$1,Ajustes!$E$4:$LG$4,0)),) -> 0 | AI34: 0 | AJ34: 0 | AK34: 0 | AL34: 0 | AM34: =IFERROR(INDEX(Ajustes!$E$14:$LG$300,MATCH($A34&"_"&AM$2,Ajustes!$LI$14:$LI$300,0),MATCH(AM$1,Ajustes!$E$4:$LG$4,0)),) -> 0 | AN34: =IFERROR(INDEX(Ajustes!$E$14:$LG$300,MATCH($A34&"_"&AN$2,Ajustes!$LI$14:$LI$300,0),MATCH(AN$1,Ajustes!$E$4:$LG$4,0)),) -> 0 | AO34: =IFERROR(INDEX(Ajustes!$E$14:$LG$300,MATCH($A34&"_"&AO$2,Ajustes!$LI$14:$LI$300,0),MATCH(AO$1,Ajustes!$E$4:$LG$4,0)),) -> 0 | AP34: =IFERROR(INDEX(Ajustes!$E$14:$LG$300,MATCH($A34&"_"&AP$2,Ajustes!$LI$14:$LI$300,0),MATCH(AP$1,Ajustes!$E$4:$LG$4,0)),) -> 0 | AS34: 0 | AT34: 0 | AU34: 0 | AV34: 0 | AW34: 0 | AX34: 0 | AY34: 0 | AZ34: 0 | BB34: 0 | BC34: 0 | BD34: 0 | BE34: 0 | BF34: 0 | BG34: 0 | BH34: 0 | BI34: 0 | BL34: 0 | BM34: 0 | BN34: 0 | BO34: 0 | BP34: 0 | BQ34: 0 | BR34: 0 | BS34: 0 | BT34: 0 | BW34: 0 | BX34: 0 | BY34: 0 | BZ34: 0 | CA34: 0 | CB34: 0 | CC34: 0 | CD34: 0 | CG34: =IF(A34="",0,SUMIFS(Clientes!Q:Q,Clientes!C:C,A34)) -> 0 | CH34: =IF(A34="",0,SUMIFS(Energia!K:K,Energia!C:C,A34)) -> 0 | CI34: =IF(A34="",0,SUMIFS(Potencia!K:K,Potencia!B:B,A34,Potencia!M:M,CI$5)) -> 0 | CJ34: =IF(A34="",0,SUMIFS(Potencia!K:K,Potencia!B:B,A34,Potencia!M:M,CJ$5)) -> 0 | CK34: =IF(A34="",0,SUMIFS(Potencia!K:K,Potencia!B:B,A34,Potencia!M:M,CK$5)) -> 0 | CL34: =IF(A34="",0,SUMIFS(Clientes!K:K,Clientes!C:C,A34)) -> 0 | CM34: =IF(A34="",0,SUMIFS(Energia!K:K,Energia!B:B,A34,Energia!AA:AA,CM$5)) -> 0 | CN34: =IF(A34="",0,SUMIFS(Energia!K:K,Energia!B:B,A34,Energia!AA:AA,CN$5)) -> 0 | CO34: 0
A35: =Factores!C61 -> MTD | B35: =IFERROR(INDEX(Ajustes!$E$14:$LG$300,MATCH($A35&"_"&B$2,Ajustes!$LI$14:$LI$300,0),MATCH(B$1,Ajustes!$E$4:$LG$4,0)),) -> 141.52 | C35: =IFERROR(INDEX(Ajustes!$E$14:$LG$300,MATCH($A35&"_"&C$2,Ajustes!$LI$14:$LI$300,0),MATCH(C$1,Ajustes!$E$4:$LG$4,0)),) -> 0 | D35: =IFERROR(INDEX(Ajustes!$E$14:$LG$300,MATCH($A35&"_"&D$2,Ajustes!$LI$14:$LI$300,0),MATCH(D$1,Ajustes!$E$4:$LG$4,0)),) -> 11.28539649 | E35: =IFERROR(INDEX(Ajustes!$E$14:$LG$300,MATCH($A35&"_"&E$2,Ajustes!$LI$14:$LI$300,0),MATCH(E$1,Ajustes!$E$4:$LG$4,0)),) -> 0 | F35: =IFERROR(INDEX(Ajustes!$E$14:$LG$300,MATCH($A35&"_"&F$2,Ajustes!$LI$14:$LI$300,0),MATCH(F$1,Ajustes!$E$4:$LG$4,0)),) -> 0 | G35: =IFERROR(INDEX(Ajustes!$E$14:$LG$300,MATCH($A35&"_"&G$2,Ajustes!$LI$14:$LI$300,0),MATCH(G$1,Ajustes!$E$4:$LG$4,0)),) -> 0 | H35: =IFERROR(INDEX(Ajustes!$E$14:$LG$300,MATCH($A35&"_"&H$2,Ajustes!$LI$14:$LI$300,0),MATCH(H$1,Ajustes!$E$4:$LG$4,0)),) -> 0 | I35: =IFERROR(INDEX(Ajustes!$E$14:$LG$300,MATCH($A35&"_"&I$2,Ajustes!$LI$14:$LI$300,0),MATCH(I$1,Ajustes!$E$4:$LG$4,0)),) -> 10.02858252 | J35: =IFERROR(INDEX(Ajustes!$E$14:$LG$300,MATCH($A35&"_"&J$2,Ajustes!$LI$14:$LI$300,0),MATCH(J$1,Ajustes!$E$4:$LG$4,0)),) -> 0 | K35: =IFERROR(INDEX(Ajustes!$E$14:$LG$300,MATCH($A35&"_"&K$2,Ajustes!$LI$14:$LI$300,0),MATCH(K$1,Ajustes!$E$4:$LG$4,0)),) -> 0.004587789669 | L35: =IFERROR(INDEX(Ajustes!$E$14:$LG$300,MATCH($A35&"_"&L$2,Ajustes!$LI$14:$LI$300,0),MATCH(L$1,Ajustes!$E$4:$LG$4,0)),) -> 0.002329061648 | M35: =IFERROR(INDEX(Ajustes!$E$14:$LG$300,MATCH($A35&"_"&M$2,Ajustes!$LI$14:$LI$300,0),MATCH(M$1,Ajustes!$E$4:$LG$4,0)),) -> 0.001506949515 | N35: =IFERROR(INDEX(Ajustes!$E$14:$LG$300,MATCH($A35&"_"&N$2,Ajustes!$LI$14:$LI$300,0),MATCH(N$1,Ajustes!$E$4:$LG$4,0)),) -> 0.0109068114 | O35: =IFERROR(INDEX(Ajustes!$E$14:$LG$300,MATCH($A35&"_"&O$2,Ajustes!$LI$14:$LI$300,0),MATCH(O$1,Ajustes!$E$4:$LG$4,0)),) -> 0 | P35: =IFERROR(INDEX(Ajustes!$E$14:$LG$300,MATCH($A35&"_"&P$2,Ajustes!$LI$14:$LI$300,0),MATCH(P$1,Ajustes!$E$4:$LG$4,0)),) -> 0 | Q35: =IFERROR(INDEX(Ajustes!$E$14:$LG$300,MATCH($A35&"_"&Q$2,Ajustes!$LI$14:$LI$300,0),MATCH(Q$1,Ajustes!$E$4:$LG$4,0)),) -> 0 | R35: =IFERROR(INDEX(Ajustes!$E$14:$LG$300,MATCH($A35&"_"&R$2,Ajustes!$LI$14:$LI$300,0),MATCH(R$1,Ajustes!$E$4:$LG$4,0)),) -> 0 | S35: =IFERROR(INDEX(Ajustes!$E$14:$LG$300,MATCH($A35&"_"&S$2,Ajustes!$LI$14:$LI$300,0),MATCH(S$1,Ajustes!$E$4:$LG$4,0)),) -> 0 | T35: =IFERROR(INDEX(Ajustes!$E$14:$LG$300,MATCH($A35&"_"&T$2,Ajustes!$LI$14:$LI$300,0),MATCH(T$1,Ajustes!$E$4:$LG$4,0)),) -> 0.3923604537 | U35: =IFERROR(INDEX(Ajustes!$E$14:$LG$300,MATCH($A35&"_"&U$2,Ajustes!$LI$14:$LI$300,0),MATCH(U$1,Ajustes!$E$4:$LG$4,0)),) -> 0 | V35: 0.0109068114 | W35: =IFERROR(INDEX(Ajustes!$E$14:$LG$300,MATCH($A35&"_"&W$2,Ajustes!$LI$14:$LI$300,0),MATCH(W$1,Ajustes!$E$4:$LG$4,0)),) -> 0.0854543248 | X35: =IFERROR(INDEX(Ajustes!$E$14:$LG$300,MATCH($A35&"_"&X$2,Ajustes!$LI$14:$LI$300,0),MATCH(X$1,Ajustes!$E$4:$LG$4,0)),) -> 0 | Y35: =IFERROR(INDEX(Ajustes!$E$14:$LG$300,MATCH($A35&"_"&Y$2,Ajustes!$LI$14:$LI$300,0),MATCH(Y$1,Ajustes!$E$4:$LG$4,0)),) -> 0 | Z35: =IFERROR(INDEX(Ajustes!$E$14:$LG$300,MATCH($A35&"_"&Z$2,Ajustes!$LI$14:$LI$300,0),MATCH(Z$1,Ajustes!$E$4:$LG$4,0)),) -> 0 | AA35: =IFERROR(INDEX(Ajustes!$E$14:$LG$300,MATCH($A35&"_"&AA$2,Ajustes!$LI$14:$LI$300,0),MATCH(AA$1,Ajustes!$E$4:$LG$4,0)),) -> 0 | AB35: =IFERROR(INDEX(Ajustes!$E$14:$LG$300,MATCH($A35&"_"&AB$2,Ajustes!$LI$14:$LI$300,0),MATCH(AB$1,Ajustes!$E$4:$LG$4,0)),) -> 0 | AC35: =IFERROR(INDEX(Ajustes!$E$14:$LG$300,MATCH($A35&"_"&AC$2,Ajustes!$LI$14:$LI$300,0),MATCH(AC$1,Ajustes!$E$4:$LG$4,0)),) -> 0.03262066662 | AD35: =IFERROR(INDEX(Ajustes!$E$14:$LG$300,MATCH($A35&"_"&AD$2,Ajustes!$LI$14:$LI$300,0),MATCH(AD$1,Ajustes!$E$4:$LG$4,0)),) -> 2.081292634 | AE35: =IFERROR(INDEX(Ajustes!$E$14:$LG$300,MATCH($A35&"_"&AE$2,Ajustes!$LI$14:$LI$300,0),MATCH(AE$1,Ajustes!$E$4:$LG$4,0)),) -> 0 | AF35: =IFERROR(INDEX(Ajustes!$E$14:$LG$300,MATCH($A35&"_"&AF$2,Ajustes!$LI$14:$LI$300,0),MATCH(AF$1,Ajustes!$E$4:$LG$4,0)),) -> 0 | AG35: =IFERROR(INDEX(Ajustes!$E$14:$LG$300,MATCH($A35&"_"&AG$2,Ajustes!$LI$14:$LI$300,0),MATCH(AG$1,Ajustes!$E$4:$LG$4,0)),) -> 2.081292634 | AH35: =IFERROR(INDEX(Ajustes!$E$14:$LG$300,MATCH($A35&"_"&AH$2,Ajustes!$LI$14:$LI$300,0),MATCH(AH$1,Ajustes!$E$4:$LG$4,0)),) -> 0 | AI35: 0.0854543248 | AJ35: 0.1180749914 | AK35: 0 | AL35: 0 | AM35: =IFERROR(INDEX(Ajustes!$E$14:$LG$300,MATCH($A35&"_"&AM$2,Ajustes!$LI$14:$LI$300,0),MATCH(AM$1,Ajustes!$E$4:$LG$4,0)),) -> 0.004103080076 | AN35: =IFERROR(INDEX(Ajustes!$E$14:$LG$300,MATCH($A35&"_"&AN$2,Ajustes!$LI$14:$LI$300,0),MATCH(AN$1,Ajustes!$E$4:$LG$4,0)),) -> 1.562990702 | AO35: =IFERROR(INDEX(Ajustes!$E$14:$LG$300,MATCH($A35&"_"&AO$2,Ajustes!$LI$14:$LI$300,0),MATCH(AO$1,Ajustes!$E$4:$LG$4,0)),) -> 0 | AP35: =IFERROR(INDEX(Ajustes!$E$14:$LG$300,MATCH($A35&"_"&AP$2,Ajustes!$LI$14:$LI$300,0),MATCH(AP$1,Ajustes!$E$4:$LG$4,0)),) -> 0.004646378084 | AS35: 141.52 | AT35: 0.2642300532 | AU35: 2.081292634 | AV35: 0 | AW35: 0 | AX35: 10.02858252 | AY35: 0 | AZ35: 0 | BB35: 141.52 | BC35: 0.006916851317 | BD35: 0 | BE35: 0 | BF35: 0 | BG35: 10.02858252 | BH35: 0 | BI35: 0 | BL35: 0 | BM35: 0.03412761614 | BN35: 2.081292634 | BO35: 0 | BP35: 0 | BQ35: 0 | BR35: 0 | BS35: 0 | BT35: 0 | BW35: 0 | BX35: 0.00874945816 | BY35: 0 | BZ35: 0 | CA35: 0 | CB35: 0 | CC35: 0 | CD35: 0 | CG35: =IF(A35="",0,SUMIFS(Clientes!Q:Q,Clientes!C:C,A35)) -> 41.95639117 | CH35: =IF(A35="",0,SUMIFS(Energia!K:K,Energia!C:C,A35)) -> 1213373.942 | CI35: =IF(A35="",0,SUMIFS(Potencia!K:K,Potencia!B:B,A35,Potencia!M:M,CI$5)) -> 279.6697124 | CJ35: =IF(A35="",0,SUMIFS(Potencia!K:K,Potencia!B:B,A35,Potencia!M:M,CJ$5)) -> 0 | CK35: =IF(A35="",0,SUMIFS(Potencia!K:K,Potencia!B:B,A35,Potencia!M:M,CK$5)) -> 0 | CL35: =IF(A35="",0,SUMIFS(Clientes!K:K,Clientes!C:C,A35)) -> 1460.776562 | CM35: =IF(A35="",0,SUMIFS(Energia!K:K,Energia!B:B,A35,Energia!AA:AA,CM$5)) -> 0 | CN35: =IF(A35="",0,SUMIFS(Energia!K:K,Energia!B:B,A35,Energia!AA:AA,CN$5)) -> 0 | CO35: 0
A36: =Factores!C62 -> MTH | B36: =IFERROR(INDEX(Ajustes!$E$14:$LG$300,MATCH($A36&"_"&B$2,Ajustes!$LI$14:$LI$300,0),MATCH(B$1,Ajustes!$E$4:$LG$4,0)),) -> 141.52 | C36: =IFERROR(INDEX(Ajustes!$E$14:$LG$300,MATCH($A36&"_"&C$2,Ajustes!$LI$14:$LI$300,0),MATCH(C$1,Ajustes!$E$4:$LG$4,0)),) -> 0 | D36: =IFERROR(INDEX(Ajustes!$E$14:$LG$300,MATCH($A36&"_"&D$2,Ajustes!$LI$14:$LI$300,0),MATCH(D$1,Ajustes!$E$4:$LG$4,0)),) -> 0 | E36: =IFERROR(INDEX(Ajustes!$E$14:$LG$300,MATCH($A36&"_"&E$2,Ajustes!$LI$14:$LI$300,0),MATCH(E$1,Ajustes!$E$4:$LG$4,0)),) -> 6.221812155 | F36: =IFERROR(INDEX(Ajustes!$E$14:$LG$300,MATCH($A36&"_"&F$2,Ajustes!$LI$14:$LI$300,0),MATCH(F$1,Ajustes!$E$4:$LG$4,0)),) -> 0 | G36: =IFERROR(INDEX(Ajustes!$E$14:$LG$300,MATCH($A36&"_"&G$2,Ajustes!$LI$14:$LI$300,0),MATCH(G$1,Ajustes!$E$4:$LG$4,0)),) -> 3.655066467 | H36: =IFERROR(INDEX(Ajustes!$E$14:$LG$300,MATCH($A36&"_"&H$2,Ajustes!$LI$14:$LI$300,0),MATCH(H$1,Ajustes!$E$4:$LG$4,0)),) -> 1.827533234 | I36: =IFERROR(INDEX(Ajustes!$E$14:$LG$300,MATCH($A36&"_"&I$2,Ajustes!$LI$14:$LI$300,0),MATCH(I$1,Ajustes!$E$4:$LG$4,0)),) -> 10.02858252 | J36: =IFERROR(INDEX(Ajustes!$E$14:$LG$300,MATCH($A36&"_"&J$2,Ajustes!$LI$14:$LI$300,0),MATCH(J$1,Ajustes!$E$4:$LG$4,0)),) -> 0 | K36: =IFERROR(INDEX(Ajustes!$E$14:$LG$300,MATCH($A36&"_"&K$2,Ajustes!$LI$14:$LI$300,0),MATCH(K$1,Ajustes!$E$4:$LG$4,0)),) -> 0.004587789669 | L36: =IFERROR(INDEX(Ajustes!$E$14:$LG$300,MATCH($A36&"_"&L$2,Ajustes!$LI$14:$LI$300,0),MATCH(L$1,Ajustes!$E$4:$LG$4,0)),) -> 0.002329061648 | M36: =IFERROR(INDEX(Ajustes!$E$14:$LG$300,MATCH($A36&"_"&M$2,Ajustes!$LI$14:$LI$300,0),MATCH(M$1,Ajustes!$E$4:$LG$4,0)),) -> 0.001506949515 | N36: =IFERROR(INDEX(Ajustes!$E$14:$LG$300,MATCH($A36&"_"&N$2,Ajustes!$LI$14:$LI$300,0),MATCH(N$1,Ajustes!$E$4:$LG$4,0)),) -> 0 | O36: =IFERROR(INDEX(Ajustes!$E$14:$LG$300,MATCH($A36&"_"&O$2,Ajustes!$LI$14:$LI$300,0),MATCH(O$1,Ajustes!$E$4:$LG$4,0)),) -> 0.0109068114 | P36: =IFERROR(INDEX(Ajustes!$E$14:$LG$300,MATCH($A36&"_"&P$2,Ajustes!$LI$14:$LI$300,0),MATCH(P$1,Ajustes!$E$4:$LG$4,0)),) -> 0 | Q36: =IFERROR(INDEX(Ajustes!$E$14:$LG$300,MATCH($A36&"_"&Q$2,Ajustes!$LI$14:$LI$300,0),MATCH(Q$1,Ajustes!$E$4:$LG$4,0)),) -> 0.0109068114 | R36: =IFERROR(INDEX(Ajustes!$E$14:$LG$300,MATCH($A36&"_"&R$2,Ajustes!$LI$14:$LI$300,0),MATCH(R$1,Ajustes!$E$4:$LG$4,0)),) -> 0.0109068114 | S36: =IFERROR(INDEX(Ajustes!$E$14:$LG$300,MATCH($A36&"_"&S$2,Ajustes!$LI$14:$LI$300,0),MATCH(S$1,Ajustes!$E$4:$LG$4,0)),) -> 0 | T36: =IFERROR(INDEX(Ajustes!$E$14:$LG$300,MATCH($A36&"_"&T$2,Ajustes!$LI$14:$LI$300,0),MATCH(T$1,Ajustes!$E$4:$LG$4,0)),) -> 0 | U36: =IFERROR(INDEX(Ajustes!$E$14:$LG$300,MATCH($A36&"_"&U$2,Ajustes!$LI$14:$LI$300,0),MATCH(U$1,Ajustes!$E$4:$LG$4,0)),) -> 0.4057281769 | V36: 0 | W36: =IFERROR(INDEX(Ajustes!$E$14:$LG$300,MATCH($A36&"_"&W$2,Ajustes!$LI$14:$LI$300,0),MATCH(W$1,Ajustes!$E$4:$LG$4,0)),) -> 0 | X36: =IFERROR(INDEX(Ajustes!$E$14:$LG$300,MATCH($A36&"_"&X$2,Ajustes!$LI$14:$LI$300,0),MATCH(X$1,Ajustes!$E$4:$LG$4,0)),) -> 0.1518983681 | Y36: =IFERROR(INDEX(Ajustes!$E$14:$LG$300,MATCH($A36&"_"&Y$2,Ajustes!$LI$14:$LI$300,0),MATCH(Y$1,Ajustes!$E$4:$LG$4,0)),) -> 0 | Z36: =IFERROR(INDEX(Ajustes!$E$14:$LG$300,MATCH($A36&"_"&Z$2,Ajustes!$LI$14:$LI$300,0),MATCH(Z$1,Ajustes!$E$4:$LG$4,0)),) -> 0.09906415308 | AA36: =IFERROR(INDEX(Ajustes!$E$14:$LG$300,MATCH($A36&"_"&AA$2,Ajustes!$LI$14:$LI$300,0),MATCH(AA$1,Ajustes!$E$4:$LG$4,0)),) -> 0.04402851248 | AB36: =IFERROR(INDEX(Ajustes!$E$14:$LG$300,MATCH($A36&"_"&AB$2,Ajustes!$LI$14:$LI$300,0),MATCH(AB$1,Ajustes!$E$4:$LG$4,0)),) -> 0 | AC36: =IFERROR(INDEX(Ajustes!$E$14:$LG$300,MATCH($A36&"_"&AC$2,Ajustes!$LI$14:$LI$300,0),MATCH(AC$1,Ajustes!$E$4:$LG$4,0)),) -> 0.03926406732 | AD36: =IFERROR(INDEX(Ajustes!$E$14:$LG$300,MATCH($A36&"_"&AD$2,Ajustes!$LI$14:$LI$300,0),MATCH(AD$1,Ajustes!$E$4:$LG$4,0)),) -> 0 | AE36: =IFERROR(INDEX(Ajustes!$E$14:$LG$300,MATCH($A36&"_"&AE$2,Ajustes!$LI$14:$LI$300,0),MATCH(AE$1,Ajustes!$E$4:$LG$4,0)),) -> 2.152202287 | AF36: =IFERROR(INDEX(Ajustes!$E$14:$LG$300,MATCH($A36&"_"&AF$2,Ajustes!$LI$14:$LI$300,0),MATCH(AF$1,Ajustes!$E$4:$LG$4,0)),) -> 0 | AG36: =IFERROR(INDEX(Ajustes!$E$14:$LG$300,MATCH($A36&"_"&AG$2,Ajustes!$LI$14:$LI$300,0),MATCH(AG$1,Ajustes!$E$4:$LG$4,0)),) -> 0 | AH36: =IFERROR(INDEX(Ajustes!$E$14:$LG$300,MATCH($A36&"_"&AH$2,Ajustes!$LI$14:$LI$300,0),MATCH(AH$1,Ajustes!$E$4:$LG$4,0)),) -> 0 | AI36: 0 | AJ36: 0.03926406732 | AK36: 0.1518983681 | AL36: 0 | AM36: =IFERROR(INDEX(Ajustes!$E$14:$LG$300,MATCH($A36&"_"&AM$2,Ajustes!$LI$14:$LI$300,0),MATCH(AM$1,Ajustes!$E$4:$LG$4,0)),) -> 0.003939153371 | AN36: =IFERROR(INDEX(Ajustes!$E$14:$LG$300,MATCH($A36&"_"&AN$2,Ajustes!$LI$14:$LI$300,0),MATCH(AN$1,Ajustes!$E$4:$LG$4,0)),) -> 0 | AO36: =IFERROR(INDEX(Ajustes!$E$14:$LG$300,MATCH($A36&"_"&AO$2,Ajustes!$LI$14:$LI$300,0),MATCH(AO$1,Ajustes!$E$4:$LG$4,0)),) -> 1.616241805 | AP36: =IFERROR(INDEX(Ajustes!$E$14:$LG$300,MATCH($A36&"_"&AP$2,Ajustes!$LI$14:$LI$300,0),MATCH(AP$1,Ajustes!$E$4:$LG$4,0)),) -> 0.004646378084 | AS36: 141.52 | AT36: 0.09553746693 | AU36: 0 | AV36: 2.152202287 | AW36: 0 | AX36: 10.02858252 | AY36: 0.1518983681 | AZ36: 0 | BB36: 141.52 | BC36: 0.006916851317 | BD36: 0 | BE36: 0 | BF36: 0 | BG36: 10.02858252 | BH36: 0 | BI36: 0 | BL36: 0 | BM36: 0.04077101684 | BN36: 0 | BO36: 2.152202287 | BP36: 0 | BQ36: 0 | BR36: 0 | BS36: 0 | BT36: 0 | BW36: 0 | BX36: 0.008585531455 | BY36: 0 | BZ36: 0 | CA36: 0 | CB36: 0 | CC36: 0 | CD36: 0 | CG36: =IF(A36="",0,SUMIFS(Clientes!Q:Q,Clientes!C:C,A36)) -> 2.511256506 | CH36: =IF(A36="",0,SUMIFS(Energia!K:K,Energia!C:C,A36)) -> 146212.8113 | CI36: =IF(A36="",0,SUMIFS(Potencia!K:K,Potencia!B:B,A36,Potencia!M:M,CI$5)) -> 0 | CJ36: =IF(A36="",0,SUMIFS(Potencia!K:K,Potencia!B:B,A36,Potencia!M:M,CJ$5)) -> 39.22732667 | CK36: =IF(A36="",0,SUMIFS(Potencia!K:K,Potencia!B:B,A36,Potencia!M:M,CK$5)) -> 38.47697145 | CL36: =IF(A36="",0,SUMIFS(Clientes!K:K,Clientes!C:C,A36)) -> 88.50063168 | CM36: =IF(A36="",0,SUMIFS(Energia!K:K,Energia!B:B,A36,Energia!AA:AA,CM$5)) -> 32126.60167 | CN36: =IF(A36="",0,SUMIFS(Energia!K:K,Energia!B:B,A36,Energia!AA:AA,CN$5)) -> 114086.2097 | CO36: 0
A37: =Factores!C63 -> MTA | B37: =IFERROR(INDEX(Ajustes!$E$14:$LG$300,MATCH($A37&"_"&B$2,Ajustes!$LI$14:$LI$300,0),MATCH(B$1,Ajustes!$E$4:$LG$4,0)),) -> 141.52 | C37: =IFERROR(INDEX(Ajustes!$E$14:$LG$300,MATCH($A37&"_"&C$2,Ajustes!$LI$14:$LI$300,0),MATCH(C$1,Ajustes!$E$4:$LG$4,0)),) -> 0 | D37: =IFERROR(INDEX(Ajustes!$E$14:$LG$300,MATCH($A37&"_"&D$2,Ajustes!$LI$14:$LI$300,0),MATCH(D$1,Ajustes!$E$4:$LG$4,0)),) -> 11.28539649 | E37: =IFERROR(INDEX(Ajustes!$E$14:$LG$300,MATCH($A37&"_"&E$2,Ajustes!$LI$14:$LI$300,0),MATCH(E$1,Ajustes!$E$4:$LG$4,0)),) -> 0 | F37: =IFERROR(INDEX(Ajustes!$E$14:$LG$300,MATCH($A37&"_"&F$2,Ajustes!$LI$14:$LI$300,0),MATCH(F$1,Ajustes!$E$4:$LG$4,0)),) -> 0 | G37: =IFERROR(INDEX(Ajustes!$E$14:$LG$300,MATCH($A37&"_"&G$2,Ajustes!$LI$14:$LI$300,0),MATCH(G$1,Ajustes!$E$4:$LG$4,0)),) -> 0 | H37: =IFERROR(INDEX(Ajustes!$E$14:$LG$300,MATCH($A37&"_"&H$2,Ajustes!$LI$14:$LI$300,0),MATCH(H$1,Ajustes!$E$4:$LG$4,0)),) -> 0 | I37: =IFERROR(INDEX(Ajustes!$E$14:$LG$300,MATCH($A37&"_"&I$2,Ajustes!$LI$14:$LI$300,0),MATCH(I$1,Ajustes!$E$4:$LG$4,0)),) -> 10.02858252 | J37: =IFERROR(INDEX(Ajustes!$E$14:$LG$300,MATCH($A37&"_"&J$2,Ajustes!$LI$14:$LI$300,0),MATCH(J$1,Ajustes!$E$4:$LG$4,0)),) -> 0 | K37: =IFERROR(INDEX(Ajustes!$E$14:$LG$300,MATCH($A37&"_"&K$2,Ajustes!$LI$14:$LI$300,0),MATCH(K$1,Ajustes!$E$4:$LG$4,0)),) -> 0.004587789669 | L37: =IFERROR(INDEX(Ajustes!$E$14:$LG$300,MATCH($A37&"_"&L$2,Ajustes!$LI$14:$LI$300,0),MATCH(L$1,Ajustes!$E$4:$LG$4,0)),) -> 0.002329061648 | M37: =IFERROR(INDEX(Ajustes!$E$14:$LG$300,MATCH($A37&"_"&M$2,Ajustes!$LI$14:$LI$300,0),MATCH(M$1,Ajustes!$E$4:$LG$4,0)),) -> 0.001506949515 | N37: =IFERROR(INDEX(Ajustes!$E$14:$LG$300,MATCH($A37&"_"&N$2,Ajustes!$LI$14:$LI$300,0),MATCH(N$1,Ajustes!$E$4:$LG$4,0)),) -> 0.0109068114 | O37: =IFERROR(INDEX(Ajustes!$E$14:$LG$300,MATCH($A37&"_"&O$2,Ajustes!$LI$14:$LI$300,0),MATCH(O$1,Ajustes!$E$4:$LG$4,0)),) -> 0 | P37: =IFERROR(INDEX(Ajustes!$E$14:$LG$300,MATCH($A37&"_"&P$2,Ajustes!$LI$14:$LI$300,0),MATCH(P$1,Ajustes!$E$4:$LG$4,0)),) -> 0 | Q37: =IFERROR(INDEX(Ajustes!$E$14:$LG$300,MATCH($A37&"_"&Q$2,Ajustes!$LI$14:$LI$300,0),MATCH(Q$1,Ajustes!$E$4:$LG$4,0)),) -> 0 | R37: =IFERROR(INDEX(Ajustes!$E$14:$LG$300,MATCH($A37&"_"&R$2,Ajustes!$LI$14:$LI$300,0),MATCH(R$1,Ajustes!$E$4:$LG$4,0)),) -> 0 | S37: =IFERROR(INDEX(Ajustes!$E$14:$LG$300,MATCH($A37&"_"&S$2,Ajustes!$LI$14:$LI$300,0),MATCH(S$1,Ajustes!$E$4:$LG$4,0)),) -> 0.0009522379554 | T37: =IFERROR(INDEX(Ajustes!$E$14:$LG$300,MATCH($A37&"_"&T$2,Ajustes!$LI$14:$LI$300,0),MATCH(T$1,Ajustes!$E$4:$LG$4,0)),) -> 0 | U37: =IFERROR(INDEX(Ajustes!$E$14:$LG$300,MATCH($A37&"_"&U$2,Ajustes!$LI$14:$LI$300,0),MATCH(U$1,Ajustes!$E$4:$LG$4,0)),) -> 0 | V37: 0.01185904936 | W37: =IFERROR(INDEX(Ajustes!$E$14:$LG$300,MATCH($A37&"_"&W$2,Ajustes!$LI$14:$LI$300,0),MATCH(W$1,Ajustes!$E$4:$LG$4,0)),) -> 0.0854543248 | X37: =IFERROR(INDEX(Ajustes!$E$14:$LG$300,MATCH($A37&"_"&X$2,Ajustes!$LI$14:$LI$300,0),MATCH(X$1,Ajustes!$E$4:$LG$4,0)),) -> 0 | Y37: =IFERROR(INDEX(Ajustes!$E$14:$LG$300,MATCH($A37&"_"&Y$2,Ajustes!$LI$14:$LI$300,0),MATCH(Y$1,Ajustes!$E$4:$LG$4,0)),) -> 0 | Z37: =IFERROR(INDEX(Ajustes!$E$14:$LG$300,MATCH($A37&"_"&Z$2,Ajustes!$LI$14:$LI$300,0),MATCH(Z$1,Ajustes!$E$4:$LG$4,0)),) -> 0 | AA37: =IFERROR(INDEX(Ajustes!$E$14:$LG$300,MATCH($A37&"_"&AA$2,Ajustes!$LI$14:$LI$300,0),MATCH(AA$1,Ajustes!$E$4:$LG$4,0)),) -> 0 | AB37: =IFERROR(INDEX(Ajustes!$E$14:$LG$300,MATCH($A37&"_"&AB$2,Ajustes!$LI$14:$LI$300,0),MATCH(AB$1,Ajustes!$E$4:$LG$4,0)),) -> 0 | AC37: =IFERROR(INDEX(Ajustes!$E$14:$LG$300,MATCH($A37&"_"&AC$2,Ajustes!$LI$14:$LI$300,0),MATCH(AC$1,Ajustes!$E$4:$LG$4,0)),) -> 0 | AD37: =IFERROR(INDEX(Ajustes!$E$14:$LG$300,MATCH($A37&"_"&AD$2,Ajustes!$LI$14:$LI$300,0),MATCH(AD$1,Ajustes!$E$4:$LG$4,0)),) -> 0 | AE37: =IFERROR(INDEX(Ajustes!$E$14:$LG$300,MATCH($A37&"_"&AE$2,Ajustes!$LI$14:$LI$300,0),MATCH(AE$1,Ajustes!$E$4:$LG$4,0)),) -> 0 | AF37: =IFERROR(INDEX(Ajustes!$E$14:$LG$300,MATCH($A37&"_"&AF$2,Ajustes!$LI$14:$LI$300,0),MATCH(AF$1,Ajustes!$E$4:$LG$4,0)),) -> 0 | AG37: =IFERROR(INDEX(Ajustes!$E$14:$LG$300,MATCH($A37&"_"&AG$2,Ajustes!$LI$14:$LI$300,0),MATCH(AG$1,Ajustes!$E$4:$LG$4,0)),) -> 0 | AH37: =IFERROR(INDEX(Ajustes!$E$14:$LG$300,MATCH($A37&"_"&AH$2,Ajustes!$LI$14:$LI$300,0),MATCH(AH$1,Ajustes!$E$4:$LG$4,0)),) -> 0 | AI37: 0.0854543248 | AJ37: 0.0854543248 | AK37: 0 | AL37: 0 | AM37: =IFERROR(INDEX(Ajustes!$E$14:$LG$300,MATCH($A37&"_"&AM$2,Ajustes!$LI$14:$LI$300,0),MATCH(AM$1,Ajustes!$E$4:$LG$4,0)),) -> 0.008206160153 | AN37: =IFERROR(INDEX(Ajustes!$E$14:$LG$300,MATCH($A37&"_"&AN$2,Ajustes!$LI$14:$LI$300,0),MATCH(AN$1,Ajustes!$E$4:$LG$4,0)),) -> 0 | AO37: =IFERROR(INDEX(Ajustes!$E$14:$LG$300,MATCH($A37&"_"&AO$2,Ajustes!$LI$14:$LI$300,0),MATCH(AO$1,Ajustes!$E$4:$LG$4,0)),) -> 0 | AP37: =IFERROR(INDEX(Ajustes!$E$14:$LG$300,MATCH($A37&"_"&AP$2,Ajustes!$LI$14:$LI$300,0),MATCH(AP$1,Ajustes!$E$4:$LG$4,0)),) -> 0.004646378084 | AS37: 141.52 | AT37: 0.204044038 | AU37: 0 | AV37: 0 | AW37: 0 | AX37: 10.02858252 | AY37: 0 | AZ37: 0 | BB37: 141.52 | BC37: 0.006916851317 | BD37: 0 | BE37: 0 | BF37: 0 | BG37: 10.02858252 | BH37: 0 | BI37: 0 | BL37: 0 | BM37: 0.001506949515 | BN37: 0 | BO37: 0 | BP37: 0 | BQ37: 0 | BR37: 0 | BS37: 0 | BT37: 0 | BW37: 0 | BX37: 0.01285253824 | BY37: 0 | BZ37: 0 | CA37: 0 | CB37: 0 | CC37: 0 | CD37: 0 | CG37: =IF(A37="",0,SUMIFS(Clientes!Q:Q,Clientes!C:C,A37)) -> 0 | CH37: =IF(A37="",0,SUMIFS(Energia!K:K,Energia!C:C,A37)) -> 0 | CI37: =IF(A37="",0,SUMIFS(Potencia!K:K,Potencia!B:B,A37,Potencia!M:M,CI$5)) -> 0 | CJ37: =IF(A37="",0,SUMIFS(Potencia!K:K,Potencia!B:B,A37,Potencia!M:M,CJ$5)) -> 0 | CK37: =IF(A37="",0,SUMIFS(Potencia!K:K,Potencia!B:B,A37,Potencia!M:M,CK$5)) -> 0 | CL37: =IF(A37="",0,SUMIFS(Clientes!K:K,Clientes!C:C,A37)) -> 0 | CM37: =IF(A37="",0,SUMIFS(Energia!K:K,Energia!B:B,A37,Energia!AA:AA,CM$5)) -> 0 | CN37: =IF(A37="",0,SUMIFS(Energia!K:K,Energia!B:B,A37,Energia!AA:AA,CN$5)) -> 0 | CO37: 0
A38: =Factores!C64 -> MTD PEAJE | B38: =IFERROR(INDEX(Ajustes!$E$14:$LG$300,MATCH($A38&"_"&B$2,Ajustes!$LI$14:$LI$300,0),MATCH(B$1,Ajustes!$E$4:$LG$4,0)),) -> 141.52 | C38: =IFERROR(INDEX(Ajustes!$E$14:$LG$300,MATCH($A38&"_"&C$2,Ajustes!$LI$14:$LI$300,0),MATCH(C$1,Ajustes!$E$4:$LG$4,0)),) -> 0 | D38: =IFERROR(INDEX(Ajustes!$E$14:$LG$300,MATCH($A38&"_"&D$2,Ajustes!$LI$14:$LI$300,0),MATCH(D$1,Ajustes!$E$4:$LG$4,0)),) -> 11.28539649 | E38: =IFERROR(INDEX(Ajustes!$E$14:$LG$300,MATCH($A38&"_"&E$2,Ajustes!$LI$14:$LI$300,0),MATCH(E$1,Ajustes!$E$4:$LG$4,0)),) -> 0 | F38: =IFERROR(INDEX(Ajustes!$E$14:$LG$300,MATCH($A38&"_"&F$2,Ajustes!$LI$14:$LI$300,0),MATCH(F$1,Ajustes!$E$4:$LG$4,0)),) -> 0 | G38: =IFERROR(INDEX(Ajustes!$E$14:$LG$300,MATCH($A38&"_"&G$2,Ajustes!$LI$14:$LI$300,0),MATCH(G$1,Ajustes!$E$4:$LG$4,0)),) -> 0 | H38: =IFERROR(INDEX(Ajustes!$E$14:$LG$300,MATCH($A38&"_"&H$2,Ajustes!$LI$14:$LI$300,0),MATCH(H$1,Ajustes!$E$4:$LG$4,0)),) -> 0 | I38: =IFERROR(INDEX(Ajustes!$E$14:$LG$300,MATCH($A38&"_"&I$2,Ajustes!$LI$14:$LI$300,0),MATCH(I$1,Ajustes!$E$4:$LG$4,0)),) -> 5.014291259 | J38: =IFERROR(INDEX(Ajustes!$E$14:$LG$300,MATCH($A38&"_"&J$2,Ajustes!$LI$14:$LI$300,0),MATCH(J$1,Ajustes!$E$4:$LG$4,0)),) -> 0 | K38: =IFERROR(INDEX(Ajustes!$E$14:$LG$300,MATCH($A38&"_"&K$2,Ajustes!$LI$14:$LI$300,0),MATCH(K$1,Ajustes!$E$4:$LG$4,0)),) -> 0.004587789669 | L38: =IFERROR(INDEX(Ajustes!$E$14:$LG$300,MATCH($A38&"_"&L$2,Ajustes!$LI$14:$LI$300,0),MATCH(L$1,Ajustes!$E$4:$LG$4,0)),) -> 0.002329061648 | M38: =IFERROR(INDEX(Ajustes!$E$14:$LG$300,MATCH($A38&"_"&M$2,Ajustes!$LI$14:$LI$300,0),MATCH(M$1,Ajustes!$E$4:$LG$4,0)),) -> 0.001506949515 | N38: =IFERROR(INDEX(Ajustes!$E$14:$LG$300,MATCH($A38&"_"&N$2,Ajustes!$LI$14:$LI$300,0),MATCH(N$1,Ajustes!$E$4:$LG$4,0)),) -> 0.0109068114 | O38: =IFERROR(INDEX(Ajustes!$E$14:$LG$300,MATCH($A38&"_"&O$2,Ajustes!$LI$14:$LI$300,0),MATCH(O$1,Ajustes!$E$4:$LG$4,0)),) -> 0 | P38: =IFERROR(INDEX(Ajustes!$E$14:$LG$300,MATCH($A38&"_"&P$2,Ajustes!$LI$14:$LI$300,0),MATCH(P$1,Ajustes!$E$4:$LG$4,0)),) -> 0 | Q38: =IFERROR(INDEX(Ajustes!$E$14:$LG$300,MATCH($A38&"_"&Q$2,Ajustes!$LI$14:$LI$300,0),MATCH(Q$1,Ajustes!$E$4:$LG$4,0)),) -> 0 | R38: =IFERROR(INDEX(Ajustes!$E$14:$LG$300,MATCH($A38&"_"&R$2,Ajustes!$LI$14:$LI$300,0),MATCH(R$1,Ajustes!$E$4:$LG$4,0)),) -> 0 | S38: =IFERROR(INDEX(Ajustes!$E$14:$LG$300,MATCH($A38&"_"&S$2,Ajustes!$LI$14:$LI$300,0),MATCH(S$1,Ajustes!$E$4:$LG$4,0)),) -> 0 | T38: =IFERROR(INDEX(Ajustes!$E$14:$LG$300,MATCH($A38&"_"&T$2,Ajustes!$LI$14:$LI$300,0),MATCH(T$1,Ajustes!$E$4:$LG$4,0)),) -> 0.3923604537 | U38: =IFERROR(INDEX(Ajustes!$E$14:$LG$300,MATCH($A38&"_"&U$2,Ajustes!$LI$14:$LI$300,0),MATCH(U$1,Ajustes!$E$4:$LG$4,0)),) -> 0 | V38: 0.0109068114 | W38: =IFERROR(INDEX(Ajustes!$E$14:$LG$300,MATCH($A38&"_"&W$2,Ajustes!$LI$14:$LI$300,0),MATCH(W$1,Ajustes!$E$4:$LG$4,0)),) -> 0 | X38: =IFERROR(INDEX(Ajustes!$E$14:$LG$300,MATCH($A38&"_"&X$2,Ajustes!$LI$14:$LI$300,0),MATCH(X$1,Ajustes!$E$4:$LG$4,0)),) -> 0 | Y38: =IFERROR(INDEX(Ajustes!$E$14:$LG$300,MATCH($A38&"_"&Y$2,Ajustes!$LI$14:$LI$300,0),MATCH(Y$1,Ajustes!$E$4:$LG$4,0)),) -> 0 | Z38: =IFERROR(INDEX(Ajustes!$E$14:$LG$300,MATCH($A38&"_"&Z$2,Ajustes!$LI$14:$LI$300,0),MATCH(Z$1,Ajustes!$E$4:$LG$4,0)),) -> 0 | AA38: =IFERROR(INDEX(Ajustes!$E$14:$LG$300,MATCH($A38&"_"&AA$2,Ajustes!$LI$14:$LI$300,0),MATCH(AA$1,Ajustes!$E$4:$LG$4,0)),) -> 0 | AB38: =IFERROR(INDEX(Ajustes!$E$14:$LG$300,MATCH($A38&"_"&AB$2,Ajustes!$LI$14:$LI$300,0),MATCH(AB$1,Ajustes!$E$4:$LG$4,0)),) -> 0 | AC38: =IFERROR(INDEX(Ajustes!$E$14:$LG$300,MATCH($A38&"_"&AC$2,Ajustes!$LI$14:$LI$300,0),MATCH(AC$1,Ajustes!$E$4:$LG$4,0)),) -> 0 | AD38: =IFERROR(INDEX(Ajustes!$E$14:$LG$300,MATCH($A38&"_"&AD$2,Ajustes!$LI$14:$LI$300,0),MATCH(AD$1,Ajustes!$E$4:$LG$4,0)),) -> 16.0043105 | AE38: =IFERROR(INDEX(Ajustes!$E$14:$LG$300,MATCH($A38&"_"&AE$2,Ajustes!$LI$14:$LI$300,0),MATCH(AE$1,Ajustes!$E$4:$LG$4,0)),) -> 0 | AF38: =IFERROR(INDEX(Ajustes!$E$14:$LG$300,MATCH($A38&"_"&AF$2,Ajustes!$LI$14:$LI$300,0),MATCH(AF$1,Ajustes!$E$4:$LG$4,0)),) -> 0 | AG38: =IFERROR(INDEX(Ajustes!$E$14:$LG$300,MATCH($A38&"_"&AG$2,Ajustes!$LI$14:$LI$300,0),MATCH(AG$1,Ajustes!$E$4:$LG$4,0)),) -> 16.0043105 | AH38: =IFERROR(INDEX(Ajustes!$E$14:$LG$300,MATCH($A38&"_"&AH$2,Ajustes!$LI$14:$LI$300,0),MATCH(AH$1,Ajustes!$E$4:$LG$4,0)),) -> 0 | AI38: 0 | AJ38: 0 | AK38: 0 | AL38: 0 | AM38: =IFERROR(INDEX(Ajustes!$E$14:$LG$300,MATCH($A38&"_"&AM$2,Ajustes!$LI$14:$LI$300,0),MATCH(AM$1,Ajustes!$E$4:$LG$4,0)),) -> 0.004103080076 | AN38: =IFERROR(INDEX(Ajustes!$E$14:$LG$300,MATCH($A38&"_"&AN$2,Ajustes!$LI$14:$LI$300,0),MATCH(AN$1,Ajustes!$E$4:$LG$4,0)),) -> 1.562990702 | AO38: =IFERROR(INDEX(Ajustes!$E$14:$LG$300,MATCH($A38&"_"&AO$2,Ajustes!$LI$14:$LI$300,0),MATCH(AO$1,Ajustes!$E$4:$LG$4,0)),) -> 0 | AP38: =IFERROR(INDEX(Ajustes!$E$14:$LG$300,MATCH($A38&"_"&AP$2,Ajustes!$LI$14:$LI$300,0),MATCH(AP$1,Ajustes!$E$4:$LG$4,0)),) -> 0 | AS38: =SUMIFS($B38:$AP38,$B$6:$AP$6,AS$6) -> 141.52 | AT38: 0.02343369231 | AU38: 16.0043105 | AV38: 0 | AW38: 0 | AX38: 5.014291259 | AY38: 0 | AZ38: 0 | BB38: =SUMIFS($B38:$AP38,$B$6:$AP$6,BB$6,$B$7:$AP$7,BB$7) -> 141.52 | BC38: 0.006916851317 | BD38: 0 | BE38: 0 | BF38: 0 | BG38: 5.014291259 | BH38: 0 | BI38: 0 | BL38: =SUMIFS($B38:$AP38,$B$6:$AP$6,BL$6,$B$7:$AP$7,BL$7) -> 0 | BM38: 0.001506949515 | BN38: 16.0043105 | BO38: 0 | BP38: 0 | BQ38: 0 | BR38: 0 | BS38: 0 | BT38: 0 | BW38: =SUMIFS($B38:$AP38,$B$6:$AP$6,BW$6,$B$7:$AP$7,BW$7) -> 0 | BX38: 0.004103080076 | BY38: 0 | BZ38: 0 | CA38: 0 | CB38: 0 | CC38: 0 | CD38: 0 | CG38: =IF(A38="",0,SUMIFS(Clientes!Q:Q,Clientes!C:C,A38)) -> 14.78340519 | CH38: =IF(A38="",0,SUMIFS(Energia!K:K,Energia!C:C,A38)) -> 1590282.484 | CI38: =IF(A38="",0,SUMIFS(Potencia!K:K,Potencia!B:B,A38,Potencia!M:M,CI$5)) -> 333.6644343 | CJ38: =IF(A38="",0,SUMIFS(Potencia!K:K,Potencia!B:B,A38,Potencia!M:M,CJ$5)) -> 0 | CK38: =IF(A38="",0,SUMIFS(Potencia!K:K,Potencia!B:B,A38,Potencia!M:M,CK$5)) -> 0 | CL38: =IF(A38="",0,SUMIFS(Clientes!K:K,Clientes!C:C,A38)) -> 528.0749105 | CM38: =IF(A38="",0,SUMIFS(Energia!K:K,Energia!B:B,A38,Energia!AA:AA,CM$5)) -> 0 | CN38: =IF(A38="",0,SUMIFS(Energia!K:K,Energia!B:B,A38,Energia!AA:AA,CN$5)) -> 0 | CO38: 0
A39: =Factores!C65 ->  | B39: =IFERROR(INDEX(Ajustes!$E$14:$LG$300,MATCH($A39&"_"&B$2,Ajustes!$LI$14:$LI$300,0),MATCH(B$1,Ajustes!$E$4:$LG$4,0)),) -> 0 | C39: =IFERROR(INDEX(Ajustes!$E$14:$LG$300,MATCH($A39&"_"&C$2,Ajustes!$LI$14:$LI$300,0),MATCH(C$1,Ajustes!$E$4:$LG$4,0)),) -> 0 | D39: =IFERROR(INDEX(Ajustes!$E$14:$LG$300,MATCH($A39&"_"&D$2,Ajustes!$LI$14:$LI$300,0),MATCH(D$1,Ajustes!$E$4:$LG$4,0)),) -> 0 | E39: =IFERROR(INDEX(Ajustes!$E$14:$LG$300,MATCH($A39&"_"&E$2,Ajustes!$LI$14:$LI$300,0),MATCH(E$1,Ajustes!$E$4:$LG$4,0)),) -> 0 | F39: =IFERROR(INDEX(Ajustes!$E$14:$LG$300,MATCH($A39&"_"&F$2,Ajustes!$LI$14:$LI$300,0),MATCH(F$1,Ajustes!$E$4:$LG$4,0)),) -> 0 | G39: =IFERROR(INDEX(Ajustes!$E$14:$LG$300,MATCH($A39&"_"&G$2,Ajustes!$LI$14:$LI$300,0),MATCH(G$1,Ajustes!$E$4:$LG$4,0)),) -> 0 | H39: =IFERROR(INDEX(Ajustes!$E$14:$LG$300,MATCH($A39&"_"&H$2,Ajustes!$LI$14:$LI$300,0),MATCH(H$1,Ajustes!$E$4:$LG$4,0)),) -> 0 | I39: =IFERROR(INDEX(Ajustes!$E$14:$LG$300,MATCH($A39&"_"&I$2,Ajustes!$LI$14:$LI$300,0),MATCH(I$1,Ajustes!$E$4:$LG$4,0)),) -> 0 | J39: =IFERROR(INDEX(Ajustes!$E$14:$LG$300,MATCH($A39&"_"&J$2,Ajustes!$LI$14:$LI$300,0),MATCH(J$1,Ajustes!$E$4:$LG$4,0)),) -> 0 | K39: =IFERROR(INDEX(Ajustes!$E$14:$LG$300,MATCH($A39&"_"&K$2,Ajustes!$LI$14:$LI$300,0),MATCH(K$1,Ajustes!$E$4:$LG$4,0)),) -> 0 | L39: =IFERROR(INDEX(Ajustes!$E$14:$LG$300,MATCH($A39&"_"&L$2,Ajustes!$LI$14:$LI$300,0),MATCH(L$1,Ajustes!$E$4:$LG$4,0)),) -> 0 | M39: =IFERROR(INDEX(Ajustes!$E$14:$LG$300,MATCH($A39&"_"&M$2,Ajustes!$LI$14:$LI$300,0),MATCH(M$1,Ajustes!$E$4:$LG$4,0)),) -> 0 | N39: =IFERROR(INDEX(Ajustes!$E$14:$LG$300,MATCH($A39&"_"&N$2,Ajustes!$LI$14:$LI$300,0),MATCH(N$1,Ajustes!$E$4:$LG$4,0)),) -> 0 | O39: =IFERROR(INDEX(Ajustes!$E$14:$LG$300,MATCH($A39&"_"&O$2,Ajustes!$LI$14:$LI$300,0),MATCH(O$1,Ajustes!$E$4:$LG$4,0)),) -> 0 | P39: =IFERROR(INDEX(Ajustes!$E$14:$LG$300,MATCH($A39&"_"&P$2,Ajustes!$LI$14:$LI$300,0),MATCH(P$1,Ajustes!$E$4:$LG$4,0)),) -> 0 | Q39: =IFERROR(INDEX(Ajustes!$E$14:$LG$300,MATCH($A39&"_"&Q$2,Ajustes!$LI$14:$LI$300,0),MATCH(Q$1,Ajustes!$E$4:$LG$4,0)),) -> 0 | R39: =IFERROR(INDEX(Ajustes!$E$14:$LG$300,MATCH($A39&"_"&R$2,Ajustes!$LI$14:$LI$300,0),MATCH(R$1,Ajustes!$E$4:$LG$4,0)),) -> 0 | S39: =IFERROR(INDEX(Ajustes!$E$14:$LG$300,MATCH($A39&"_"&S$2,Ajustes!$LI$14:$LI$300,0),MATCH(S$1,Ajustes!$E$4:$LG$4,0)),) -> 0 | T39: =IFERROR(INDEX(Ajustes!$E$14:$LG$300,MATCH($A39&"_"&T$2,Ajustes!$LI$14:$LI$300,0),MATCH(T$1,Ajustes!$E$4:$LG$4,0)),) -> 0 | U39: =IFERROR(INDEX(Ajustes!$E$14:$LG$300,MATCH($A39&"_"&U$2,Ajustes!$LI$14:$LI$300,0),MATCH(U$1,Ajustes!$E$4:$LG$4,0)),) -> 0 | V39: 0 | W39: =IFERROR(INDEX(Ajustes!$E$14:$LG$300,MATCH($A39&"_"&W$2,Ajustes!$LI$14:$LI$300,0),MATCH(W$1,Ajustes!$E$4:$LG$4,0)),) -> 0 | X39: =IFERROR(INDEX(Ajustes!$E$14:$LG$300,MATCH($A39&"_"&X$2,Ajustes!$LI$14:$LI$300,0),MATCH(X$1,Ajustes!$E$4:$LG$4,0)),) -> 0 | Y39: =IFERROR(INDEX(Ajustes!$E$14:$LG$300,MATCH($A39&"_"&Y$2,Ajustes!$LI$14:$LI$300,0),MATCH(Y$1,Ajustes!$E$4:$LG$4,0)),) -> 0 | Z39: =IFERROR(INDEX(Ajustes!$E$14:$LG$300,MATCH($A39&"_"&Z$2,Ajustes!$LI$14:$LI$300,0),MATCH(Z$1,Ajustes!$E$4:$LG$4,0)),) -> 0 | AA39: =IFERROR(INDEX(Ajustes!$E$14:$LG$300,MATCH($A39&"_"&AA$2,Ajustes!$LI$14:$LI$300,0),MATCH(AA$1,Ajustes!$E$4:$LG$4,0)),) -> 0 | AB39: =IFERROR(INDEX(Ajustes!$E$14:$LG$300,MATCH($A39&"_"&AB$2,Ajustes!$LI$14:$LI$300,0),MATCH(AB$1,Ajustes!$E$4:$LG$4,0)),) -> 0 | AC39: =IFERROR(INDEX(Ajustes!$E$14:$LG$300,MATCH($A39&"_"&AC$2,Ajustes!$LI$14:$LI$300,0),MATCH(AC$1,Ajustes!$E$4:$LG$4,0)),) -> 0 | AD39: =IFERROR(INDEX(Ajustes!$E$14:$LG$300,MATCH($A39&"_"&AD$2,Ajustes!$LI$14:$LI$300,0),MATCH(AD$1,Ajustes!$E$4:$LG$4,0)),) -> 0 | AE39: =IFERROR(INDEX(Ajustes!$E$14:$LG$300,MATCH($A39&"_"&AE$2,Ajustes!$LI$14:$LI$300,0),MATCH(AE$1,Ajustes!$E$4:$LG$4,0)),) -> 0 | AF39: =IFERROR(INDEX(Ajustes!$E$14:$LG$300,MATCH($A39&"_"&AF$2,Ajustes!$LI$14:$LI$300,0),MATCH(AF$1,Ajustes!$E$4:$LG$4,0)),) -> 0 | AG39: =IFERROR(INDEX(Ajustes!$E$14:$LG$300,MATCH($A39&"_"&AG$2,Ajustes!$LI$14:$LI$300,0),MATCH(AG$1,Ajustes!$E$4:$LG$4,0)),) -> 0 | AH39: =IFERROR(INDEX(Ajustes!$E$14:$LG$300,MATCH($A39&"_"&AH$2,Ajustes!$LI$14:$LI$300,0),MATCH(AH$1,Ajustes!$E$4:$LG$4,0)),) -> 0 | AI39: 0 | AJ39: 0 | AK39: 0 | AL39: 0 | AM39: =IFERROR(INDEX(Ajustes!$E$14:$LG$300,MATCH($A39&"_"&AM$2,Ajustes!$LI$14:$LI$300,0),MATCH(AM$1,Ajustes!$E$4:$LG$4,0)),) -> 0 | AN39: =IFERROR(INDEX(Ajustes!$E$14:$LG$300,MATCH($A39&"_"&AN$2,Ajustes!$LI$14:$LI$300,0),MATCH(AN$1,Ajustes!$E$4:$LG$4,0)),) -> 0 | AO39: =IFERROR(INDEX(Ajustes!$E$14:$LG$300,MATCH($A39&"_"&AO$2,Ajustes!$LI$14:$LI$300,0),MATCH(AO$1,Ajustes!$E$4:$LG$4,0)),) -> 0 | AP39: =IFERROR(INDEX(Ajustes!$E$14:$LG$300,MATCH($A39&"_"&AP$2,Ajustes!$LI$14:$LI$300,0),MATCH(AP$1,Ajustes!$E$4:$LG$4,0)),) -> 0 | AS39: 0 | AT39: 0 | AU39: 0 | AV39: 0 | AW39: 0 | AX39: 0 | AY39: 0 | AZ39: 0 | BB39: 0 | BC39: 0 | BD39: 0 | BE39: 0 | BF39: 0 | BG39: 0 | BH39: 0 | BI39: 0 | BL39: 0 | BM39: 0 | BN39: 0 | BO39: 0 | BP39: 0 | BQ39: 0 | BR39: 0 | BS39: 0 | BT39: 0 | BW39: 0 | BX39: 0 | BY39: 0 | BZ39: 0 | CA39: 0 | CB39: 0 | CC39: 0 | CD39: 0 | CG39: =IF(A39="",0,SUMIFS(Clientes!Q:Q,Clientes!C:C,A39)) -> 0 | CH39: =IF(A39="",0,SUMIFS(Energia!K:K,Energia!C:C,A39)) -> 0 | CI39: =IF(A39="",0,SUMIFS(Potencia!K:K,Potencia!B:B,A39,Potencia!M:M,CI$5)) -> 0 | CJ39: =IF(A39="",0,SUMIFS(Potencia!K:K,Potencia!B:B,A39,Potencia!M:M,CJ$5)) -> 0 | CK39: =IF(A39="",0,SUMIFS(Potencia!K:K,Potencia!B:B,A39,Potencia!M:M,CK$5)) -> 0 | CL39: =IF(A39="",0,SUMIFS(Clientes!K:K,Clientes!C:C,A39)) -> 0 | CM39: =IF(A39="",0,SUMIFS(Energia!K:K,Energia!B:B,A39,Energia!AA:AA,CM$5)) -> 0 | CN39: =IF(A39="",0,SUMIFS(Energia!K:K,Energia!B:B,A39,Energia!AA:AA,CN$5)) -> 0 | CO39: 0
A40: =Factores!C66 ->  | B40: =IFERROR(INDEX(Ajustes!$E$14:$LG$300,MATCH($A40&"_"&B$2,Ajustes!$LI$14:$LI$300,0),MATCH(B$1,Ajustes!$E$4:$LG$4,0)),) -> 0 | C40: =IFERROR(INDEX(Ajustes!$E$14:$LG$300,MATCH($A40&"_"&C$2,Ajustes!$LI$14:$LI$300,0),MATCH(C$1,Ajustes!$E$4:$LG$4,0)),) -> 0 | D40: =IFERROR(INDEX(Ajustes!$E$14:$LG$300,MATCH($A40&"_"&D$2,Ajustes!$LI$14:$LI$300,0),MATCH(D$1,Ajustes!$E$4:$LG$4,0)),) -> 0 | E40: =IFERROR(INDEX(Ajustes!$E$14:$LG$300,MATCH($A40&"_"&E$2,Ajustes!$LI$14:$LI$300,0),MATCH(E$1,Ajustes!$E$4:$LG$4,0)),) -> 0 | F40: =IFERROR(INDEX(Ajustes!$E$14:$LG$300,MATCH($A40&"_"&F$2,Ajustes!$LI$14:$LI$300,0),MATCH(F$1,Ajustes!$E$4:$LG$4,0)),) -> 0 | G40: =IFERROR(INDEX(Ajustes!$E$14:$LG$300,MATCH($A40&"_"&G$2,Ajustes!$LI$14:$LI$300,0),MATCH(G$1,Ajustes!$E$4:$LG$4,0)),) -> 0 | H40: =IFERROR(INDEX(Ajustes!$E$14:$LG$300,MATCH($A40&"_"&H$2,Ajustes!$LI$14:$LI$300,0),MATCH(H$1,Ajustes!$E$4:$LG$4,0)),) -> 0 | I40: =IFERROR(INDEX(Ajustes!$E$14:$LG$300,MATCH($A40&"_"&I$2,Ajustes!$LI$14:$LI$300,0),MATCH(I$1,Ajustes!$E$4:$LG$4,0)),) -> 0 | J40: =IFERROR(INDEX(Ajustes!$E$14:$LG$300,MATCH($A40&"_"&J$2,Ajustes!$LI$14:$LI$300,0),MATCH(J$1,Ajustes!$E$4:$LG$4,0)),) -> 0 | K40: =IFERROR(INDEX(Ajustes!$E$14:$LG$300,MATCH($A40&"_"&K$2,Ajustes!$LI$14:$LI$300,0),MATCH(K$1,Ajustes!$E$4:$LG$4,0)),) -> 0 | L40: =IFERROR(INDEX(Ajustes!$E$14:$LG$300,MATCH($A40&"_"&L$2,Ajustes!$LI$14:$LI$300,0),MATCH(L$1,Ajustes!$E$4:$LG$4,0)),) -> 0 | M40: =IFERROR(INDEX(Ajustes!$E$14:$LG$300,MATCH($A40&"_"&M$2,Ajustes!$LI$14:$LI$300,0),MATCH(M$1,Ajustes!$E$4:$LG$4,0)),) -> 0 | N40: =IFERROR(INDEX(Ajustes!$E$14:$LG$300,MATCH($A40&"_"&N$2,Ajustes!$LI$14:$LI$300,0),MATCH(N$1,Ajustes!$E$4:$LG$4,0)),) -> 0 | O40: =IFERROR(INDEX(Ajustes!$E$14:$LG$300,MATCH($A40&"_"&O$2,Ajustes!$LI$14:$LI$300,0),MATCH(O$1,Ajustes!$E$4:$LG$4,0)),) -> 0 | P40: =IFERROR(INDEX(Ajustes!$E$14:$LG$300,MATCH($A40&"_"&P$2,Ajustes!$LI$14:$LI$300,0),MATCH(P$1,Ajustes!$E$4:$LG$4,0)),) -> 0 | Q40: =IFERROR(INDEX(Ajustes!$E$14:$LG$300,MATCH($A40&"_"&Q$2,Ajustes!$LI$14:$LI$300,0),MATCH(Q$1,Ajustes!$E$4:$LG$4,0)),) -> 0 | R40: =IFERROR(INDEX(Ajustes!$E$14:$LG$300,MATCH($A40&"_"&R$2,Ajustes!$LI$14:$LI$300,0),MATCH(R$1,Ajustes!$E$4:$LG$4,0)),) -> 0 | S40: =IFERROR(INDEX(Ajustes!$E$14:$LG$300,MATCH($A40&"_"&S$2,Ajustes!$LI$14:$LI$300,0),MATCH(S$1,Ajustes!$E$4:$LG$4,0)),) -> 0 | T40: =IFERROR(INDEX(Ajustes!$E$14:$LG$300,MATCH($A40&"_"&T$2,Ajustes!$LI$14:$LI$300,0),MATCH(T$1,Ajustes!$E$4:$LG$4,0)),) -> 0 | U40: =IFERROR(INDEX(Ajustes!$E$14:$LG$300,MATCH($A40&"_"&U$2,Ajustes!$LI$14:$LI$300,0),MATCH(U$1,Ajustes!$E$4:$LG$4,0)),) -> 0 | V40: 0 | W40: =IFERROR(INDEX(Ajustes!$E$14:$LG$300,MATCH($A40&"_"&W$2,Ajustes!$LI$14:$LI$300,0),MATCH(W$1,Ajustes!$E$4:$LG$4,0)),) -> 0 | X40: =IFERROR(INDEX(Ajustes!$E$14:$LG$300,MATCH($A40&"_"&X$2,Ajustes!$LI$14:$LI$300,0),MATCH(X$1,Ajustes!$E$4:$LG$4,0)),) -> 0 | Y40: =IFERROR(INDEX(Ajustes!$E$14:$LG$300,MATCH($A40&"_"&Y$2,Ajustes!$LI$14:$LI$300,0),MATCH(Y$1,Ajustes!$E$4:$LG$4,0)),) -> 0 | Z40: =IFERROR(INDEX(Ajustes!$E$14:$LG$300,MATCH($A40&"_"&Z$2,Ajustes!$LI$14:$LI$300,0),MATCH(Z$1,Ajustes!$E$4:$LG$4,0)),) -> 0 | AA40: =IFERROR(INDEX(Ajustes!$E$14:$LG$300,MATCH($A40&"_"&AA$2,Ajustes!$LI$14:$LI$300,0),MATCH(AA$1,Ajustes!$E$4:$LG$4,0)),) -> 0 | AB40: =IFERROR(INDEX(Ajustes!$E$14:$LG$300,MATCH($A40&"_"&AB$2,Ajustes!$LI$14:$LI$300,0),MATCH(AB$1,Ajustes!$E$4:$LG$4,0)),) -> 0 | AC40: =IFERROR(INDEX(Ajustes!$E$14:$LG$300,MATCH($A40&"_"&AC$2,Ajustes!$LI$14:$LI$300,0),MATCH(AC$1,Ajustes!$E$4:$LG$4,0)),) -> 0 | AD40: =IFERROR(INDEX(Ajustes!$E$14:$LG$300,MATCH($A40&"_"&AD$2,Ajustes!$LI$14:$LI$300,0),MATCH(AD$1,Ajustes!$E$4:$LG$4,0)),) -> 0 | AE40: =IFERROR(INDEX(Ajustes!$E$14:$LG$300,MATCH($A40&"_"&AE$2,Ajustes!$LI$14:$LI$300,0),MATCH(AE$1,Ajustes!$E$4:$LG$4,0)),) -> 0 | AF40: =IFERROR(INDEX(Ajustes!$E$14:$LG$300,MATCH($A40&"_"&AF$2,Ajustes!$LI$14:$LI$300,0),MATCH(AF$1,Ajustes!$E$4:$LG$4,0)),) -> 0 | AG40: =IFERROR(INDEX(Ajustes!$E$14:$LG$300,MATCH($A40&"_"&AG$2,Ajustes!$LI$14:$LI$300,0),MATCH(AG$1,Ajustes!$E$4:$LG$4,0)),) -> 0 | AH40: =IFERROR(INDEX(Ajustes!$E$14:$LG$300,MATCH($A40&"_"&AH$2,Ajustes!$LI$14:$LI$300,0),MATCH(AH$1,Ajustes!$E$4:$LG$4,0)),) -> 0 | AI40: 0 | AJ40: 0 | AK40: 0 | AL40: 0 | AM40: =IFERROR(INDEX(Ajustes!$E$14:$LG$300,MATCH($A40&"_"&AM$2,Ajustes!$LI$14:$LI$300,0),MATCH(AM$1,Ajustes!$E$4:$LG$4,0)),) -> 0 | AN40: =IFERROR(INDEX(Ajustes!$E$14:$LG$300,MATCH($A40&"_"&AN$2,Ajustes!$LI$14:$LI$300,0),MATCH(AN$1,Ajustes!$E$4:$LG$4,0)),) -> 0 | AO40: =IFERROR(INDEX(Ajustes!$E$14:$LG$300,MATCH($A40&"_"&AO$2,Ajustes!$LI$14:$LI$300,0),MATCH(AO$1,Ajustes!$E$4:$LG$4,0)),) -> 0 | AP40: =IFERROR(INDEX(Ajustes!$E$14:$LG$300,MATCH($A40&"_"&AP$2,Ajustes!$LI$14:$LI$300,0),MATCH(AP$1,Ajustes!$E$4:$LG$4,0)),) -> 0 | AS40: 0 | AT40: 0 | AU40: 0 | AV40: 0 | AW40: 0 | AX40: 0 | AY40: 0 | AZ40: 0 | BB40: 0 | BC40: 0 | BD40: 0 | BE40: 0 | BF40: 0 | BG40: 0 | BH40: 0 | BI40: 0 | BL40: 0 | BM40: 0 | BN40: 0 | BO40: 0 | BP40: 0 | BQ40: 0 | BR40: 0 | BS40: 0 | BT40: 0 | BW40: 0 | BX40: 0 | BY40: 0 | BZ40: 0 | CA40: 0 | CB40: 0 | CC40: 0 | CD40: 0 | CG40: =IF(A40="",0,SUMIFS(Clientes!Q:Q,Clientes!C:C,A40)) -> 0 | CH40: =IF(A40="",0,SUMIFS(Energia!K:K,Energia!C:C,A40)) -> 0 | CI40: =IF(A40="",0,SUMIFS(Potencia!K:K,Potencia!B:B,A40,Potencia!M:M,CI$5)) -> 0 | CJ40: =IF(A40="",0,SUMIFS(Potencia!K:K,Potencia!B:B,A40,Potencia!M:M,CJ$5)) -> 0 | CK40: =IF(A40="",0,SUMIFS(Potencia!K:K,Potencia!B:B,A40,Potencia!M:M,CK$5)) -> 0 | CL40: =IF(A40="",0,SUMIFS(Clientes!K:K,Clientes!C:C,A40)) -> 0 | CM40: =IF(A40="",0,SUMIFS(Energia!K:K,Energia!B:B,A40,Energia!AA:AA,CM$5)) -> 0 | CN40: =IF(A40="",0,SUMIFS(Energia!K:K,Energia!B:B,A40,Energia!AA:AA,CN$5)) -> 0 | CO40: 0
A41: =Factores!C67 ->  | B41: =IFERROR(INDEX(Ajustes!$E$14:$LG$300,MATCH($A41&"_"&B$2,Ajustes!$LI$14:$LI$300,0),MATCH(B$1,Ajustes!$E$4:$LG$4,0)),) -> 0 | C41: =IFERROR(INDEX(Ajustes!$E$14:$LG$300,MATCH($A41&"_"&C$2,Ajustes!$LI$14:$LI$300,0),MATCH(C$1,Ajustes!$E$4:$LG$4,0)),) -> 0 | D41: =IFERROR(INDEX(Ajustes!$E$14:$LG$300,MATCH($A41&"_"&D$2,Ajustes!$LI$14:$LI$300,0),MATCH(D$1,Ajustes!$E$4:$LG$4,0)),) -> 0 | E41: =IFERROR(INDEX(Ajustes!$E$14:$LG$300,MATCH($A41&"_"&E$2,Ajustes!$LI$14:$LI$300,0),MATCH(E$1,Ajustes!$E$4:$LG$4,0)),) -> 0 | F41: =IFERROR(INDEX(Ajustes!$E$14:$LG$300,MATCH($A41&"_"&F$2,Ajustes!$LI$14:$LI$300,0),MATCH(F$1,Ajustes!$E$4:$LG$4,0)),) -> 0 | G41: =IFERROR(INDEX(Ajustes!$E$14:$LG$300,MATCH($A41&"_"&G$2,Ajustes!$LI$14:$LI$300,0),MATCH(G$1,Ajustes!$E$4:$LG$4,0)),) -> 0 | H41: =IFERROR(INDEX(Ajustes!$E$14:$LG$300,MATCH($A41&"_"&H$2,Ajustes!$LI$14:$LI$300,0),MATCH(H$1,Ajustes!$E$4:$LG$4,0)),) -> 0 | I41: =IFERROR(INDEX(Ajustes!$E$14:$LG$300,MATCH($A41&"_"&I$2,Ajustes!$LI$14:$LI$300,0),MATCH(I$1,Ajustes!$E$4:$LG$4,0)),) -> 0 | J41: =IFERROR(INDEX(Ajustes!$E$14:$LG$300,MATCH($A41&"_"&J$2,Ajustes!$LI$14:$LI$300,0),MATCH(J$1,Ajustes!$E$4:$LG$4,0)),) -> 0 | K41: =IFERROR(INDEX(Ajustes!$E$14:$LG$300,MATCH($A41&"_"&K$2,Ajustes!$LI$14:$LI$300,0),MATCH(K$1,Ajustes!$E$4:$LG$4,0)),) -> 0 | L41: =IFERROR(INDEX(Ajustes!$E$14:$LG$300,MATCH($A41&"_"&L$2,Ajustes!$LI$14:$LI$300,0),MATCH(L$1,Ajustes!$E$4:$LG$4,0)),) -> 0 | M41: =IFERROR(INDEX(Ajustes!$E$14:$LG$300,MATCH($A41&"_"&M$2,Ajustes!$LI$14:$LI$300,0),MATCH(M$1,Ajustes!$E$4:$LG$4,0)),) -> 0 | N41: =IFERROR(INDEX(Ajustes!$E$14:$LG$300,MATCH($A41&"_"&N$2,Ajustes!$LI$14:$LI$300,0),MATCH(N$1,Ajustes!$E$4:$LG$4,0)),) -> 0 | O41: =IFERROR(INDEX(Ajustes!$E$14:$LG$300,MATCH($A41&"_"&O$2,Ajustes!$LI$14:$LI$300,0),MATCH(O$1,Ajustes!$E$4:$LG$4,0)),) -> 0 | P41: =IFERROR(INDEX(Ajustes!$E$14:$LG$300,MATCH($A41&"_"&P$2,Ajustes!$LI$14:$LI$300,0),MATCH(P$1,Ajustes!$E$4:$LG$4,0)),) -> 0 | Q41: =IFERROR(INDEX(Ajustes!$E$14:$LG$300,MATCH($A41&"_"&Q$2,Ajustes!$LI$14:$LI$300,0),MATCH(Q$1,Ajustes!$E$4:$LG$4,0)),) -> 0 | R41: =IFERROR(INDEX(Ajustes!$E$14:$LG$300,MATCH($A41&"_"&R$2,Ajustes!$LI$14:$LI$300,0),MATCH(R$1,Ajustes!$E$4:$LG$4,0)),) -> 0 | S41: =IFERROR(INDEX(Ajustes!$E$14:$LG$300,MATCH($A41&"_"&S$2,Ajustes!$LI$14:$LI$300,0),MATCH(S$1,Ajustes!$E$4:$LG$4,0)),) -> 0 | T41: =IFERROR(INDEX(Ajustes!$E$14:$LG$300,MATCH($A41&"_"&T$2,Ajustes!$LI$14:$LI$300,0),MATCH(T$1,Ajustes!$E$4:$LG$4,0)),) -> 0 | U41: =IFERROR(INDEX(Ajustes!$E$14:$LG$300,MATCH($A41&"_"&U$2,Ajustes!$LI$14:$LI$300,0),MATCH(U$1,Ajustes!$E$4:$LG$4,0)),) -> 0 | V41: 0 | W41: =IFERROR(INDEX(Ajustes!$E$14:$LG$300,MATCH($A41&"_"&W$2,Ajustes!$LI$14:$LI$300,0),MATCH(W$1,Ajustes!$E$4:$LG$4,0)),) -> 0 | X41: =IFERROR(INDEX(Ajustes!$E$14:$LG$300,MATCH($A41&"_"&X$2,Ajustes!$LI$14:$LI$300,0),MATCH(X$1,Ajustes!$E$4:$LG$4,0)),) -> 0 | Y41: =IFERROR(INDEX(Ajustes!$E$14:$LG$300,MATCH($A41&"_"&Y$2,Ajustes!$LI$14:$LI$300,0),MATCH(Y$1,Ajustes!$E$4:$LG$4,0)),) -> 0 | Z41: =IFERROR(INDEX(Ajustes!$E$14:$LG$300,MATCH($A41&"_"&Z$2,Ajustes!$LI$14:$LI$300,0),MATCH(Z$1,Ajustes!$E$4:$LG$4,0)),) -> 0 | AA41: =IFERROR(INDEX(Ajustes!$E$14:$LG$300,MATCH($A41&"_"&AA$2,Ajustes!$LI$14:$LI$300,0),MATCH(AA$1,Ajustes!$E$4:$LG$4,0)),) -> 0 | AB41: =IFERROR(INDEX(Ajustes!$E$14:$LG$300,MATCH($A41&"_"&AB$2,Ajustes!$LI$14:$LI$300,0),MATCH(AB$1,Ajustes!$E$4:$LG$4,0)),) -> 0 | AC41: =IFERROR(INDEX(Ajustes!$E$14:$LG$300,MATCH($A41&"_"&AC$2,Ajustes!$LI$14:$LI$300,0),MATCH(AC$1,Ajustes!$E$4:$LG$4,0)),) -> 0 | AD41: =IFERROR(INDEX(Ajustes!$E$14:$LG$300,MATCH($A41&"_"&AD$2,Ajustes!$LI$14:$LI$300,0),MATCH(AD$1,Ajustes!$E$4:$LG$4,0)),) -> 0 | AE41: =IFERROR(INDEX(Ajustes!$E$14:$LG$300,MATCH($A41&"_"&AE$2,Ajustes!$LI$14:$LI$300,0),MATCH(AE$1,Ajustes!$E$4:$LG$4,0)),) -> 0 | AF41: =IFERROR(INDEX(Ajustes!$E$14:$LG$300,MATCH($A41&"_"&AF$2,Ajustes!$LI$14:$LI$300,0),MATCH(AF$1,Ajustes!$E$4:$LG$4,0)),) -> 0 | AG41: =IFERROR(INDEX(Ajustes!$E$14:$LG$300,MATCH($A41&"_"&AG$2,Ajustes!$LI$14:$LI$300,0),MATCH(AG$1,Ajustes!$E$4:$LG$4,0)),) -> 0 | AH41: =IFERROR(INDEX(Ajustes!$E$14:$LG$300,MATCH($A41&"_"&AH$2,Ajustes!$LI$14:$LI$300,0),MATCH(AH$1,Ajustes!$E$4:$LG$4,0)),) -> 0 | AI41: 0 | AJ41: 0 | AK41: 0 | AL41: 0 | AM41: =IFERROR(INDEX(Ajustes!$E$14:$LG$300,MATCH($A41&"_"&AM$2,Ajustes!$LI$14:$LI$300,0),MATCH(AM$1,Ajustes!$E$4:$LG$4,0)),) -> 0 | AN41: =IFERROR(INDEX(Ajustes!$E$14:$LG$300,MATCH($A41&"_"&AN$2,Ajustes!$LI$14:$LI$300,0),MATCH(AN$1,Ajustes!$E$4:$LG$4,0)),) -> 0 | AO41: =IFERROR(INDEX(Ajustes!$E$14:$LG$300,MATCH($A41&"_"&AO$2,Ajustes!$LI$14:$LI$300,0),MATCH(AO$1,Ajustes!$E$4:$LG$4,0)),) -> 0 | AP41: =IFERROR(INDEX(Ajustes!$E$14:$LG$300,MATCH($A41&"_"&AP$2,Ajustes!$LI$14:$LI$300,0),MATCH(AP$1,Ajustes!$E$4:$LG$4,0)),) -> 0 | AS41: 0 | AT41: 0 | AU41: 0 | AV41: 0 | AW41: 0 | AX41: 0 | AY41: 0 | AZ41: 0 | BB41: 0 | BC41: 0 | BD41: 0 | BE41: 0 | BF41: 0 | BG41: 0 | BH41: 0 | BI41: 0 | BL41: 0 | BM41: 0 | BN41: 0 | BO41: 0 | BP41: 0 | BQ41: 0 | BR41: 0 | BS41: 0 | BT41: 0 | BW41: 0 | BX41: 0 | BY41: 0 | BZ41: 0 | CA41: 0 | CB41: 0 | CC41: 0 | CD41: 0 | CG41: =IF(A41="",0,SUMIFS(Clientes!Q:Q,Clientes!C:C,A41)) -> 0 | CH41: =IF(A41="",0,SUMIFS(Energia!K:K,Energia!C:C,A41)) -> 0 | CI41: =IF(A41="",0,SUMIFS(Potencia!K:K,Potencia!B:B,A41,Potencia!M:M,CI$5)) -> 0 | CJ41: =IF(A41="",0,SUMIFS(Potencia!K:K,Potencia!B:B,A41,Potencia!M:M,CJ$5)) -> 0 | CK41: =IF(A41="",0,SUMIFS(Potencia!K:K,Potencia!B:B,A41,Potencia!M:M,CK$5)) -> 0 | CL41: =IF(A41="",0,SUMIFS(Clientes!K:K,Clientes!C:C,A41)) -> 0 | CM41: =IF(A41="",0,SUMIFS(Energia!K:K,Energia!B:B,A41,Energia!AA:AA,CM$5)) -> 0 | CN41: =IF(A41="",0,SUMIFS(Energia!K:K,Energia!B:B,A41,Energia!AA:AA,CN$5)) -> 0 | CO41: 0
A42: =Factores!C68 ->  | B42: =IFERROR(INDEX(Ajustes!$E$14:$LG$300,MATCH($A42&"_"&B$2,Ajustes!$LI$14:$LI$300,0),MATCH(B$1,Ajustes!$E$4:$LG$4,0)),) -> 0 | C42: =IFERROR(INDEX(Ajustes!$E$14:$LG$300,MATCH($A42&"_"&C$2,Ajustes!$LI$14:$LI$300,0),MATCH(C$1,Ajustes!$E$4:$LG$4,0)),) -> 0 | D42: =IFERROR(INDEX(Ajustes!$E$14:$LG$300,MATCH($A42&"_"&D$2,Ajustes!$LI$14:$LI$300,0),MATCH(D$1,Ajustes!$E$4:$LG$4,0)),) -> 0 | E42: =IFERROR(INDEX(Ajustes!$E$14:$LG$300,MATCH($A42&"_"&E$2,Ajustes!$LI$14:$LI$300,0),MATCH(E$1,Ajustes!$E$4:$LG$4,0)),) -> 0 | F42: =IFERROR(INDEX(Ajustes!$E$14:$LG$300,MATCH($A42&"_"&F$2,Ajustes!$LI$14:$LI$300,0),MATCH(F$1,Ajustes!$E$4:$LG$4,0)),) -> 0 | G42: =IFERROR(INDEX(Ajustes!$E$14:$LG$300,MATCH($A42&"_"&G$2,Ajustes!$LI$14:$LI$300,0),MATCH(G$1,Ajustes!$E$4:$LG$4,0)),) -> 0 | H42: =IFERROR(INDEX(Ajustes!$E$14:$LG$300,MATCH($A42&"_"&H$2,Ajustes!$LI$14:$LI$300,0),MATCH(H$1,Ajustes!$E$4:$LG$4,0)),) -> 0 | I42: =IFERROR(INDEX(Ajustes!$E$14:$LG$300,MATCH($A42&"_"&I$2,Ajustes!$LI$14:$LI$300,0),MATCH(I$1,Ajustes!$E$4:$LG$4,0)),) -> 0 | J42: =IFERROR(INDEX(Ajustes!$E$14:$LG$300,MATCH($A42&"_"&J$2,Ajustes!$LI$14:$LI$300,0),MATCH(J$1,Ajustes!$E$4:$LG$4,0)),) -> 0 | K42: =IFERROR(INDEX(Ajustes!$E$14:$LG$300,MATCH($A42&"_"&K$2,Ajustes!$LI$14:$LI$300,0),MATCH(K$1,Ajustes!$E$4:$LG$4,0)),) -> 0 | L42: =IFERROR(INDEX(Ajustes!$E$14:$LG$300,MATCH($A42&"_"&L$2,Ajustes!$LI$14:$LI$300,0),MATCH(L$1,Ajustes!$E$4:$LG$4,0)),) -> 0 | M42: =IFERROR(INDEX(Ajustes!$E$14:$LG$300,MATCH($A42&"_"&M$2,Ajustes!$LI$14:$LI$300,0),MATCH(M$1,Ajustes!$E$4:$LG$4,0)),) -> 0 | N42: =IFERROR(INDEX(Ajustes!$E$14:$LG$300,MATCH($A42&"_"&N$2,Ajustes!$LI$14:$LI$300,0),MATCH(N$1,Ajustes!$E$4:$LG$4,0)),) -> 0 | O42: =IFERROR(INDEX(Ajustes!$E$14:$LG$300,MATCH($A42&"_"&O$2,Ajustes!$LI$14:$LI$300,0),MATCH(O$1,Ajustes!$E$4:$LG$4,0)),) -> 0 | P42: =IFERROR(INDEX(Ajustes!$E$14:$LG$300,MATCH($A42&"_"&P$2,Ajustes!$LI$14:$LI$300,0),MATCH(P$1,Ajustes!$E$4:$LG$4,0)),) -> 0 | Q42: =IFERROR(INDEX(Ajustes!$E$14:$LG$300,MATCH($A42&"_"&Q$2,Ajustes!$LI$14:$LI$300,0),MATCH(Q$1,Ajustes!$E$4:$LG$4,0)),) -> 0 | R42: =IFERROR(INDEX(Ajustes!$E$14:$LG$300,MATCH($A42&"_"&R$2,Ajustes!$LI$14:$LI$300,0),MATCH(R$1,Ajustes!$E$4:$LG$4,0)),) -> 0 | S42: =IFERROR(INDEX(Ajustes!$E$14:$LG$300,MATCH($A42&"_"&S$2,Ajustes!$LI$14:$LI$300,0),MATCH(S$1,Ajustes!$E$4:$LG$4,0)),) -> 0 | T42: =IFERROR(INDEX(Ajustes!$E$14:$LG$300,MATCH($A42&"_"&T$2,Ajustes!$LI$14:$LI$300,0),MATCH(T$1,Ajustes!$E$4:$LG$4,0)),) -> 0 | U42: =IFERROR(INDEX(Ajustes!$E$14:$LG$300,MATCH($A42&"_"&U$2,Ajustes!$LI$14:$LI$300,0),MATCH(U$1,Ajustes!$E$4:$LG$4,0)),) -> 0 | V42: 0 | W42: =IFERROR(INDEX(Ajustes!$E$14:$LG$300,MATCH($A42&"_"&W$2,Ajustes!$LI$14:$LI$300,0),MATCH(W$1,Ajustes!$E$4:$LG$4,0)),) -> 0 | X42: =IFERROR(INDEX(Ajustes!$E$14:$LG$300,MATCH($A42&"_"&X$2,Ajustes!$LI$14:$LI$300,0),MATCH(X$1,Ajustes!$E$4:$LG$4,0)),) -> 0 | Y42: =IFERROR(INDEX(Ajustes!$E$14:$LG$300,MATCH($A42&"_"&Y$2,Ajustes!$LI$14:$LI$300,0),MATCH(Y$1,Ajustes!$E$4:$LG$4,0)),) -> 0 | Z42: =IFERROR(INDEX(Ajustes!$E$14:$LG$300,MATCH($A42&"_"&Z$2,Ajustes!$LI$14:$LI$300,0),MATCH(Z$1,Ajustes!$E$4:$LG$4,0)),) -> 0 | AA42: =IFERROR(INDEX(Ajustes!$E$14:$LG$300,MATCH($A42&"_"&AA$2,Ajustes!$LI$14:$LI$300,0),MATCH(AA$1,Ajustes!$E$4:$LG$4,0)),) -> 0 | AB42: =IFERROR(INDEX(Ajustes!$E$14:$LG$300,MATCH($A42&"_"&AB$2,Ajustes!$LI$14:$LI$300,0),MATCH(AB$1,Ajustes!$E$4:$LG$4,0)),) -> 0 | AC42: =IFERROR(INDEX(Ajustes!$E$14:$LG$300,MATCH($A42&"_"&AC$2,Ajustes!$LI$14:$LI$300,0),MATCH(AC$1,Ajustes!$E$4:$LG$4,0)),) -> 0 | AD42: =IFERROR(INDEX(Ajustes!$E$14:$LG$300,MATCH($A42&"_"&AD$2,Ajustes!$LI$14:$LI$300,0),MATCH(AD$1,Ajustes!$E$4:$LG$4,0)),) -> 0 | AE42: =IFERROR(INDEX(Ajustes!$E$14:$LG$300,MATCH($A42&"_"&AE$2,Ajustes!$LI$14:$LI$300,0),MATCH(AE$1,Ajustes!$E$4:$LG$4,0)),) -> 0 | AF42: =IFERROR(INDEX(Ajustes!$E$14:$LG$300,MATCH($A42&"_"&AF$2,Ajustes!$LI$14:$LI$300,0),MATCH(AF$1,Ajustes!$E$4:$LG$4,0)),) -> 0 | AG42: =IFERROR(INDEX(Ajustes!$E$14:$LG$300,MATCH($A42&"_"&AG$2,Ajustes!$LI$14:$LI$300,0),MATCH(AG$1,Ajustes!$E$4:$LG$4,0)),) -> 0 | AH42: =IFERROR(INDEX(Ajustes!$E$14:$LG$300,MATCH($A42&"_"&AH$2,Ajustes!$LI$14:$LI$300,0),MATCH(AH$1,Ajustes!$E$4:$LG$4,0)),) -> 0 | AI42: 0 | AJ42: 0 | AK42: 0 | AL42: 0 | AM42: =IFERROR(INDEX(Ajustes!$E$14:$LG$300,MATCH($A42&"_"&AM$2,Ajustes!$LI$14:$LI$300,0),MATCH(AM$1,Ajustes!$E$4:$LG$4,0)),) -> 0 | AN42: =IFERROR(INDEX(Ajustes!$E$14:$LG$300,MATCH($A42&"_"&AN$2,Ajustes!$LI$14:$LI$300,0),MATCH(AN$1,Ajustes!$E$4:$LG$4,0)),) -> 0 | AO42: =IFERROR(INDEX(Ajustes!$E$14:$LG$300,MATCH($A42&"_"&AO$2,Ajustes!$LI$14:$LI$300,0),MATCH(AO$1,Ajustes!$E$4:$LG$4,0)),) -> 0 | AP42: =IFERROR(INDEX(Ajustes!$E$14:$LG$300,MATCH($A42&"_"&AP$2,Ajustes!$LI$14:$LI$300,0),MATCH(AP$1,Ajustes!$E$4:$LG$4,0)),) -> 0 | AS42: 0 | AT42: 0 | AU42: 0 | AV42: 0 | AW42: 0 | AX42: 0 | AY42: 0 | AZ42: 0 | BB42: 0 | BC42: 0 | BD42: 0 | BE42: 0 | BF42: 0 | BG42: 0 | BH42: 0 | BI42: 0 | BL42: 0 | BM42: 0 | BN42: 0 | BO42: 0 | BP42: 0 | BQ42: 0 | BR42: 0 | BS42: 0 | BT42: 0 | BW42: 0 | BX42: 0 | BY42: 0 | BZ42: 0 | CA42: 0 | CB42: 0 | CC42: 0 | CD42: 0 | CG42: =IF(A42="",0,SUMIFS(Clientes!Q:Q,Clientes!C:C,A42)) -> 0 | CH42: =IF(A42="",0,SUMIFS(Energia!K:K,Energia!C:C,A42)) -> 0 | CI42: =IF(A42="",0,SUMIFS(Potencia!K:K,Potencia!B:B,A42,Potencia!M:M,CI$5)) -> 0 | CJ42: =IF(A42="",0,SUMIFS(Potencia!K:K,Potencia!B:B,A42,Potencia!M:M,CJ$5)) -> 0 | CK42: =IF(A42="",0,SUMIFS(Potencia!K:K,Potencia!B:B,A42,Potencia!M:M,CK$5)) -> 0 | CL42: =IF(A42="",0,SUMIFS(Clientes!K:K,Clientes!C:C,A42)) -> 0 | CM42: =IF(A42="",0,SUMIFS(Energia!K:K,Energia!B:B,A42,Energia!AA:AA,CM$5)) -> 0 | CN42: =IF(A42="",0,SUMIFS(Energia!K:K,Energia!B:B,A42,Energia!AA:AA,CN$5)) -> 0 | CO42: 0
A43: =Factores!C69 ->  | B43: =IFERROR(INDEX(Ajustes!$E$14:$LG$300,MATCH($A43&"_"&B$2,Ajustes!$LI$14:$LI$300,0),MATCH(B$1,Ajustes!$E$4:$LG$4,0)),) -> 0 | C43: =IFERROR(INDEX(Ajustes!$E$14:$LG$300,MATCH($A43&"_"&C$2,Ajustes!$LI$14:$LI$300,0),MATCH(C$1,Ajustes!$E$4:$LG$4,0)),) -> 0 | D43: =IFERROR(INDEX(Ajustes!$E$14:$LG$300,MATCH($A43&"_"&D$2,Ajustes!$LI$14:$LI$300,0),MATCH(D$1,Ajustes!$E$4:$LG$4,0)),) -> 0 | E43: =IFERROR(INDEX(Ajustes!$E$14:$LG$300,MATCH($A43&"_"&E$2,Ajustes!$LI$14:$LI$300,0),MATCH(E$1,Ajustes!$E$4:$LG$4,0)),) -> 0 | F43: =IFERROR(INDEX(Ajustes!$E$14:$LG$300,MATCH($A43&"_"&F$2,Ajustes!$LI$14:$LI$300,0),MATCH(F$1,Ajustes!$E$4:$LG$4,0)),) -> 0 | G43: =IFERROR(INDEX(Ajustes!$E$14:$LG$300,MATCH($A43&"_"&G$2,Ajustes!$LI$14:$LI$300,0),MATCH(G$1,Ajustes!$E$4:$LG$4,0)),) -> 0 | H43: =IFERROR(INDEX(Ajustes!$E$14:$LG$300,MATCH($A43&"_"&H$2,Ajustes!$LI$14:$LI$300,0),MATCH(H$1,Ajustes!$E$4:$LG$4,0)),) -> 0 | I43: =IFERROR(INDEX(Ajustes!$E$14:$LG$300,MATCH($A43&"_"&I$2,Ajustes!$LI$14:$LI$300,0),MATCH(I$1,Ajustes!$E$4:$LG$4,0)),) -> 0 | J43: =IFERROR(INDEX(Ajustes!$E$14:$LG$300,MATCH($A43&"_"&J$2,Ajustes!$LI$14:$LI$300,0),MATCH(J$1,Ajustes!$E$4:$LG$4,0)),) -> 0 | K43: =IFERROR(INDEX(Ajustes!$E$14:$LG$300,MATCH($A43&"_"&K$2,Ajustes!$LI$14:$LI$300,0),MATCH(K$1,Ajustes!$E$4:$LG$4,0)),) -> 0 | L43: =IFERROR(INDEX(Ajustes!$E$14:$LG$300,MATCH($A43&"_"&L$2,Ajustes!$LI$14:$LI$300,0),MATCH(L$1,Ajustes!$E$4:$LG$4,0)),) -> 0 | M43: =IFERROR(INDEX(Ajustes!$E$14:$LG$300,MATCH($A43&"_"&M$2,Ajustes!$LI$14:$LI$300,0),MATCH(M$1,Ajustes!$E$4:$LG$4,0)),) -> 0 | N43: =IFERROR(INDEX(Ajustes!$E$14:$LG$300,MATCH($A43&"_"&N$2,Ajustes!$LI$14:$LI$300,0),MATCH(N$1,Ajustes!$E$4:$LG$4,0)),) -> 0 | O43: =IFERROR(INDEX(Ajustes!$E$14:$LG$300,MATCH($A43&"_"&O$2,Ajustes!$LI$14:$LI$300,0),MATCH(O$1,Ajustes!$E$4:$LG$4,0)),) -> 0 | P43: =IFERROR(INDEX(Ajustes!$E$14:$LG$300,MATCH($A43&"_"&P$2,Ajustes!$LI$14:$LI$300,0),MATCH(P$1,Ajustes!$E$4:$LG$4,0)),) -> 0 | Q43: =IFERROR(INDEX(Ajustes!$E$14:$LG$300,MATCH($A43&"_"&Q$2,Ajustes!$LI$14:$LI$300,0),MATCH(Q$1,Ajustes!$E$4:$LG$4,0)),) -> 0 | R43: =IFERROR(INDEX(Ajustes!$E$14:$LG$300,MATCH($A43&"_"&R$2,Ajustes!$LI$14:$LI$300,0),MATCH(R$1,Ajustes!$E$4:$LG$4,0)),) -> 0 | S43: =IFERROR(INDEX(Ajustes!$E$14:$LG$300,MATCH($A43&"_"&S$2,Ajustes!$LI$14:$LI$300,0),MATCH(S$1,Ajustes!$E$4:$LG$4,0)),) -> 0 | T43: =IFERROR(INDEX(Ajustes!$E$14:$LG$300,MATCH($A43&"_"&T$2,Ajustes!$LI$14:$LI$300,0),MATCH(T$1,Ajustes!$E$4:$LG$4,0)),) -> 0 | U43: =IFERROR(INDEX(Ajustes!$E$14:$LG$300,MATCH($A43&"_"&U$2,Ajustes!$LI$14:$LI$300,0),MATCH(U$1,Ajustes!$E$4:$LG$4,0)),) -> 0 | V43: 0 | W43: =IFERROR(INDEX(Ajustes!$E$14:$LG$300,MATCH($A43&"_"&W$2,Ajustes!$LI$14:$LI$300,0),MATCH(W$1,Ajustes!$E$4:$LG$4,0)),) -> 0 | X43: =IFERROR(INDEX(Ajustes!$E$14:$LG$300,MATCH($A43&"_"&X$2,Ajustes!$LI$14:$LI$300,0),MATCH(X$1,Ajustes!$E$4:$LG$4,0)),) -> 0 | Y43: =IFERROR(INDEX(Ajustes!$E$14:$LG$300,MATCH($A43&"_"&Y$2,Ajustes!$LI$14:$LI$300,0),MATCH(Y$1,Ajustes!$E$4:$LG$4,0)),) -> 0 | Z43: =IFERROR(INDEX(Ajustes!$E$14:$LG$300,MATCH($A43&"_"&Z$2,Ajustes!$LI$14:$LI$300,0),MATCH(Z$1,Ajustes!$E$4:$LG$4,0)),) -> 0 | AA43: =IFERROR(INDEX(Ajustes!$E$14:$LG$300,MATCH($A43&"_"&AA$2,Ajustes!$LI$14:$LI$300,0),MATCH(AA$1,Ajustes!$E$4:$LG$4,0)),) -> 0 | AB43: =IFERROR(INDEX(Ajustes!$E$14:$LG$300,MATCH($A43&"_"&AB$2,Ajustes!$LI$14:$LI$300,0),MATCH(AB$1,Ajustes!$E$4:$LG$4,0)),) -> 0 | AC43: =IFERROR(INDEX(Ajustes!$E$14:$LG$300,MATCH($A43&"_"&AC$2,Ajustes!$LI$14:$LI$300,0),MATCH(AC$1,Ajustes!$E$4:$LG$4,0)),) -> 0 | AD43: =IFERROR(INDEX(Ajustes!$E$14:$LG$300,MATCH($A43&"_"&AD$2,Ajustes!$LI$14:$LI$300,0),MATCH(AD$1,Ajustes!$E$4:$LG$4,0)),) -> 0 | AE43: =IFERROR(INDEX(Ajustes!$E$14:$LG$300,MATCH($A43&"_"&AE$2,Ajustes!$LI$14:$LI$300,0),MATCH(AE$1,Ajustes!$E$4:$LG$4,0)),) -> 0 | AF43: =IFERROR(INDEX(Ajustes!$E$14:$LG$300,MATCH($A43&"_"&AF$2,Ajustes!$LI$14:$LI$300,0),MATCH(AF$1,Ajustes!$E$4:$LG$4,0)),) -> 0 | AG43: =IFERROR(INDEX(Ajustes!$E$14:$LG$300,MATCH($A43&"_"&AG$2,Ajustes!$LI$14:$LI$300,0),MATCH(AG$1,Ajustes!$E$4:$LG$4,0)),) -> 0 | AH43: =IFERROR(INDEX(Ajustes!$E$14:$LG$300,MATCH($A43&"_"&AH$2,Ajustes!$LI$14:$LI$300,0),MATCH(AH$1,Ajustes!$E$4:$LG$4,0)),) -> 0 | AI43: 0 | AJ43: 0 | AK43: 0 | AL43: 0 | AM43: =IFERROR(INDEX(Ajustes!$E$14:$LG$300,MATCH($A43&"_"&AM$2,Ajustes!$LI$14:$LI$300,0),MATCH(AM$1,Ajustes!$E$4:$LG$4,0)),) -> 0 | AN43: =IFERROR(INDEX(Ajustes!$E$14:$LG$300,MATCH($A43&"_"&AN$2,Ajustes!$LI$14:$LI$300,0),MATCH(AN$1,Ajustes!$E$4:$LG$4,0)),) -> 0 | AO43: =IFERROR(INDEX(Ajustes!$E$14:$LG$300,MATCH($A43&"_"&AO$2,Ajustes!$LI$14:$LI$300,0),MATCH(AO$1,Ajustes!$E$4:$LG$4,0)),) -> 0 | AP43: =IFERROR(INDEX(Ajustes!$E$14:$LG$300,MATCH($A43&"_"&AP$2,Ajustes!$LI$14:$LI$300,0),MATCH(AP$1,Ajustes!$E$4:$LG$4,0)),) -> 0 | AS43: 0 | AT43: 0 | AU43: 0 | AV43: 0 | AW43: 0 | AX43: 0 | AY43: 0 | AZ43: 0 | BB43: 0 | BC43: 0 | BD43: 0 | BE43: 0 | BF43: 0 | BG43: 0 | BH43: 0 | BI43: 0 | BL43: 0 | BM43: 0 | BN43: 0 | BO43: 0 | BP43: 0 | BQ43: 0 | BR43: 0 | BS43: 0 | BT43: 0 | BW43: 0 | BX43: 0 | BY43: 0 | BZ43: 0 | CA43: 0 | CB43: 0 | CC43: 0 | CD43: 0 | CG43: =IF(A43="",0,SUMIFS(Clientes!Q:Q,Clientes!C:C,A43)) -> 0 | CH43: =IF(A43="",0,SUMIFS(Energia!K:K,Energia!C:C,A43)) -> 0 | CI43: =IF(A43="",0,SUMIFS(Potencia!K:K,Potencia!B:B,A43,Potencia!M:M,CI$5)) -> 0 | CJ43: =IF(A43="",0,SUMIFS(Potencia!K:K,Potencia!B:B,A43,Potencia!M:M,CJ$5)) -> 0 | CK43: =IF(A43="",0,SUMIFS(Potencia!K:K,Potencia!B:B,A43,Potencia!M:M,CK$5)) -> 0 | CL43: =IF(A43="",0,SUMIFS(Clientes!K:K,Clientes!C:C,A43)) -> 0 | CM43: =IF(A43="",0,SUMIFS(Energia!K:K,Energia!B:B,A43,Energia!AA:AA,CM$5)) -> 0 | CN43: =IF(A43="",0,SUMIFS(Energia!K:K,Energia!B:B,A43,Energia!AA:AA,CN$5)) -> 0 | CO43: 0
A44: =Factores!C70 -> MTH PEAJE | B44: =IFERROR(INDEX(Ajustes!$E$14:$LG$300,MATCH($A44&"_"&B$2,Ajustes!$LI$14:$LI$300,0),MATCH(B$1,Ajustes!$E$4:$LG$4,0)),) -> 141.52 | C44: =IFERROR(INDEX(Ajustes!$E$14:$LG$300,MATCH($A44&"_"&C$2,Ajustes!$LI$14:$LI$300,0),MATCH(C$1,Ajustes!$E$4:$LG$4,0)),) -> 0 | D44: =IFERROR(INDEX(Ajustes!$E$14:$LG$300,MATCH($A44&"_"&D$2,Ajustes!$LI$14:$LI$300,0),MATCH(D$1,Ajustes!$E$4:$LG$4,0)),) -> 0 | E44: =IFERROR(INDEX(Ajustes!$E$14:$LG$300,MATCH($A44&"_"&E$2,Ajustes!$LI$14:$LI$300,0),MATCH(E$1,Ajustes!$E$4:$LG$4,0)),) -> 6.221812155 | F44: =IFERROR(INDEX(Ajustes!$E$14:$LG$300,MATCH($A44&"_"&F$2,Ajustes!$LI$14:$LI$300,0),MATCH(F$1,Ajustes!$E$4:$LG$4,0)),) -> 0 | G44: =IFERROR(INDEX(Ajustes!$E$14:$LG$300,MATCH($A44&"_"&G$2,Ajustes!$LI$14:$LI$300,0),MATCH(G$1,Ajustes!$E$4:$LG$4,0)),) -> 3.655066467 | H44: =IFERROR(INDEX(Ajustes!$E$14:$LG$300,MATCH($A44&"_"&H$2,Ajustes!$LI$14:$LI$300,0),MATCH(H$1,Ajustes!$E$4:$LG$4,0)),) -> 1.827533234 | I44: =IFERROR(INDEX(Ajustes!$E$14:$LG$300,MATCH($A44&"_"&I$2,Ajustes!$LI$14:$LI$300,0),MATCH(I$1,Ajustes!$E$4:$LG$4,0)),) -> 5.014291259 | J44: =IFERROR(INDEX(Ajustes!$E$14:$LG$300,MATCH($A44&"_"&J$2,Ajustes!$LI$14:$LI$300,0),MATCH(J$1,Ajustes!$E$4:$LG$4,0)),) -> 0 | K44: =IFERROR(INDEX(Ajustes!$E$14:$LG$300,MATCH($A44&"_"&K$2,Ajustes!$LI$14:$LI$300,0),MATCH(K$1,Ajustes!$E$4:$LG$4,0)),) -> 0.004587789669 | L44: =IFERROR(INDEX(Ajustes!$E$14:$LG$300,MATCH($A44&"_"&L$2,Ajustes!$LI$14:$LI$300,0),MATCH(L$1,Ajustes!$E$4:$LG$4,0)),) -> 0.002329061648 | M44: =IFERROR(INDEX(Ajustes!$E$14:$LG$300,MATCH($A44&"_"&M$2,Ajustes!$LI$14:$LI$300,0),MATCH(M$1,Ajustes!$E$4:$LG$4,0)),) -> 0.001506949515 | N44: =IFERROR(INDEX(Ajustes!$E$14:$LG$300,MATCH($A44&"_"&N$2,Ajustes!$LI$14:$LI$300,0),MATCH(N$1,Ajustes!$E$4:$LG$4,0)),) -> 0 | O44: =IFERROR(INDEX(Ajustes!$E$14:$LG$300,MATCH($A44&"_"&O$2,Ajustes!$LI$14:$LI$300,0),MATCH(O$1,Ajustes!$E$4:$LG$4,0)),) -> 0.0109068114 | P44: =IFERROR(INDEX(Ajustes!$E$14:$LG$300,MATCH($A44&"_"&P$2,Ajustes!$LI$14:$LI$300,0),MATCH(P$1,Ajustes!$E$4:$LG$4,0)),) -> 0 | Q44: =IFERROR(INDEX(Ajustes!$E$14:$LG$300,MATCH($A44&"_"&Q$2,Ajustes!$LI$14:$LI$300,0),MATCH(Q$1,Ajustes!$E$4:$LG$4,0)),) -> 0.0109068114 | R44: =IFERROR(INDEX(Ajustes!$E$14:$LG$300,MATCH($A44&"_"&R$2,Ajustes!$LI$14:$LI$300,0),MATCH(R$1,Ajustes!$E$4:$LG$4,0)),) -> 0.0109068114 | S44: =IFERROR(INDEX(Ajustes!$E$14:$LG$300,MATCH($A44&"_"&S$2,Ajustes!$LI$14:$LI$300,0),MATCH(S$1,Ajustes!$E$4:$LG$4,0)),) -> 0 | T44: =IFERROR(INDEX(Ajustes!$E$14:$LG$300,MATCH($A44&"_"&T$2,Ajustes!$LI$14:$LI$300,0),MATCH(T$1,Ajustes!$E$4:$LG$4,0)),) -> 0 | U44: =IFERROR(INDEX(Ajustes!$E$14:$LG$300,MATCH($A44&"_"&U$2,Ajustes!$LI$14:$LI$300,0),MATCH(U$1,Ajustes!$E$4:$LG$4,0)),) -> 0.4057281769 | V44: 0 | W44: =IFERROR(INDEX(Ajustes!$E$14:$LG$300,MATCH($A44&"_"&W$2,Ajustes!$LI$14:$LI$300,0),MATCH(W$1,Ajustes!$E$4:$LG$4,0)),) -> 0 | X44: =IFERROR(INDEX(Ajustes!$E$14:$LG$300,MATCH($A44&"_"&X$2,Ajustes!$LI$14:$LI$300,0),MATCH(X$1,Ajustes!$E$4:$LG$4,0)),) -> 0 | Y44: =IFERROR(INDEX(Ajustes!$E$14:$LG$300,MATCH($A44&"_"&Y$2,Ajustes!$LI$14:$LI$300,0),MATCH(Y$1,Ajustes!$E$4:$LG$4,0)),) -> 0 | Z44: =IFERROR(INDEX(Ajustes!$E$14:$LG$300,MATCH($A44&"_"&Z$2,Ajustes!$LI$14:$LI$300,0),MATCH(Z$1,Ajustes!$E$4:$LG$4,0)),) -> 0 | AA44: =IFERROR(INDEX(Ajustes!$E$14:$LG$300,MATCH($A44&"_"&AA$2,Ajustes!$LI$14:$LI$300,0),MATCH(AA$1,Ajustes!$E$4:$LG$4,0)),) -> 0 | AB44: =IFERROR(INDEX(Ajustes!$E$14:$LG$300,MATCH($A44&"_"&AB$2,Ajustes!$LI$14:$LI$300,0),MATCH(AB$1,Ajustes!$E$4:$LG$4,0)),) -> 0 | AC44: =IFERROR(INDEX(Ajustes!$E$14:$LG$300,MATCH($A44&"_"&AC$2,Ajustes!$LI$14:$LI$300,0),MATCH(AC$1,Ajustes!$E$4:$LG$4,0)),) -> 0 | AD44: =IFERROR(INDEX(Ajustes!$E$14:$LG$300,MATCH($A44&"_"&AD$2,Ajustes!$LI$14:$LI$300,0),MATCH(AD$1,Ajustes!$E$4:$LG$4,0)),) -> 0 | AE44: =IFERROR(INDEX(Ajustes!$E$14:$LG$300,MATCH($A44&"_"&AE$2,Ajustes!$LI$14:$LI$300,0),MATCH(AE$1,Ajustes!$E$4:$LG$4,0)),) -> 16.0043105 | AF44: =IFERROR(INDEX(Ajustes!$E$14:$LG$300,MATCH($A44&"_"&AF$2,Ajustes!$LI$14:$LI$300,0),MATCH(AF$1,Ajustes!$E$4:$LG$4,0)),) -> 0 | AG44: =IFERROR(INDEX(Ajustes!$E$14:$LG$300,MATCH($A44&"_"&AG$2,Ajustes!$LI$14:$LI$300,0),MATCH(AG$1,Ajustes!$E$4:$LG$4,0)),) -> 0 | AH44: =IFERROR(INDEX(Ajustes!$E$14:$LG$300,MATCH($A44&"_"&AH$2,Ajustes!$LI$14:$LI$300,0),MATCH(AH$1,Ajustes!$E$4:$LG$4,0)),) -> 0 | AI44: 0 | AJ44: 0 | AK44: 0 | AL44: 0 | AM44: =IFERROR(INDEX(Ajustes!$E$14:$LG$300,MATCH($A44&"_"&AM$2,Ajustes!$LI$14:$LI$300,0),MATCH(AM$1,Ajustes!$E$4:$LG$4,0)),) -> 0.003939153371 | AN44: =IFERROR(INDEX(Ajustes!$E$14:$LG$300,MATCH($A44&"_"&AN$2,Ajustes!$LI$14:$LI$300,0),MATCH(AN$1,Ajustes!$E$4:$LG$4,0)),) -> 0 | AO44: =IFERROR(INDEX(Ajustes!$E$14:$LG$300,MATCH($A44&"_"&AO$2,Ajustes!$LI$14:$LI$300,0),MATCH(AO$1,Ajustes!$E$4:$LG$4,0)),) -> 1.616241805 | AP44: =IFERROR(INDEX(Ajustes!$E$14:$LG$300,MATCH($A44&"_"&AP$2,Ajustes!$LI$14:$LI$300,0),MATCH(AP$1,Ajustes!$E$4:$LG$4,0)),) -> 0 | AS44: 141.52 | AT44: 0.0123629542 | AU44: 0 | AV44: 16.0043105 | AW44: 0 | AX44: 5.014291259 | AY44: 0 | AZ44: 0 | BB44: 141.52 | BC44: 0.006916851317 | BD44: 0 | BE44: 0 | BF44: 0 | BG44: 5.014291259 | BH44: 0 | BI44: 0 | BL44: 0 | BM44: 0.001506949515 | BN44: 0 | BO44: 16.0043105 | BP44: 0 | BQ44: 0 | BR44: 0 | BS44: 0 | BT44: 0 | BW44: 0 | BX44: 0.003939153371 | BY44: 0 | BZ44: 0 | CA44: 0 | CB44: 0 | CC44: 0 | CD44: 0 | CG44: =IF(A44="",0,SUMIFS(Clientes!Q:Q,Clientes!C:C,A44)) -> 3.287094555 | CH44: =IF(A44="",0,SUMIFS(Energia!K:K,Energia!C:C,A44)) -> 422479.904 | CI44: =IF(A44="",0,SUMIFS(Potencia!K:K,Potencia!B:B,A44,Potencia!M:M,CI$5)) -> 0 | CJ44: =IF(A44="",0,SUMIFS(Potencia!K:K,Potencia!B:B,A44,Potencia!M:M,CJ$5)) -> 76.27559599 | CK44: =IF(A44="",0,SUMIFS(Potencia!K:K,Potencia!B:B,A44,Potencia!M:M,CK$5)) -> 74.74656007 | CL44: =IF(A44="",0,SUMIFS(Clientes!K:K,Clientes!C:C,A44)) -> 103.1254211 | CM44: =IF(A44="",0,SUMIFS(Energia!K:K,Energia!B:B,A44,Energia!AA:AA,CM$5)) -> 124035.8907 | CN44: =IF(A44="",0,SUMIFS(Energia!K:K,Energia!B:B,A44,Energia!AA:AA,CN$5)) -> 298444.0132 | CO44: 0
A45: =Factores!C71 ->  | B45: =IFERROR(INDEX(Ajustes!$E$14:$LG$300,MATCH($A45&"_"&B$2,Ajustes!$LI$14:$LI$300,0),MATCH(B$1,Ajustes!$E$4:$LG$4,0)),) -> 0 | C45: =IFERROR(INDEX(Ajustes!$E$14:$LG$300,MATCH($A45&"_"&C$2,Ajustes!$LI$14:$LI$300,0),MATCH(C$1,Ajustes!$E$4:$LG$4,0)),) -> 0 | D45: =IFERROR(INDEX(Ajustes!$E$14:$LG$300,MATCH($A45&"_"&D$2,Ajustes!$LI$14:$LI$300,0),MATCH(D$1,Ajustes!$E$4:$LG$4,0)),) -> 0 | E45: =IFERROR(INDEX(Ajustes!$E$14:$LG$300,MATCH($A45&"_"&E$2,Ajustes!$LI$14:$LI$300,0),MATCH(E$1,Ajustes!$E$4:$LG$4,0)),) -> 0 | F45: =IFERROR(INDEX(Ajustes!$E$14:$LG$300,MATCH($A45&"_"&F$2,Ajustes!$LI$14:$LI$300,0),MATCH(F$1,Ajustes!$E$4:$LG$4,0)),) -> 0 | G45: =IFERROR(INDEX(Ajustes!$E$14:$LG$300,MATCH($A45&"_"&G$2,Ajustes!$LI$14:$LI$300,0),MATCH(G$1,Ajustes!$E$4:$LG$4,0)),) -> 0 | H45: =IFERROR(INDEX(Ajustes!$E$14:$LG$300,MATCH($A45&"_"&H$2,Ajustes!$LI$14:$LI$300,0),MATCH(H$1,Ajustes!$E$4:$LG$4,0)),) -> 0 | I45: =IFERROR(INDEX(Ajustes!$E$14:$LG$300,MATCH($A45&"_"&I$2,Ajustes!$LI$14:$LI$300,0),MATCH(I$1,Ajustes!$E$4:$LG$4,0)),) -> 0 | J45: =IFERROR(INDEX(Ajustes!$E$14:$LG$300,MATCH($A45&"_"&J$2,Ajustes!$LI$14:$LI$300,0),MATCH(J$1,Ajustes!$E$4:$LG$4,0)),) -> 0 | K45: =IFERROR(INDEX(Ajustes!$E$14:$LG$300,MATCH($A45&"_"&K$2,Ajustes!$LI$14:$LI$300,0),MATCH(K$1,Ajustes!$E$4:$LG$4,0)),) -> 0 | L45: =IFERROR(INDEX(Ajustes!$E$14:$LG$300,MATCH($A45&"_"&L$2,Ajustes!$LI$14:$LI$300,0),MATCH(L$1,Ajustes!$E$4:$LG$4,0)),) -> 0 | M45: =IFERROR(INDEX(Ajustes!$E$14:$LG$300,MATCH($A45&"_"&M$2,Ajustes!$LI$14:$LI$300,0),MATCH(M$1,Ajustes!$E$4:$LG$4,0)),) -> 0 | N45: =IFERROR(INDEX(Ajustes!$E$14:$LG$300,MATCH($A45&"_"&N$2,Ajustes!$LI$14:$LI$300,0),MATCH(N$1,Ajustes!$E$4:$LG$4,0)),) -> 0 | O45: =IFERROR(INDEX(Ajustes!$E$14:$LG$300,MATCH($A45&"_"&O$2,Ajustes!$LI$14:$LI$300,0),MATCH(O$1,Ajustes!$E$4:$LG$4,0)),) -> 0 | P45: =IFERROR(INDEX(Ajustes!$E$14:$LG$300,MATCH($A45&"_"&P$2,Ajustes!$LI$14:$LI$300,0),MATCH(P$1,Ajustes!$E$4:$LG$4,0)),) -> 0 | Q45: =IFERROR(INDEX(Ajustes!$E$14:$LG$300,MATCH($A45&"_"&Q$2,Ajustes!$LI$14:$LI$300,0),MATCH(Q$1,Ajustes!$E$4:$LG$4,0)),) -> 0 | R45: =IFERROR(INDEX(Ajustes!$E$14:$LG$300,MATCH($A45&"_"&R$2,Ajustes!$LI$14:$LI$300,0),MATCH(R$1,Ajustes!$E$4:$LG$4,0)),) -> 0 | S45: =IFERROR(INDEX(Ajustes!$E$14:$LG$300,MATCH($A45&"_"&S$2,Ajustes!$LI$14:$LI$300,0),MATCH(S$1,Ajustes!$E$4:$LG$4,0)),) -> 0 | T45: =IFERROR(INDEX(Ajustes!$E$14:$LG$300,MATCH($A45&"_"&T$2,Ajustes!$LI$14:$LI$300,0),MATCH(T$1,Ajustes!$E$4:$LG$4,0)),) -> 0 | U45: =IFERROR(INDEX(Ajustes!$E$14:$LG$300,MATCH($A45&"_"&U$2,Ajustes!$LI$14:$LI$300,0),MATCH(U$1,Ajustes!$E$4:$LG$4,0)),) -> 0 | V45: 0 | W45: =IFERROR(INDEX(Ajustes!$E$14:$LG$300,MATCH($A45&"_"&W$2,Ajustes!$LI$14:$LI$300,0),MATCH(W$1,Ajustes!$E$4:$LG$4,0)),) -> 0 | X45: =IFERROR(INDEX(Ajustes!$E$14:$LG$300,MATCH($A45&"_"&X$2,Ajustes!$LI$14:$LI$300,0),MATCH(X$1,Ajustes!$E$4:$LG$4,0)),) -> 0 | Y45: =IFERROR(INDEX(Ajustes!$E$14:$LG$300,MATCH($A45&"_"&Y$2,Ajustes!$LI$14:$LI$300,0),MATCH(Y$1,Ajustes!$E$4:$LG$4,0)),) -> 0 | Z45: =IFERROR(INDEX(Ajustes!$E$14:$LG$300,MATCH($A45&"_"&Z$2,Ajustes!$LI$14:$LI$300,0),MATCH(Z$1,Ajustes!$E$4:$LG$4,0)),) -> 0 | AA45: =IFERROR(INDEX(Ajustes!$E$14:$LG$300,MATCH($A45&"_"&AA$2,Ajustes!$LI$14:$LI$300,0),MATCH(AA$1,Ajustes!$E$4:$LG$4,0)),) -> 0 | AB45: =IFERROR(INDEX(Ajustes!$E$14:$LG$300,MATCH($A45&"_"&AB$2,Ajustes!$LI$14:$LI$300,0),MATCH(AB$1,Ajustes!$E$4:$LG$4,0)),) -> 0 | AC45: =IFERROR(INDEX(Ajustes!$E$14:$LG$300,MATCH($A45&"_"&AC$2,Ajustes!$LI$14:$LI$300,0),MATCH(AC$1,Ajustes!$E$4:$LG$4,0)),) -> 0 | AD45: =IFERROR(INDEX(Ajustes!$E$14:$LG$300,MATCH($A45&"_"&AD$2,Ajustes!$LI$14:$LI$300,0),MATCH(AD$1,Ajustes!$E$4:$LG$4,0)),) -> 0 | AE45: =IFERROR(INDEX(Ajustes!$E$14:$LG$300,MATCH($A45&"_"&AE$2,Ajustes!$LI$14:$LI$300,0),MATCH(AE$1,Ajustes!$E$4:$LG$4,0)),) -> 0 | AF45: =IFERROR(INDEX(Ajustes!$E$14:$LG$300,MATCH($A45&"_"&AF$2,Ajustes!$LI$14:$LI$300,0),MATCH(AF$1,Ajustes!$E$4:$LG$4,0)),) -> 0 | AG45: =IFERROR(INDEX(Ajustes!$E$14:$LG$300,MATCH($A45&"_"&AG$2,Ajustes!$LI$14:$LI$300,0),MATCH(AG$1,Ajustes!$E$4:$LG$4,0)),) -> 0 | AH45: =IFERROR(INDEX(Ajustes!$E$14:$LG$300,MATCH($A45&"_"&AH$2,Ajustes!$LI$14:$LI$300,0),MATCH(AH$1,Ajustes!$E$4:$LG$4,0)),) -> 0 | AI45: 0 | AJ45: 0 | AK45: 0 | AL45: 0 | AM45: =IFERROR(INDEX(Ajustes!$E$14:$LG$300,MATCH($A45&"_"&AM$2,Ajustes!$LI$14:$LI$300,0),MATCH(AM$1,Ajustes!$E$4:$LG$4,0)),) -> 0 | AN45: =IFERROR(INDEX(Ajustes!$E$14:$LG$300,MATCH($A45&"_"&AN$2,Ajustes!$LI$14:$LI$300,0),MATCH(AN$1,Ajustes!$E$4:$LG$4,0)),) -> 0 | AO45: =IFERROR(INDEX(Ajustes!$E$14:$LG$300,MATCH($A45&"_"&AO$2,Ajustes!$LI$14:$LI$300,0),MATCH(AO$1,Ajustes!$E$4:$LG$4,0)),) -> 0 | AP45: =IFERROR(INDEX(Ajustes!$E$14:$LG$300,MATCH($A45&"_"&AP$2,Ajustes!$LI$14:$LI$300,0),MATCH(AP$1,Ajustes!$E$4:$LG$4,0)),) -> 0 | AS45: 0 | AT45: 0 | AU45: 0 | AV45: 0 | AW45: 0 | AX45: 0 | AY45: 0 | AZ45: 0 | BB45: 0 | BC45: 0 | BD45: 0 | BE45: 0 | BF45: 0 | BG45: 0 | BH45: 0 | BI45: 0 | BL45: 0 | BM45: 0 | BN45: 0 | BO45: 0 | BP45: 0 | BQ45: 0 | BR45: 0 | BS45: 0 | BT45: 0 | BW45: 0 | BX45: 0 | BY45: 0 | BZ45: 0 | CA45: 0 | CB45: 0 | CC45: 0 | CD45: 0 | CG45: =IF(A45="",0,SUMIFS(Clientes!Q:Q,Clientes!C:C,A45)) -> 0 | CH45: =IF(A45="",0,SUMIFS(Energia!K:K,Energia!C:C,A45)) -> 0 | CI45: =IF(A45="",0,SUMIFS(Potencia!K:K,Potencia!B:B,A45,Potencia!M:M,CI$5)) -> 0 | CJ45: =IF(A45="",0,SUMIFS(Potencia!K:K,Potencia!B:B,A45,Potencia!M:M,CJ$5)) -> 0 | CK45: =IF(A45="",0,SUMIFS(Potencia!K:K,Potencia!B:B,A45,Potencia!M:M,CK$5)) -> 0 | CL45: =IF(A45="",0,SUMIFS(Clientes!K:K,Clientes!C:C,A45)) -> 0 | CM45: =IF(A45="",0,SUMIFS(Energia!K:K,Energia!B:B,A45,Energia!AA:AA,CM$5)) -> 0 | CN45: =IF(A45="",0,SUMIFS(Energia!K:K,Energia!B:B,A45,Energia!AA:AA,CN$5)) -> 0 | CO45: 0
A46: =Factores!C72 ->  | B46: =IFERROR(INDEX(Ajustes!$E$14:$LG$300,MATCH($A46&"_"&B$2,Ajustes!$LI$14:$LI$300,0),MATCH(B$1,Ajustes!$E$4:$LG$4,0)),) -> 0 | C46: =IFERROR(INDEX(Ajustes!$E$14:$LG$300,MATCH($A46&"_"&C$2,Ajustes!$LI$14:$LI$300,0),MATCH(C$1,Ajustes!$E$4:$LG$4,0)),) -> 0 | D46: =IFERROR(INDEX(Ajustes!$E$14:$LG$300,MATCH($A46&"_"&D$2,Ajustes!$LI$14:$LI$300,0),MATCH(D$1,Ajustes!$E$4:$LG$4,0)),) -> 0 | E46: =IFERROR(INDEX(Ajustes!$E$14:$LG$300,MATCH($A46&"_"&E$2,Ajustes!$LI$14:$LI$300,0),MATCH(E$1,Ajustes!$E$4:$LG$4,0)),) -> 0 | F46: =IFERROR(INDEX(Ajustes!$E$14:$LG$300,MATCH($A46&"_"&F$2,Ajustes!$LI$14:$LI$300,0),MATCH(F$1,Ajustes!$E$4:$LG$4,0)),) -> 0 | G46: =IFERROR(INDEX(Ajustes!$E$14:$LG$300,MATCH($A46&"_"&G$2,Ajustes!$LI$14:$LI$300,0),MATCH(G$1,Ajustes!$E$4:$LG$4,0)),) -> 0 | H46: =IFERROR(INDEX(Ajustes!$E$14:$LG$300,MATCH($A46&"_"&H$2,Ajustes!$LI$14:$LI$300,0),MATCH(H$1,Ajustes!$E$4:$LG$4,0)),) -> 0 | I46: =IFERROR(INDEX(Ajustes!$E$14:$LG$300,MATCH($A46&"_"&I$2,Ajustes!$LI$14:$LI$300,0),MATCH(I$1,Ajustes!$E$4:$LG$4,0)),) -> 0 | J46: =IFERROR(INDEX(Ajustes!$E$14:$LG$300,MATCH($A46&"_"&J$2,Ajustes!$LI$14:$LI$300,0),MATCH(J$1,Ajustes!$E$4:$LG$4,0)),) -> 0 | K46: =IFERROR(INDEX(Ajustes!$E$14:$LG$300,MATCH($A46&"_"&K$2,Ajustes!$LI$14:$LI$300,0),MATCH(K$1,Ajustes!$E$4:$LG$4,0)),) -> 0 | L46: =IFERROR(INDEX(Ajustes!$E$14:$LG$300,MATCH($A46&"_"&L$2,Ajustes!$LI$14:$LI$300,0),MATCH(L$1,Ajustes!$E$4:$LG$4,0)),) -> 0 | M46: =IFERROR(INDEX(Ajustes!$E$14:$LG$300,MATCH($A46&"_"&M$2,Ajustes!$LI$14:$LI$300,0),MATCH(M$1,Ajustes!$E$4:$LG$4,0)),) -> 0 | N46: =IFERROR(INDEX(Ajustes!$E$14:$LG$300,MATCH($A46&"_"&N$2,Ajustes!$LI$14:$LI$300,0),MATCH(N$1,Ajustes!$E$4:$LG$4,0)),) -> 0 | O46: =IFERROR(INDEX(Ajustes!$E$14:$LG$300,MATCH($A46&"_"&O$2,Ajustes!$LI$14:$LI$300,0),MATCH(O$1,Ajustes!$E$4:$LG$4,0)),) -> 0 | P46: =IFERROR(INDEX(Ajustes!$E$14:$LG$300,MATCH($A46&"_"&P$2,Ajustes!$LI$14:$LI$300,0),MATCH(P$1,Ajustes!$E$4:$LG$4,0)),) -> 0 | Q46: =IFERROR(INDEX(Ajustes!$E$14:$LG$300,MATCH($A46&"_"&Q$2,Ajustes!$LI$14:$LI$300,0),MATCH(Q$1,Ajustes!$E$4:$LG$4,0)),) -> 0 | R46: =IFERROR(INDEX(Ajustes!$E$14:$LG$300,MATCH($A46&"_"&R$2,Ajustes!$LI$14:$LI$300,0),MATCH(R$1,Ajustes!$E$4:$LG$4,0)),) -> 0 | S46: =IFERROR(INDEX(Ajustes!$E$14:$LG$300,MATCH($A46&"_"&S$2,Ajustes!$LI$14:$LI$300,0),MATCH(S$1,Ajustes!$E$4:$LG$4,0)),) -> 0 | T46: =IFERROR(INDEX(Ajustes!$E$14:$LG$300,MATCH($A46&"_"&T$2,Ajustes!$LI$14:$LI$300,0),MATCH(T$1,Ajustes!$E$4:$LG$4,0)),) -> 0 | U46: =IFERROR(INDEX(Ajustes!$E$14:$LG$300,MATCH($A46&"_"&U$2,Ajustes!$LI$14:$LI$300,0),MATCH(U$1,Ajustes!$E$4:$LG$4,0)),) -> 0 | V46: 0 | W46: =IFERROR(INDEX(Ajustes!$E$14:$LG$300,MATCH($A46&"_"&W$2,Ajustes!$LI$14:$LI$300,0),MATCH(W$1,Ajustes!$E$4:$LG$4,0)),) -> 0 | X46: =IFERROR(INDEX(Ajustes!$E$14:$LG$300,MATCH($A46&"_"&X$2,Ajustes!$LI$14:$LI$300,0),MATCH(X$1,Ajustes!$E$4:$LG$4,0)),) -> 0 | Y46: =IFERROR(INDEX(Ajustes!$E$14:$LG$300,MATCH($A46&"_"&Y$2,Ajustes!$LI$14:$LI$300,0),MATCH(Y$1,Ajustes!$E$4:$LG$4,0)),) -> 0 | Z46: =IFERROR(INDEX(Ajustes!$E$14:$LG$300,MATCH($A46&"_"&Z$2,Ajustes!$LI$14:$LI$300,0),MATCH(Z$1,Ajustes!$E$4:$LG$4,0)),) -> 0 | AA46: =IFERROR(INDEX(Ajustes!$E$14:$LG$300,MATCH($A46&"_"&AA$2,Ajustes!$LI$14:$LI$300,0),MATCH(AA$1,Ajustes!$E$4:$LG$4,0)),) -> 0 | AB46: =IFERROR(INDEX(Ajustes!$E$14:$LG$300,MATCH($A46&"_"&AB$2,Ajustes!$LI$14:$LI$300,0),MATCH(AB$1,Ajustes!$E$4:$LG$4,0)),) -> 0 | AC46: =IFERROR(INDEX(Ajustes!$E$14:$LG$300,MATCH($A46&"_"&AC$2,Ajustes!$LI$14:$LI$300,0),MATCH(AC$1,Ajustes!$E$4:$LG$4,0)),) -> 0 | AD46: =IFERROR(INDEX(Ajustes!$E$14:$LG$300,MATCH($A46&"_"&AD$2,Ajustes!$LI$14:$LI$300,0),MATCH(AD$1,Ajustes!$E$4:$LG$4,0)),) -> 0 | AE46: =IFERROR(INDEX(Ajustes!$E$14:$LG$300,MATCH($A46&"_"&AE$2,Ajustes!$LI$14:$LI$300,0),MATCH(AE$1,Ajustes!$E$4:$LG$4,0)),) -> 0 | AF46: =IFERROR(INDEX(Ajustes!$E$14:$LG$300,MATCH($A46&"_"&AF$2,Ajustes!$LI$14:$LI$300,0),MATCH(AF$1,Ajustes!$E$4:$LG$4,0)),) -> 0 | AG46: =IFERROR(INDEX(Ajustes!$E$14:$LG$300,MATCH($A46&"_"&AG$2,Ajustes!$LI$14:$LI$300,0),MATCH(AG$1,Ajustes!$E$4:$LG$4,0)),) -> 0 | AH46: =IFERROR(INDEX(Ajustes!$E$14:$LG$300,MATCH($A46&"_"&AH$2,Ajustes!$LI$14:$LI$300,0),MATCH(AH$1,Ajustes!$E$4:$LG$4,0)),) -> 0 | AI46: 0 | AJ46: 0 | AK46: 0 | AL46: 0 | AM46: =IFERROR(INDEX(Ajustes!$E$14:$LG$300,MATCH($A46&"_"&AM$2,Ajustes!$LI$14:$LI$300,0),MATCH(AM$1,Ajustes!$E$4:$LG$4,0)),) -> 0 | AN46: =IFERROR(INDEX(Ajustes!$E$14:$LG$300,MATCH($A46&"_"&AN$2,Ajustes!$LI$14:$LI$300,0),MATCH(AN$1,Ajustes!$E$4:$LG$4,0)),) -> 0 | AO46: =IFERROR(INDEX(Ajustes!$E$14:$LG$300,MATCH($A46&"_"&AO$2,Ajustes!$LI$14:$LI$300,0),MATCH(AO$1,Ajustes!$E$4:$LG$4,0)),) -> 0 | AP46: =IFERROR(INDEX(Ajustes!$E$14:$LG$300,MATCH($A46&"_"&AP$2,Ajustes!$LI$14:$LI$300,0),MATCH(AP$1,Ajustes!$E$4:$LG$4,0)),) -> 0 | AS46: 0 | AT46: 0 | AU46: 0 | AV46: 0 | AW46: 0 | AX46: 0 | AY46: 0 | AZ46: 0 | BB46: 0 | BC46: 0 | BD46: 0 | BE46: 0 | BF46: 0 | BG46: 0 | BH46: 0 | BI46: 0 | BL46: 0 | BM46: 0 | BN46: 0 | BO46: 0 | BP46: 0 | BQ46: 0 | BR46: 0 | BS46: 0 | BT46: 0 | BW46: 0 | BX46: 0 | BY46: 0 | BZ46: 0 | CA46: 0 | CB46: 0 | CC46: 0 | CD46: 0 | CG46: =IF(A46="",0,SUMIFS(Clientes!Q:Q,Clientes!C:C,A46)) -> 0 | CH46: =IF(A46="",0,SUMIFS(Energia!K:K,Energia!C:C,A46)) -> 0 | CI46: =IF(A46="",0,SUMIFS(Potencia!K:K,Potencia!B:B,A46,Potencia!M:M,CI$5)) -> 0 | CJ46: =IF(A46="",0,SUMIFS(Potencia!K:K,Potencia!B:B,A46,Potencia!M:M,CJ$5)) -> 0 | CK46: =IF(A46="",0,SUMIFS(Potencia!K:K,Potencia!B:B,A46,Potencia!M:M,CK$5)) -> 0 | CL46: =IF(A46="",0,SUMIFS(Clientes!K:K,Clientes!C:C,A46)) -> 0 | CM46: =IF(A46="",0,SUMIFS(Energia!K:K,Energia!B:B,A46,Energia!AA:AA,CM$5)) -> 0 | CN46: =IF(A46="",0,SUMIFS(Energia!K:K,Energia!B:B,A46,Energia!AA:AA,CN$5)) -> 0 | CO46: 0
A47: =Factores!C73 ->  | B47: =IFERROR(INDEX(Ajustes!$E$14:$LG$300,MATCH($A47&"_"&B$2,Ajustes!$LI$14:$LI$300,0),MATCH(B$1,Ajustes!$E$4:$LG$4,0)),) -> 0 | C47: =IFERROR(INDEX(Ajustes!$E$14:$LG$300,MATCH($A47&"_"&C$2,Ajustes!$LI$14:$LI$300,0),MATCH(C$1,Ajustes!$E$4:$LG$4,0)),) -> 0 | D47: =IFERROR(INDEX(Ajustes!$E$14:$LG$300,MATCH($A47&"_"&D$2,Ajustes!$LI$14:$LI$300,0),MATCH(D$1,Ajustes!$E$4:$LG$4,0)),) -> 0 | E47: =IFERROR(INDEX(Ajustes!$E$14:$LG$300,MATCH($A47&"_"&E$2,Ajustes!$LI$14:$LI$300,0),MATCH(E$1,Ajustes!$E$4:$LG$4,0)),) -> 0 | F47: =IFERROR(INDEX(Ajustes!$E$14:$LG$300,MATCH($A47&"_"&F$2,Ajustes!$LI$14:$LI$300,0),MATCH(F$1,Ajustes!$E$4:$LG$4,0)),) -> 0 | G47: =IFERROR(INDEX(Ajustes!$E$14:$LG$300,MATCH($A47&"_"&G$2,Ajustes!$LI$14:$LI$300,0),MATCH(G$1,Ajustes!$E$4:$LG$4,0)),) -> 0 | H47: =IFERROR(INDEX(Ajustes!$E$14:$LG$300,MATCH($A47&"_"&H$2,Ajustes!$LI$14:$LI$300,0),MATCH(H$1,Ajustes!$E$4:$LG$4,0)),) -> 0 | I47: =IFERROR(INDEX(Ajustes!$E$14:$LG$300,MATCH($A47&"_"&I$2,Ajustes!$LI$14:$LI$300,0),MATCH(I$1,Ajustes!$E$4:$LG$4,0)),) -> 0 | J47: =IFERROR(INDEX(Ajustes!$E$14:$LG$300,MATCH($A47&"_"&J$2,Ajustes!$LI$14:$LI$300,0),MATCH(J$1,Ajustes!$E$4:$LG$4,0)),) -> 0 | K47: =IFERROR(INDEX(Ajustes!$E$14:$LG$300,MATCH($A47&"_"&K$2,Ajustes!$LI$14:$LI$300,0),MATCH(K$1,Ajustes!$E$4:$LG$4,0)),) -> 0 | L47: =IFERROR(INDEX(Ajustes!$E$14:$LG$300,MATCH($A47&"_"&L$2,Ajustes!$LI$14:$LI$300,0),MATCH(L$1,Ajustes!$E$4:$LG$4,0)),) -> 0 | M47: =IFERROR(INDEX(Ajustes!$E$14:$LG$300,MATCH($A47&"_"&M$2,Ajustes!$LI$14:$LI$300,0),MATCH(M$1,Ajustes!$E$4:$LG$4,0)),) -> 0 | N47: =IFERROR(INDEX(Ajustes!$E$14:$LG$300,MATCH($A47&"_"&N$2,Ajustes!$LI$14:$LI$300,0),MATCH(N$1,Ajustes!$E$4:$LG$4,0)),) -> 0 | O47: =IFERROR(INDEX(Ajustes!$E$14:$LG$300,MATCH($A47&"_"&O$2,Ajustes!$LI$14:$LI$300,0),MATCH(O$1,Ajustes!$E$4:$LG$4,0)),) -> 0 | P47: =IFERROR(INDEX(Ajustes!$E$14:$LG$300,MATCH($A47&"_"&P$2,Ajustes!$LI$14:$LI$300,0),MATCH(P$1,Ajustes!$E$4:$LG$4,0)),) -> 0 | Q47: =IFERROR(INDEX(Ajustes!$E$14:$LG$300,MATCH($A47&"_"&Q$2,Ajustes!$LI$14:$LI$300,0),MATCH(Q$1,Ajustes!$E$4:$LG$4,0)),) -> 0 | R47: =IFERROR(INDEX(Ajustes!$E$14:$LG$300,MATCH($A47&"_"&R$2,Ajustes!$LI$14:$LI$300,0),MATCH(R$1,Ajustes!$E$4:$LG$4,0)),) -> 0 | S47: =IFERROR(INDEX(Ajustes!$E$14:$LG$300,MATCH($A47&"_"&S$2,Ajustes!$LI$14:$LI$300,0),MATCH(S$1,Ajustes!$E$4:$LG$4,0)),) -> 0 | T47: =IFERROR(INDEX(Ajustes!$E$14:$LG$300,MATCH($A47&"_"&T$2,Ajustes!$LI$14:$LI$300,0),MATCH(T$1,Ajustes!$E$4:$LG$4,0)),) -> 0 | U47: =IFERROR(INDEX(Ajustes!$E$14:$LG$300,MATCH($A47&"_"&U$2,Ajustes!$LI$14:$LI$300,0),MATCH(U$1,Ajustes!$E$4:$LG$4,0)),) -> 0 | V47: 0 | W47: =IFERROR(INDEX(Ajustes!$E$14:$LG$300,MATCH($A47&"_"&W$2,Ajustes!$LI$14:$LI$300,0),MATCH(W$1,Ajustes!$E$4:$LG$4,0)),) -> 0 | X47: =IFERROR(INDEX(Ajustes!$E$14:$LG$300,MATCH($A47&"_"&X$2,Ajustes!$LI$14:$LI$300,0),MATCH(X$1,Ajustes!$E$4:$LG$4,0)),) -> 0 | Y47: =IFERROR(INDEX(Ajustes!$E$14:$LG$300,MATCH($A47&"_"&Y$2,Ajustes!$LI$14:$LI$300,0),MATCH(Y$1,Ajustes!$E$4:$LG$4,0)),) -> 0 | Z47: =IFERROR(INDEX(Ajustes!$E$14:$LG$300,MATCH($A47&"_"&Z$2,Ajustes!$LI$14:$LI$300,0),MATCH(Z$1,Ajustes!$E$4:$LG$4,0)),) -> 0 | AA47: =IFERROR(INDEX(Ajustes!$E$14:$LG$300,MATCH($A47&"_"&AA$2,Ajustes!$LI$14:$LI$300,0),MATCH(AA$1,Ajustes!$E$4:$LG$4,0)),) -> 0 | AB47: =IFERROR(INDEX(Ajustes!$E$14:$LG$300,MATCH($A47&"_"&AB$2,Ajustes!$LI$14:$LI$300,0),MATCH(AB$1,Ajustes!$E$4:$LG$4,0)),) -> 0 | AC47: =IFERROR(INDEX(Ajustes!$E$14:$LG$300,MATCH($A47&"_"&AC$2,Ajustes!$LI$14:$LI$300,0),MATCH(AC$1,Ajustes!$E$4:$LG$4,0)),) -> 0 | AD47: =IFERROR(INDEX(Ajustes!$E$14:$LG$300,MATCH($A47&"_"&AD$2,Ajustes!$LI$14:$LI$300,0),MATCH(AD$1,Ajustes!$E$4:$LG$4,0)),) -> 0 | AE47: =IFERROR(INDEX(Ajustes!$E$14:$LG$300,MATCH($A47&"_"&AE$2,Ajustes!$LI$14:$LI$300,0),MATCH(AE$1,Ajustes!$E$4:$LG$4,0)),) -> 0 | AF47: =IFERROR(INDEX(Ajustes!$E$14:$LG$300,MATCH($A47&"_"&AF$2,Ajustes!$LI$14:$LI$300,0),MATCH(AF$1,Ajustes!$E$4:$LG$4,0)),) -> 0 | AG47: =IFERROR(INDEX(Ajustes!$E$14:$LG$300,MATCH($A47&"_"&AG$2,Ajustes!$LI$14:$LI$300,0),MATCH(AG$1,Ajustes!$E$4:$LG$4,0)),) -> 0 | AH47: =IFERROR(INDEX(Ajustes!$E$14:$LG$300,MATCH($A47&"_"&AH$2,Ajustes!$LI$14:$LI$300,0),MATCH(AH$1,Ajustes!$E$4:$LG$4,0)),) -> 0 | AI47: 0 | AJ47: 0 | AK47: 0 | AL47: 0 | AM47: =IFERROR(INDEX(Ajustes!$E$14:$LG$300,MATCH($A47&"_"&AM$2,Ajustes!$LI$14:$LI$300,0),MATCH(AM$1,Ajustes!$E$4:$LG$4,0)),) -> 0 | AN47: =IFERROR(INDEX(Ajustes!$E$14:$LG$300,MATCH($A47&"_"&AN$2,Ajustes!$LI$14:$LI$300,0),MATCH(AN$1,Ajustes!$E$4:$LG$4,0)),) -> 0 | AO47: =IFERROR(INDEX(Ajustes!$E$14:$LG$300,MATCH($A47&"_"&AO$2,Ajustes!$LI$14:$LI$300,0),MATCH(AO$1,Ajustes!$E$4:$LG$4,0)),) -> 0 | AP47: =IFERROR(INDEX(Ajustes!$E$14:$LG$300,MATCH($A47&"_"&AP$2,Ajustes!$LI$14:$LI$300,0),MATCH(AP$1,Ajustes!$E$4:$LG$4,0)),) -> 0 | AS47: 0 | AT47: 0 | AU47: 0 | AV47: 0 | AW47: 0 | AX47: 0 | AY47: 0 | AZ47: 0 | BB47: 0 | BC47: 0 | BD47: 0 | BE47: 0 | BF47: 0 | BG47: 0 | BH47: 0 | BI47: 0 | BL47: 0 | BM47: 0 | BN47: 0 | BO47: 0 | BP47: 0 | BQ47: 0 | BR47: 0 | BS47: 0 | BT47: 0 | BW47: 0 | BX47: 0 | BY47: 0 | BZ47: 0 | CA47: 0 | CB47: 0 | CC47: 0 | CD47: 0 | CG47: =IF(A47="",0,SUMIFS(Clientes!Q:Q,Clientes!C:C,A47)) -> 0 | CH47: =IF(A47="",0,SUMIFS(Energia!K:K,Energia!C:C,A47)) -> 0 | CI47: =IF(A47="",0,SUMIFS(Potencia!K:K,Potencia!B:B,A47,Potencia!M:M,CI$5)) -> 0 | CJ47: =IF(A47="",0,SUMIFS(Potencia!K:K,Potencia!B:B,A47,Potencia!M:M,CJ$5)) -> 0 | CK47: =IF(A47="",0,SUMIFS(Potencia!K:K,Potencia!B:B,A47,Potencia!M:M,CK$5)) -> 0 | CL47: =IF(A47="",0,SUMIFS(Clientes!K:K,Clientes!C:C,A47)) -> 0 | CM47: =IF(A47="",0,SUMIFS(Energia!K:K,Energia!B:B,A47,Energia!AA:AA,CM$5)) -> 0 | CN47: =IF(A47="",0,SUMIFS(Energia!K:K,Energia!B:B,A47,Energia!AA:AA,CN$5)) -> 0 | CO47: 0
A48: =Factores!C74 ->  | B48: =IFERROR(INDEX(Ajustes!$E$14:$LG$300,MATCH($A48&"_"&B$2,Ajustes!$LI$14:$LI$300,0),MATCH(B$1,Ajustes!$E$4:$LG$4,0)),) -> 0 | C48: =IFERROR(INDEX(Ajustes!$E$14:$LG$300,MATCH($A48&"_"&C$2,Ajustes!$LI$14:$LI$300,0),MATCH(C$1,Ajustes!$E$4:$LG$4,0)),) -> 0 | D48: =IFERROR(INDEX(Ajustes!$E$14:$LG$300,MATCH($A48&"_"&D$2,Ajustes!$LI$14:$LI$300,0),MATCH(D$1,Ajustes!$E$4:$LG$4,0)),) -> 0 | E48: =IFERROR(INDEX(Ajustes!$E$14:$LG$300,MATCH($A48&"_"&E$2,Ajustes!$LI$14:$LI$300,0),MATCH(E$1,Ajustes!$E$4:$LG$4,0)),) -> 0 | F48: =IFERROR(INDEX(Ajustes!$E$14:$LG$300,MATCH($A48&"_"&F$2,Ajustes!$LI$14:$LI$300,0),MATCH(F$1,Ajustes!$E$4:$LG$4,0)),) -> 0 | G48: =IFERROR(INDEX(Ajustes!$E$14:$LG$300,MATCH($A48&"_"&G$2,Ajustes!$LI$14:$LI$300,0),MATCH(G$1,Ajustes!$E$4:$LG$4,0)),) -> 0 | H48: =IFERROR(INDEX(Ajustes!$E$14:$LG$300,MATCH($A48&"_"&H$2,Ajustes!$LI$14:$LI$300,0),MATCH(H$1,Ajustes!$E$4:$LG$4,0)),) -> 0 | I48: =IFERROR(INDEX(Ajustes!$E$14:$LG$300,MATCH($A48&"_"&I$2,Ajustes!$LI$14:$LI$300,0),MATCH(I$1,Ajustes!$E$4:$LG$4,0)),) -> 0 | J48: =IFERROR(INDEX(Ajustes!$E$14:$LG$300,MATCH($A48&"_"&J$2,Ajustes!$LI$14:$LI$300,0),MATCH(J$1,Ajustes!$E$4:$LG$4,0)),) -> 0 | K48: =IFERROR(INDEX(Ajustes!$E$14:$LG$300,MATCH($A48&"_"&K$2,Ajustes!$LI$14:$LI$300,0),MATCH(K$1,Ajustes!$E$4:$LG$4,0)),) -> 0 | L48: =IFERROR(INDEX(Ajustes!$E$14:$LG$300,MATCH($A48&"_"&L$2,Ajustes!$LI$14:$LI$300,0),MATCH(L$1,Ajustes!$E$4:$LG$4,0)),) -> 0 | M48: =IFERROR(INDEX(Ajustes!$E$14:$LG$300,MATCH($A48&"_"&M$2,Ajustes!$LI$14:$LI$300,0),MATCH(M$1,Ajustes!$E$4:$LG$4,0)),) -> 0 | N48: =IFERROR(INDEX(Ajustes!$E$14:$LG$300,MATCH($A48&"_"&N$2,Ajustes!$LI$14:$LI$300,0),MATCH(N$1,Ajustes!$E$4:$LG$4,0)),) -> 0 | O48: =IFERROR(INDEX(Ajustes!$E$14:$LG$300,MATCH($A48&"_"&O$2,Ajustes!$LI$14:$LI$300,0),MATCH(O$1,Ajustes!$E$4:$LG$4,0)),) -> 0 | P48: =IFERROR(INDEX(Ajustes!$E$14:$LG$300,MATCH($A48&"_"&P$2,Ajustes!$LI$14:$LI$300,0),MATCH(P$1,Ajustes!$E$4:$LG$4,0)),) -> 0 | Q48: =IFERROR(INDEX(Ajustes!$E$14:$LG$300,MATCH($A48&"_"&Q$2,Ajustes!$LI$14:$LI$300,0),MATCH(Q$1,Ajustes!$E$4:$LG$4,0)),) -> 0 | R48: =IFERROR(INDEX(Ajustes!$E$14:$LG$300,MATCH($A48&"_"&R$2,Ajustes!$LI$14:$LI$300,0),MATCH(R$1,Ajustes!$E$4:$LG$4,0)),) -> 0 | S48: =IFERROR(INDEX(Ajustes!$E$14:$LG$300,MATCH($A48&"_"&S$2,Ajustes!$LI$14:$LI$300,0),MATCH(S$1,Ajustes!$E$4:$LG$4,0)),) -> 0 | T48: =IFERROR(INDEX(Ajustes!$E$14:$LG$300,MATCH($A48&"_"&T$2,Ajustes!$LI$14:$LI$300,0),MATCH(T$1,Ajustes!$E$4:$LG$4,0)),) -> 0 | U48: =IFERROR(INDEX(Ajustes!$E$14:$LG$300,MATCH($A48&"_"&U$2,Ajustes!$LI$14:$LI$300,0),MATCH(U$1,Ajustes!$E$4:$LG$4,0)),) -> 0 | V48: 0 | W48: =IFERROR(INDEX(Ajustes!$E$14:$LG$300,MATCH($A48&"_"&W$2,Ajustes!$LI$14:$LI$300,0),MATCH(W$1,Ajustes!$E$4:$LG$4,0)),) -> 0 | X48: =IFERROR(INDEX(Ajustes!$E$14:$LG$300,MATCH($A48&"_"&X$2,Ajustes!$LI$14:$LI$300,0),MATCH(X$1,Ajustes!$E$4:$LG$4,0)),) -> 0 | Y48: =IFERROR(INDEX(Ajustes!$E$14:$LG$300,MATCH($A48&"_"&Y$2,Ajustes!$LI$14:$LI$300,0),MATCH(Y$1,Ajustes!$E$4:$LG$4,0)),) -> 0 | Z48: =IFERROR(INDEX(Ajustes!$E$14:$LG$300,MATCH($A48&"_"&Z$2,Ajustes!$LI$14:$LI$300,0),MATCH(Z$1,Ajustes!$E$4:$LG$4,0)),) -> 0 | AA48: =IFERROR(INDEX(Ajustes!$E$14:$LG$300,MATCH($A48&"_"&AA$2,Ajustes!$LI$14:$LI$300,0),MATCH(AA$1,Ajustes!$E$4:$LG$4,0)),) -> 0 | AB48: =IFERROR(INDEX(Ajustes!$E$14:$LG$300,MATCH($A48&"_"&AB$2,Ajustes!$LI$14:$LI$300,0),MATCH(AB$1,Ajustes!$E$4:$LG$4,0)),) -> 0 | AC48: =IFERROR(INDEX(Ajustes!$E$14:$LG$300,MATCH($A48&"_"&AC$2,Ajustes!$LI$14:$LI$300,0),MATCH(AC$1,Ajustes!$E$4:$LG$4,0)),) -> 0 | AD48: =IFERROR(INDEX(Ajustes!$E$14:$LG$300,MATCH($A48&"_"&AD$2,Ajustes!$LI$14:$LI$300,0),MATCH(AD$1,Ajustes!$E$4:$LG$4,0)),) -> 0 | AE48: =IFERROR(INDEX(Ajustes!$E$14:$LG$300,MATCH($A48&"_"&AE$2,Ajustes!$LI$14:$LI$300,0),MATCH(AE$1,Ajustes!$E$4:$LG$4,0)),) -> 0 | AF48: =IFERROR(INDEX(Ajustes!$E$14:$LG$300,MATCH($A48&"_"&AF$2,Ajustes!$LI$14:$LI$300,0),MATCH(AF$1,Ajustes!$E$4:$LG$4,0)),) -> 0 | AG48: =IFERROR(INDEX(Ajustes!$E$14:$LG$300,MATCH($A48&"_"&AG$2,Ajustes!$LI$14:$LI$300,0),MATCH(AG$1,Ajustes!$E$4:$LG$4,0)),) -> 0 | AH48: =IFERROR(INDEX(Ajustes!$E$14:$LG$300,MATCH($A48&"_"&AH$2,Ajustes!$LI$14:$LI$300,0),MATCH(AH$1,Ajustes!$E$4:$LG$4,0)),) -> 0 | AI48: 0 | AJ48: 0 | AK48: 0 | AL48: 0 | AM48: =IFERROR(INDEX(Ajustes!$E$14:$LG$300,MATCH($A48&"_"&AM$2,Ajustes!$LI$14:$LI$300,0),MATCH(AM$1,Ajustes!$E$4:$LG$4,0)),) -> 0 | AN48: =IFERROR(INDEX(Ajustes!$E$14:$LG$300,MATCH($A48&"_"&AN$2,Ajustes!$LI$14:$LI$300,0),MATCH(AN$1,Ajustes!$E$4:$LG$4,0)),) -> 0 | AO48: =IFERROR(INDEX(Ajustes!$E$14:$LG$300,MATCH($A48&"_"&AO$2,Ajustes!$LI$14:$LI$300,0),MATCH(AO$1,Ajustes!$E$4:$LG$4,0)),) -> 0 | AP48: =IFERROR(INDEX(Ajustes!$E$14:$LG$300,MATCH($A48&"_"&AP$2,Ajustes!$LI$14:$LI$300,0),MATCH(AP$1,Ajustes!$E$4:$LG$4,0)),) -> 0 | AS48: =SUMIFS($B48:$AP48,$B$6:$AP$6,AS$6) -> 0 | AT48: 0 | AU48: 0 | AV48: 0 | AW48: 0 | AX48: 0 | AY48: 0 | AZ48: 0 | BB48: =SUMIFS($B48:$AP48,$B$6:$AP$6,BB$6,$B$7:$AP$7,BB$7) -> 0 | BC48: 0 | BD48: 0 | BE48: 0 | BF48: 0 | BG48: 0 | BH48: 0 | BI48: 0 | BL48: =SUMIFS($B48:$AP48,$B$6:$AP$6,BL$6,$B$7:$AP$7,BL$7) -> 0 | BM48: 0 | BN48: 0 | BO48: 0 | BP48: 0 | BQ48: 0 | BR48: 0 | BS48: 0 | BT48: 0 | BW48: =SUMIFS($B48:$AP48,$B$6:$AP$6,BW$6,$B$7:$AP$7,BW$7) -> 0 | BX48: 0 | BY48: 0 | BZ48: 0 | CA48: 0 | CB48: 0 | CC48: 0 | CD48: 0 | CG48: =IF(A48="",0,SUMIFS(Clientes!Q:Q,Clientes!C:C,A48)) -> 0 | CH48: =IF(A48="",0,SUMIFS(Energia!K:K,Energia!C:C,A48)) -> 0 | CI48: =IF(A48="",0,SUMIFS(Potencia!K:K,Potencia!B:B,A48,Potencia!M:M,CI$5)) -> 0 | CJ48: =IF(A48="",0,SUMIFS(Potencia!K:K,Potencia!B:B,A48,Potencia!M:M,CJ$5)) -> 0 | CK48: =IF(A48="",0,SUMIFS(Potencia!K:K,Potencia!B:B,A48,Potencia!M:M,CK$5)) -> 0 | CL48: =IF(A48="",0,SUMIFS(Clientes!K:K,Clientes!C:C,A48)) -> 0 | CM48: =IF(A48="",0,SUMIFS(Energia!K:K,Energia!B:B,A48,Energia!AA:AA,CM$5)) -> 0 | CN48: =IF(A48="",0,SUMIFS(Energia!K:K,Energia!B:B,A48,Energia!AA:AA,CN$5)) -> 0 | CO48: 0
A49: =Factores!C75 ->  | B49: =IFERROR(INDEX(Ajustes!$E$14:$LG$300,MATCH($A49&"_"&B$2,Ajustes!$LI$14:$LI$300,0),MATCH(B$1,Ajustes!$E$4:$LG$4,0)),) -> 0 | C49: =IFERROR(INDEX(Ajustes!$E$14:$LG$300,MATCH($A49&"_"&C$2,Ajustes!$LI$14:$LI$300,0),MATCH(C$1,Ajustes!$E$4:$LG$4,0)),) -> 0 | D49: =IFERROR(INDEX(Ajustes!$E$14:$LG$300,MATCH($A49&"_"&D$2,Ajustes!$LI$14:$LI$300,0),MATCH(D$1,Ajustes!$E$4:$LG$4,0)),) -> 0 | E49: =IFERROR(INDEX(Ajustes!$E$14:$LG$300,MATCH($A49&"_"&E$2,Ajustes!$LI$14:$LI$300,0),MATCH(E$1,Ajustes!$E$4:$LG$4,0)),) -> 0 | F49: =IFERROR(INDEX(Ajustes!$E$14:$LG$300,MATCH($A49&"_"&F$2,Ajustes!$LI$14:$LI$300,0),MATCH(F$1,Ajustes!$E$4:$LG$4,0)),) -> 0 | G49: =IFERROR(INDEX(Ajustes!$E$14:$LG$300,MATCH($A49&"_"&G$2,Ajustes!$LI$14:$LI$300,0),MATCH(G$1,Ajustes!$E$4:$LG$4,0)),) -> 0 | H49: =IFERROR(INDEX(Ajustes!$E$14:$LG$300,MATCH($A49&"_"&H$2,Ajustes!$LI$14:$LI$300,0),MATCH(H$1,Ajustes!$E$4:$LG$4,0)),) -> 0 | I49: =IFERROR(INDEX(Ajustes!$E$14:$LG$300,MATCH($A49&"_"&I$2,Ajustes!$LI$14:$LI$300,0),MATCH(I$1,Ajustes!$E$4:$LG$4,0)),) -> 0 | J49: =IFERROR(INDEX(Ajustes!$E$14:$LG$300,MATCH($A49&"_"&J$2,Ajustes!$LI$14:$LI$300,0),MATCH(J$1,Ajustes!$E$4:$LG$4,0)),) -> 0 | K49: =IFERROR(INDEX(Ajustes!$E$14:$LG$300,MATCH($A49&"_"&K$2,Ajustes!$LI$14:$LI$300,0),MATCH(K$1,Ajustes!$E$4:$LG$4,0)),) -> 0 | L49: =IFERROR(INDEX(Ajustes!$E$14:$LG$300,MATCH($A49&"_"&L$2,Ajustes!$LI$14:$LI$300,0),MATCH(L$1,Ajustes!$E$4:$LG$4,0)),) -> 0 | M49: =IFERROR(INDEX(Ajustes!$E$14:$LG$300,MATCH($A49&"_"&M$2,Ajustes!$LI$14:$LI$300,0),MATCH(M$1,Ajustes!$E$4:$LG$4,0)),) -> 0 | N49: =IFERROR(INDEX(Ajustes!$E$14:$LG$300,MATCH($A49&"_"&N$2,Ajustes!$LI$14:$LI$300,0),MATCH(N$1,Ajustes!$E$4:$LG$4,0)),) -> 0 | O49: =IFERROR(INDEX(Ajustes!$E$14:$LG$300,MATCH($A49&"_"&O$2,Ajustes!$LI$14:$LI$300,0),MATCH(O$1,Ajustes!$E$4:$LG$4,0)),) -> 0 | P49: =IFERROR(INDEX(Ajustes!$E$14:$LG$300,MATCH($A49&"_"&P$2,Ajustes!$LI$14:$LI$300,0),MATCH(P$1,Ajustes!$E$4:$LG$4,0)),) -> 0 | Q49: =IFERROR(INDEX(Ajustes!$E$14:$LG$300,MATCH($A49&"_"&Q$2,Ajustes!$LI$14:$LI$300,0),MATCH(Q$1,Ajustes!$E$4:$LG$4,0)),) -> 0 | R49: =IFERROR(INDEX(Ajustes!$E$14:$LG$300,MATCH($A49&"_"&R$2,Ajustes!$LI$14:$LI$300,0),MATCH(R$1,Ajustes!$E$4:$LG$4,0)),) -> 0 | S49: =IFERROR(INDEX(Ajustes!$E$14:$LG$300,MATCH($A49&"_"&S$2,Ajustes!$LI$14:$LI$300,0),MATCH(S$1,Ajustes!$E$4:$LG$4,0)),) -> 0 | T49: =IFERROR(INDEX(Ajustes!$E$14:$LG$300,MATCH($A49&"_"&T$2,Ajustes!$LI$14:$LI$300,0),MATCH(T$1,Ajustes!$E$4:$LG$4,0)),) -> 0 | U49: =IFERROR(INDEX(Ajustes!$E$14:$LG$300,MATCH($A49&"_"&U$2,Ajustes!$LI$14:$LI$300,0),MATCH(U$1,Ajustes!$E$4:$LG$4,0)),) -> 0 | V49: 0 | W49: =IFERROR(INDEX(Ajustes!$E$14:$LG$300,MATCH($A49&"_"&W$2,Ajustes!$LI$14:$LI$300,0),MATCH(W$1,Ajustes!$E$4:$LG$4,0)),) -> 0 | X49: =IFERROR(INDEX(Ajustes!$E$14:$LG$300,MATCH($A49&"_"&X$2,Ajustes!$LI$14:$LI$300,0),MATCH(X$1,Ajustes!$E$4:$LG$4,0)),) -> 0 | Y49: =IFERROR(INDEX(Ajustes!$E$14:$LG$300,MATCH($A49&"_"&Y$2,Ajustes!$LI$14:$LI$300,0),MATCH(Y$1,Ajustes!$E$4:$LG$4,0)),) -> 0 | Z49: =IFERROR(INDEX(Ajustes!$E$14:$LG$300,MATCH($A49&"_"&Z$2,Ajustes!$LI$14:$LI$300,0),MATCH(Z$1,Ajustes!$E$4:$LG$4,0)),) -> 0 | AA49: =IFERROR(INDEX(Ajustes!$E$14:$LG$300,MATCH($A49&"_"&AA$2,Ajustes!$LI$14:$LI$300,0),MATCH(AA$1,Ajustes!$E$4:$LG$4,0)),) -> 0 | AB49: =IFERROR(INDEX(Ajustes!$E$14:$LG$300,MATCH($A49&"_"&AB$2,Ajustes!$LI$14:$LI$300,0),MATCH(AB$1,Ajustes!$E$4:$LG$4,0)),) -> 0 | AC49: =IFERROR(INDEX(Ajustes!$E$14:$LG$300,MATCH($A49&"_"&AC$2,Ajustes!$LI$14:$LI$300,0),MATCH(AC$1,Ajustes!$E$4:$LG$4,0)),) -> 0 | AD49: =IFERROR(INDEX(Ajustes!$E$14:$LG$300,MATCH($A49&"_"&AD$2,Ajustes!$LI$14:$LI$300,0),MATCH(AD$1,Ajustes!$E$4:$LG$4,0)),) -> 0 | AE49: =IFERROR(INDEX(Ajustes!$E$14:$LG$300,MATCH($A49&"_"&AE$2,Ajustes!$LI$14:$LI$300,0),MATCH(AE$1,Ajustes!$E$4:$LG$4,0)),) -> 0 | AF49: =IFERROR(INDEX(Ajustes!$E$14:$LG$300,MATCH($A49&"_"&AF$2,Ajustes!$LI$14:$LI$300,0),MATCH(AF$1,Ajustes!$E$4:$LG$4,0)),) -> 0 | AG49: =IFERROR(INDEX(Ajustes!$E$14:$LG$300,MATCH($A49&"_"&AG$2,Ajustes!$LI$14:$LI$300,0),MATCH(AG$1,Ajustes!$E$4:$LG$4,0)),) -> 0 | AH49: =IFERROR(INDEX(Ajustes!$E$14:$LG$300,MATCH($A49&"_"&AH$2,Ajustes!$LI$14:$LI$300,0),MATCH(AH$1,Ajustes!$E$4:$LG$4,0)),) -> 0 | AI49: 0 | AJ49: 0 | AK49: 0 | AL49: 0 | AM49: =IFERROR(INDEX(Ajustes!$E$14:$LG$300,MATCH($A49&"_"&AM$2,Ajustes!$LI$14:$LI$300,0),MATCH(AM$1,Ajustes!$E$4:$LG$4,0)),) -> 0 | AN49: =IFERROR(INDEX(Ajustes!$E$14:$LG$300,MATCH($A49&"_"&AN$2,Ajustes!$LI$14:$LI$300,0),MATCH(AN$1,Ajustes!$E$4:$LG$4,0)),) -> 0 | AO49: =IFERROR(INDEX(Ajustes!$E$14:$LG$300,MATCH($A49&"_"&AO$2,Ajustes!$LI$14:$LI$300,0),MATCH(AO$1,Ajustes!$E$4:$LG$4,0)),) -> 0 | AP49: =IFERROR(INDEX(Ajustes!$E$14:$LG$300,MATCH($A49&"_"&AP$2,Ajustes!$LI$14:$LI$300,0),MATCH(AP$1,Ajustes!$E$4:$LG$4,0)),) -> 0 | AS49: 0 | AT49: 0 | AU49: 0 | AV49: 0 | AW49: 0 | AX49: 0 | AY49: 0 | AZ49: 0 | BB49: 0 | BC49: 0 | BD49: 0 | BE49: 0 | BF49: 0 | BG49: 0 | BH49: 0 | BI49: 0 | BL49: 0 | BM49: 0 | BN49: 0 | BO49: 0 | BP49: 0 | BQ49: 0 | BR49: 0 | BS49: 0 | BT49: 0 | BW49: 0 | BX49: 0 | BY49: 0 | BZ49: 0 | CA49: 0 | CB49: 0 | CC49: 0 | CD49: 0 | CG49: =IF(A49="",0,SUMIFS(Clientes!Q:Q,Clientes!C:C,A49)) -> 0 | CH49: =IF(A49="",0,SUMIFS(Energia!K:K,Energia!C:C,A49)) -> 0 | CI49: =IF(A49="",0,SUMIFS(Potencia!K:K,Potencia!B:B,A49,Potencia!M:M,CI$5)) -> 0 | CJ49: =IF(A49="",0,SUMIFS(Potencia!K:K,Potencia!B:B,A49,Potencia!M:M,CJ$5)) -> 0 | CK49: =IF(A49="",0,SUMIFS(Potencia!K:K,Potencia!B:B,A49,Potencia!M:M,CK$5)) -> 0 | CL49: =IF(A49="",0,SUMIFS(Clientes!K:K,Clientes!C:C,A49)) -> 0 | CM49: =IF(A49="",0,SUMIFS(Energia!K:K,Energia!B:B,A49,Energia!AA:AA,CM$5)) -> 0 | CN49: =IF(A49="",0,SUMIFS(Energia!K:K,Energia!B:B,A49,Energia!AA:AA,CN$5)) -> 0 | CO49: 0
A50: =Factores!C76 ->  | B50: =IFERROR(INDEX(Ajustes!$E$14:$LG$300,MATCH($A50&"_"&B$2,Ajustes!$LI$14:$LI$300,0),MATCH(B$1,Ajustes!$E$4:$LG$4,0)),) -> 0 | C50: =IFERROR(INDEX(Ajustes!$E$14:$LG$300,MATCH($A50&"_"&C$2,Ajustes!$LI$14:$LI$300,0),MATCH(C$1,Ajustes!$E$4:$LG$4,0)),) -> 0 | D50: =IFERROR(INDEX(Ajustes!$E$14:$LG$300,MATCH($A50&"_"&D$2,Ajustes!$LI$14:$LI$300,0),MATCH(D$1,Ajustes!$E$4:$LG$4,0)),) -> 0 | E50: =IFERROR(INDEX(Ajustes!$E$14:$LG$300,MATCH($A50&"_"&E$2,Ajustes!$LI$14:$LI$300,0),MATCH(E$1,Ajustes!$E$4:$LG$4,0)),) -> 0 | F50: =IFERROR(INDEX(Ajustes!$E$14:$LG$300,MATCH($A50&"_"&F$2,Ajustes!$LI$14:$LI$300,0),MATCH(F$1,Ajustes!$E$4:$LG$4,0)),) -> 0 | G50: =IFERROR(INDEX(Ajustes!$E$14:$LG$300,MATCH($A50&"_"&G$2,Ajustes!$LI$14:$LI$300,0),MATCH(G$1,Ajustes!$E$4:$LG$4,0)),) -> 0 | H50: =IFERROR(INDEX(Ajustes!$E$14:$LG$300,MATCH($A50&"_"&H$2,Ajustes!$LI$14:$LI$300,0),MATCH(H$1,Ajustes!$E$4:$LG$4,0)),) -> 0 | I50: =IFERROR(INDEX(Ajustes!$E$14:$LG$300,MATCH($A50&"_"&I$2,Ajustes!$LI$14:$LI$300,0),MATCH(I$1,Ajustes!$E$4:$LG$4,0)),) -> 0 | J50: =IFERROR(INDEX(Ajustes!$E$14:$LG$300,MATCH($A50&"_"&J$2,Ajustes!$LI$14:$LI$300,0),MATCH(J$1,Ajustes!$E$4:$LG$4,0)),) -> 0 | K50: =IFERROR(INDEX(Ajustes!$E$14:$LG$300,MATCH($A50&"_"&K$2,Ajustes!$LI$14:$LI$300,0),MATCH(K$1,Ajustes!$E$4:$LG$4,0)),) -> 0 | L50: =IFERROR(INDEX(Ajustes!$E$14:$LG$300,MATCH($A50&"_"&L$2,Ajustes!$LI$14:$LI$300,0),MATCH(L$1,Ajustes!$E$4:$LG$4,0)),) -> 0 | M50: =IFERROR(INDEX(Ajustes!$E$14:$LG$300,MATCH($A50&"_"&M$2,Ajustes!$LI$14:$LI$300,0),MATCH(M$1,Ajustes!$E$4:$LG$4,0)),) -> 0 | N50: =IFERROR(INDEX(Ajustes!$E$14:$LG$300,MATCH($A50&"_"&N$2,Ajustes!$LI$14:$LI$300,0),MATCH(N$1,Ajustes!$E$4:$LG$4,0)),) -> 0 | O50: =IFERROR(INDEX(Ajustes!$E$14:$LG$300,MATCH($A50&"_"&O$2,Ajustes!$LI$14:$LI$300,0),MATCH(O$1,Ajustes!$E$4:$LG$4,0)),) -> 0 | P50: =IFERROR(INDEX(Ajustes!$E$14:$LG$300,MATCH($A50&"_"&P$2,Ajustes!$LI$14:$LI$300,0),MATCH(P$1,Ajustes!$E$4:$LG$4,0)),) -> 0 | Q50: =IFERROR(INDEX(Ajustes!$E$14:$LG$300,MATCH($A50&"_"&Q$2,Ajustes!$LI$14:$LI$300,0),MATCH(Q$1,Ajustes!$E$4:$LG$4,0)),) -> 0 | R50: =IFERROR(INDEX(Ajustes!$E$14:$LG$300,MATCH($A50&"_"&R$2,Ajustes!$LI$14:$LI$300,0),MATCH(R$1,Ajustes!$E$4:$LG$4,0)),) -> 0 | S50: =IFERROR(INDEX(Ajustes!$E$14:$LG$300,MATCH($A50&"_"&S$2,Ajustes!$LI$14:$LI$300,0),MATCH(S$1,Ajustes!$E$4:$LG$4,0)),) -> 0 | T50: =IFERROR(INDEX(Ajustes!$E$14:$LG$300,MATCH($A50&"_"&T$2,Ajustes!$LI$14:$LI$300,0),MATCH(T$1,Ajustes!$E$4:$LG$4,0)),) -> 0 | U50: =IFERROR(INDEX(Ajustes!$E$14:$LG$300,MATCH($A50&"_"&U$2,Ajustes!$LI$14:$LI$300,0),MATCH(U$1,Ajustes!$E$4:$LG$4,0)),) -> 0 | V50: 0 | W50: =IFERROR(INDEX(Ajustes!$E$14:$LG$300,MATCH($A50&"_"&W$2,Ajustes!$LI$14:$LI$300,0),MATCH(W$1,Ajustes!$E$4:$LG$4,0)),) -> 0 | X50: =IFERROR(INDEX(Ajustes!$E$14:$LG$300,MATCH($A50&"_"&X$2,Ajustes!$LI$14:$LI$300,0),MATCH(X$1,Ajustes!$E$4:$LG$4,0)),) -> 0 | Y50: =IFERROR(INDEX(Ajustes!$E$14:$LG$300,MATCH($A50&"_"&Y$2,Ajustes!$LI$14:$LI$300,0),MATCH(Y$1,Ajustes!$E$4:$LG$4,0)),) -> 0 | Z50: =IFERROR(INDEX(Ajustes!$E$14:$LG$300,MATCH($A50&"_"&Z$2,Ajustes!$LI$14:$LI$300,0),MATCH(Z$1,Ajustes!$E$4:$LG$4,0)),) -> 0 | AA50: =IFERROR(INDEX(Ajustes!$E$14:$LG$300,MATCH($A50&"_"&AA$2,Ajustes!$LI$14:$LI$300,0),MATCH(AA$1,Ajustes!$E$4:$LG$4,0)),) -> 0 | AB50: =IFERROR(INDEX(Ajustes!$E$14:$LG$300,MATCH($A50&"_"&AB$2,Ajustes!$LI$14:$LI$300,0),MATCH(AB$1,Ajustes!$E$4:$LG$4,0)),) -> 0 | AC50: =IFERROR(INDEX(Ajustes!$E$14:$LG$300,MATCH($A50&"_"&AC$2,Ajustes!$LI$14:$LI$300,0),MATCH(AC$1,Ajustes!$E$4:$LG$4,0)),) -> 0 | AD50: =IFERROR(INDEX(Ajustes!$E$14:$LG$300,MATCH($A50&"_"&AD$2,Ajustes!$LI$14:$LI$300,0),MATCH(AD$1,Ajustes!$E$4:$LG$4,0)),) -> 0 | AE50: =IFERROR(INDEX(Ajustes!$E$14:$LG$300,MATCH($A50&"_"&AE$2,Ajustes!$LI$14:$LI$300,0),MATCH(AE$1,Ajustes!$E$4:$LG$4,0)),) -> 0 | AF50: =IFERROR(INDEX(Ajustes!$E$14:$LG$300,MATCH($A50&"_"&AF$2,Ajustes!$LI$14:$LI$300,0),MATCH(AF$1,Ajustes!$E$4:$LG$4,0)),) -> 0 | AG50: =IFERROR(INDEX(Ajustes!$E$14:$LG$300,MATCH($A50&"_"&AG$2,Ajustes!$LI$14:$LI$300,0),MATCH(AG$1,Ajustes!$E$4:$LG$4,0)),) -> 0 | AH50: =IFERROR(INDEX(Ajustes!$E$14:$LG$300,MATCH($A50&"_"&AH$2,Ajustes!$LI$14:$LI$300,0),MATCH(AH$1,Ajustes!$E$4:$LG$4,0)),) -> 0 | AI50: 0 | AJ50: 0 | AK50: 0 | AL50: 0 | AM50: =IFERROR(INDEX(Ajustes!$E$14:$LG$300,MATCH($A50&"_"&AM$2,Ajustes!$LI$14:$LI$300,0),MATCH(AM$1,Ajustes!$E$4:$LG$4,0)),) -> 0 | AN50: =IFERROR(INDEX(Ajustes!$E$14:$LG$300,MATCH($A50&"_"&AN$2,Ajustes!$LI$14:$LI$300,0),MATCH(AN$1,Ajustes!$E$4:$LG$4,0)),) -> 0 | AO50: =IFERROR(INDEX(Ajustes!$E$14:$LG$300,MATCH($A50&"_"&AO$2,Ajustes!$LI$14:$LI$300,0),MATCH(AO$1,Ajustes!$E$4:$LG$4,0)),) -> 0 | AP50: =IFERROR(INDEX(Ajustes!$E$14:$LG$300,MATCH($A50&"_"&AP$2,Ajustes!$LI$14:$LI$300,0),MATCH(AP$1,Ajustes!$E$4:$LG$4,0)),) -> 0 | AS50: 0 | AT50: 0 | AU50: 0 | AV50: 0 | AW50: 0 | AX50: 0 | AY50: 0 | AZ50: 0 | BB50: 0 | BC50: 0 | BD50: 0 | BE50: 0 | BF50: 0 | BG50: 0 | BH50: 0 | BI50: 0 | BL50: 0 | BM50: 0 | BN50: 0 | BO50: 0 | BP50: 0 | BQ50: 0 | BR50: 0 | BS50: 0 | BT50: 0 | BW50: 0 | BX50: 0 | BY50: 0 | BZ50: 0 | CA50: 0 | CB50: 0 | CC50: 0 | CD50: 0 | CG50: =IF(A50="",0,SUMIFS(Clientes!Q:Q,Clientes!C:C,A50)) -> 0 | CH50: =IF(A50="",0,SUMIFS(Energia!K:K,Energia!C:C,A50)) -> 0 | CI50: =IF(A50="",0,SUMIFS(Potencia!K:K,Potencia!B:B,A50,Potencia!M:M,CI$5)) -> 0 | CJ50: =IF(A50="",0,SUMIFS(Potencia!K:K,Potencia!B:B,A50,Potencia!M:M,CJ$5)) -> 0 | CK50: =IF(A50="",0,SUMIFS(Potencia!K:K,Potencia!B:B,A50,Potencia!M:M,CK$5)) -> 0 | CL50: =IF(A50="",0,SUMIFS(Clientes!K:K,Clientes!C:C,A50)) -> 0 | CM50: =IF(A50="",0,SUMIFS(Energia!K:K,Energia!B:B,A50,Energia!AA:AA,CM$5)) -> 0 | CN50: =IF(A50="",0,SUMIFS(Energia!K:K,Energia!B:B,A50,Energia!AA:AA,CN$5)) -> 0 | CO50: 0
